Workbook

Sheet ENERO 2021
A1: SIAC | P1: ING. INDUSTRIAL
F2: CARACTERISTICAS DEL EQUIPO
A3: ITEM | B3: FECHA SOLICITADA | C3: Nombre Cliente | D3: PEDIDO | E3: CANTIDAD | F3: EQUIPO | G3: Conexión | H3: TAG | I3: Caudal | J3: R.P.M | K3: MOTOR | L3: GIRO | M3: DESCARGA | N3: OBSERVACIONES | O3: FACTOR VENTA | P3: Codigo | Q3: Descripción | R3: COSTO | S3: PRECIO LISTA | T3: FECHA ENTREGA
A4: 1 | B4: 2021-01-05T09:49:00 | C4: DE BUEN Y ASOCIADOS | D4: 231663 | E4: 1 | F4: CMI-280 | G4: 127/1 | H4: VE-01-AZ | I4: 1425 CFM | J4: 1750 | K4: 1/2 | O4: =2/0.54 -> 3.703703704 | P4: 5CMI2804174100 | Q4: Existe | R4: 7486.4353 | S4: =R4*O4 -> 27727.53815
A5: 2 | B5: 2021-01-05T09:49:00 | C5: DE BUEN Y ASOCIADOS | D5: 231663 | E5: 1 | F5: CMI-250 | G5: 127/1 | H5: VE-02-AZ | I5: 715 CFM | J5: 1060 | K5: 1/4 | O5: =2/0.54 -> 3.703703704 | P5: 5CMI2502010850 | Q5: Existe | R5: 7648.9746 | S5: 28329.53556
A6: 3 | B6: 2021-01-05T09:49:00 | C6: DE BUEN Y ASOCIADOS | D6: 231663 | E6: 1 | F6: CLT-20 | G6: 230/3 | H6: VE-01 | I6: 3700 CFM | J6: 1050 | K6: 1 1/2 | N6: CUBIERTA MOTOR | O6: 3.703703704 | P6: 5CLTG20C1050CM | Q6: EXT.CLTG-20 1.5T 1050RPM CUBRE | R6: 9783.7621 | S6: 36236.15593
A7: 4 | B7: 2021-01-05T17:10:00 | C7: TRANE | D7: 231724 | E7: 1 | F7: CMI-250 | G7: 220/1 | H7: - | I7: - | J7: 2200 | K7: 1/3 | N7: BRIDAS EN BOCAS DE SUCCION Y DESCARGA | O7: 3.703703704 | P7: 5CMI25032200BD | Q7: EXT.CMI-250 1/3M 2200RPM BDA. | R7: 7768.275 | S7: 28771.38889
A8: 5 | B8: 2021-01-05T17:10:00 | C8: TRANE | D8: 231724 | E8: 1 | F8: CMI-355 | G8: 220/1 | H8: - | I8: - | J8: 1200 | K8: 1/3 | N8: BRIDAS EN BOCAS DE SUCCION Y DESCARGA | O8: 3.703703704 | P8: 5CMI35531200BD | Q8: EXT.CMI-355 1/3M 1200RPM BDA. | R8: 8418.9978 | S8: 31181.47333
A9: 6 | B9: 2021-01-05T17:46:00 | C9: BARCEL | D9: 231375 | E9: 9 | F9: C/DAHF2-30/28 | G9: 460/3 | H9: UIA-05 A 07 | I9: 22065 CFM | J9: 450 | K9: 15 | N9: 460 V, LOUVER EN SUCCION, BASE PORTAFILTRO DE 2 ETAPAS SIN FILTROS (SUCCIÓN) | O9: 3.703703704 | P9: 5CDAHF2328M46V | Q9: EXT.CDAHF2-30/28 15T 450RPM LV | S9: 0
A10: 7 | B10: 2021-01-05T17:46:00 | C10: BARCEL | D10: 231375 | E10: 3 | F10: AGE-T-1250-1 | G10: 460/3 | H10: UIA-18 | I10: - | J10: 485 | K10: 1 | N10: 460 V | O10: 3.703703704 | P10: 5AGET1250L460V | Q10: Existe | R10: 12224.72 | S10: 45276.74074
A11: 8 | B11: 2021-01-05T17:46:00 | C11: BARCEL | D11: 231375 | E11: 5 | F11: AGE-T-1250-1 1/2 | G11: 460/3 | H11: EXT-03 A 07 | I11: - | J11: 550 | K11: 1 1/2 | N11: 460 V | O11: 3.703703704 | P11: 5AGET1250H460V | Q11: Existe | R11: 12491.6801 | S11: 46265.48185
A12: 9 | B12: 2021-01-05T17:46:00 | C12: BARCEL | D12: 231375 | E12: 6 | F12: HGT-1250-2 | G12: 460/3 | H12: EXT-11 AL 16 | I12: - | J12: 540 | K12: 2 | N12: 460 V, GABINETE LARGO WALL HOUSING, PERSIANA GRAVEDAD EN DESCARGA, MALLA PROTECCION EN SUCCION | O12: 3.703703704 | P12: 5HGT1250LPMH46 | Q12: EXT.HGT-1250 2T 540RPM W.H. | R12: 15321.99 | S12: 56748.11111
A13: 10 | B13: 2021-01-05T17:46:00 | C13: BARCEL | D13: 231375 | E13: 2 | F13: CRVL-T-18 | G13: 460/3 | H13: EXT-17 Y 18 | I13: - | J13: 825 | K13: 1/4 | N13: 460 V | O13: 3.703703704 | P13: 5CRVLT18882546 | Q13: EXT.CRVLT-18 1/4T 825RPM 460V | R13: 7677.2601 | S13: 28434.29667
A14: 11 | B14: 2021-01-05T17:46:00 | C14: BARCEL | D14: 231375 | E14: 2 | F14: CRVL-T-33 | G14: 460/3 | H14: EXT-21 Y 22 | I14: - | J14: 450 | K14: 1 1/2 | N14: 460 V | O14: 3.703703704 | P14: 5CRVLT33C45046 | Q14: EXT.CRVLT-33 1.5T 450RPM 460V | R14: 19950.5279 | S14: 73890.84407
A15: 12 | B15: 2021-01-06T08:27:00 | C15: CLIMAS KONFORT | D15: 231699 | E15: 1 | F15: CRVLT-18 | G15: 220/1 | H15: - | I15: - | J15: 1300 | K15: 3/4 | O15: 3.703703704 | P15: 5CRVLT18501300 | Q15: EXT.CRVLT-18 3/4M 1300RPM | R15: 7525.7883 | S15: 27873.29
A16: 13 | B16: 2021-01-06T08:28:00 | C16: EXPERTOS EN VENTILACION | D16: 231732 | E16: 1 | F16: CLT-24 | G16: 220/3 | H16: - | I16: - | J16: 1100 | K16: 3 | O16: 3.703703704 | P16: 5CLTG24E10800 | Q16: Existe | R16: 14399.8752 | S16: 53332.87111
A17: 14 | B17: 2021-01-06T08:36:00 | C17: CONDUCTOS AIRE DIRIGIDO | D17: 231733 | E17: 1 | F17: DAB-15/15 | G17: 230/3 | H17: - | I17: 4200 CFM | J17: 1125 | K17: 3 | O17: 3.703703704 | P17: 5DAB1515E01125 | Q17: EXT.DA/B-15/15 3T 1125RPM | R17: 8195.125
A18: 15 | B18: 2021-01-06T08:55:00 | C18: AIRESISTEMAS DE OCCIDENTE | D18: 231734 | E18: 1 | F18: CLT-12 | G18: 127/1 | H18: - | I18: 600 CFM | J18: 1350 | K18: 1/2 | O18: 3.703703704 | P18: 5CLTG124013500 | Q18: Existe | R18: 5394.6555 | S18: =R18*O18 -> 19980.20556
A19: 16 | B19: 2021-01-06T08:55:00 | C19: AIRESISTEMAS DE OCCIDENTE | D19: 231734 | E19: 1 | F19: CME-500 | G19: 220/3 | H19: - | I19: 3990 CFM | J19: 1150 | K19: 1 1/2 | N19: ARREGLO AMCA "C", MOTOR ESTANDAR | O19: 3.703703704 | P19: 5CME500C011500 | Q19: EXT.CME-500 1.5T 1150RPM AMCA | R19: 12850.9495 | S19: 47596.10926
A20: 17 | B20: 2021-01-06T08:55:00 | C20: AIRESISTEMAS DE OCCIDENTE | D20: 231734 | E20: 1 | F20: CLT-20 | G20: 220/3 | H20: - | I20: 3060 CFM | J20: 1200 | K20: 1 | O20: 3.703703704 | P20: 5CLTG20B012000 | Q20: EXT.CLTG-20 1T 1200RPM | R20: 9091.1374 | S20: 33670.87926
A21: 18 | B21: 2021-01-06T08:55:00 | C21: AIRESISTEMAS DE OCCIDENTE | D21: 231734 | E21: 2 | F21: CLT-22 | G21: 220/3 | H21: - | I21: 4450 CFM | J21: 1100 | K21: 2 | O21: 3.703703704 | P21: 5CLTG22D011000 | Q21: EXT.CLTG-22 2T 1100RPM | R21: 11416.6388 | S21: 42283.84741
A22: 19 | B22: 2021-01-06T09:06:00 | C22: EXPERTOS EN VENTILACION | D22: 231735 | E22: 1 | F22: CDAHF1-9/9 | G22: 220/1 | H22: - | I22: - | J22: 850 | K22: 1/4 | O22: 3.703703704 | P22: 5CDAHF19920825 | Q22: Existe | R22: 5616.8161 | S22: 20803.02259
A23: 20 | B23: 2021-01-06T09:06:00 | C23: EXPERTOS EN VENTILACION | D23: 231735 | E23: 1 | F23: CDAH-7/7 | G23: 220/1 | H23: - | I23: - | J23: 1025 | K23: 1/4 | O23: 3.703703704 | P23: 5CDAH772010250 | Q23: Existe | R23: 4323.2636 | S23: 16012.08741
A24: 21 | B24: 2021-01-06T09:23:00 | C24: PERSSA | D24: 231738 | E24: 1 | F24: CRVLT-18 | G24: 220/1 | H24: - | I24: - | J24: 1250 | K24: 3/4 | O24: 3.703703704 | P24: 5CRVLT18501250 | Q24: Existe | R24: 7603.2669 | S24: 28160.24778
A25: 22 | B25: 2021-01-06T09:23:00 | C25: PERSSA | D25: 231738 | E25: 1 | F25: CRVLT-20 | G25: 220/1 | H25: - | I25: - | J25: 1050 | K25: 1 | O25: 3.703703704 | P25: 5CRVLT20601050 | Q25: Existe | R25: 8054.3536 | S25: 29830.93926
A26: 23 | B26: 2021-01-06T09:41:00 | C26: TODO EN VENTILACION | D26: 231739 | E26: 1 | F26: TGT/4-1000-6/10 | G26: 230/3 | H26: - | I26: 45000 M3/H | J26: 1725 | K26: 10 | N26: ANGULO DE LA PALA "D" | O26: 3.703703704 | P26: 5TGT410006100D | Q26: Existe | R26: 17007.8542 | S26: 62992.05259
A27: 24 | B27: 2021-01-06T09:49:00 | C27: SANDRA SANCHEZ | D27: 231667 | E27: 1 | F27: CRVLT-16 | G27: 220/1 | H27: - | I27: - | J27: 1175 | K27: 1 | O27: 3.703703704 | P27: 5CRVLT16601200 | Q27: Existe | R27: 7243.6236 | S27: 26828.23556
A28: 25 | B28: 2021-01-06T10:05:00 | C28: CLIMAS OPCION | D28: 231666 | E28: 1 | F28: CMI-450 | G28: 220/3 | H28: - | I28: 3407 CFM | J28: 1500 | K28: 2 | O28: 3.703703704 | P28: 5CMI450D015250 | Q28: Existe | R28: 11446.4895 | S28: 42394.40556
A29: 26 | B29: 2021-01-06T10:05:00 | C29: CLIMAS OPCION | D29: 231666 | E29: 1 | F29: CDAHF2-12/12 | G29: 220/3 | H29: - | I29: 4000 CFM | J29: 1200 | K29: 2 | O29: 3.703703704 | P29: 5CDAHF212D120 | Q29: Existe | R29: 11863.6971 | S29: 43939.61889
A30: 27 | B30: 2021-01-06T10:48:00 | C30: EYSER DE MEXICO | D30: 231729 | E30: 1 | F30: CDAVF2-22/22 | G30: 460/3 | H30: - | I30: - | J30: 725 | K30: 10 | N30: 460 V, PORTAFILTROS CON FILTROS METÁLICOS Y PLISADOS (SUCCIÓN), LOUVER EN SUCCION, DESCARGA HACIA ARRIBA | O30: 3.703703704 | P30: FORMATO | Q30: FORMATO | S30: 0
A31: 28 | B31: 2021-01-06T10:48:00 | C31: EYSER DE MEXICO | D31: 231729 | E31: 5 | F31: CDAVF2-30/28 | G31: 460/3 | H31: - | I31: - | J31: 375 | K31: 5 | N31: 460 V, PORTAFILTROS CON FILTROS METÁLICOS Y PLISADOS (SUCCIÓN), DESCARGA HACIA ARRIBA | O31: 3.703703704 | P31: FORMATO | Q31: FORMATO | S31: 0
A32: 29 | B32: 2021-01-06T10:48:00 | C32: EYSER DE MEXICO | D32: 231729 | E32: 2 | F32: HGT-1250-2 | G32: 460/3 | H32: - | I32: - | J32: 540 | K32: 2 | N32: 460 V | O32: 3.703703704 | P32: 5HGT1250L1460V | Q32: Existe | R32: 8119.0279 | S32: 30070.4737
A33: 30 | B33: 2021-01-06T10:48:00 | C33: EYSER DE MEXICO | D33: 231729 | E33: 2 | F33: I-HGT-1250-2 | G33: 460/3 | H33: - | I33: - | J33: 540 | K33: 2 | N33: INYECTOR, 460 V | O33: 3.703703704 | P33: FORMATO | Q33: FORMATO | S33: 0
A34: 31 | B34: 2021-01-06T10:48:00 | C34: EYSER DE MEXICO | D34: 231729 | E34: 1 | F34: CMI-500 | G34: 460/3 | H34: - | I34: 3500 CFM | J34: 1175 | K34: 2 | N34: 460 V | O34: 3.703703704 | P34: 5CMI500D117630 | Q34: Existe | R34: 13062.1717 | S34: 48378.4137
A35: 32 | B35: 2021-01-06T11:10:00 | C35: LAMUÑO | D35: 231743 | E35: 1 | F35: CRVLT-16 | G35: 127/1 | H35: - | I35: - | J35: 1200 | K35: 3/4 | O35: 3.703703704 | P35: 5CRVLT16512000 | Q35: Existe | R35: 7056.8206 | S35: 26136.37259
A36: 33 | B36: 2021-01-06T11:36:00 | C36: GOMEZ VELA ANA LILIA | D36: 231745 | E36: 1 | F36: CDAHF1-18/18 | G36: 230/3 | H36: - | I36: 4725 CFM | J36: 675 | K36: 2 | O36: 3.703703704 | P36: 5CDAHF118D0675 | Q36: Existe | R36: 16305.3737 | S36: 60390.27296
A37: 34 | B37: 2021-01-06T11:36:00 | C37: GOMEZ VELA ANA LILIA | D37: 231745 | E37: 1 | F37: CRVHT-22 | G37: 230/3 | H37: - | I37: 5250 CFM | J37: 1075 | K37: 3 | O37: 3.703703704 | P37: 5CRVHT22E01075 | Q37: Existe | R37: 15775.6371 | S37: 58428.28556
A38: 35 | B38: 2021-01-06T14:00:00 | C38: LILIANA AGUILAR CAMPOS | D38: 231757 | E38: 1 | F38: CMI-450 | G38: 220/3 | H38: - | I38: 4277 M3/HR | J38: 1825 | K38: 3 | O38: 3.703703704 | P38: 5CMI450E182500 | Q38: Existe | R38: 13050.8932 | S38: 48336.64148
A39: 36 | B39: 2021-01-06T14:00:00 | C39: LILIANA AGUILAR CAMPOS | D39: 231757 | E39: 1 | F39: CMI-500 | G39: 220/3 | H39: - | I39: 5560 M3/HR | J39: 1650 | K39: 5 | O39: 3.703703704 | P39: 5CMI500F016750 | Q39: Existe | R39: 14805.6093 | S39: 54835.59
A40: 37 | B40: 2021-01-06T14:00:00 | C40: LILIANA AGUILAR CAMPOS | D40: 231757 | E40: 1 | F40: CMI-355 | G40: 220/3 | H40: - | I40: 3415 M3/HR | J40: 1700 | K40: 1 | O40: 3.703703704 | P40: 5CMI355B170900 | Q40: Existe | R40: 9630.6734 | S40: 35669.16074
A41: 38 | B41: 2021-01-06T14:00:00 | C41: LILIANA AGUILAR CAMPOS | D41: 231757 | E41: 1 | F41: CMI-355 | G41: 220/3 | H41: - | I41: 3871 M3/HR | J41: 1775 | K41: 1 | O41: 3.703703704 | P41: 5CMI355B017500 | Q41: Existe | R41: 9636.4301 | S41: 35690.48185
A42: 39 | B42: 2021-01-06T14:32:00 | C42: SOCONUSCO | D42: 231762 | E42: 1 | F42: CMI-280 | G42: 220/1 | H42: - | I42: - | J42: 1600 | K42: 1/4 | N42: SE TOMÓ EQUIPO DISPONIBLE EN STOCK, YA NO TRABAJAR CODIGO | O42: 3.703703704 | S42: 0
A43: 40 | B43: 2021-01-06T16:15:00 | C43: TEC FILTER | D43: 231766 | E43: 1 | F43: CST-3500 | G43: 440/3 | H43: - | I43: - | J43: 3480 | K43: 5 | N43: 460 V | O43: 3.703703704 | P43: 5CST-3500460V | Q43: EXTRACTOR CST-3500 460V | R43: 6652.5843 | S43: 24639.20111
A44: 41 | B44: 2021-01-06T16:33:00 | C44: SIERRA MADRE | D44: 231592 | E44: 1 | F44: CMI-450 | G44: 460/3 | H44: VE-01 | I44: 1815 CFM | J44: 970 | K44: 1 | N44: 460 V, BRIDAS EN BOCAS DE SUCCION Y DESCARGA | O44: 3.703703704 | P44: 5CMI450B0970BD | Q44: EXT.CMI-450 1T 970RPM BDA. | R44: 12087.7981 | S44: 44769.62259
A45: 42 | B45: 2021-01-06T16:33:00 | C45: SIERRA MADRE | D45: 231592 | E45: 1 | F45: CMI-630 | G45: 460/3 | H45: VE-02 | I45: 4320 CFM | J45: 755 | K45: 1 | N45: 460 V, BRIDAS EN BOCAS DE SUCCION Y DESCARGA | O45: 3.703703704 | P45: 5CMI630B0755BD | Q45: EXT.CMI-630 1T 755RPM BDA. | R45: 17078.9395 | S45: 63255.33148
A46: 43 | B46: 2021-01-06T16:33:00 | C46: SIERRA MADRE | D46: 231592 | E46: 1 | F46: CMI-630 | G46: 460/3 | H46: VE-03 | I46: 4812 CFM | J46: 791 | K46: 1 1/2 | N46: 460 V, BRIDAS EN BOCAS DE SUCCION Y DESCARGA | O46: 3.703703704 | P46: 5CMI630C0791BD | Q46: EXT.CMI-630 1.5T 791RPM BDA. | R46: 17234.7685 | S46: 63832.47593
A47: 44 | B47: 2021-01-06T16:33:00 | C47: SIERRA MADRE | D47: 231592 | E47: 1 | F47: CMI-450 | G47: 460/3 | H47: VE-05 | I47: 2825 CFM | J47: 1180 | K47: 1 | N47: 460 V, BRIDAS EN BOCAS DE SUCCION Y DESCARGA | O47: 3.703703704 | P47: 5CMI450B1180BD | Q47: EXT.CMI-450 1T 1180RPM BDA. | R47: 11869.9776 | S47: 43962.88
A48: 45 | B48: 2021-01-06T16:33:00 | C48: SIERRA MADRE | D48: 231592 | E48: 1 | F48: CMI-500 | G48: 460/3 | H48: VE-06 | I48: 4820 CFM | J48: 1454 | K48: 3 | N48: 460 V, BRIDAS EN BOCAS DE SUCCION Y DESCARGA | O48: 3.703703704 | P48: 5CMI500E1454BD | Q48: EXT.CMI-500 3T 1454RPM BDA. | R48: 15466.61 | S48: 57283.74074
A49: 46 | B49: 2021-01-06T16:33:00 | C49: SIERRA MADRE | D49: 231592 | E49: 1 | F49: CMI-355 | G49: 460/3 | H49: VE-07 | I49: 1200 CFM | J49: 1131 | K49: 1/3 | N49: 460 V, BRIDAS EN BOCAS DE SUCCION Y DESCARGA | O49: 3.703703704 | P49: 5CMI355T1131BD | Q49: EXT.CMI-355 1/3T 1131RPM BDA. | R49: 9119.6072 | S49: 33776.32296
A50: 47 | B50: 2021-01-06T16:33:00 | C50: SIERRA MADRE | D50: 231592 | E50: 1 | F50: CMI-355 | G50: 460/3 | H50: VE-08 | I50: 1200 CFM | J50: 1131 | K50: 1/3 | N50: 460 V, BRIDAS EN BOCAS DE SUCCION Y DESCARGA | O50: 3.703703704 | P50: 5CMI355T1131BD | Q50: EXT.CMI-355 1/3T 1131RPM BDA. | R50: 9119.6072 | S50: =R50*O50 -> 33776.32296
A51: 48 | B51: 2021-01-06T16:33:00 | C51: SIERRA MADRE | D51: 231592 | E51: 1 | F51: CMI-355 | G51: 460/3 | H51: VE-09 | I51: 1200 CFM | J51: 1345 | K51: 1/2 | N51: 460 V, BRIDAS EN BOCAS DE SUCCION Y DESCARGA | O51: 3.703703704 | P51: 5CMI35591345BD | Q51: EXT.CMI-355 1/2T 1345RPM BDA. | R51: 9156.3422 | S51: 33912.37852
A52: 49 | B52: 2021-01-06T16:33:00 | C52: SIERRA MADRE | D52: 231592 | E52: 1 | F52: CMI-355 | G52: 460/3 | H52: VE-10 | I52: 1200 CFM | J52: 1345 | K52: 1/2 | N52: 460 V, BRIDAS EN BOCAS DE SUCCION Y DESCARGA | O52: 3.703703704 | P52: 5CMI35591345BD | Q52: EXT.CMI-355 1/2T 1345RPM BDA. | R52: 9156.3422 | S52: 33912.37852
A53: 50 | B53: 2021-01-06T16:33:00 | C53: SIERRA MADRE | D53: 231592 | E53: 1 | F53: CMI-630 | G53: 460/3 | H53: VE-18 | I53: 5900 CFM | J53: 1030 | K53: 5 | N53: 460 V, BRIDAS EN BOCAS DE SUCCION Y DESCARGA | O53: 3.703703704 | P53: 5CMI630F1030BD | Q53: EXT.CMI-630 5T 1030RPM BDA. | R53: 19095.2267 | S53: 70723.06185
A54: 51 | B54: 2021-01-06T16:33:00 | C54: SIERRA MADRE | D54: 231592 | E54: 1 | F54: CMI-630 | G54: 460/3 | H54: VE-19 | I54: 5622 CFM | J54: 1010 | K54: 5 | N54: 460 V, BRIDAS EN BOCAS DE SUCCION Y DESCARGA | O54: 3.703703704 | P54: 5CMI630F1030BD | Q54: EXT.CMI-630 5T 1030RPM BDA. | R54: 19095.2267 | S54: 70723.06185
A55: 52 | B55: 2021-01-06T16:33:00 | C55: SIERRA MADRE | D55: 231592 | E55: 1 | F55: CMI-450 | G55: 460/3 | H55: VE-20 | I55: 3200 CFM | J55: 1530 | K55: 3 | N55: 460 V, BRIDAS EN BOCAS DE SUCCION Y DESCARGA | O55: 3.703703704 | P55: 5CMI450E1530BD | Q55: EXT.CMI-450 3T 1530RPM BDA. | R55: 13938.3278 | S55: 51623.4363
A56: 53 | B56: 2021-01-07T08:29:00 | C56: IMCOSA | D56: 231783 | E56: 1 | F56: CRVLT-18 | G56: 220/3 | H56: - | I56: - | J56: 1450 | K56: 1 1/2 | O56: 3.703703704 | P56: 5CRVLT18C01425 | Q56: Existe | R56: 9000.8385 | S56: 33336.43889
A57: 54 | B57: 2021-01-07T09:26:00 | C57: MYCAIR | D57: 231786 | E57: 1 | F57: CMI-355 | G57: 230/3 | H57: - | I57: - | J57: 1675 | K57: 1/2 | O57: 3.703703704 | P57: 5CMI3559016750 | Q57: EXT.CMI-355 1/2T 1675RPM | R57: 8399.4569 | S57: 31109.09963
A58: 55 | B58: 2021-01-07T12:11:00 | C58: EXPERTOS EN VENTILACION | D58: 231798 | E58: 1 | F58: CRVLT-10 | G58: 220/3 | H58: - | I58: - | J58: 1575 | K58: 1/4 | O58: 3.703703704 | P58: 5CRVLT10801575 | Q58: Existe | R58: 6089.2959 | S58: 22552.94778
A59: 56 | B59: 2021-01-07T12:11:00 | C59: EXPERTOS EN VENTILACION | D59: 231798 | E59: 1 | F59: CRVLT-14 | G59: 220/3 | H59: - | I59: - | J59: 1850 | K59: 3/4 | O59: 3.703703704 | P59: 5CRVLT14A01825 | Q59: Existe | R59: 7086.3507 | S59: 26245.74333
A60: 57 | B60: 2021-01-07T12:11:00 | C60: EXPERTOS EN VENTILACION | D60: 231798 | E60: 1 | F60: CRVHT-10 | G60: 220/3 | H60: - | I60: - | J60: 2050 | K60: 1/2 | N60: PENDIENTE INFO | O60: 3.703703704 | P60: 5CRVHT10902050 | Q60: EXT.CRVHT-10 1/2T 2050RPM | R60: 6182.0411 | S60: 22896.44852
A61: 58 | B61: 2021-01-07T12:11:00 | C61: EXPERTOS EN VENTILACION | D61: 231798 | E61: 1 | F61: CLT-12 | G61: 220/3 | H61: - | I61: - | J61: 2075 | K61: 1 1/2 | O61: 3.703703704 | P61: 5CLTG12C020750 | Q61: Existe | R61: 7554.1014 | S61: 27978.15333
A62: 59 | B62: 2021-01-07T12:11:00 | C62: EXPERTOS EN VENTILACION | D62: 231798 | E62: 1 | F62: CLT-28 | G62: 220/3 | H62: - | I62: - | J62: 925 | K62: 5 | O62: 3.703703704 | P62: 5CLTG28F092500 | Q62: Existe | R62: 16291.545 | S62: 60339.05556
A63: 60 | B63: 2021-01-07T12:11:00 | C63: EXPERTOS EN VENTILACION | D63: 231798 | E63: 1 | F63: CMX 315/6P | G63: 220/3 | H63: - | I63: - | J63: 1120 | K63: 1/4 | O63: 3.703703704 | P63: FORMATO | Q63: FORMATO | S63: 0
A64: 61 | B64: 2021-01-07T12:45:00 | C64: EXPERTOS EN VENTILACION | D64: 231801 | E64: 1 | F64: KC-711R12 | G64: 440/3 | H64: - | I64: - | J64: 2271 | K64: 30 | N64: ORIENTACION RD 0° | O64: 3.703703704 | P64: FORMATO | Q64: FORMATO | S64: 0
A65: 62 | B65: 2021-01-07T13:22:00 | C65: EXPERTOS EN VENTILACION | D65: 231802 | E65: 1 | F65: CDAHF1-12/12 | G65: 220/3 | H65: - | I65: - | J65: 1250 | K65: 3 | O65: 3.703703704 | P65: 5CDAHF112E1251 | Q65: EXT.CDAHF1-12/12 3T 1250RPM | R65: 13647.9851 | S65: 50548.09296
A66: 63 | B66: 2021-01-07T13:22:00 | C66: EXPERTOS EN VENTILACION | D66: 231802 | E66: 2 | F66: CDAHF1-18/18 | G66: 220/3 | H66: - | I66: - | J66: 850 | K66: 5 | O66: 3.703703704 | P66: 5CDAHF118F0850 | Q66: Existe | R66: 19701.7944 | S66: 72969.60889
A67: 64 | B67: 2021-01-07T13:22:00 | C67: EXPERTOS EN VENTILACION | D67: 231802 | E67: 1 | F67: CDAHF1-18/18 | G67: 220/3 | H67: - | I67: - | J67: 725 | K67: 3 | O67: 3.703703704 | P67: 5CDAHF118E750 | Q67: Existe | R67: 18282.6882 | S67: 67713.66
A68: 65 | B68: 2021-01-07T14:14:00 | C68: ANDRES FLORES MORENO | D68: 231806 | E68: 3 | F68: I-AGE-B 800 | G68: 220/1 | H68: - | I68: 7,606 CFM | J68: 550 | K68: 1/2 | N68: INYECTOR | O68: 3.703703704 | P68: FORMATO | Q68: FORMATO | S68: 0
A69: 66 | B69: 2021-01-07T15:45:00 | C69: SENSA CLIMATIZACION | D69: 231809 | E69: 1 | F69: CLT-10 | G69: 127/1 | H69: - | I69: 900 CFM | J69: 1575 | K69: 1/3 | O69: =2/0.54 -> 3.703703704 | P69: 5CLTG103016000 | Q69: Existe | R69: 4988.0601 | S69: 18474.29667
A70: 67 | B70: 2021-01-07T15:45:00 | C70: SENSA CLIMATIZACION | D70: 231809 | E70: 1 | F70: CLT-10 | G70: 127/1 | H70: - | I70: 600 CFM | J70: 1225 | K70: 1/4 | O70: 3.703703704 | P70: 5CLTG10212002 | Q70: Existe | R70: 5078.2474 | S70: 18808.3237
A71: 68 | B71: 2021-01-07T15:45:00 | C71: SENSA CLIMATIZACION | D71: 231809 | E71: 1 | F71: CLT-7 | G71: 127/1 | H71: - | I71: 300 CFM | J71: 1450 | K71: 1/4 | O71: 3.703703704 | P71: 5CLTG7214500 | Q71: Existe | R71: 4799.6911 | S71: 17776.6337
A72: 69 | B72: 2021-01-07T16:47:00 | C72: ADOCCSA | D72: 231609 | E72: 1 | F72: CLT-22 | G72: 220/3 | H72: - | I72: - | J72: 1100 | K72: 3 | O72: 3.703703704 | P72: 5CLTG22E011250 | Q72: Existe | R72: 13094.844 | S72: 48499.42222
A73: 70 | B73: 2021-01-07T16:47:00 | C73: ADOCCSA | D73: 231609 | E73: 1 | F73: CLT-20 | G73: 220/3 | H73: - | I73: - | J73: 1100 | K73: 1 1/2 | O73: 3.703703704 | P73: 5CLTG20C011000 | Q73: Existe | R73: 9197.5629 | S73: 34065.04778
A74: 71 | B74: 2021-01-07T17:17:00 | C74: LIMA AIRE ACONDICIONADO | D74: 231816 | E74: 1 | F74: CMI-500 | G74: 230/3 | H74: VE01 | I74: - | J74: 1336 | K74: 2 | O74: 3.703703704 | P74: 5CMI500D132500 | Q74: Existe | R74: 12960.0138 | S74: 48000.05111
A75: 72 | B75: 2021-01-07T17:17:00 | C75: LIMA AIRE ACONDICIONADO | D75: 231816 | E75: 1 | F75: CMI-280 | G75: 230/3 | H75: VE02 | I75: - | J75: 2670 | K75: 1 | O75: 3.703703704 | P75: 5CMI280B026750 | Q75: Existe | R75: 8671.5083 | S75: 32116.69741
A76: 73 | B76: 2021-01-07T17:27:00 | C76: SIERRA MADRE | D76: 231592 | E76: 1 | F76: CMI-315 | G76: 230/3 | H76: VE-22 | I76: 745 CFM | J76: 1086 | K76: 1/3 | N76: BRIDAS EN BOCAS DE SUCCION Y DESCARGA | O76: 3.703703704 | P76: 5CMI315T1086BD | Q76: EXT.CMI-315 1/3T1086RPM BDA. | R76: 9046.2161 | S76: 33504.50407
A77: 74 | B77: 2021-01-08T08:50:00 | C77: PROENSA | D77: 231819 | E77: 4 | F77: RXT-C 1250-1 1/2-27/S | G77: 230/3 | H77: - | I77: - | J77: 500 | K77: 1 1/2 | O77: 3.703703704 | P77: FORMATO | Q77: FORMATO | S77: 0
A78: 75 | B78: 2021-01-08T09:37:00 | C78: BOREAL | D78: 231827 | E78: 1 | F78: CDAHF2-12/12 | G78: 230/3 | H78: - | I78: 2256 CFM | J78: 1025 | K78: 3/4 | N78: PORTAFILTRO CON FILTROS MERV 7 y MERV-13. (SUCCIÓN), LOUVERS DE PROTECCION EN SUCCIÓN | O78: 3.703703704 | P78: 5CDAHF212A1025 | Q78: EXT.CDAHF2-12/12 3/4T 1025RPM | R78: 10123.133 | S78: 37493.08519
A79: 76 | B79: 2021-01-11T08:41:00 | C79: EXPERTOS EN VENTILACION | D79: 231862 | E79: 1 | F79: CDAHF2-18/18 | G79: 230/3 | H79: - | I79: 4828 CFM | J79: 825 | K79: 3 | N79: INCLUYE ENHUACALADO | O79: 3.703703704 | P79: 5CDAHF218E825H | Q79: EXT.CDAHF2-18/18 3T 825RPM | R79: 19428.6799 | S79: 71958.0737
A80: 77 | B80: 2021-01-11T08:41:00 | C80: EXPERTOS EN VENTILACION | D80: 231862 | E80: 1 | F80: DAL-H-9-1 1/2 | G80: 127/1 | H80: - | I80: - | J80: 593 | K80: 1 1/2 | N80: INCLUYE ENHUACALADO, CELDEK 8", RECUBRIMIENTO POLIESTER | O80: 3.703703704 | P80: 5UDLHF9705930H | Q80: LAV.DALH-9 1.5M 593RPM | R80: 18218.1109 | S80: 67474.48481
A81: 78 | B81: 2021-01-11T09:11:00 | C81: EDISON MAQUINARIA | D81: 231866 | E81: 1 | F81: CMI-280 | G81: 220/3 | H81: - | I81: - | J81: 2300 | K81: 1/2 | O81: 3.703703704 | P81: 5CMI2809023000 | Q81: Existe | R81: 7434.3866 | S81: 27534.76519
A82: 79 | B82: 2021-01-11T14:00:00 | C82: REACSA | D82: 231879 | E82: 1 | F82: CCL 15/15 | G82: 220/3 | H82: - | I82: - | J82: 670 | K82: 1 1/2 | O82: 3.703703704 | P82: 5CCL1515C06700 | Q82: Existe | R82: 9777.1871 | S82: =R82*O82 -> 36211.80407
A83: 80 | B83: 2021-01-11T14:10:00 | C83: TEC FILTER | D83: 231880 | E83: 1 | F83: CXW 305 | G83: 460/3 | H83: - | I83: - | J83: 3520 | K83: 5 | N83: 460 V | O83: 3.703703704 | P83: 5CXW305460V | Q83: Existe | R83: 7816.4817 | S83: 28949.93222
A84: 81 | B84: 2021-01-11T16:02:00 | C84: AL MOTOR | D84: 231883 | E84: 3 | F84: CDAVF2-25/25 | G84: 230/3 | H84: UIA 01 A 03 | I84: 14500 CFM | J84: 625 | K84: 7 1/2 | N84: DESCARGA VERTICAL HACIA ARRIBA, SIN FILTROS, LOUVERS DE PROTECCION EN SUCCIÓN, | O84: 3.703703704 | P84: FORMATO | Q84: FORMATO | S84: 0
A85: 82 | B85: 2021-01-11T16:02:00 | C85: AL MOTOR | D85: 231883 | E85: 3 | F85: AGE-T 1250/1 | G85: 460/3 | H85: VE 01 AL 03 | I85: 11600 CFM | J85: 485 | K85: 1 | N85: 460 V | O85: 3.703703704 | P85: 5AGET1250L460V | Q85: Existe | R85: 12224.72 | S85: 45276.74074
A86: 83 | B86: 2021-01-12T09:17:00 | C86: LAGUNA COMPRESORES | D86: 231897 | E86: 1 | F86: CDAHF1-12/12 | G86: 230/3 | H86: - | I86: 4000 CFM | J86: 1250 | K86: 3 | O86: 3.703703704 | P86: 5CDAHF112E1251 | Q86: EXT.CDAHF1-12/12 3T 1250RPM | R86: 13647.9851 | S86: 50548.09296
A87: 84 | B87: 2021-01-12T11:42:00 | C87: AMBIENTE Y CONFORT EN CLIMAS | D87: 231908 | E87: 2 | F87: CCL 12/12 | G87: 127/1 | H87: VI-01 | I87: 1900 CFM | J87: 800 | K87: 1/2 | N87: BASE PORTAFILTRO CON FILTROS METÁLICOS (SUCCIÓN), LOUVERS DE PROTECCION EN SUCCIÓN | O87: 3.703703704 | P87: 5CCL1212408000 | Q87: EXT.CCL-12/12 1/2M 800RPM | R87: 7462.0926 | S87: 27637.38
A88: 85 | B88: 2021-01-12T15:58:00 | C88: EDISON MAQUINARIA | D88: 231923 | E88: 2 | F88: CMI-250 | G88: 220/3 | H88: - | I88: - | J88: 2400 | K88: 1/3 | O88: 3.703703704 | P88: 5CMI250T024010 | Q88: EXT.CMI-250 1/3T 2400RPM | R88: 7724.6933 | S88: 28609.97519
A89: 86 | B89: 2021-01-13T10:53:00 | C89: CYVSA | D89: 231941 | E89: 1 | F89: CDAHF1-36/36 | G89: 460/3 | H89: VI-01 | I89: 32000 CFM | J89: 400 | K89: 20 | N89: MOTOR USO VARIADOR 2-MO-204VF, PORTAFILTRO CON FILTROS MERV 13 (SUCCIÓN), LOUVERS EN SUCCION | O89: 3.703703704 | P89: 5CDAHF136N40LV | Q89: EXT.CDAHF1-36/36 20T 400RPM LV | R89: 75502.1766 | S89: 279637.6911
A90: 87 | B90: 2021-01-13T10:58:00 | C90: EDISON MAQUINARIA | D90: 231942 | E90: 2 | F90: CME-280 | G90: 220/3 | H90: - | I90: - | J90: 2350 | K90: 1/2 | N90: ANTICHISPA AMCA "C", MOTOR ESTANDAR | O90: 3.703703704 | P90: 5CME2809023500 | Q90: EXT.CME-280 1/2T 2350RPM AMCA | R90: 7407.3548 | S90: 27434.64741
A91: 88 | B91: 2021-01-13T11:03:00 | C91: EDISON MAQUINARIA | D91: 231943 | E91: 1 | F91: CME-315 | G91: 220/3 | H91: - | I91: - | J91: 2150 | K91: 3/4 | N91: ANTICHISPA AMCA "C", MOTOR ESTANDAR | O91: 3.703703704 | P91: 5CME315A021500 | Q91: EXT.CME-315 3/4T 2150RPM AMCA | R91: 8331.1451 | S91: 30856.09296
A92: 89 | B92: 2021-01-13T11:58:00 | C92: SENSA CLIMATIZACION | D92: 231945 | E92: 1 | F92: CMI-900 | G92: 220/3 | H92: VPE-01 | I92: 14200 CFM | J92: 625 | K92: 5 | O92: 3.703703704 | P92: 5CMI900F062500 | Q92: Existe | R92: 30415.4099 | S92: 112649.6663
A93: 90 | B93: 2021-01-13T11:58:00 | C93: SENSA CLIMATIZACION | D93: 231945 | E93: 1 | F93: CRVLT-30 | G93: 220/3 | H93: VE-01 | I93: 6275 CFM | J93: 450 | K93: 1 1/2 | O93: 3.703703704 | P93: 5CRVLT30C04500 | Q93: EXT.CRVLT-30 1.5T 450RPM | R93: 20192.9847 | S93: 74788.83222
A94: 91 | B94: 2021-01-13T11:58:00 | C94: SENSA CLIMATIZACION | D94: 231945 | E94: 8 | F94: CLT-7 | G94: 110/1 | H94: VE-02 AL 09 | I94: 350 CFM | J94: 1500 | K94: 1/4 | O94: 3.703703704 | P94: 5CLTG720150000 | Q94: EXT.CLTG-7 1/4M 1500RPM | R94: 4799.6911 | S94: 17776.6337
A95: 92 | B95: 2021-01-13T12:48:00 | C95: UNELSA | D95: 231949 | E95: 1 | F95: DAB-9/9 | G95: 460/3 | H95: - | I95: - | J95: 2200 | K95: 5 | N95: CAMBIO A DAB | O95: 3.703703704 | P95: 5DAB99F0220000 | Q95: EXT.DA/B-9/9 5T 2200RPM | R95: 7125.8736 | S95: 26392.12444
A96: 93 | B96: 2021-01-13T14:14:00 | C96: EXPERTOS EN VENTILACION | D96: 231955 | E96: 2 | F96: CME-800 | G96: 230/3 | H96: - | I96: - | J96: 825 | K96: 3 | N96: ARREGLO ANTICHISPA AMCA "C", MOTOR APEX 2-MO-067XUS | O96: 3.703703704 | P96: 5CME800E825APX | Q96: EXT.CME-800 3T 825RPM AMCA | R96: 29629.1642 | S96: 109737.6452
A97: 94 | B97: 2021-01-13T16:44:00 | C97: INSOLSA | D97: 231961 | E97: 1 | F97: 5CCK-10/10 | G97: 127/1 | H97: - | I97: - | J97: 900 | K97: 3/4 | O97: 3.703703704 | P97: 5CCK1010508950 | Q97: Existe | R97: 5138.8305 | S97: 19032.70556
A98: 95 | B98: 2021-01-14T11:46:00 | C98: INSOLSA | D98: 231984 | E98: 1 | F98: 5CCK-12/12 | G98: 127/1 | H98: - | I98: - | J98: 900 | K98: 3/4 | O98: 3.703703704 | P98: 5CCK1212509250 | Q98: Existe | R98: 5565.1956 | S98: 20611.83556
A99: 96 | B99: 2021-01-14T11:46:00 | C99: INSOLSA | D99: 231984 | E99: 1 | F99: 5CCK-12/12 | G99: 127/1 | H99: - | I99: - | J99: 1000 | K99: 1 | O99: 3.703703704 | P99: 5CCK1212601000 | Q99: EXT.CCK-12/12 1M 1000RPM | R99: 5681.2092 | S99: 21041.51556
A100: 97 | B100: 2021-01-14T12:20:00 | C100: AVANTE | D100: 231982 | E100: 2 | F100: CST-2600 | G100: 460/3 | H100: - | I100: 1700 CFM | J100: 3480 | K100: 3 | N100: PEDIDO CANCELADO, YA NO TRABAJAR CODIGO | O100: 3.703703704 | S100: 0
A101: 98 | B101: 2021-01-15T08:30:00 | C101: AL MOTOR | D101: 232003 | E101: 3 | F101: CDAHF2-9/9 | G101: 230/3 | H101: - | I101: - | J101: 1200 | K101: 1 | N101: PORTAFILTRO CON FILTROS METÁLICOS Y PLISADOS (SUCCION), LOUVER EN SUCCION | O101: 3.703703704 | P101: 5CDAHF299B1200 | Q101: EXT.CDAHF2-9/9 1T 1200RPM | R101: 7427.1785 | S101: 27508.06852
A102: 99 | B102: 2021-01-15T08:30:00 | C102: AL MOTOR | D102: 232003 | E102: 1 | F102: CDAHF2-9/9 | G102: 230/3 | H102: - | I102: - | J102: 900 | K102: 1/3 | N102: PORTAFILTRO CON FILTROS METÁLICOS Y PLISADOS (SUCCION), LOUVER EN SUCCION | O102: 3.703703704 | P102: 5CDAHF299T0900 | Q102: EXT.CDAHF2-9/9 1/3T 900RPM | R102: 5855.3269 | S102: 21686.39593
A103: 100 | B103: 2021-01-15T08:30:00 | C103: AL MOTOR | D103: 232003 | E103: 1 | F103: CRVLT-10 | G103: 230/3 | H103: - | I103: - | J103: 1000 | K103: 1/3 | O103: 3.703703704 | P103: 5CRVLT10T01000 | Q103: EXT.CRVLT-10 1/3T 1000RPM | R103: 6173.0766 | S103: 22863.24667
A104: 101 | B104: 2021-01-15T08:38:00 | C104: AL MOTOR | D104: 232006 | E104: 2 | F104: CDAHF2-18/18 | G104: 460/3 | H104: - | I104: - | J104: 815 | K104: 7 1/2 | N104: PORTAFILTRO CON FILTROS METÁLICOS Y PLISADOS (SUCCION), LOUVER EN SUCCION | O104: 3.703703704 | P104: 5CDAHF218G0815 | Q104: EXT.CDAHF2-18/18 7.5T 815RPM | R104: 20620.238 | S104: 76371.25185
A105: 102 | B105: 2021-01-15T09:03:00 | C105: SERVICIOS AIREXS | D105: 232007 | E105: 1 | F105: CRHLT-30 | G105: 230/3 | H105: - | I105: - | J105: 600 | K105: 3 | O105: 3.703703704 | P105: 5CRHLT30E06000 | Q105: Existe | R105: 19625.6255 | S105: 72687.50185
A106: 103 | B106: 2021-01-15T10:42:00 | C106: AL MOTOR | D106: 232010 | E106: 1 | F106: DAL-H-9- 1/2 | G106: 230/3 | H106: - | I106: 3215 CFM | J106: 478 | K106: 1/2 | O106: 3.703703704 | P106: 5UDLHF99047700 | Q106: LAV.DALH-9 1/2T 478RPM | R106: 16604.6419 | S106: 61498.6737
A107: 104 | B107: 2021-01-15T13:56:00 | C107: CLIO CLIMATIZACION | D107: 231578 | E107: 1 | F107: CLT-7 | G107: 127/1 | H107: - | I107: 250 CFM | J107: 1150 | K107: 1/4 | O107: 3.703703704 | P107: 5CLTG7211700 | Q107: Existe | R107: 4664.5295 | S107: 17276.03519
A108: 105 | B108: 2021-01-15T13:56:00 | C108: CLIO CLIMATIZACION | D108: 231578 | E108: 2 | F108: CLT-12 | G108: 220/3 | H108: - | I108: 2070 CFM | J108: 1750 | K108: 1 | O108: 3.703703704 | P108: 5CLTG12B17600 | Q108: Existe | R108: 6802.4152 | S108: 25194.13037
A109: 106 | B109: 2021-01-15T13:56:00 | C109: CLIO CLIMATIZACION | D109: 231578 | E109: 2 | F109: CLT-14 | G109: 220/3 | H109: - | I109: 690 CFM | J109: 750 | K109: 1/4 | O109: 3.703703704 | P109: 5CLTG148075000 | Q109: EXT.CLTG-14 1/4T 750RPM | R109: 5581.0989 | S109: 20670.73667
A110: 107 | B110: 2021-01-15T13:56:00 | C110: CLIO CLIMATIZACION | D110: 231578 | E110: 2 | F110: CLT-18 | G110: 220/3 | H110: - | I110: 2970 CFM | J110: 900 | K110: 3/4 | O110: 3.703703704 | P110: 5CLTG18A090000 | Q110: EXT.CLTG-18 3/4T 900RPM | R110: 7065.0036 | S110: 26166.68
A111: 108 | B111: 2021-01-15T16:51:00 | C111: SOCONUSCO | D111: 232022 | E111: 2 | F111: CMI-315 | G111: 127/1 | H111: - | I111: 1497 CFM | J111: 1475 | K111: 1/3 | O111: 3.703703704 | P111: 5CMI315315000 | Q111: Existe | R111: 8168.3041 | S111: 30252.97815
A112: 109 | B112: 2021-01-15T17:42:00 | C112: SIGRIST | D112: 232027 | E112: 1 | F112: CMI-280 | G112: 230/3 | H112: - | I112: - | J112: 1980 | K112: 1/2 | N112: PEDIDO CANCELADO, YA NO TRABAJAR CODIGO | O112: 3.703703704 | S112: 0
A113: 110 | B113: 2021-01-18T09:57:00 | C113: TRANE | D113: 232038 | E113: 1 | F113: CDAHF2-12/12 | G113: 230/3 | H113: - | I113: 2500 CFM | J113: 1125 | K113: 1 | O113: 3.703703704 | P113: 5CDAHF212B1125 | Q113: Existe | R113: 9540.5673 | S113: 35335.43444
A114: 111 | B114: 2021-01-18T09:57:00 | C114: TRANE | D114: 232039 | E114: 1 | F114: CMII-450 | G114: 230/3 | H114: - | I114: 4585 CFM | J114: 2375 | K114: 7 1/2 | O114: 3.703703704 | P114: 5CMII450G02375 | Q114: EXT.CMII-450 7.5T 2375RPM | R114: 16233.0874 | S114: =R114*O114 -> 60122.54593
A115: 112 | B115: 2021-01-18T09:57:00 | C115: TRANE | D115: 232041 | E115: 1 | F115: CDAHF2-12/12 | G115: 230/3 | H115: - | I115: 4211 CFM | J115: 1250 | K115: 3 | O115: 3.703703704 | P115: 5CDAHF212E1250 | Q115: Existe | R115: 13574.8809 | S115: 50277.33667
A116: 113 | B116: 2021-01-18T09:57:00 | C116: TRANE | D116: 232041 | E116: 2 | F116: CRVLT-18 | G116: 230/3 | H116: - | I116: 2632 CFM | J116: 1150 | K116: 3/4 | O116: 3.703703704 | P116: 5CRVLT18A01150 | Q116: Existe | R116: 7948.9758 | S116: 29440.65111
A117: 114 | B117: 2021-01-18T09:57:00 | C117: TRANE | D117: 232042 | E117: 1 | F117: CDAVF1-18/18 | G117: 220/1 | H117: - | I117: 4200 CFM | J117: 650 | K117: 1 1/2 | O117: 3.703703704 | P117: 5CDAVF11870650 | Q117: EXT.CDAVF1-18/18 1.5M 650RPM | R117: 15667.1186 | S117: 58026.36519
A118: 115 | B118: 2021-01-18T09:57:00 | C118: TRANE | D118: 232042 | E118: 1 | F118: CRHLT-12 | G118: 220/1 | H118: - | I118: 500 CFM | J118: 1125 | K118: 1/4 | O118: 3.703703704 | P118: 5CRHLT12201125 | Q118: Existe | R118: 5190.3701 | S118: 19223.59296
A119: 116 | B119: 2021-01-18T09:57:00 | C119: TRANE | D119: 232042 | E119: 1 | F119: CRVHT-22 | G119: 220/1 | H119: - | I119: 5204 CFM | J119: 1000 | K119: 2 | O119: 3.703703704 | P119: 5CRVHT22109750 | Q119: Existe | R119: 12958.4309 | S119: 47994.18852
A120: 117 | B120: 2021-01-18T15:51:00 | C120: SOCONUSCO | D120: 232052 | E120: 2 | F120: DAL-H-72- 15 | G120: 220/3 | H120: - | I120: - | J120: 424 | K120: 15 | O120: 3.703703704 | P120: 5DLHF72M042000 | Q120: Existe | R120: 75354.4321 | S120: 279090.4893
A121: 118 | B121: 2021-01-18T16:56:00 | C121: ANTEQUERA | D121: 232055 | E121: 1 | F121: CMI-355 | G121: 230/3 | H121: - | I121: - | J121: 2140 | K121: 2 | O121: 3.703703704 | P121: 5CMI355D021500 | Q121: Existe | R121: 9962.1923 | S121: 36897.00852
A122: 119 | B122: 2021-01-18T17:25:00 | C122: TODO EN VENTILACION | D122: 232064 | E122: 1 | F122: CRWLT-12 | G122: 127/1 | H122: - | I122: - | J122: 1750 | K122: 1/2 | O122: 3.703703704 | P122: 5CRWLT12401750 | Q122: Existe | R122: 6054.4282 | S122: 22423.80815
A123: 120 | B123: 2021-01-18T17:59:00 | C123: REFRIMART | D123: 231559 | E123: 1 | F123: PERSIANA 800 | G123: - | H123: - | I123: - | J123: - | K123: - | N123: PERSIANA INYECCION ALTA PRESION: I-HGTA | O123: 3.703703704 | P123: 5PERAL-800AI | Q123: PERSIANA INY 800 APERTURA SIM. | R123: 1832.3725 | S123: 6786.564815
A124: 121 | B124: 2021-01-18T17:59:00 | C124: REFRIMART | D124: 231559 | E124: 1 | F124: PERSIANA 800 | G124: - | H124: - | I124: - | J124: - | K124: - | N124: PERSIANA EXTRACCION ALTA PRESION: HGTA | O124: 3.703703704 | P124: 5PERAL-800A | Q124: PERSIANA 800 APERTURA SIM. | R124: 1799.5441 | S124: 6664.978148
A125: 122 | B125: 2021-01-19T09:59:00 | C125: T Y P | D125: 232072 | E125: 1 | F125: DAL-H-16-3 | G125: 230/3 | H125: - | I125: - | J125: 487 | K125: 3 | O125: 3.703703704 | P125: 5UDLHF16E04920 | Q125: Existe | R125: 30011.1668 | S125: 111152.4696
A126: 123 | B126: 2021-01-19T12:33:00 | C126: SOCONUSCO | D126: 232077 | E126: 1 | F126: CMI-500 | G126: 230/3 | H126: - | I126: 5000 CFM | J126: 1500 | K126: 3 | O126: 3.703703704 | P126: 5CMI500E151500 | Q126: Existe | R126: 14737.027 | S126: 54581.58148
A127: 124 | B127: 2021-01-19T12:33:00 | C127: SOCONUSCO | D127: 232077 | E127: 1 | F127: CMI-500 | G127: 230/3 | H127: - | I127: 4100 CFM | J127: 1325 | K127: 3 | O127: 3.703703704 | P127: 5CMI500E013250 | Q127: Existe | R127: 14658.8891 | S127: 54292.18185
A128: 125 | B128: 2021-01-19T14:22:00 | C128: T Y P | D128: 230052 | E128: 1 | F128: HELICE ITGT/6-1250-9 | G128: - | H128: - | I128: - | J128: - | K128: - | N128: HELICE INY.TGT-1250 9P. BAL ANGULO DE LA PALA C, MOTOR QUE SE LE COLOCARA 10 HP 6P | O128: 3.703703704 | S128: 0
A129: 126 | B129: 2021-01-19T16:36:00 | C129: ABEASA | D129: 232089 | E129: 1 | F129: CLT-10 | G129: 230/3 | H129: - | I129: - | J129: 1350 | K129: 1/2 | N129: MOTOR APEX 2-MO-120PX | O129: 3.703703704 | P129: 5CLTG109135APX | Q129: EXT.CLTG-10 1/2T 1350RPM MOTOR | R129: 7723.809 | S129: 28606.7
A130: 127 | B130: 2021-01-20T09:20:00 | C130: SWISS CLIMA | D130: 232101 | E130: 1 | F130: CMI-355 | G130: 460/3 | H130: - | I130: 3673 M3/H | J130: 2475 | K130: 2 | L130: CCW | M130: TH | N130: CCW, BRIDA EN SUCCION Y DESCARGA, JUNTA FLEXIBLE EN SUCCION | O130: 3.703703704 | P130: 5CMI355D2475BD | Q130: EXT.CMI-355 2T 2475RPM GI BDAS | R130: 10942.6711 | S130: 40528.41148
A131: 128 | B131: 2021-01-20T09:20:00 | C131: SWISS CLIMA | D131: 232101 | E131: 1 | F131: CMI-355 | G131: 460/3 | H131: ISO-8 | I131: 3970 M3/H | J131: 2500 | K131: 2 | L131: CW | M131: TH | N131: BRIDA EN SUCCION Y DESCARGA, JUNTA FLEXIBLE EN SUCCION | O131: 3.703703704 | P131: 5CMI355D2500BD | Q131: EXT.CMI-355 2T 2500RPM BDAS. | R131: 11023.6318 | S131: 40828.26593
A132: 129 | B132: 2021-01-20T09:20:00 | C132: SWISS CLIMA | D132: 232101 | E132: 1 | F132: CMI-315 | G132: 460/3 | H132: ISO-9 | I132: 2983 M3/H | J132: 2775 | K132: 1 1/2 | L132: CW | M132: TH | N132: BRIDA EN SUCCION Y DESCARGA, JUNTA FLEXIBLE EN SUCCION | O132: 3.703703704 | P132: 5CMI315C2775BD | Q132: EXT.CMI-315 1.5T 2775RPM BDAS. | R132: 10632.7008 | S132: 39380.37333
A133: 130 | B133: 2021-01-21T09:31:00 | C133: CYVSA | D133: 232136 | E133: 1 | F133: CLT-16 | G133: 127/1 | H133: VE-04 | I133: 1323 CFM | J133: 900 | K133: 1/3 | O133: =2/0.54 -> 3.703703704 | P133: 5CLTG163090000 | Q133: EXT.CLTG-16 1/3M 900RPM | R133: 6256.1188 | S133: 23170.81037
A134: 131 | B134: 2021-01-21T09:31:00 | C134: CYVSA | D134: 232136 | E134: 1 | F134: CLT-16 | G134: 127/1 | H134: VE-05 | I134: 1132 CFM | J134: 975 | K134: 1/2 | O134: 3.703703704 | P134: 5CLTG164097500 | Q134: EXT.CLTG-16 1/2M 975RPM | R134: 6311.9794 | S134: 23377.70148
A135: 132 | B135: 2021-01-21T10:18:00 | C135: SOCONUSCO | D135: 232124 | E135: 2 | F135: DAL-H-72-10 | G135: 220/3 | H135: - | I135: - | J135: 343 | K135: 10 | O135: 3.703703704 | P135: 5DLHF72H035000 | Q135: Existe | R135: 72230.0236 | S135: 267518.6059
A136: 133 | B136: 2021-01-21T10:24:00 | C136: SOCONUSCO | D136: 232125 | E136: 2 | F136: DAL-H-72-15 | G136: 220/3 | H136: - | I136: - | J136: 424 | K136: 15 | O136: 3.703703704 | P136: 5DLHF72M042000 | Q136: Existe | R136: 75354.4321 | S136: 279090.4893
A137: 134 | B137: 2021-01-21T11:18:00 | C137: CLIMAS ALFA | D137: 232142 | E137: 1 | F137: 5CCK-12/12 | G137: 230/3 | H137: - | I137: - | J137: 900 | K137: 3/4 | O137: 3.703703704 | P137: 5CCK1212A09000 | Q137: EXT.CCK-12/12 3/4T 900RPM | R137: 6203.6905 | S137: 22976.63148
A138: 135 | B138: 2021-01-21T12:59:00 | C138: HIGH TECH SERVICES | D138: 231326 | E138: 2 | F138: PERSIANA 630 | G138: - | H138: - | I138: - | J138: - | K138: - | L138: - | N138: PERSIANA EXTRACCION ALTA PRESION: HGTA | O138: 3.703703704 | P138: 5PER/X-630 | Q138: Existe | R138: 1426.4008 | S138: 5282.965926
A139: 136 | B139: 2021-01-21T14:11:00 | C139: TERMO CONTROL | D139: 232155 | E139: 1 | F139: CCR-15/15 | G139: 127/1 | H139: - | I139: - | J139: 700 | K139: 1 1/2 | O139: 3.703703704 | P139: 5CCR1515707000 | Q139: EXT.CCR-15/15 1.5M 700RPM | R139: 10490.5394 | S139: 38853.84963
A140: 137 | B140: 2021-01-21T15:44:00 | C140: AVANTE | D140: 232159 | E140: 1 | F140: HXT-500/H | G140: 460/3 | H140: - | I140: 10180 M3/H | J140: 1650 | K140: 1/2 | N140: 460 V | O140: 3.703703704 | P140: 5HXT50028460V | Q140: Existe | R140: 2683.5669 | S140: 9939.136667
A141: 138 | B141: 2021-01-21T16:11:00 | C141: AVANTE | D141: 231982 | E141: 2 | F141: CME-280 | G141: 460/3 | H141: - | I141: 1690 M3/H | J141: 3150 | K141: 2 | N141: CW, BH, ARREGLO ANTICHISPA AMCA "C", MOTOR 2-MO-220US | O141: 3.703703704 | P141: 5CME280D031500 | Q141: EXT.CME-280 2T 3150RPM DESC.BH | R141: 9189.5434 | S141: 34035.34593
A142: 139 | B142: 2021-01-22T12:25:00 | C142: ECONOAIRE | D142: 232192 | E142: 1 | F142: CRVHT-18 | G142: 220/1 | H142: EXT-07 | I142: 4184 CFM | J142: 1550 | K142: 1 1/2 | N142: MALLA DE PROTECCION EN DESCARGA, TRAMPA DE GRASA C/TAPA | O142: 3.703703704 | P142: 5CRVHT187155TG | Q142: Existe | R142: 8280.5219 | S142: 30668.59963
A143: 140 | B143: 2021-01-22T12:25:00 | C143: ECONOAIRE | D143: 232192 | E143: 1 | F143: CRVLT-14 | G143: 127/1 | H143: EXT-08 | I143: 1334 CFM | J143: 1725 | K143: 1/2 | N143: MALLA DE PROTECCION EN DESCARGA, TRAMPA DE GRASA C/TAPA | O143: 3.703703704 | P143: 5CRVLT144172TG | Q143: Existe | R143: 7131.8275 | S143: 26414.17593
A144: 141 | B144: 2021-01-22T12:25:00 | C144: ECONOAIRE | D144: 232192 | E144: 1 | F144: CRVLT-12 | G144: 127/1 | H144: EXT-09 | I144: 1061 CMF | J144: 1725 | K144: 1/2 | N144: MALLA DE PROTECCION EN DESCARGA, TRAMPA DE GRASA C/TAPA | O144: 3.703703704 | P144: 5CRVLT124175TG | Q144: Existe | R144: 6434.6904 | S144: 23832.18667
A145: 142 | B145: 2021-01-22T12:25:00 | C145: ECONOAIRE | D145: 232192 | E145: 1 | F145: CRVHT-22 | G145: 230/3 | H145: EXT-10 | I145: 7153 CFM | J145: 1125 | K145: 3 | N145: MALLA DE PROTECCION EN DESCARGA, TRAMPA DE GRASA C/TAPA | O145: 3.703703704 | P145: 5CRVHT22E112TG | Q145: EXT.CRVHT-22 3T 1125RPM TG | R145: 16685.0161 | S145: 61796.35593
A146: 143 | B146: 2021-01-22T12:25:00 | C146: ECONOAIRE | D146: 232192 | E146: 1 | F146: CRVLT-16 | G146: 127/1 | H146: EXT-11 | I146: 2779 CFM | J146: 1175 | K146: 3/4 | N146: MALLA DE PROTECCION EN DESCARGA, TRAMPA DE GRASA C/TAPA | O146: 3.703703704 | P146: 5CRVLT165117TG | Q146: EXT.CRVLT-16 3/4M 1175RPM TG | R146: 7487.4128 | S146: =R146*O146 -> 27731.15852
A147: 144 | B147: 2021-01-22T12:25:00 | C147: ECONOAIRE | D147: 232192 | E147: 1 | F147: CRVHT-16 | G147: 127/1 | H147: EXT-12 | I147: 3401 CFM | J147: 1350 | K147: 3/4 | N147: MALLA DE PROTECCION EN DESCARGA, TRAMPA DE GRASA C/TAPA | O147: 3.703703704 | P147: 5CRVHT165135TG | Q147: EXT.CRVHT-16 3/4M 1350RPM TG | R147: 7380.2533 | S147: 27334.27148
A148: 145 | B148: 2021-01-22T13:27:00 | C148: REFRIGERACION LOZANO | D148: 232198 | E148: 3 | F148: CRVLT-18 | G148: 220/1 | H148: - | I148: 3838 CFM | J148: 1200 | K148: 3/4 | O148: 3.703703704 | P148: 5CRVLT18501200 | Q148: Existe | R148: 7541.7666 | S148: 27932.46889
A149: 146 | B149: 2021-01-22T16:05:00 | C149: MULTIEQUIPOS | D149: 232204 | E149: 2 | F149: CMI-355 | G149: 220/1 | H149: - | I149: - | J149: 1725 | K149: 1 | O149: 3.703703704 | P149: 5CMI3556017500 | Q149: Existe | R149: 8621.9299 | S149: 31933.0737
A150: 147 | B150: 2021-01-22T16:05:00 | C150: MULTIEQUIPOS | D150: 232204 | E150: 2 | F150: CCR-12/12 | G150: 220/1 | H150: - | I150: - | J150: 800 | K150: 1/2 | O150: 3.703703704 | P150: 5CCR1212408000 | Q150: EXT.CCR-12/12 1/2M 800RPM | R150: 7757.8113 | S150: 28732.63444
A151: 148 | B151: 2021-01-25T11:15:00 | C151: SICLIMA | D151: 232210 | E151: 2 | F151: CMI-630 | G151: 460/3 | H151: - | I151: - | J151: 1350 | K151: 7 1/2 | N151: BRIDA EN SUCCION Y DESCARGA | O151: 3.703703704 | P151: 5CMI630G1350BD | Q151: EXT.CMI-630 7.5T 1350RPM BDA. | R151: 20952.2561 | S151: 77600.94852
A152: 149 | B152: 2021-01-25T11:15:00 | C152: SICLIMA | D152: 232210 | E152: 1 | F152: CMI-400 | G152: 460/3 | H152: - | I152: - | J152: 2100 | K152: 3 | N152: BRIDA EN SUCCION Y DESCARGA | O152: 3.703703704 | P152: 5CMI400E2100BD | Q152: EXT.CMI-400 3T 2100RPM BDA. | R152: 13120.8941 | S152: 48595.90407
A153: 150 | B153: 2021-01-25T11:15:00 | C153: SICLIMA | D153: 232210 | E153: 1 | F153: CMI-710 | G153: 460/3 | H153: - | I153: - | J153: 1100 | K153: 7 1/2 | N153: BRIDA EN SUCCION Y DESCARGA | O153: 3.703703704 | P153: 5CMI710G1100BD | Q153: EXT.CMI-710 7.5T 1100RPM BDA. | R153: 26154.3511 | S153: 96867.96704
A154: 151 | B154: 2021-01-25T11:15:00 | C154: SICLIMA | D154: 232210 | E154: 1 | F154: CMI-560 | G154: 460/3 | H154: - | I154: - | J154: 1450 | K154: 5 | N154: BRIDA EN SUCCION Y DESCARGA | O154: 3.703703704 | P154: 5CMI560F1450BD | Q154: EXT.CMI-560 5T 1450RPM BDA. | R154: 17690.6037 | S154: 65520.75444
A155: 152 | B155: 2021-01-25T11:15:00 | C155: SICLIMA | D155: 232210 | E155: 1 | F155: CMI-800 | G155: 460/3 | H155: - | I155: - | J155: 1000 | K155: 10 | N155: BRIDA EN SUCCION Y DESCARGA | O155: 3.703703704 | P155: 5CMI800H1000BD | Q155: EXT.CMI-800 10T 1000RPM BDA. | R155: 30548.5991 | S155: 113142.9596
A156: 153 | B156: 2021-01-25T11:15:00 | C156: SICLIMA | D156: 232210 | E156: 1 | F156: BDB-355 | G156: 460/3 | H156: - | I156: - | J156: 2400 | K156: 5 | N156: BRIDA EN DESCARGA | O156: 3.703703704 | P156: FORMATO | Q156: FORMATO | S156: 0
A157: 154 | B157: 2021-01-25T16:43:00 | C157: TRANE | D157: 232254 | E157: 2 | F157: CDAHF1-12/12 | G157: 230/3 | H157: - | I157: - | J157: 1000 | K157: 2 | O157: 3.703703704 | P157: 5CDAHF112D1000 | Q157: Existe | R157: 11708.7872 | S157: 43365.87852
A158: 155 | B158: 2021-01-25T16:43:00 | C158: TRANE | D158: 232254 | E158: 1 | F158: CMI-630 | G158: 230/3 | H158: - | I158: - | J158: 1351 | K158: 7 1/2 | O158: 3.703703704 | P158: 5CMI630G135100 | Q158: Existe | R158: 19800.8768 | S158: 73336.58074
A159: 156 | B159: 2021-01-25T16:54:00 | C159: LETICIA VIDAL | D159: 232255 | E159: 1 | F159: TAT-630/H | G159: 230/3 | H159: VI-02 | I159: 2600 CFM | J159: 1300 | K159: 2 | N159: ARREGLO ANTICHISPA AMCA "C", MOTOR APEX 2-MO-165US | O159: 3.703703704 | P159: 5TAT-630/18APX | Q159: EXT.TAT-630/18 2T 1300RPM | R159: 12636.1426 | S159: 46800.52815
A160: 157 | B160: 2021-01-25T16:48:00 | C160: PROENSA | D160: 232263 | E160: 2 | F160: LOU-AL42 | G160: - | H160: - | I160: - | J160: - | K160: - | N160: LOUVER 42x30 ALUM.ALETAS FIJA | O160: 3.703703704 | P160: 5LOU-4230A | Q160: Existe | R160: 1663.5872 | S160: 6161.434074
A161: 158 | B161: 2021-01-25T16:48:00 | C161: PROENSA | D161: 232263 | E161: 2 | F161: DAL-9-H-1 1/2 | G161: 230/3 | H161: - | I161: - | J161: 575 | K161: 1 1/2 | O161: 3.703703704 | P161: 5UDLHF9C057500 | Q161: Existe | R161: 16380.6163 | S161: 60668.94926
A162: 159 | B162: 2021-01-25T16:48:00 | C162: PROENSA | D162: 232263 | E162: 2 | F162: DAL-16-H-3 | G162: 230/3 | H162: - | I162: - | J162: 496 | K162: 3 | O162: 3.703703704 | P162: 5UDLHF16E04920 | Q162: Existe | R162: 30011.1668 | S162: 111152.4696
A163: 160 | B163: 2021-01-25T16:48:00 | C163: PROENSA | D163: 232263 | E163: 1 | F163: DAL-25-H- 5 | G163: 230/3 | H163: - | I163: - | J163: 491 | K163: 5 | O163: 3.703703704 | P163: 5UDLHF25F04910 | Q163: Existe | R163: 42356.7281 | S163: 156876.7707
A164: 161 | B164: 2021-01-26T10:06:00 | C164: CYVSA | D164: 232277 | E164: 1 | F164: CDAHF1-18/18 | G164: 460/3 | H164: UV-01 | I164: 3872 CFM | J164: 675 | K164: 1 1/2 | N164: LOUVER EN SUCCION, PORTAFILTRO CON FILTROS METÁLICOS (SUCCIÓN) | O164: 3.703703704 | P164: 5CDAHF118C0700 | Q164: Existe | R164: 16090.9474 | S164: 59596.10148
A165: 162 | B165: 2021-01-26T10:31:00 | C165: UMAS | D165: 232278 | E165: 2 | F165: DAB-15/15 | G165: 460/3 | H165: VE-01 | I165: - | J165: 950 | K165: 5 | O165: 3.703703704 | P165: 5DAB1515F09500 | Q165: EXT.DA/B-15/15 5T 950RPM | R165: 8623.6209 | S165: 31939.33667
A166: 163 | B166: 2021-01-26T11:30:00 | C166: REMA INGENIERIA | D166: 232285 | E166: 1 | F166: CRHLT-10 | G166: 230/3 | H166: - | I166: 620 CFM | J166: 1075 | K166: 1/4 | O166: 3.703703704 | P166: 5CRHLT10801075 | Q166: Existe | R166: 5270.0759 | S166: 19518.79963
A167: 164 | B167: 2021-01-26T11:30:00 | C167: REMA INGENIERIA | D167: 232285 | E167: 1 | F167: CRHLT-12 | G167: 230/3 | H167: - | I167: 1320 CFM | J167: 1525 | K167: 1/3 | O167: 3.703703704 | P167: 5CRHLT12T01500 | Q167: Existe | R167: 5418.11 | S167: 20067.07407
A168: 165 | B168: 2021-01-26T11:30:00 | C168: REMA INGENIERIA | D168: 232285 | E168: 1 | F168: CRHLT-16 | G168: 230/3 | H168: - | I168: 3468 CFM | J168: 1350 | K168: 1 | O168: 3.703703704 | P168: 5CRHLT16B01350 | Q168: EXT.CRHLT-16 1T 1350RPM | R168: 7402.7767 | S168: 27417.69148
A169: 166 | B169: 2021-01-26T11:30:00 | C169: REMA INGENIERIA | D169: 232285 | E169: 1 | F169: CRWLT-10 | G169: 230/3 | H169: - | I169: 1155 CFM | J169: 1800 | K169: 1/3 | O169: 3.703703704 | P169: 5CRWLT10T01775 | Q169: Existe | R169: 6266.5092 | S169: 23209.29333
A170: 167 | B170: 2021-01-26T11:30:00 | C170: REMA INGENIERIA | D170: 232285 | E170: 1 | F170: CRWLT-12 | G170: 230/3 | H170: - | I170: 1380 CFM | J170: 1550 | K170: 1/3 | O170: 3.703703704 | P170: 5CRWLT12T01550 | Q170: EXT.CRWLT-12 1/3T 1550RPM | R170: 6300.8517 | S170: 23336.48778
A171: 168 | B171: 2021-01-26T11:44:00 | C171: EXPERTOS EN VENTILACION | D171: 232289 | E171: 6 | F171: CMI-1120 | G171: 440/3 | H171: - | I171: - | J171: 500 | K171: 7 1/2 | O171: 3.703703704 | P171: 5CMI1120G50000 | Q171: Existe | R171: 58028.5431 | S171: 214920.53
A172: 169 | B172: 2021-01-26T12:32:00 | C172: EXPERTOS EN VENTILACION | D172: 232281 | E172: 2 | F172: DAL-16-V-2 | G172: 440/3 | H172: - | I172: - | J172: 450 | K172: 2 | O172: 3.703703704 | P172: 5UDLVF16D04500 | Q172: Existe | R172: 28762.1035 | S172: 106526.3093
A173: 170 | B173: 2021-01-27T09:27:00 | C173: ABEASA | D173: 232346 | E173: 1 | F173: CDAHF2-22/22 | G173: 230/3 | H173: - | I173: - | J173: 775 | K173: 7 1/2 | O173: 3.703703704 | P173: 5CDAHF222G0775 | Q173: Existe | R173: 30116.9508 | S173: 111544.2622
A174: 171 | B174: 2021-01-27T10:15:00 | C174: EDISON MAQUINARIA | D174: 232123 | E174: 3 | F174: CMI-630 | G174: 230/3 | H174: - | I174: 6600 CFM | J174: 975 | K174: 3 | O174: 3.703703704 | P174: 5CMI630E098000 | Q174: Existe | R174: 18059.2976 | S174: 66886.28741
A175: 172 | B175: 2021-01-27T10:15:00 | C175: EDISON MAQUINARIA | D175: 232123 | E175: 1 | F175: CLT-10 | G175: 230/3 | H175: - | I175: 550 CFM | J175: 1425 | K175: 1/4 | O175: 3.703703704 | P175: 5CLTG108014250 | Q175: Existe | R175: 5346.0846 | S175: 19800.31333
A176: 173 | B176: 2021-01-27T10:15:00 | C176: EDISON MAQUINARIA | D176: 232123 | E176: 1 | F176: CLT-7 | G176: 230/3 | H176: - | I176: 300 CFM | J176: 2000 | K176: 1/3 | O176: 3.703703704 | P176: 5CLTG7T0200000 | Q176: EXT.CLTG-7 1/3T 2000RPM | R176: 5120.307 | S176: 18964.1
A177: 174 | B177: 2021-01-27T10:15:00 | C177: EDISON MAQUINARIA | D177: 232123 | E177: 1 | F177: CLT-12 | G177: 230/3 | H177: - | I177: 1100 CFM | J177: 1350 | K177: 1/2 | O177: 3.703703704 | P177: 5CLTG129013500 | Q177: Existe | R177: 5887.9506 | S177: 21807.22444
A178: 175 | B178: 2021-01-27T10:15:00 | C178: EDISON MAQUINARIA | D178: 232123 | E178: 1 | F178: CMI-630 | G178: 230/3 | H178: - | I178: 4160 CFM | J178: 875 | K178: 1 1/2 | O178: 3.703703704 | P178: 5CMI630C087500 | Q178: EXT.CMI-630 1.5T 875RPM | R178: 17019.7521 | S178: =R178*O178 -> 63036.11889
A179: 176 | B179: 2021-01-27T10:15:00 | C179: EDISON MAQUINARIA | D179: 232123 | E179: 1 | F179: CLT-12 | G179: 230/3 | H179: - | I179: 830 CFM | J179: 1050 | K179: 1/4 | O179: 3.703703704 | P179: 5CLTG128010500 | Q179: EXT.CLTG-12 1/4T 1050RPM | R179: 5635.8039 | S179: 20873.34778
A180: 177 | B180: 2021-01-27T10:15:00 | C180: EDISON MAQUINARIA | D180: 232123 | E180: 1 | F180: CLT-18 | G180: 230/3 | H180: - | I180: 2700 CFM | J180: 1225 | K180: 1 1/2 | O180: 3.703703704 | P180: 5CLTG18C012260 | Q180: EXT.CLTG-18 1.5T 1225RPM | R180: 8254.8542 | S180: 30573.53407
A181: 178 | B181: 2021-01-27T10:15:00 | C181: EDISON MAQUINARIA | D181: 232123 | E181: 1 | F181: CMI-315 | G181: 230/3 | H181: - | I181: 1110 CFM | J181: 1550 | K181: 1/2 | O181: 3.703703704 | P181: 5CMI3159015500 | Q181: EXT.CMI-315 1/2T 1550RPM | R181: 8470.7139 | S181: 31373.01444
A182: 179 | B182: 2021-01-27T10:15:00 | C182: EDISON MAQUINARIA | D182: 232123 | E182: 1 | F182: CLT-36 | G182: 230/3 | H182: - | I182: 15350 CFM | J182: 600 | K182: 5 | O182: 3.703703704 | P182: 5CLTG36F060000 | Q182: Existe | R182: 33961.1328 | S182: 125781.9733
A183: 180 | B183: 2021-01-27T10:15:00 | C183: EDISON MAQUINARIA | D183: 232123 | E183: 1 | F183: CRWLT-16 | G183: 230/3 | H183: - | I183: 1200 CFM | J183: 850 | K183: 1/4 | O183: 3.703703704 | P183: 5CRWLT16808500 | Q183: EXT.CRWLT-16 1/4T 850RPM | R183: 7226.7169 | S183: 26765.61815
A184: 181 | B184: 2021-01-27T10:15:00 | C184: EDISON MAQUINARIA | D184: 232123 | E184: 1 | F184: CLT-12 | G184: 230/3 | I184: 460 CFM | J184: 1050 | K184: 1/4 | O184: 3.703703704 | P184: 5CLTG128010500 | Q184: EXT.CLTG-12 1/4T 1050RPM | R184: 5637.1339 | S184: 20878.2737
A185: 182 | B185: 2021-01-27T10:15:00 | C185: EDISON MAQUINARIA | D185: 232123 | E185: 1 | F185: CLT-16 | G185: 230/3 | H185: - | I185: 2430 CFM | J185: 1150 | K185: 3/4 | O185: 3.703703704 | P185: 5CLTG16A011500 | Q185: EXT.CLTG-16 3/4T 1150RPM | R185: 6728.5721 | S185: 24920.63741
A186: 183 | B186: 2021-01-27T10:15:00 | C186: EDISON MAQUINARIA | D186: 232123 | E186: 3 | F186: CRVLT-36 | G186: 230/3 | H186: - | I186: 18600 CFM | J186: 725 | K186: 7 1/2 | O186: 3.703703704 | P186: 5CRVLT36G07250 | Q186: Existe | R186: 37683.6393 | S186: 139569.0344
A187: 184 | B187: 2021-01-27T10:15:00 | C187: EDISON MAQUINARIA | D187: 232123 | E187: 1 | F187: CLT-16 | G187: 230/3 | H187: - | I187: 1000 CFM | J187: 1100 | K187: 3/4 | O187: 3.703703704 | P187: 5CLTG16A011000 | Q187: Existe | R187: 6432.8315 | S187: 23825.30185
A188: 185 | B188: 2021-01-27T10:15:00 | C188: EDISON MAQUINARIA | D188: 232123 | E188: 2 | F188: WXT 800-1/2-S | G188: 460/3 | I188: 4060 CFM | J188: 530 | K188: 1/2 | N188: MALLA EN SUCCION, PERSIANA GRAVEDAD, BRIDA EN DESCARGA | O188: 3.703703704 | P188: 5WXT8009530PMC | Q188: EXT.WXT-800 1/2T 530RPM MALLA | R188: 12360.744 | S188: 45780.53333
A189: 186 | B189: 2021-01-27T10:15:00 | C189: EDISON MAQUINARIA | D189: 232123 | E189: 2 | F189: DAL-96-V-30 | G189: 460/3 | H189: - | I189: 27900 CFM | J189: 380 | K189: 30 | N189: DESCARGA VERTICAL HACIA ARRIBA | O189: 3.703703704 | P189: 5DLVF96Q0380UB | Q189: LAV. DALV-96 30T 4P 380RPM 0 | R189: 128852.5762 | S189: 477231.7637
A190: 187 | B190: 2021-01-27T10:15:00 | C190: EDISON MAQUINARIA | D190: 232123 | E190: 1 | F190: CLT-16 | G190: 230/3 | H190: - | I190: 1600 CFM | J190: 950 | K190: 1/2 | O190: 3.703703704 | P190: 5CLTG169095000 | Q190: EXT.CLTG-16 1/2T 950RPM | R190: 6570.3721 | S190: 24334.71148
A191: 188 | B191: 2021-01-27T10:15:00 | C191: EDISON MAQUINARIA | D191: 232123 | E191: 1 | F191: CLT-12 | G191: 230/3 | H191: - | I191: 900 CFM | J191: 1162 | K191: 1/3 | O191: 3.703703704 | P191: 5CLTG12T011620 | Q191: EXT.CLTG-12 1/3T 1162RPM | R191: 5670.3038 | S191: 21001.12519
A192: 189 | B192: 2021-01-27T10:15:00 | C192: EDISON MAQUINARIA | D192: 232123 | E192: 1 | F192: CLT-7 | G192: 230/3 | H192: - | I192: 280 CFM | J192: 1575 | K192: 1/4 | O192: 3.703703704 | P192: 5CLTG780157500 | Q192: EXT.CLTG-7 1/4T 1575RPM | R192: 5047.1484 | S192: 18693.14222
A193: 190 | B193: 2021-01-27T10:15:00 | C193: EDISON MAQUINARIA | D193: 232123 | E193: 1 | F193: CLT-18 | G193: 230/3 | H193: - | I193: 1750 CFM | J193: 900 | K193: 3/4 | O193: 3.703703704 | P193: 5CLTG18A090000 | Q193: Existe | R193: 7065.0036 | S193: 26166.68
A194: 191 | B194: 2021-01-27T10:15:00 | C194: EDISON MAQUINARIA | D194: 232123 | E194: 1 | F194: CLT-12 | G194: 230/3 | H194: - | I194: 420 CFM | J194: 1162 | K194: 1/4 | O194: 3.703703704 | P194: 5CLTG128011620 | Q194: EXT.CLTG-12 1/4T 1162RPM | R194: 5612.8038 | S194: 20788.16222
A195: 192 | B195: 2021-01-27T10:15:00 | C195: EDISON MAQUINARIA | D195: 232123 | E195: 1 | F195: CLT-16 | G195: 230/3 | H195: - | I195: 1310 CFM | J195: 900 | K195: 1/2 | O195: =2/0.54 -> 3.703703704 | P195: 5CLTG169092000 | Q195: Existe | R195: 6278.4017 | S195: 23253.33963
A196: 193 | B196: 2021-01-27T10:15:00 | C196: EDISON MAQUINARIA | D196: 232123 | E196: 1 | F196: CLT-12 | G196: 230/3 | H196: - | I196: 620 CFM | J196: 1125 | K196: 1/4 | O196: 3.703703704 | P196: 5CLTG128011250 | Q196: Existe | R196: 5557.5482 | S196: 20583.51185
A197: 194 | B197: 2021-01-27T10:15:00 | C197: EDISON MAQUINARIA | D197: 232123 | E197: 1 | F197: CLT-7 | G197: 230/3 | H197: - | I197: 300 CFM | J197: 1575 | K197: 1/4 | O197: 3.703703704 | P197: 5CLTG780157500 | Q197: EXT.CLTG-7 1/4T 1575RPM | R197: 5048.4784 | S197: 18698.06815
A198: 195 | B198: 2021-01-27T10:15:00 | C198: EDISON MAQUINARIA | D198: 232123 | E198: 1 | F198: CLT-16 | G198: 230/3 | H198: - | I198: 1760 CFM | J198: 1175 | K198: 3/4 | N198: BANCO PORTAFILTROS DE CARBON ACTIVADO | O198: 3.703703704 | P198: 5CLTG16A1175FI | Q198: EXT.CLTG-16 3/4T 1175RPM | R198: 10333.9376 | S198: 38273.84296
A199: 196 | B199: 2021-01-27T10:15:00 | C199: EDISON MAQUINARIA | D199: 232123 | E199: 1 | F199: CLT-12 | G199: 230/3 | H199: - | I199: 1300 CFM | J199: 1285 | K199: 1/2 | N199: BANCO PORTAFILTROS DE CARBON ACTIVADO | O199: 3.703703704 | P199: 5CLTG1291285FI | Q199: EXT.CLTG-12 1/2T 1285RPM | R199: 8294.1258 | S199: 30718.98444
A200: 197 | B200: 2021-01-27T11:20:00 | C200: TRANE | D200: 232353 | E200: 1 | F200: CDAHF2-12/12 | G200: 230/3 | H200: - | I200: 3125 CFM | J200: 975 | K200: 1 1/2 | O200: 3.703703704 | P200: 5CDAHF212C1000 | Q200: Existe | R200: 12150.2733 | S200: 45001.01222
... 59 more rows

Sheet FEBRERO 2021
A1: SIAC | P1: ING. INDUSTRIAL
F2: CARACTERISTICAS DEL EQUIPO
A3: ITEM | B3: FECHA SOLICITADA | C3: Nombre Cliente | D3: PEDIDO | E3: CANTIDAD | F3: EQUIPO | G3: Conexión | H3: TAG | I3: Caudal | J3: R.P.M | K3: MOTOR | L3: GIRO | M3: DESCARGA | N3: OBSERVACIONES | O3: FACTOR VENTA | P3: Codigo | Q3: Descripción | R3: COSTO | S3: PRECIO LISTA | T3: FECHA ENTREGA
A4: 1 | B4: 2021-02-02T12:29:00 | C4: ANGELICA LOPEZ | D4: 232489 | E4: 4 | F4: DAL-25-V-5 | G4: 230/3 | H4: VE-01 | I4: 23000 CFM | J4: 584 | K4: 5 | L4: CW | M4: UB | N4: DESCARGA VERTICAL HACIA ARRIBA, PORTAFILTROS Y LOUVERS, CODIGO REFERENCIA 5DLVF25F0584UB | O4: =2/0.54 -> 3.703703704 | P4: FORMATO | Q4: FORMATO | S4: =R4*O4 -> 0
A5: 2 | B5: 2021-02-02T12:32:00 | C5: T Y P | D5: 232528 | E5: 1 | F5: CXW 305 | G5: 230/3 | H5: - | I5: - | J5: 3520 | K5: 5 | L5: CW | M5: UB | N5: DESCARGA UB | O5: =2/0.54 -> 3.703703704 | P5: FORMATO | Q5: FORMATO | S5: =R5*O5 -> 0
A6: 3 | B6: 2021-02-02T17:41:00 | C6: BARNHART - TAYLOR MX | D6: 232531 | E6: 24 | F6: DA-30/28 | G6: 460/3/60 | H6: MA-01 @ 24 | I6: 27264 CFM | J6: 425 | K6: 15 | L6: - | M6: - | N6: - | O6: 3.703703704 | P6: 5DA3028M042500 | Q6: EXT.DA-30/28 15T 425RPM | R6: 23797.1904 | S6: 88137.74222
A7: 4 | B7: 2021-02-02T17:51:00 | C7: J & C TECHNOLOGY | D7: 232461 | E7: 1 | F7: CDAH-7/7 | G7: 230/3 | H7: EXS.2 | I7: 600 M3/HR | J7: 1125 | K7: 1/4 | O7: 3.703703704 | P7: 5CDAH778011500 | Q7: REPETIDO | S7: 0
A8: 5 | B8: 2021-02-02T17:51:00 | C8: J & C TECHNOLOGY | D8: 232461 | E8: 1 | F8: CDAH-10/10 | G8: 460/3 | H8: EX0.4 | I8: 3000 M3/HR | J8: 975 | K8: 3/4 | O8: 3.703703704 | P8: 5CDAH1010A0975 | Q8: EXT.CDAH-10/10 3/4T 975RPM | R8: 6223.9549 | S8: 23051.68481
A9: 6 | B9: 2021-02-02T17:51:00 | C9: J & C TECHNOLOGY | D9: 232461 | E9: 1 | F9: CDAH-7/7 | G9: 230/3 | H9: EX0.7 | I9: 1000 M3/HR | J9: 1150 | K9: 1/4 | O9: 3.703703704 | P9: 5CDAH778011500 | Q9: EXT.CDAH-7/7 1/4T 1150RPM | R9: 4742.3797 | S9: 17564.36926
A10: 7 | B10: 2021-02-02T17:51:00 | C10: J & C TECHNOLOGY | D10: 232461 | E10: 3 | F10: CDAH-7/7 | G10: 230/3 | H10: EX0.9 A EX0.11 | I10: 600 M3/HR | J10: 1100 | K10: 1/4 | O10: 3.703703704 | P10: 5CDAH778011000 | Q10: EXT.CDAH-7/7 1/4T 1100RPM | R10: 4742.3797 | S10: 17564.36926
A11: 8 | B11: 2021-02-02T17:51:00 | C11: J & C TECHNOLOGY | D11: 232461 | E11: 1 | F11: CDAH-7/7 | G11: 230/3 | H11: EX0.25 | I11: 1000 M3/HR | J11: 1125 | K11: 1/4 | O11: 3.703703704 | P11: 5CDAH778011500 | Q11: REPETIDO | S11: 0
A12: 9 | B12: 2021-02-02T17:51:00 | C12: J & C TECHNOLOGY | D12: 232461 | E12: 1 | F12: CMI-900 | G12: 460/3 | H12: EX0.26 | I12: 20000 M3/HR | J12: 600 | K12: 5 | O12: 3.703703704 | P12: 5CMI900F06000 | Q12: Existe | R12: 32609.3776 | S12: 120775.4726
A13: 10 | B13: 2021-02-02T17:51:00 | C13: J & C TECHNOLOGY | D13: 232461 | E13: 1 | F13: CDAH-10/10 | G13: 460/3 | H13: EX0.26 | I13: 3000 M3/HR | J13: 950 | K13: 3/4 | O13: 3.703703704 | P13: 5CDAH1010A0975 | Q13: REPETIDO | S13: 0
A14: 11 | B14: 2021-02-02T17:51:00 | C14: J & C TECHNOLOGY | D14: 232461 | E14: 1 | F14: CDAH-18/18 | G14: 460/3 | H14: EX0.28 | I14: 8000 M3/HR | J14: 575 | K14: 1 1/2 | O14: 3.703703704 | P14: 5CDAH1818C0575 | Q14: EXT.CDAH-18/18 1.5T 575RPM | R14: 12522.1162 | S14: 46378.20815
A15: 12 | B15: 2021-02-02T17:51:00 | C15: J & C TECHNOLOGY | D15: 232461 | E15: 3 | F15: CDAH-7/7 | G15: 230/3 | H15: 3 UDS | I15: 1000 M3/HR | J15: 1125 | K15: 1/4 | O15: 3.703703704 | P15: 5CDAH778011500 | Q15: REPETIDO
A16: 13 | B16: 2021-02-02T17:51:00 | C16: J & C TECHNOLOGY | D16: 232461 | E16: 2 | F16: CMI-630 | G16: 460/3 | H16: EX1.1.1 , EX1.1.2 | I16: 10000 M3/HR | J16: 825 | K16: 2 | O16: 3.703703704 | P16: 5CMI630D082500 | Q16: Existe | R16: 17256.4484 | S16: =R16*O16 -> 63912.77185
A17: 14 | B17: 2021-02-02T17:51:00 | C17: J & C TECHNOLOGY | D17: 232461 | E17: 2 | F17: CMI-900 | G17: 460/3 | H17: EX1.2.1, EX1.2.2 | I17: 20000 M3/HR | J17: 600 | K17: 5 | O17: 3.703703704 | P17: 5CMI900F06000 | Q17: REPETIDO | S17: 0
A18: 15 | B18: 2021-02-02T17:51:00 | C18: J & C TECHNOLOGY | D18: 232461 | E18: 2 | F18: CDAH-10/10 | G18: 460/3 | H18: EX1.2.3, EX1.2.4 | I18: 3000 M3/HR | J18: 950 | K18: 3/4 | O18: 3.703703704 | P18: 5CDAH1010A0975 | Q18: REPETIDO | S18: 0
A19: 16 | B19: 2021-02-02T17:51:00 | C19: J & C TECHNOLOGY | D19: 232461 | E19: 2 | F19: CMI-630 | G19: 460/3 | H19: EX19.1, EX19.2 | I19: 10000 M3/HR | J19: 825 | K19: 2 | O19: 3.703703704 | P19: 5CMI630D082500 | Q19: REPETIDO | S19: 0
A20: 17 | B20: 2021-02-02T17:51:00 | C20: J & C TECHNOLOGY | D20: 232461 | E20: 1 | F20: CMI-900 | G20: 460/3 | H20: EX19.5 | I20: 20000 M3/HR | J20: 600 | K20: 5 | O20: 3.703703704 | P20: 5CMI900F06000 | Q20: REPETIDO | S20: 0
A21: 18 | B21: 2021-02-02T17:51:00 | C21: J & C TECHNOLOGY | D21: 232461 | E21: 1 | F21: CDAH-10/10 | G21: 460/3 | H21: EX19.6 | I21: 3000 M3/HR | J21: 950 | K21: 3/4 | O21: 3.703703704 | P21: 5CDAH1010A0975 | Q21: REPETIDO | S21: 0
A22: 19 | B22: 2021-02-02T17:51:00 | C22: J & C TECHNOLOGY | D22: 232461 | E22: 9 | F22: CDAH-10/10 | G22: 230/3 | H22: EXT BAÑOS HAB | I22: 3200 M3/HR | J22: 1050 | K22: 1 | O22: 3.703703704 | P22: 5CDAH1010B1050 | Q22: EXT.CDAH-10/10 1T 1050RPM | R22: 7171.6269 | S22: 26561.58111
A23: 20 | B23: 2021-02-02T17:51:00 | C23: J & C TECHNOLOGY | D23: 232461 | E23: 5 | F23: CDAH-7/7 | G23: 230/3 | H23: EXT BAÑOS HAB | I23: 1600 M3/HR | J23: 1500 | K23: 3/4 | O23: 3.703703704 | P23: 5CDAH77A015000 | Q23: EXT.CDAH-7/7 3/4T 1500RPM | R23: 4988.7233 | S23: 18476.75296
A24: 21 | B24: 2021-02-02T17:51:00 | C24: J & C TECHNOLOGY | D24: 232461 | E24: 9 | F24: CDAH-7/7 | G24: 230/3 | H24: EXT BAÑOS HAB | I24: 720 M3/HR | J24: 1275 | K24: 1/3 | O24: 3.703703704 | P24: 5CDAH77T012750 | Q24: EXT.CDAH-7/7 1/3T 1275RPM | R24: 4790.2465 | S24: 17741.6537
A25: 22 | B25: 2021-02-02T17:51:00 | C25: J & C TECHNOLOGY | D25: 232461 | E25: 2 | F25: CMI-900 | G25: 460/3 | H25: EXT5.1, EX0.5.2 | I25: 20000 M3/HR | J25: 600 | K25: 5 | O25: 3.703703704 | P25: 5CMI900F06000 | Q25: REPETIDO | S25: 0
A26: 23 | B26: 2021-02-02T17:51:00 | C26: J & C TECHNOLOGY | D26: 232461 | E26: 2 | F26: CDAH-10/10 | G26: 460/3 | H26: EX0.5.3, EX0.5.4 | I26: 3000 M3/HR | J26: 975 | K26: 3/4 | O26: 3.703703704 | P26: 5CDAH1010A0975 | Q26: REPETIDO | S26: 0
A27: 24 | B27: 2021-02-02T17:51:00 | C27: J & C TECHNOLOGY | D27: 232461 | E27: 1 | F27: CDAH-10/10 | G27: 230/3 | H27: EX3.1 | I27: 3000 M3/HR | J27: 950 | K27: 3/4 | O27: 3.703703704 | P27: 5CDAH1010A0975 | Q27: REPETIDO | S27: 0
A28: 25 | B28: 2021-02-03T09:00:00 | C28: GREGORIO GIJON | D28: 232520 | E28: 1 | F28: CMI-630 | G28: 230/3 | H28: CAMPANA 1 | I28: 9000 M3/H | J28: 900 | K28: 2 | O28: 3.703703704 | P28: 5CMI630D090000 | Q28: Existe | R28: 17257.4624 | S28: 63916.52741
A29: 26 | B29: 2021-02-03T09:00:00 | C29: GREGORIO GIJON | D29: 232520 | E29: 1 | F29: CMI-355 | G29: 230/3 | H29: CAMPANA 2 | I29: 5000 M3/H | J29: 2200 | K29: 1 1/2 | O29: 3.703703704 | P29: 5CMI355C022000 | Q29: EXT.CMI-355 1.5T 2200RPM | R29: 10009.8696 | S29: 37073.59111
A30: 27 | B30: 2021-02-03T13:37:00 | C30: CYVSA | D30: 232220 | E30: 4 | F30: CRVL-T-18 | G30: 230/3 | H30: TORRE B VE-EA-HU-06, VE--EA-HU-07 y TORRE A VE-EA-HU-06, VE-EA-HU-07 | I30: 3004 CFM | J30: 1125 | K30: 1/2 | N30: POLEA PASO VARIABLE | O30: 3.703703704 | P30: 5CRVLT18901125 | Q30: EXT.CRVLT-18 1/2T 1125RPM | R30: 7859.2257 | S30: 29108.24333
A31: 28 | B31: 2021-02-03T17:14:00 | C31: TODO EN VENTILACION | D31: 232601 | E31: 2 | F31: CMII-630 | G31: 230/3 | H31: - | I31: - | J31: 1977 | K31: 25 | O31: 3.703703704 | P31: 5CMII630P01977 | Q31: EXT.CMII-630 25T 1977RPM | R31: 35138.1432 | S31: 130141.2711
A32: 29 | B32: 2021-02-03T17:33:00 | C32: CYVSA | D32: 232568 | E32: 1 | F32: CEB 2000 | G32: 127/1 | H32: VE-AZ-01 | I32: 820 CFM | J32: 1740 | K32: 1/2 | N32: RECUBRIMIENTO EPOXICO | O32: 3.703703704 | P32: 5CEB-2000EPX | Q32: EXTRACTOR CEB-2000 EPOXICO | R32: 1890.9148 | S32: 7003.388148
A33: 30 | B33: 2021-02-03T17:33:00 | C33: CYVSA | D33: 232568 | E33: 1 | F33: CLTF-7 | G33: 127/1 | H33: VI-MZ-01 | I33: 240 CFM | J33: 1925 | K33: 1/4 | N33: CUBRE MOTOR, RECUBRIMIENTO EPOXICO, CAJA PARA FILTROS CON FILTROS METALICOS Y MERV 8 | O33: 3.703703704 | P33: 5CLTG721925EPX | Q33: EXT.CLTG-7 1/4M 1925RPM CUBRE | R33: 6985.1665 | S33: 25870.98704
A34: 31 | B34: 2021-02-03T17:33:00 | C34: CYVSA | D34: 232568 | E34: 1 | F34: CMI-630 | G34: 460/3 | I34: 6176 CFM | J34: 750 | K34: 1 1/2 | N34: RECUBRIMIENTO EPOXICO | O34: 3.703703704 | P34: 5CMI630C750EPX | Q34: EXT.CMI-630 1.5T 750RPM EPOX | R34: 17642.2654 | S34: 65341.7237
A35: 32 | B35: 2021-02-03T17:58:00 | C35: GONZALEZ GASPAR | D35: 232565 | E35: 1 | F35: TBN-TII 450 | G35: 230/3 | H35: - | I35: - | J35: 3400 | K35: 10 | O35: 3.703703704 | P35: FORMATO | S35: 0
A36: 33 | B36: 2021-02-03T18:50:00 | C36: CONDUCTOS DE AIRE DIRIGIDO | D36: 232345 | E36: 1 | F36: DAB-30/28 | G36: 230/3 | H36: - | I36: 26993 CFM | J36: 600 | K36: 25 | N36: MOTOR USO VFD 2-MO-254MR | O36: 3.703703704 | P36: 5DAB3028P06000 | Q36: EXT.DA/B-30/28 25T 600RPM MOT | R36: 31853.3722 | S36: 117975.4526
A37: 34 | B37: 2021-02-03T18:50:00 | C37: CONDUCTOS DE AIRE DIRIGIDO | D37: 232345 | E37: 1 | F37: DAB-30/28 | G37: 230/3 | H37: - | I37: 26993 CFM | J37: 600 | K37: 25 | N37: CCW, MOTOR USO VFD 2-MO-254MR | O37: 3.703703704 | P37: 5DAB3028P0600I | Q37: EXT.DA/B-30/28 25T 600RPM GI | R37: 31853.3722 | S37: 117975.4526
A38: 35 | B38: 2021-02-04T09:44:00 | C38: EDISON MAQUINARIA | D38: 232618 | E38: 1 | F38: CMI-500 | G38: 230/3 | H38: - | I38: - | J38: 1600 | K38: 5 | O38: 3.703703704 | P38: 5CMI500F160000 | Q38: Existe | R38: 15274.4004 | S38: 56571.85333
A39: 36 | B39: 2021-02-04T09:51:00 | C39: TODO EN VENTILACION | D39: 232571 | E39: 1 | F39: CDAHF2-12/12 | G39: 230/3 | H39: - | I39: - | J39: 800 | K39: 1 | O39: 3.703703704 | P39: 5CDAHF212B0800 | Q39: Existe | R39: 12535.9318 | S39: 46429.37704
A40: 37 | B40: 2021-02-04T13:36:00 | C40: INDUSTRIAS VERMONT | D40: 232633 | E40: 2 | F40: CRVLT-16 | G40: 220/1 | H40: - | I40: 2453 CFM | J40: 1300 | K40: 3/4 | O40: 3.703703704 | P40: 5CRVLT16501300 | Q40: Existe | R40: 7062.0261 | S40: 26155.65222
A41: 38 | B41: 2021-02-04T13:36:00 | C41: INDUSTRIAS VERMONT | D41: 232633 | E41: 2 | F41: CRVLT-18 | G41: 220/1 | H41: - | I41: 2900 CFM | J41: 1225 | K41: 3/4 | O41: 3.703703704 | P41: 5CRVLT18501225 | Q41: Existe | R41: 7673.9869 | S41: 28422.1737
A42: 39 | B42: 2021-02-04T13:36:00 | C42: INDUSTRIAS VERMONT | D42: 232633 | E42: 2 | F42: CRVLT-18 | G42: 220/1 | H42: - | I42: 3200 CFM | J42: 1275 | K42: 1 | O42: 3.703703704 | P42: 5CRVLT18601275 | Q42: Existe | R42: 7854.0312 | S42: 29089.00444
A43: 40 | B43: 2021-02-04T14:21:00 | C43: PERSSA | D43: 232511 | E43: 1 | F43: CMI-355 | G43: 220/1 | H43: INY-BIS-03 | I43: 1550 CFM | J43: 1275 | K43: 1/2 | L43: CCW | M43: TH | N43: CCW | O43: 3.703703704 | P43: 5CMI355401275I | Q43: EXT.CMI-355 1/2M 1275RPM GI | R43: 8732.7441 | S43: 32343.49667
A44: 41 | B44: 2021-02-04T14:21:00 | C44: PERSSA | D44: 232511 | E44: 1 | F44: CMI-355 | G44: 220/1 | H44: INY-BIS-04 | I44: 1670 CFM | J44: 1325 | K44: 1/2 | L44: CW | M44: TH | O44: 3.703703704 | P44: 5CMI3554013510 | Q44: Existe | R44: 8787.034 | S44: 32544.57037
A45: 42 | B45: 2021-02-04T14:21:00 | C45: PERSSA | D45: 232511 | E45: 1 | F45: CMI-355 | G45: 220/1 | H45: EXBIS-03 | I45: 1725 CFM | J45: 1450 | K45: 3/4 | L45: CW | M45: TH | O45: 3.703703704 | P45: 5CMI3555014500 | Q45: Existe | R45: 8860.898 | S45: 32818.14074
A46: 43 | B46: 2021-02-04T14:21:00 | C46: PERSSA | D46: 232511 | E46: 1 | F46: CMI-355 | G46: 220/1 | H46: EXBIS-04 | I46: 1860 CFM | J46: 1500 | K46: 3/4 | L46: CW | M46: TH | O46: 3.703703704 | P46: 5CMI3555015000 | Q46: Existe | R46: 8698.1302 | S46: 32215.29704
A47: 44 | B47: 2021-02-04T14:21:00 | C47: PERSSA | D47: 232511 | E47: 1 | F47: CMI-450 | G47: 230/3 | H47: EXBIS-05 | I47: 3100 CFM | J47: 1225 | K47: 1 1/2 | L47: CCW | M47: TH | N47: CCW | O47: 3.703703704 | P47: 5CMI450C01225I | Q47: EXT.CMI-450 1.5T 1225RPM GI | R47: 12381.3015 | S47: 45856.67222
A48: 45 | B48: 2021-02-04T14:21:00 | C48: PERSSA | D48: 232511 | E48: 1 | F48: CMI-450 | G48: 220/1 | H48: INY-BIS-05 | I48: 2785 CFM | J48: 1100 | K48: 3/4 | L48: CW | M48: TH | O48: 3.703703704 | P48: 5CMI4505011250 | Q48: Existe | R48: 10617.4114 | S48: 39323.74593
A49: 46 | B49: 2021-02-04T14:21:00 | C49: PERSSA | D49: 232511 | E49: 2 | F49: CMI-560 | G49: 230/3 | H49: INY-BIS-01 Y 02 | I49: 4590 CFM | J49: 900 | K49: 1 1/2 | L49: CW | M49: TH | O49: 3.703703704 | P49: 5CMI560C091500 | Q49: Existe | R49: 15514.423 | S49: 57460.82593
A50: 47 | B50: 2021-02-04T14:21:00 | C50: PERSSA | D50: 232511 | E50: 2 | F50: CMI-560 | G50: 230/3 | H50: EXBIS-01 Y 02 | I50: 5100 CFM | J50: 1000 | K50: 2 | L50: CW | M50: TH | O50: 3.703703704 | P50: 5CMI560D010000 | Q50: Existe | R50: 15700.0274 | S50: 58148.24963
A51: 48 | B51: 2021-02-04T18:15:00 | C51: J & C TECHNOLOGY | D51: 232510 | E51: 1 | F51: CDAH-9/9 | G51: 230/3 | H51: EX1.3 | I51: 2000 M3/HR | J51: 1075 | K51: 1/2 | O51: 3.703703704 | P51: 5CDAH990107500 | Q51: EXT.CDAH-9/9 1/2T 1075RPM | R51: 5062.8291 | S51: 18751.21889
A52: 49 | B52: 2021-02-04T18:15:00 | C52: J & C TECHNOLOGY | D52: 232510 | E52: 1 | F52: CMI-900 | G52: 460/3 | H52: EX2.4, Ex2.5 | I52: 20000 M3/HR | J52: 600 | K52: 5 | O52: 3.703703704 | P52: 5CMI900F06000 | Q52: Existe | R52: 32609.3776 | S52: 120775.4726
A53: 50 | B53: 2021-02-04T18:15:00 | C53: J & C TECHNOLOGY | D53: 232510 | E53: 1 | F53: CDAH-10/10 | G53: 460/3 | H53: EX2.4,EX5.2 | I53: 3000 M3/HR | J53: 950 | K53: 3/4 | O53: 3.703703704 | P53: 5CDAH1010A0975 | Q53: REPETIDO | S53: 0
A54: 51 | B54: 2021-02-04T18:15:00 | C54: J & C TECHNOLOGY | D54: 232510 | E54: 1 | F54: CDAH-9/9 | G54: 230/3 | H54: EX3.2 | I54: 2000 M3/HR | J54: 1075 | K54: 1/2 | O54: 3.703703704 | P54: 5CDAH990107500 | Q54: REPETIDO | S54: 0
A55: 52 | B55: 2021-02-04T18:15:00 | C55: J & C TECHNOLOGY | D55: 232510 | E55: 2 | F55: CMI-630 | G55: 460/3 | H55: EX 19.3,EX9.4 | I55: 10000 M3/HR | J55: 825 | K55: 2 | O55: 3.703703704 | P55: 5CMI630D082500 | Q55: Existe | R55: 17256.4484 | S55: 63912.77185
A56: 53 | B56: 2021-02-05T09:13:00 | C56: EXPERTOS EN VENTILACION | D56: 232650 | E56: 1 | F56: CDAHF2-12/12 | G56: 230/3 | H56: - | I56: - | J56: 1050 | K56: 3/4 | O56: 3.703703704 | P56: 5CDAHF212A1050 | Q56: Existe | R56: 11055.1483 | S56: 40944.9937
A57: 54 | B57: 2021-02-05T10:50:00 | C57: CAZARES ALVAREZ | D57: 232651 | E57: 1 | F57: CMA-450 | G57: 230/3 | H57: - | I57: 4591 CFM | J57: 1725 | K57: 3 | O57: 3.703703704 | P57: 5CMAI450E17250 | Q57: EXT.CMAI-450 3T 1725RPM | R57: 13826.6264 | S57: 51209.72741
A58: 55 | B58: 2021-02-05T10:52:00 | C58: T Y P | D58: 232570 | E58: 1 | F58: CMII-630 | G58: 460/3 | H58: - | I58: 4025 CFM | J58: 1750 | K58: 10 | N58: MOTOR VFD 2-MO-010VUS | O58: 3.703703704 | P58: 5CMII630H01750 | Q58: EXT.CMII-630 10T 1750RPM MOTOR | R58: 32516.5683 | S58: 120431.7344
A59: 56 | B59: 2021-02-05T10:52:00 | C59: T Y P | D59: 232570 | E59: 1 | F59: CMI-560 | G59: 460/3 | H59: - | I59: - | J59: 1650 | K59: 5 | N59: MOTOR VFD 2-MO-542US | O59: 3.703703704 | P59: 5CMI560F016500 | Q59: EXT.CMI-560 5T 1650RPM MOTOR | R59: 18841.7865 | S59: 69784.39444
A60: 57 | B60: 2021-02-05T12:34:00 | C60: MYCAIR | D60: 232664 | E60: 1 | F60: CRHLT-10 | G60: 230/3 | H60: - | I60: - | J60: 1725 | K60: 1/2 | O60: 3.703703704 | P60: 5CRHLT10901725 | Q60: EXT.CRHLT-10 1/2T 1725RPM | R60: 5345.4917 | S60: 19798.11741
A61: 58 | B61: 2021-02-05T12:34:00 | C61: MYCAIR | D61: 232664 | E61: 1 | F61: CRVLT-18 | G61: 230/3 | H61: - | I61: - | J61: 1375 | K61: 1 1/2 | O61: 3.703703704 | P61: 5CRVLT18C01375 | Q61: EXT.CRVLT-18 1.5T 1375RPM | R61: 9427.8998 | S61: 34918.14741
A62: 59 | B62: 2021-02-05T17:00:00 | C62: AMIGO DEL CHEF | D62: 232697 | E62: 1 | F62: CRVHT-18 | G62: 230/3 | H62: - | I62: - | J62: 1650 | K62: 2 | O62: 3.703703704 | P62: 5CRVHT18D01650 | Q62: EXT.CRVHT-18 2T 1650RPM | R62: 9188.2239 | S62: 34030.45889
A63: 60 | B63: 2021-02-08T09:45:00 | C63: EYSER DE MEXICO | D63: 231729 | E63: 5 | F63: CDAHF2-30/28 | G63: 460/3 | H63: - | I63: - | J63: 375 | K63: 5 | N63: 460 V, PORTAFILTROS CON FILTROS METÁLICOS Y PLISADOS (SUCCIÓN) | O63: 3.703703704 | P63: 5CDAHF2328F375 | Q63: EXT.CDAHF2-30/28 5T 375RPM PTA | R63: 40848.2331 | S63: 151289.7522
A64: 61 | B64: 2021-02-08T10:19:00 | C64: GRUPO REMA | D64: 232441 | E64: 12 | F64: WXT-1000-1.5-S | G64: 460/3 | H64: - | I64: 16318 CFM | J64: 700 | K64: 1.5 | N64: 460 V, MALLA SUCCIÓN, PTA FILTROS, FILTROS METALICOS, PERSIANA EN DESCARGA, BDAS | O64: 3.703703704 | P64: 5WXT1000C700PF | Q64: EXT.WXT-1000 1.5T 700RPM MALLA | R64: 22448.3045 | S64: 83141.86852
A65: 62 | B65: 2021-02-08T11:44:00 | C65: DCI3 | D65: 232725 | E65: 1 | F65: I-HXT-500/H | G65: 230/3 | H65: - | I65: - | J65: 1650 | K65: 1/2 | N65: INYECTOR | O65: 3.703703704 | P65: FORMATO | Q65: FORMATO | S65: 0
A66: 63 | B66: 2021-02-08T11:44:00 | C66: DCI3 | D66: 232725 | E66: 1 | F66: CCK-18/18 | G66: 230/3 | H66: - | I66: - | J66: 500 | K66: 2 | O66: 3.703703704 | P66: 5CCK1818D05000 | Q66: Existe | R66: 9687.9956 | S66: 35881.46519
A67: 64 | B67: 2021-02-08T11:44:00 | C67: DCI3 | D67: 232725 | E67: 2 | F67: DAL-72-H-10 | G67: 230/3 | H67: - | I67: - | J67: 343 | K67: 10 | O67: =2/0.54 -> 3.703703704 | P67: 5DLHF72H035000 | Q67: Existe | R67: 76542.5101 | S67: 283490.7781
A68: 65 | B68: 2021-02-08T11:44:00 | C68: DCI3 | D68: 232725 | E68: 2 | F68: CMI-1120 | G68: 230/3 | H68: - | I68: - | J68: 550 | K68: 10 | O68: 3.703703704 | P68: 5CMI1120H05500 | Q68: EXT.CMI-1120 10T 550RPM | R68: 63200.9755 | S68: 234077.687
A69: 66 | B69: 2021-02-08T11:44:00 | C69: DCI3 | D69: 232725 | E69: 2 | F69: DAL-96-H-10 | G69: 230/3 | H69: - | I69: - | J69: 250 | K69: 10 | O69: 3.703703704 | P69: 5DLHF96H025000 | Q69: LAV.DALH-96 10T 250RPM | R69: 121239.9025 | S69: 449036.6759
A70: 67 | B70: 2021-02-08T11:44:00 | C70: DCI3 | D70: 232725 | E70: 2 | F70: CMI-1400 | G70: 230/3 | H70: - | I70: - | J70: 375 | K70: 10 | O70: 3.703703704 | P70: 5CMI1400H03750 | Q70: EXT.CMI-1400 10T 375RPM | R70: 87391.9393 | S70: 323673.8493
A71: 68 | B71: 2021-02-08T12:22:00 | C71: CONDUCTOS DE AIRE DIRIGIDO | D71: 232718 | E71: 2 | F71: CLT-22 | G71: 230/3 | H71: VI-01 Y VI-02 | I71: 5000 CFM | J71: 1250 | K71: 5 | N71: CUBRE MOTOR | O71: 3.703703704 | P71: 5CLTG22F127CM | Q71: Existe | R71: 14775.0146 | S71: 54722.2763
A72: 69 | B72: 2021-02-08T16:33:00 | C72: EMALAG | D72: 232740 | E72: 2 | F72: CME-355 | G72: 460/3 | H72: - | I72: 1200 CFM | J72: 2125 | K72: 1 | N72: ARREGLO ANTICHISPA AMCA "C", MOTOR APEX 2-MO-062XUS | O72: 3.703703704 | P72: 5CME355B212APX | Q72: EXT.CME-355 1T 2125RPM AMCA C | R72: 12692.2053 | S72: 47008.16778
A73: 70 | B73: 2021-02-08T16:33:00 | C73: EMALAG | D73: 232740 | E73: 2 | F73: CME-400 | G73: 460/3 | H73: - | I73: 1600 CFM | J73: 1900 | K73: 1 1/2 | N73: ARREGLO ANTICHISPA AMCA "C", MOTOR APEX 2-MO-154XUS | O73: 3.703703704 | P73: 5CME400C190APX | Q73: EXT.CME-400 1.5T 1900RPM APEX | R73: 13823.7761 | S73: 51199.17074
A74: 71 | B74: 2021-02-09T10:41:00 | C74: AIRESISTEMAS | D74: 232807 | E74: 2 | F74: CMI-355 | G74: 220/1 | H74: - | I74: 1600 CFM | J74: 1400 | K74: 3/4 | O74: 3.703703704 | P74: 5CMI3555014000 | Q74: Existe | R74: 8701.607 | S74: 32228.17407
A75: 72 | B75: 2021-02-09T10:41:00 | C75: AIRESISTEMAS | D75: 232807 | E75: 1 | F75: CMI-500 | G75: 230/3 | H75: - | I75: 4800 CFM | J75: 1275 | K75: 2 | O75: 3.703703704 | P75: 5CMI500D012750 | Q75: Existe | R75: 13318.1452 | S75: 49326.4637
A76: 73 | B76: 2021-02-09T10:41:00 | C76: AIRESISTEMAS | D76: 232807 | E76: 6 | F76: CMI-280 | G76: 220/1 | H76: - | I76: 600 CFM | J76: 1600 | K76: 1/4 | O76: 3.703703704 | P76: 5CMI2802160000 | Q76: Existe | R76: 7448.7951 | S76: 27588.13
A77: 74 | B77: 2021-02-09T10:41:00 | C77: AIRESISTEMAS | D77: 232807 | E77: 2 | F77: CDAHF1-12/12 | G77: 230/3 | H77: - | I77: 1630 CFM | J77: 975 | K77: 1 | O77: 3.703703704 | P77: 5CDAHF112B0976 | Q77: EXT.CDAHF1-12/12 1T 975RPM | R77: 11914.6231 | S77: 44128.2337
A78: 75 | B78: 2021-02-09T10:53:00 | C78: AIRESISTEMAS | D78: 232806 | E78: 2 | F78: CMI-315 | G78: 220/1 | H78: - | I78: 1000 CFM | J78: 1600 | K78: 1/2 | O78: 3.703703704 | P78: 5CMI3154162500 | Q78: Existe | R78: 8323.0088 | S78: 30825.95852
A79: 76 | B79: 2021-02-09T10:53:00 | C79: AIRESISTEMAS | D79: 232806 | E79: 2 | F79: CMI-280 | G79: 220/1 | H79: - | I79: 600 CFM | J79: 1600 | K79: 1/4 | O79: 3.703703704 | P79: 5CMI2802160000 | Q79: REPETIDO | S79: 0
A80: 77 | B80: 2021-02-09T10:53:00 | C80: AIRESISTEMAS | D80: 232806 | E80: 1 | F80: CDAHF1-12/12 | G80: 230/3 | H80: - | I80: 1725 CFM | J80: 1025 | K80: 1 | O80: 3.703703704 | P80: 5CDAHF112B1025 | Q80: Existe | R80: 11914.6231 | S80: =R80*O80 -> 44128.2337
A81: 78 | B81: 2021-02-09T11:41:00 | C81: REACLIMA | D81: 232509 | E81: 1 | F81: CRHL-T-10 | G81: 127/1/60 | H81: VE-02 | I81: 800 CFM | J81: 1675 | K81: 1/3 | L81: CW | M81: HORIZONTAL | N81: TERMINACION HGH | O81: 3.703703704 | P81: 5CRHLT10316HGH | Q81: EXT.CRHLT-10 1/3M 1675RPM | R81: 5031.2384 | S81: 18634.2163
A82: 79 | B82: 2021-02-09T11:41:00 | C82: REACLIMA | D82: 232509 | E82: 1 | F82: CRHL-T-10 | G82: 127/1/60 | H82: VE-03 | I82: 800 CFM | J82: 1675 | K82: 1/3 | L82: CW | M82: HORIZONTAL | N82: TERMINACION HGH | O82: 3.703703704 | P82: REPETIDO | Q82: REPETIDO | S82: 0
A83: 80 | B83: 2021-02-09T11:41:00 | C83: REACLIMA | D83: 232509 | E83: 1 | F83: CRHL-T-18 | G83: 127/1/60 | H83: VE-07 | I83: 1950 CFM | J83: 950 | K83: 1/2 | L83: CW | M83: HORIZONTAL | N83: TERMINACION HGH | O83: 3.703703704 | P83: 5CRHLT18495HGH | Q83: EXT.CRHLT-18 1/2M 950RPM | R83: 6599.2252 | S83: 24441.57481
A84: 81 | B84: 2021-02-09T11:41:00 | C84: REACLIMA | D84: 232509 | E84: 1 | F84: CRHL-T-10 | G84: 127/1/60 | H84: VE-10 | I84: 520 CFM | J84: 1350 | K84: 1/4 | L84: CW | M84: HORIZONTAL | N84: TERMINACION HGH | O84: 3.703703704 | P84: 5CRHLT10213HGH | Q84: EXT.CRHLT-10 1/4M 1350RPM | R84: 5010.5361 | S84: 18557.54111
A85: 82 | B85: 2021-02-09T11:41:00 | C85: REACLIMA | D85: 232509 | E85: 1 | F85: CRHL-T-26 | G85: 460/3/60 | H85: VE-11 | I85: 5530 CFM | J85: 675 | K85: 2 | L85: CW | M85: HORIZONTAL | N85: TERMINACION HGH | O85: 3.703703704 | P85: 5CRHLT26D67HGH | Q85: EXT.CRHLT-26 2T 675RPM | R85: 14101.6771 | S85: 52228.4337
A86: 83 | B86: 2021-02-09T11:41:00 | C86: REACLIMA | D86: 232509 | E86: 1 | F86: CRHL-T-10 | G86: 127/1/60 | H86: VE-12 | I86: 700 CFM | J86: 1550 | K86: 1/4 | L86: CW | M86: HORIZONTAL | N86: TERMINACION HGH | O86: 3.703703704 | P86: 5CRHLT10215HGH | Q86: EXT.CRHLT-10 1/4M 1550RPM | R86: 4993.1479 | S86: 18493.14037
A87: 84 | B87: 2021-02-09T11:41:00 | C87: REACLIMA | D87: 232509 | E87: 1 | F87: CRHL-T-18 | G87: 460/3/60 | H87: VE-13 | I87: 2571 CFM | J87: 1100 | K87: 0.75 | L87: CW | M87: HORIZONTAL | N87: TERMINACION HGH | O87: 3.703703704 | P87: 5CRHLT18A11HGH | Q87: EXT.CRHLT-18 3/4T 1100RPM | R87: 6996.3875 | S87: 25912.5463
A88: 85 | B88: 2021-02-09T11:41:00 | C88: REACLIMA | D88: 232509 | E88: 1 | F88: CRHL-T-10 | G88: 127/1/60 | H88: VE-14 | I88: 780 CFM | J88: 1650 | K88: 1/3 | L88: CW | M88: HORIZONTAL | N88: TERMINACION HGH | O88: 3.703703704 | P88: 5CRHLT10315HGH | Q88: EXT.CRHLT-10 1/3M 1650RPM | R88: 5031.2384 | S88: 18634.2163
A89: 86 | B89: 2021-02-09T11:41:00 | C89: REACLIMA | D89: 232509 | E89: 1 | F89: CRHL-T-10 | G89: 127/1/60 | H89: VE-15 | I89: 830 CFM | J89: 1750 | K89: 1/3 | L89: CW | M89: HORIZONTAL | N89: TERMINACION HGH | O89: 3.703703704 | P89: 5CRHLT10318HGH | Q89: EXT.CRHLT-10 1/3M 1750RPM | R89: 5031.2384 | S89: 18634.2163
A90: 87 | B90: 2021-02-09T11:41:00 | C90: REACLIMA | D90: 232509 | E90: 1 | F90: CRHL-T-12 | G90: 127/1/60 | H90: VE-16 | I90: 490 CFM | J90: 1275 | K90: 1/4 | L90: CW | M90: HORIZONTAL | N90: TERMINACION HGH | O90: 3.703703704 | P90: 5CRHLT12212HGH | Q90: EXT.CRHLT-12 1/4M 1275RPM | R90: 5081.3462 | S90: 18819.80074
A91: 88 | B91: 2021-02-09T11:41:00 | C91: REACLIMA | D91: 232509 | E91: 1 | F91: CRHL-T-20 | G91: 460/3/60 | H91: VE-17 | I91: 3061 CFM | J91: 1050 | K91: 1 | L91: CW | M91: HORIZONTAL | N91: TERMINACION HGH | O91: 3.703703704 | P91: 5CRHLT20B10HGH | Q91: EXT.CRHLT-20 1T 1050RPM | R91: 8389.9164 | S91: 31073.76444
A92: 89 | B92: 2021-02-09T11:41:00 | C92: REACLIMA | D92: 232509 | E92: 1 | F92: CMI-315 | G92: 127/1/60 | H92: VE-19 | I92: 1080 CFM | J92: 1475 | K92: 1/3 | L92: CW | M92: TH | N92: TERMINACION HGH | O92: 3.703703704 | P92: 5CMI3153147HGH | Q92: EXT.CMI-315 1/3M 1475RPM | R92: 8197.0637 | S92: 30359.49519
A93: 90 | B93: 2021-02-09T11:41:00 | C93: REACLIMA | D93: 232509 | E93: 1 | F93: CMI-250 | G93: 127/1/60 | H93: VE-23 | I93: 256 CFM | J93: 2200 | K93: 0.25 | L93: CW | M93: TH | N93: TERMINACION HGH | O93: 3.703703704 | P93: 5CMI2502220HGH | Q93: EXT.CMI-250 1/4M 2200RPM | R93: 7593.5306 | S93: 28124.18741
A94: 91 | B94: 2021-02-09T11:41:00 | C94: REACLIMA | D94: 232509 | E94: 1 | F94: CRHL-T-14 | G94: 460/3/60 | H94: VE-24 | I94: 1710 CFM | J94: 1850 | K94: 3/4 | L94: CW | M94: HORIZONTAL | N94: TERMINACION HGH | O94: 3.703703704 | P94: 5CRHLT14A18HGH | Q94: EXT.CRHLT-14 3/4T 1850RPM | R94: 6190.7419 | S94: 22928.6737
A95: 92 | B95: 2021-02-09T11:41:00 | C95: REACLIMA | D95: 232509 | E95: 1 | F95: CRHL-T-12 | G95: 127/1/60 | H95: VE-28 | I95: 1120 CFM | J95: 1650 | K95: 0.5 | L95: CW | M95: HORIZONTAL | N95: TERMINACION HGH | O95: 3.703703704 | P95: 5CRHLT12416HGH | Q95: EXT.CRHLT-12 1/2M 1650RPM | R95: 5156.7321 | S95: 19099.00778
A96: 93 | B96: 2021-02-09T11:41:00 | C96: REACLIMA | D96: 232509 | E96: 1 | F96: CRHL-T-28 | G96: 460/3/60 | H96: VE-29 | I96: 6000 CFM | J96: 775 | K96: 3 | L96: CW | M96: HORIZONTAL | N96: TERMINACION HGH | O96: 3.703703704 | P96: 5CRHLT28E77HGH | Q96: EXT.CRHLT-28 3T 775RPM | R96: 16215.6191 | S96: 60057.84852
A97: 94 | B97: 2021-02-09T11:41:00 | C97: REACLIMA | D97: 232509 | E97: 1 | F97: CRHL-T-20 | G97: 460/3/60 | H97: VE-33 | I97: 3270 CFM | J97: 1100 | K97: 1.5 | L97: CW | M97: HORIZONTAL | N97: TERMINACION HGH | O97: 3.703703704 | P97: 5CRHLT20C11HGH | Q97: EXT.CRHLT-20 1.5T 1100RPM | R97: 8535.8377 | S97: 31614.2137
A98: 95 | B98: 2021-02-09T11:41:00 | C98: REACLIMA | D98: 232509 | E98: 1 | F98: CRHL-T-10 | G98: 127/1/60 | H98: VE-34 | I98: 720 CFM | J98: 1625 | K98: 1/3 | L98: CW | M98: HORIZONTAL | N98: TERMINACION HGH | O98: 3.703703704 | P98: 5CRHLT10314HGH | Q98: EXT.CRHLT-10 1/3M 1625RPM | R98: 5031.2384 | S98: 18634.2163
A99: 96 | B99: 2021-02-09T11:41:00 | C99: REACLIMA | D99: 232509 | E99: 1 | F99: CMI-250 | G99: 127/1/60 | H99: VE-35 | I99: 314 CFM | J99: 2175 | K99: 1/4 | L99: CW | M99: TH | N99: TERMINACION HGH | O99: 3.703703704 | P99: 5CMI2502217HGH | Q99: EXT.CMI-250 1/4M 2175RPM | R99: 7591.0306 | S99: 28114.92815
A100: 97 | B100: 2021-02-09T11:41:00 | C100: REACLIMA | D100: 232509 | E100: 1 | F100: CRHL-T-18 | G100: 460/3/60 | H100: VE-36 | I100: 2250 CFM | J100: 1075 | K100: 3/4 | L100: CW | M100: HORIZONTAL | N100: TERMINACION HGH | O100: 3.703703704 | P100: 5CRHLT18A10HGH | Q100: EXT.CRHLT-18 3/4T 1075RPM | R100: 6996.3875 | S100: 25912.5463
A101: 98 | B101: 2021-02-09T11:41:00 | C101: REACLIMA | D101: 232509 | E101: 1 | F101: CMI-250 | G101: 127/1/60 | H101: VE-37 | I101: 297 CFM | J101: 2150 | K101: 1/4 | L101: CW | M101: TH | N101: TERMINACION HGH | O101: 3.703703704 | P101: 5CMI2502215HGH | Q101: EXT.CMI-250 1/4M 2150RPM | R101: 7529.9215 | S101: 27888.59815
A102: 99 | B102: 2021-02-09T11:41:00 | C102: REACLIMA | D102: 232509 | E102: 1 | F102: CRHL-T-12 | G102: 127/1/60 | H102: VE-38 | I102: 1180 CFM | J102: 1700 | K102: 1/2 | L102: CW | M102: HORIZONTAL | N102: TERMINACION HGH | O102: 3.703703704 | P102: 5CRHLT12417HGH | Q102: EXT.CRHLT-12 1/2M 1700RPM | R102: 5154.2973 | S102: 19089.99
A103: 100 | B103: 2021-02-09T11:41:00 | C103: REACLIMA | D103: 232509 | E103: 1 | F103: CRHL-T-12 | G103: 127/1/60 | H103: VE-39 | I103: 1084 CFM | J103: 1550 | K103: 1/2 | L103: CW | M103: HORIZONTAL | N103: TERMINACION HGH | O103: 3.703703704 | P103: 5CRHLT12415HGH | Q103: EXT.CRHLT-12 1/2M 1550RPM | R103: 5154.2973 | S103: 19089.99
A104: 101 | B104: 2021-02-09T11:41:00 | C104: REACLIMA | D104: 232509 | E104: 1 | F104: CMI-250 | G104: 127/1/60 | H104: VE-40 | I104: 268 CFM | J104: 2250 | K104: 1/4 | L104: CW | M104: TH | N104: TERMINACION HGH | O104: 3.703703704 | P104: 5CMI2502225HGH | Q104: EXT.CMI-250 1/4M 2250RPM | R104: 7593.5306 | S104: 28124.18741
A105: 102 | B105: 2021-02-09T11:41:00 | C105: REACLIMA | D105: 232509 | E105: 1 | F105: CRHL-T-10 | G105: 127/1/60 | H105: VE-41 | I105: 740 CFM | J105: 1800 | K105: 1/2 | L105: CW | M105: HORIZONTAL | N105: TERMINACION HGH | O105: 3.703703704 | P105: 5CRHLT10418HGH | Q105: EXT.CRHLT-10 1/2M 1800RPM | R105: 5087.099 | S105: 18841.10741
A106: 103 | B106: 2021-02-09T11:41:00 | C106: REACLIMA | D106: 232509 | E106: 1 | F106: CMI-250 | G106: 127/1/60 | H106: VE-42 | I106: 402 CFM | J106: 2200 | K106: 1/4 | L106: CW | M106: TH | N106: TERMINACION HGH | O106: 3.703703704 | P106: REPETIDO | Q106: REPETIDO | S106: 0
A107: 104 | B107: 2021-02-09T11:41:00 | C107: REACLIMA | D107: 232509 | E107: 1 | F107: CMI-250 | G107: 127/1/60 | H107: VE-43 | I107: 290 CFM | J107: 2175 | K107: 1/4 | L107: CW | M107: TH | N107: TERMINACION HGH | O107: 3.703703704 | P107: REPETIDO | Q107: REPETIDO | S107: 0
A108: 105 | B108: 2021-02-09T11:41:00 | C108: REACLIMA | D108: 232509 | E108: 1 | F108: CMI-250 | G108: 127/1/60 | H108: VE-44 | I108: 265 CFM | J108: 2200 | K108: 1/4 | L108: CW | M108: TH | N108: TERMINACION HGH | O108: 3.703703704 | P108: REPETIDO | Q108: REPETIDO | S108: 0
A109: 106 | B109: 2021-02-09T11:41:00 | C109: REACLIMA | D109: 232509 | E109: 1 | F109: CRHH-T-12 | G109: 460/3/60 | H109: VE-45 | I109: 720 CFM | J109: 1925 | K109: 3/4 | L109: CW | M109: HORIZONTAL | N109: TERMINACION HGH | O109: 3.703703704 | P109: 5CRHHT12A19HGH | Q109: EXT.CRHHT-12 3/4T 1925RPM | R109: 5649.9795 | S109: 20925.85
A110: 107 | B110: 2021-02-09T11:41:00 | C110: REACLIMA | D110: 232509 | E110: 1 | F110: CMI-250 | G110: 127/1/60 | H110: VE-46 | I110: 758 CFM | J110: 2425 | K110: 1/2 | L110: CW | M110: TH | N110: TERMINACION HGH | O110: 3.703703704 | P110: 5CMI2504242HGH | Q110: EXT.CMI-250 1/2M 2425RPM | R110: 7690.809 | S110: 28484.47778
A111: 108 | B111: 2021-02-09T11:41:00 | C111: REACLIMA | D111: 232509 | E111: 1 | F111: CRHL-T-18 | G111: 127/1/60 | H111: VE-50 | I111: 1719 CFM | J111: 950 | K111: 1/2 | L111: CW | M111: HORIZONTAL | N111: TERMINACION HGH | O111: 3.703703704 | P111: REPETIDO | Q111: REPETIDO | S111: 0
A112: 109 | B112: 2021-02-09T11:41:00 | C112: REACLIMA | D112: 232509 | E112: 1 | F112: CMI-250 | G112: 127/1/60 | H112: VE-51 | I112: 435 CFM | J112: 2150 | K112: 1/4 | L112: CW | M112: TH | N112: TERMINACION HGH | O112: 3.703703704 | P112: REPETIDO | Q112: REPETIDO | S112: 0
A113: 110 | B113: 2021-02-09T11:41:00 | C113: REACLIMA | D113: 232509 | E113: 1 | F113: CMI-250 | G113: 127/1/60 | H113: VE-52 | I113: 488 CFM | J113: 2200 | K113: 1/3 | L113: CW | M113: TH | N113: TERMINACION HGH | O113: 3.703703704 | P113: 5CMI2503220HGH | Q113: EXT.CMI-250 1/3M 2200RPM | R113: 7645.9484 | S113: 28318.32741
A114: 111 | B114: 2021-02-09T11:41:00 | C114: REACLIMA | D114: 232509 | E114: 1 | F114: CMI-250 | G114: 127/1/60 | H114: VE-53 | I114: 429 CFM | J114: 2250 | K114: 1/3 | L114: CW | M114: TH | N114: TERMINACION HGH | O114: 3.703703704 | P114: 5CMI2503225HGH | Q114: EXT.CMI-250 1/3M 2250RPM | R114: 7645.9484 | S114: 28318.32741
A115: 112 | B115: 2021-02-09T11:41:00 | C115: REACLIMA | D115: 232509 | E115: 1 | F115: CRHL-T-18 | G115: 460/3/60 | H115: VE-55 | I115: 2090 CFM | J115: 1100 | K115: 3/4 | L115: CW | M115: HORIZONTAL | N115: TERMINACION HGH | O115: 3.703703704 | P115: REPETIDO | Q115: REPETIDO | S115: 0
A116: 113 | B116: 2021-02-09T11:41:00 | C116: REACLIMA | D116: 232509 | E116: 1 | F116: CMI-250 | G116: 127/1/60 | H116: VE-57 | I116: 530 CFM | J116: 2175 | K116: 1/3 | L116: CW | M116: TH | N116: TERMINACION HGH | O116: 3.703703704 | P116: 5CMI2503217HGH | Q116: EXT.CMI-250 1/3M 2175RPM | R116: 7643.4484 | S116: 28309.06815
A117: 114 | B117: 2021-02-09T11:41:00 | C117: REACLIMA | D117: 232509 | E117: 1 | F117: CMI-250 | G117: 127/1/60 | H117: VE-58 | I117: 549 CFM | J117: 2150 | K117: 1/3 | L117: CW | M117: TH | N117: TERMINACION HGH | O117: 3.703703704 | P117: 5CMI2503215HGH | Q117: EXT.CMI-250 1/3M 2150RPM | R117: 7582.3393 | S117: 28082.73815
A118: 115 | B118: 2021-02-09T11:41:00 | C118: REACLIMA | D118: 232509 | E118: 1 | F118: CRHL-T-10 | G118: 127/1/60 | H118: VE-61 | I118: 670 CFM | J118: 1550 | K118: 1/4 | L118: CW | M118: HORIZONTAL | N118: TERMINACION HGH | O118: 3.703703704 | P118: REPETIDO | Q118: REPETIDO | S118: 0
A119: 116 | B119: 2021-02-09T11:41:00 | C119: REACLIMA | D119: 232509 | E119: 1 | F119: CRHL-T-12 | G119: 127/1/60 | H119: VE-62 | I119: 970 CFM | J119: 1550 | K119: 1/2 | L119: CW | M119: HORIZONTAL | N119: TERMINACION HGH | O119: 3.703703704 | P119: REPETIDO | Q119: REPETIDO | S119: 0
A120: 117 | B120: 2021-02-09T11:41:00 | C120: REACLIMA | D120: 232509 | E120: 1 | F120: CRHL-T-12 | G120: 127/1/60 | H120: VE-63 | I120: 900 CFM | J120: 1425 | K120: 1/3 | L120: CW | M120: HORIZONTAL | N120: TERMINACION HGH | O120: 3.703703704 | P120: 5CRHLT12314HGH | Q120: EXT.CRHLT-12 1/3M 1425RPM | R120: 5134.7522 | S120: 19017.60074
A121: 118 | B121: 2021-02-09T11:41:00 | C121: REACLIMA | D121: 232509 | E121: 1 | F121: CMI-250 | G121: 127/1/60 | H121: VE-64 | I121: 553 CFM | J121: 2200 | K121: 1/3 | L121: CW | M121: TH | N121: TERMINACION HGH | O121: 3.703703704 | P121: REPETIDO | Q121: REPETIDO | S121: 0
A122: 119 | B122: 2021-02-09T11:41:00 | C122: REACLIMA | D122: 232509 | E122: 1 | F122: CMI-250 | G122: 127/1/60 | H122: VE-65 | I122: 452 CFM | J122: 2150 | K122: 1/4 | L122: CW | M122: TH | N122: TERMINACION HGH | O122: 3.703703704 | P122: REPETIDO | Q122: REPETIDO | S122: 0
A123: 120 | B123: 2021-02-09T11:41:00 | C123: REACLIMA | D123: 232509 | E123: 1 | F123: CRHL-T-10 | G123: 127/1/60 | H123: VE-67 | I123: 800 CFM | J123: 1700 | K123: 1/3 | L123: CW | M123: HORIZONTAL | N123: TERMINACION HGH | O123: 3.703703704 | P123: 5CRHLT10317HGH | Q123: EXT.CRHLT-10 1/3M 1700RPM | R123: 5031.2384 | S123: 18634.2163
A124: 121 | B124: 2021-02-09T11:41:00 | C124: REACLIMA | D124: 232509 | E124: 1 | F124: CRHL-T-14 | G124: 127/1/60 | H124: VE-68 | I124: 1351 CFM | J124: 1575 | K124: 1/2 | L124: CW | M124: HORIZONTAL | N124: TERMINACION HGH | O124: 3.703703704 | P124: 5CRHLT14415HGH | Q124: EXT.CRHLT-14 1/2M 1575RPM | R124: 5773.284 | S124: 21382.53333
A125: 122 | B125: 2021-02-09T11:41:00 | C125: REACLIMA | D125: 232509 | E125: 1 | F125: CMI-250 | G125: 127/1/60 | H125: VE-70 | I125: 348 CFM | J125: 2150 | K125: 1/4 | L125: CW | M125: TH | N125: TERMINACION HGH | O125: 3.703703704 | P125: REPETIDO | Q125: REPETIDO | S125: 0
A126: 123 | B126: 2021-02-09T11:41:00 | C126: REACLIMA | D126: 232509 | E126: 1 | F126: CRHL-T-18 | G126: 127/1/60 | H126: VE-08 | I126: 1950 CFM | J126: 1000 | K126: 1/2 | L126: CW | M126: HORIZONTAL | N126: TERMINACION HGH | O126: 3.703703704 | P126: 5CRHLT18410HGH | Q126: EXT.CRHLT-18 1/2M 1000RPM | R126: 6599.2252 | S126: 24441.57481
A127: 124 | B127: 2021-02-09T11:41:00 | C127: REACLIMA | D127: 232509 | E127: 1 | F127: CMI-710 | G127: 460/3/60 | H127: VE-09 | I127: 5880 CFM | J127: 875 | K127: 5 | L127: CW | M127: TH | N127: TERMINACION HGH | O127: 3.703703704 | P127: 5CMI710F875HGH | Q127: EXT.CMI-710 5T 875RPM | R127: 25920.4962 | S127: 96001.83778
A128: 125 | B128: 2021-02-09T11:41:00 | C128: REACLIMA | D128: 232509 | E128: 1 | F128: CRHL-T-10 | G128: 127/1/60 | H128: VE-59 | I128: 760 CFM | J128: 1700 | K128: 1/3 | L128: CW | M128: HORIZONTAL | N128: TERMINACION HGH | O128: 3.703703704 | P128: REPETIDO | Q128: REPETIDO | S128: 0
A129: 126 | B129: 2021-02-09T12:50:00 | C129: ERNESTO AYAX | D129: 232518 | E129: 2 | F129: RXT 1500-10T-36/S | G129: 220/3 | H129: - | I129: 92703 M3/HR | J129: 550 | K129: 10 | O129: 3.703703704 | P129: 5NRXT15001036S | Q129: Existe | R129: 29968.0331 | S129: 110992.7152
A130: 127 | B130: 2021-02-09T12:57:00 | C130: LILIANA AGUILAR | D130: 232721 | E130: 1 | F130: CMI-1000 | G130: 230/3 | H130: - | I130: 20810 M3/HR | J130: 850 | K130: 15 | O130: 3.703703704 | P130: 5CMI1000M08500 | Q130: Existe | R130: 57375.9676 | S130: 212503.5837
A131: 128 | B131: 2021-02-09T14:00:00 | C131: CLIMAS KONFORT | D131: 232222 | E131: 2 | F131: CRVLT-18 | G131: 460/3 | H131: EF-55, EF-56 | I131: 2860 CFM | J131: 1050 | K131: 1/2 | N131: MOTOR APEX 2-MO-706US | O131: =2/0.54 -> 3.703703704 | P131: 5CRVLT18910APX | Q131: EXT.CRVLT-18 1/2T 1050RPM APEX | R131: 10436.5158 | S131: 38653.76222
A132: 129 | B132: 2021-02-09T14:00:00 | C132: CLIMAS KONFORT | D132: 232222 | E132: 2 | F132: CRVLT-33 | G132: 460/3 | H132: EF-57, EF-58 | I132: 1400 CFM | J132: 625 | K132: 3 | N132: MOTOR APEX 2-MO-067XUS | O132: 3.703703704 | P132: 5CRVLT33E62APX | Q132: EXT.CRVLT-33 3 625RPM APEX | R132: 24500.7492 | S132: 90743.51556
A133: 130 | B133: 2021-02-09T14:00:00 | C133: CLIMAS KONFORT | D133: 232222 | E133: 6 | F133: CRVLT-33 | G133: 460/3 | H133: EF-59 A EF-64 | I133: 1400 CFM | J133: 625 | K133: 3 | O133: 3.703703704 | P133: 5CRVLT33E06250 | Q133: EXT.CRVLT-33 3 625RPM | R133: 22202.1492 | S133: 82230.18222
A134: 131 | B134: 2021-02-09T14:00:00 | C134: CLIMAS KONFORT | D134: 232222 | E134: 3 | F134: CRVLT-33 | G134: 460/3 | H134: EF-65 A EF-67 | I134: 1400 CFM | J134: 625 | K134: 3 | O134: 3.703703704 | P134: 5CRVLT33E06250 | Q134: EXT.CRVLT-33 3 625RPM | R134: 22202.1492 | S134: 82230.18222
A135: 132 | B135: 2021-02-09T14:00:00 | C135: CLIMAS KONFORT | D135: 232222 | E135: 2 | F135: CRVLT-33 | G135: 460/3 | H135: EF-68, EF-69 | I135: 5,620 CFM | J135: 400 | K135: 3/4 | N135: MOTOR APEX 2-MO-340PX | O135: 3.703703704 | P135: 5CRVLT33A40APX | Q135: EXT.CRVLT-33 3/4T 400RPM APEX | R135: 21203.1386 | S135: 78530.14296
A136: 133 | B136: 2021-02-10T16:31:00 | C136: CLIMAS OPCION | D136: 232824 | E136: 1 | F136: CRHLT-14 | G136: 127/1 | H136: - | I136: 1494 CFM | J136: 1750 | K136: 1/2 | O136: 3.703703704 | P136: 5CRHLT14401750 | Q136: Existe | R136: 5759.5647 | S136: 21331.72111
A137: 134 | B137: 2021-02-10T16:31:00 | C137: CLIMAS OPCION | D137: 232824 | E137: 2 | F137: CRHLT-10 | G137: 127/1 | H137: - | I137: 576 CFM | J137: 1650 | K137: 1/4 | O137: 3.703703704 | P137: 5CRHLT10201650 | Q137: Existe | R137: 4981.2554 | S137: 18449.09407
A138: 135 | B138: 2021-02-10T16:31:00 | C138: CLIMAS OPCION | D138: 232824 | E138: 1 | F138: CRHLT-12 | G138: 127/1 | H138: - | I138: 917 CFM | J138: 1525 | K138: 1/4 | O138: 3.703703704 | P138: 5CRHLT12215250 | Q138: Existe | R138: 5119.5992 | S138: 18961.47852
A139: 136 | B139: 2021-02-12T08:53:00 | C139: TERMO CONTROL | D139: 232820 | E139: 3 | F139: CRVLT-18 | G139: 220/1 | H139: VE-01 | I139: - | J139: 1350 | K139: 1 | O139: 3.703703704 | P139: 5CRVLT18601360 | Q139: Existe | R139: 7992.2888 | S139: 29601.06963
A140: 137 | B140: 2021-02-12T11:47:00 | C140: HVAC MECHANICAL | D140: 232923 | E140: 1 | F140: CMI-400 | G140: 230/3 | H140: VE-01 | I140: - | J140: 1775 | K140: 2 | N140: SWITCH IP 65 | O140: 3.703703704 | P140: 5CMI400D01775S | Q140: EXT.CMI-400 2T 1775RPM SW | R140: 11274.2431 | S140: 41756.45593
A141: 138 | B141: 2021-02-12T13:22:00 | C141: FAAR AMBIENTES | D141: 232936 | E141: 1 | F141: CLT-12 | G141: 220/3 | H141: - | I141: - | J141: 2175 | K141: 2 | O141: 3.703703704 | P141: 5CLTH12D021750 | Q141: EXT.CLTH-12 2T 2175RPM | R141: 7856.6438 | S141: 29098.68074
A142: 139 | B142: 2021-02-12T13:22:00 | C142: FAAR AMBIENTES | D142: 232936 | E142: 1 | F142: CLT-10 | G142: 220/3 | H142: - | I142: - | J142: 1800 | K142: 1/2 | O142: 3.703703704 | P142: 5CLTG10918000 | Q142: Existe | R142: 6009.6512 | S142: 22257.96741
A143: 140 | B143: 2021-02-12T13:22:00 | C143: FAAR AMBIENTES | D143: 232936 | E143: 2 | F143: DAL-45-H-7 1/2 | G143: 230/3 | H143: - | I143: 25000 M3/HR | J143: 530 | K143: 7 1/2 | O143: 3.703703704 | P143: 5UDLHF45G05300 | Q143: LAV.DAL-H-45 7.5T 530RPM | R143: 48858.5525 | S143: 180957.6019
A144: 141 | B144: 2021-02-12T13:22:00 | C144: FAAR AMBIENTES | D144: 232936 | E144: 2 | F144: DAL-72-H-15 | G144: 230/3 | H144: - | I144: 40000 M3/HR | J144: 425 | K144: 15 | O144: 3.703703704 | P144: 5DLHF72M042000 | Q144: Existe | R144: 79684.8792 | S144: =R144*O144 -> 295129.1822
A145: 142 | B145: 2021-02-12T13:22:00 | C145: FAAR AMBIENTES | D145: 232936 | E145: 1 | F145: CRHLT-24 | G145: 230/3 | H145: - | I145: - | J145: 900 | K145: 2 | O145: 3.703703704 | P145: 5CRHLT24D09000 | Q145: EXT.CRHLT-24 2T 900RPM | R145: 13188.1133 | S145: 48844.86407
A146: 143 | B146: 2021-02-12T13:22:00 | C146: FAAR AMBIENTES | D146: 232936 | E146: 1 | F146: CRHLT-33 | G146: 230/3 | H146: - | I146: - | J146: 650 | K146: 5 | O146: 3.703703704 | P146: 5CRHLT33F06500 | Q146: EXT.CRHT-33 5T 650RPM | R146: 20689.185 | S146: 76626.61111
A147: 144 | B147: 2021-02-12T15:54:00 | C147: R&R | D147: 232955 | E147: 1 | F147: CRVLT-18 | G147: 220/1 | H147: CRV-01 | I147: 2570 CFM | J147: 1400 | K147: 1 1/2 | O147: 3.703703704 | P147: 5CRVLT18714000 | Q147: Existe | R147: 8086.5415 | S147: 29950.1537
A148: 145 | B148: 2021-02-12T17:14:00 | C148: AS SUMINISTROS | D148: 232962 | E148: 6 | F148: RXT-C 1250-3-27/S | G148: 460/3 | H148: - | I148: 20459 CFM | J148: 610 | K148: 3 | O148: 3.703703704 | P148: FORMATO | Q148: FORMATO | S148: 0
A149: 146 | B149: 2021-02-12T18:09:00 | C149: T Y P | D149: 232976 | E149: 1 | F149: CMI-400 | G149: 220/1 | H149: - | I149: - | J149: 1375 | K149: 1 | L149: CW | M149: UB | N149: DISCO DE ENFRIAMIENTO, UB | O149: 3.703703704 | P149: 5CMI40061375DI | Q149: EXT.CMI-400 1M 1375RPM 0 DISCO | R149: 9942.9424 | S149: 36825.71259
A150: 147 | B150: 2021-02-12T18:16:00 | C150: GRUPO OREA | D150: 232987 | E150: 1 | F150: CMI-900 | G150: 220/3 | H150: - | I150: - | J150: 725 | K150: 7 1/2 | O150: 3.703703704 | P150: 5CMI900G07500 | Q150: Existe | R150: 33810.1541 | S150: 125222.793
A151: 148 | B151: 2021-02-12T18:29:00 | C151: T Y P | D151: 232990 | E151: 1 | F151: CRHLT-10 | G151: 127/1 | H151: - | I151: - | J151: 900 | K151: 1/4 | O151: 3.703703704 | P151: 5CRHLT10209010 | Q151: Existe | R151: 5095.7792 | S151: 18873.2563
A152: 149 | B152: 2021-02-15T10:21:00 | C152: SICLIMA | D152: 232210 | E152: 2 | F152: CMI-630 | G152: 460/3 | H152: - | I152: - | J152: 1350 | K152: 7 1/2 | O152: 3.703703704 | P152: 5CMI630G135100 | Q152: Existe | R152: 20410.4039 | S152: 75594.08852
A153: 150 | B153: 2021-02-15T10:21:00 | C153: SICLIMA | D153: 232210 | E153: 2 | F153: CMI-710 | G153: 460/3 | H153: - | I153: - | J153: 1100 | K153: 7 1/2 | O153: 3.703703704 | P153: 5CMI710G010950 | Q153: Existe | R153: 27180.2877 | S153: 100667.7322
A154: 151 | B154: 2021-02-15T10:21:00 | C154: SICLIMA | D154: 232210 | E154: 2 | F154: CMI-800 | G154: 460/3 | H154: - | I154: - | J154: 1000 | K154: 10 | O154: 3.703703704 | P154: 5CMI800H101500 | Q154: Existe | R154: 31115.8244 | S154: 115243.7941
A155: 152 | B155: 2021-02-15T10:21:00 | C155: SICLIMA | D155: 232210 | E155: 1 | F155: BDB-355 | G155: 460/3 | H155: - | I155: - | J155: 2400 | K155: 5 | N155: EXISTENCIA EN PT | O155: 3.703703704 | P155: 5BDBI355F02400 | Q155: EXT.BDBI-355 5T 2400RPM | R155: 12929.2535 | S155: 47886.12407
A156: 153 | B156: 2021-02-16T09:32:00 | C156: TRANE | D156: 233083 | E156: 1 | F156: CMI-500 | G156: 230/3 | H156: - | J156: 1550 | K156: 3 | O156: 3.703703704 | P156: 5CMI500E156000 | Q156: Existe | R156: 15093.1802 | S156: 55900.66741
A157: 154 | B157: 2021-02-16T10:16:00 | C157: CLIMAS SA | D157: 232997 | E157: 31 | F157: HGT-1500-7 1/2 | G157: 460/3 | H157: EF-01 TO 20 | I157: 45421 CFM | J157: 550 | K157: 7 1/2 | N157: 460 V | O157: 3.703703704 | P157: 5HGT150075460V | Q157: Existe | R157: 17822.5292 | S157: 66009.36741
A158: 155 | B158: 2021-02-16T10:16:00 | C158: CLIMAS SA | D158: 232997 | E158: 31 | F158: MALLA PARA HGT | G158: - | H158: - | I158: - | J158: - | K158: - | N158: MALLA PROTECCION EN ASPIRACION PARA HGT-1500-7 1/2 | O158: 3.703703704 | P158: 5MAH-1500 | Q158: Existe | R158: 6578.2318 | S158: 24363.82148
A159: 156 | B159: 2021-02-16T11:02:00 | C159: K3 SOLUCIONES | D159: 233085 | E159: 1 | F159: CCR-18/18 | G159: 220/3 | H159: - | I159: - | J159: 620 | K159: 3 | O159: 3.703703704 | P159: 5CCR1818E06050 | Q159: Existe | R159: 14116.8388 | S159: 52284.58815
A160: 157 | B160: 2021-02-16T11:02:00 | C160: K3 SOLUCIONES | D160: 233085 | E160: 1 | F160: CCR-15/15 | G160: 220/3 | H160: - | I160: - | J160: 736 | K160: 2 | O160: 3.703703704 | P160: 5CCR1515D07360 | Q160: Existe | R160: 10654.7068 | S160: 39461.87704
A161: 158 | B161: 2021-02-16T11:02:00 | C161: K3 SOLUCIONES | D161: 233085 | E161: 3 | F161: CRVLT-20 | G161: 220/3 | H161: - | I161: - | J161: 1100 | K161: 1 | O161: 3.703703704 | P161: 5CRVLT20B01101 | Q161: EXT.CRVLT-20 1T 1100RPM | R161: 9201.2647 | S161: 34078.75815
A162: 159 | B162: 2021-02-16T17:48:00 | C162: EXPERTOS EN VENTILACION | D162: 233100 | E162: 3 | F162: TBN-T 450 | G162: 127/1 | H162: - | I162: - | J162: 1275 | K162: 3/4 | O162: 3.703703704 | P162: 5TBNTI45051275 | Q162: EXT.TBNTI-450 3/4M 1275RPM | R162: 10184.4479 | S162: 37720.17741
A163: 160 | B163: 2021-02-16T17:48:00 | C163: EXPERTOS EN VENTILACION | D163: 233100 | E163: 1 | F163: TBN-T 450 | G163: 127/1 | H163: - | I163: - | J163: 1275 | K163: 3/4 | O163: 3.703703704 | P163: 5TBNTI45051275 | Q163: EXT.TBNTI-450 3/4M 1275RPM | R163: 10184.4479 | S163: 37720.17741
A164: 161 | B164: 2021-02-16T17:48:00 | C164: EXPERTOS EN VENTILACION | D164: 233100 | E164: 4 | F164: TBN-T 710 | G164: 127/1 | H164: - | I164: - | J164: 700 | K164: 1 1/2 | O164: 3.703703704 | P164: FORMATO | Q164: FORMATO | S164: 0
A165: 162 | B165: 2021-02-16T19:13:00 | C165: EXPERTOS EN VENTILACION | D165: 233108 | E165: 1 | F165: CRVLT-14 | G165: 220/3 | H165: - | I165: - | J165: 1225 | K165: 1/4 | O165: 3.703703704 | P165: 5CRVLT14801200 | Q165: REPETIDO | R165: 6871.2565 | S165: 25449.09815
A166: 163 | B166: 2021-02-16T19:13:00 | C166: EXPERTOS EN VENTILACION | D166: 233108 | E166: 1 | F166: CRVLT-14 | G166: 220/3 | H166: - | I166: - | J166: 1175 | K166: 1/4 | O166: 3.703703704 | P166: 5CRVLT14801200 | Q166: REPETIDO | R166: 6871.2565 | S166: 25449.09815
A167: 164 | B167: 2021-02-16T19:13:00 | C167: EXPERTOS EN VENTILACION | D167: 233108 | E167: 1 | F167: CRVLT-10 | G167: 220/3 | H167: - | I167: - | J167: 1275 | K167: 1/4 | O167: 3.703703704 | P167: 5CRVLT10801275 | Q167: Existe | R167: 6110.5499 | S167: 22631.6663
A168: 165 | B168: 2021-02-16T19:13:00 | C168: EXPERTOS EN VENTILACION | D168: 233108 | E168: 2 | F168: CRVLT-14 | G168: 220/3 | H168: - | I168: - | J168: 1200 | K168: 1/4 | O168: 3.703703704 | P168: 5CRVLT14801200 | Q168: Existe | R168: 6871.2565 | S168: 25449.09815
A169: 166 | B169: 2021-02-16T19:13:00 | C169: EXPERTOS EN VENTILACION | D169: 233108 | E169: 1 | F169: CRVLT-10 | G169: 220/3 | H169: - | I169: - | J169: 1225 | K169: 1/4 | O169: 3.703703704 | P169: 5CRVLT10801225 | Q169: Existe | R169: 6110.5499 | S169: 22631.6663
A170: 167 | B170: 2021-02-16T19:13:00 | C170: EXPERTOS EN VENTILACION | D170: 233108 | E170: 4 | F170: CRVLT-14 | G170: 220/3 | H170: - | I170: - | J170: 1525 | K170: 1/2 | O170: 3.703703704 | P170: 5CRVLT14915250 | Q170: Existe | R170: 7019.2129 | S170: 25997.08481
A171: 168 | B171: 2021-02-16T19:13:00 | C171: EXPERTOS EN VENTILACION | D171: 233108 | E171: 2 | F171: CRVLT-10 | G171: 220/3 | H171: - | I171: - | J171: 1200 | K171: 1/4 | O171: 3.703703704 | P171: 5CRVLT10801225 | Q171: REPETIDO | R171: 6110.5499 | S171: 22631.6663
A172: 169 | B172: 2021-02-17T08:13:00 | C172: EDISON MAQUINARIA | D172: 233111 | E172: 9 | F172: DX-1000/L1 1T | G172: 230/3 | H172: - | I172: 15308 CFM | J172: 610 | K172: 1 | O172: 3.703703704 | P172: 5DX10001S | Q172: Existe | R172: 23700.1837 | S172: 87778.45815
A173: 170 | B173: 2021-02-17T08:13:00 | C173: EDISON MAQUINARIA | D173: 233111 | E173: 9 | F173: INY.DX-1000/L1 1T | G173: 230/3 | H173: - | I173: 15308 CFM | J173: 610 | K173: 1 | N173: INYECTOR | O173: 3.703703704 | P173: FORMATO | Q173: FORMATO | S173: 0
A174: 171 | B174: 2021-02-17T08:29:00 | C174: JER | D174: 233113 | E174: 2 | F174: DAB-25/25 | G174: - | H174: - | I174: - | J174: - | K174: - | N174: DOBLE OIDO, SIN BASTIDOR, S/M, S/LARGUERO COD REFERENCIA 5DAB3028000SM | O174: 3.703703704 | P174: 5DAB2525000SM | Q174: Existe | R174: 9308.5596 | S174: 34476.14667
A175: 172 | B175: 2021-02-17T09:04:00 | C175: PERSSA | D175: 233117 | E175: 1 | F175: CMI-450 | G175: 220/1 | H175: - | I175: - | J175: 1500 | K175: 2 | O175: 3.703703704 | P175: 5CMI4501015000 | Q175: EXT.CMI-450 2M 1500RPM | R175: 11018.2801 | S175: 40808.44481
A176: 173 | B176: 2021-02-17T09:18:00 | C176: TRANE | D176: 233118 | E176: 1 | F176: CDAH-7/7 | G176: 127/1 | H176: - | I176: 660 CFM | J176: 925 | K176: 1/4 | O176: 3.703703704 | P176: 5CDAH778092500 | Q176: Existe | R176: 4947.8179 | S176: 18325.25148
A177: 174 | B177: 2021-02-17T09:22:00 | C177: TRANE | D177: 233119 | E177: 1 | F177: DAB-15/15 | G177: 230/3 | H177: - | I177: 48000 CFM | J177: 1175 | K177: 5 | O177: 3.703703704 | P177: 5DAB1515F01175 | Q177: Existe | R177: 8520.0669 | S177: 31555.80333
A178: 175 | B178: 2021-02-17T10:41:00 | C178: CLIMAS OPCIÓN | D178: 233127 | E178: 1 | F178: CMI-355 | G178: 230/3 | H178: - | I178: 1650 CFM | J178: 1400 | K178: 1/2 | O178: 3.703703704 | P178: 5CMI3559014010 | Q178: Existe | R178: 8678.1648 | S178: 32141.35111
A179: 176 | B179: 2021-02-17T12:05:00 | C179: SANDOVAL VELARDE RAMON | D179: 233131 | E179: 2 | F179: CDAHF2-25/25 | G179: 230/3 | H179: - | I179: 20388 M3/HR | J179: 475 | K179: 5 | O179: 3.703703704 | P179: 5CDAHF225F0475 | Q179: EXT.CDAHF2-25/25 5T 475RPM | R179: 33458.1617 | S179: 123919.1174
A180: 177 | B180: 2021-02-17T14:05:00 | C180: GRUPO UNELSA | D180: 233006 | E180: 2 | F180: CMI-800 | G180: 460/3 | H180: - | I180: - | J180: 1175 | K180: 15 | O180: 3.703703704 | P180: 5CMI800M11800 | Q180: Existe | R180: 26015.3468 | S180: 96353.1363
A181: 178 | B181: 2021-02-17T18:03:00 | C181: K3 SOLUCIONES | D181: 233005 | E181: 2 | F181: CME-500 | G181: 460/3 | H181: - | I181: 5000 CFM | J181: 1550 | K181: 3 | L181: CW | M181: UB | N181: ARREGLO ANTICHISPA AMCA "C", DESCARGA UB | O181: 3.703703704 | P181: 5CME500E015500 | Q181: EXT.CME-500 3T 1550RPM 0 AMCA | R181: 15061.2064 | S181: 55782.24593
A182: 179 | B182: 2021-02-17T18:03:00 | C182: K3 SOLUCIONES | D182: 233005 | E182: 2 | F182: CME-560 | G182: 460/3 | H182: - | I182: 7000 CFM | J182: 1475 | K182: 5 | L182: CW | M182: UB | N182: ARREGLO ANTICHISPA AMCA "C", DESCARGA UB | O182: 3.703703704 | P182: 5CME560F014750 | Q182: EXT.CME-560 5T 1475RPM 0 AMCA | R182: 17300.2212 | S182: 64074.89333
A183: 180 | B183: 2021-02-18T09:40:00 | C183: TECHNO COMFORT HVAC | D183: 232912 | E183: 1 | F183: CMI-1120 | G183: 230/3 | H183: - | I183: 19658 CFM | J183: 475 | K183: 5 | N183: MALLA DE PROTECCION EN ASPIRACION, BRIDA EN SUCCION (ARO) Y DESCARGA, ACOPLAMIENTO FLEXIBLE EN ASPIRACION (ARO) | O183: 3.703703704 | P183: 5CMI1120F475MA | Q183: EXT.CMI-1120 5T 475RPM MALLAPR | R183: 62599.2381 | S183: 231849.03
A184: 181 | B184: 2021-02-18T10:07:00 | C184: TECHNO COMFORT HVAC | D184: 232913 | E184: 1 | F184: 5CCK-18/18 | G184: 230/3 | H184: - | I184: 8075 CFM | J184: 740 | K184: 5 | O184: 3.703703704 | P184: 5CCK18F0740000 | Q184: Existe | R184: 11728.3124 | S184: 43438.19407
A185: 182 | B185: 2021-02-18T13:58:00 | C185: EXPERTOS EN VENTILACION | D185: 233175 | E185: 2 | F185: DAB-36/36 | G185: 220/3 | H185: - | I185: - | J185: 325 | K185: 7 1/2 | O185: 3.703703704 | P185: 5DAB3636G03250 | Q185: EXT.DA/B-36/36 7.5T 325RPM | R185: 30941.1398 | S185: 114596.8141
A186: 183 | B186: 2021-02-18T13:58:00 | C186: EXPERTOS EN VENTILACION | D186: 233175 | E186: 2 | F186: DAB-36/36 | G186: 220/3 | H186: - | I186: - | J186: 350 | K186: 20 | O186: 3.703703704 | P186: 5DAB3636N03500 | Q186: EXT.DA/B-36/36 20T 350RPM | R186: 40093.4607 | S186: 148494.2989
A187: 184 | B187: 2021-02-18T13:58:00 | C187: EXPERTOS EN VENTILACION | D187: 233175 | E187: 1 | F187: DAB-36/36 | G187: 220/3 | H187: - | I187: - | J187: 325 | K187: 10 | O187: 3.703703704 | P187: 5DAB3636H03250 | Q187: EXT.DA/B-36/36 10T 325RPM | R187: 31915.1898 | S187: 118204.4067
A188: 185 | B188: 2021-02-18T14:26:00 | C188: CLAUGER | D188: 233177 | E188: 1 | F188: CMI-355 | G188: 460/3 | H188: - | I188: 3100 CFM | J188: 1425 | K188: 1/2 | N188: SELLO NYLAMID, BRIDA EN SUCCION (ARO) Y BRIDA EN DESCARGA | O188: 3.703703704 | P188: 5CMI35591425BD | Q188: EXT.CMI-355 1/2T 1425RPM BDA. | R188: 9566.8052 | S188: 35432.61185
A189: 186 | B189: 2021-02-19T08:40:00 | C189: COMERCIALIZADORA VV | D189: 232942 | E189: 1 | F189: CDAHF2-12/12 | G189: 230/3 | H189: - | I189: 2950 CFM | J189: 825 | K189: 1 | N189: FILTROS METALICOS LAVABLES Y PLISADOS MERV-8 | O189: 3.703703704 | P189: 5CDAHF212B0825 | Q189: EXT.CDAHF2-12/12 1T 825RPM | R189: 12044.0301 | S189: 44607.51889
A190: 187 | B190: 2021-02-19T08:40:00 | C190: COMERCIALIZADORA VV | D190: 232942 | E190: 1 | F190: CDAHF2-12/12 | G190: 230/3 | H190: - | I190: 2904 CFN | J190: 825 | K190: 3/4 | N190: FILTROS METALICOS LAVABLES Y PLISADOS MERV-8 | O190: 3.703703704 | P190: 5CDAHF212A0826 | Q190: EXT.CDAHF2-12/12 3/4T 825RPM | R190: 11075.4321 | S190: 41020.11889
A191: 188 | B191: 2021-02-19T08:40:00 | C191: COMERCIALIZADORA VV | D191: 232942 | E191: 1 | F191: CDAHF2-12/12 | G191: 230/3 | H191: - | I191: 3388 CFM | J191: 875 | K191: 1 | N191: FILTROS METALICOS LAVABLES Y PLISADOS MERV-8 | O191: 3.703703704 | P191: 5CDAHF212B0875 | Q191: EXT.CDAHF2-12/12 1T 875RPM | R191: 12044.0301 | S191: 44607.51889
A192: 189 | B192: 2021-02-19T10:46:00 | C192: VERMONT | D192: 233190 | E192: 1 | F192: CMI-630 | G192: 230/3 | H192: VE-01 | I192: 5743 CFM | J192: 975 | K192: 3 | O192: 3.703703704 | P192: 5CMI630E098000 | Q192: Existe | R192: 18668.8247 | S192: 69143.79519
A193: 190 | B193: 2021-02-19T10:46:00 | C193: VERMONT | D193: 233190 | E193: 1 | F193: CMI-280 | G193: 127/1 | H193: VE-02 | I193: 1230 CFM | J193: 2250 | K193: 3/4 | O193: 3.703703704 | P193: 5CMI2805022500 | Q193: Existe | R193: 7450.3001 | S193: 27593.70407
A194: 191 | B194: 2021-02-19T10:46:00 | C194: VERMONT | D194: 233190 | E194: 2 | F194: CRHLT-10 | G194: 127/1 | H194: VE-05 | I194: 540 CFM | J194: 1225 | K194: 1/4 | O194: 3.703703704 | P194: 5CRHLT10212300 | Q194: Existe | R194: 5072.4127 | S194: 18786.7137
A195: 192 | B195: 2021-02-19T10:46:00 | C195: VERMONT | D195: 233190 | E195: 1 | F195: CRHLT-10 | G195: 127/1 | H195: VE-07 | I195: 720 CFM | J195: 1500 | K195: 1/4 | O195: =2/0.54 -> 3.703703704 | P195: 5CRHLT10201525 | Q195: Existe | R195: 5047.8009 | S195: 18695.55889
A196: 193 | B196: 2021-02-19T10:46:00 | C196: VERMONT | D196: 233190 | E196: 1 | F196: CRHLT-12 | G196: 127/1 | H196: VE-06 | I196: 1060 CFM | J196: 1425 | K196: 1/3 | O196: 3.703703704 | P196: 5CRHLT12301420 | Q196: Existe | R196: 5167.6363 | S196: 19139.3937
A197: 194 | B197: 2021-02-19T11:09:00 | C197: IDSAA | D197: 233180 | E197: 2 | F197: WXT 800-1-S | G197: 230/3 | H197: - | I197: - | J197: 800 | K197: 1 | N197: BRIDAS EN SUCCION Y DESCARGA | O197: 3.703703704 | P197: 5WXT800HBD | Q197: Existe | R197: 9960.9598 | S197: 36892.4437
A198: 195 | B198: 2021-02-19T11:09:00 | C198: IDSAA | D198: 233180 | E198: 2 | F198: WXT 1000-1-S | G198: 230/3 | H198: - | I198: - | J198: 610 | K198: 1 | N198: BRIDAS EN SUCCION Y DESCARGA | O198: 3.703703704 | P198: 5WXT1000B610BD | Q198: Existe | R198: 11672.6236 | S198: 43231.93926
A199: 196 | B199: 2021-02-19T11:09:00 | C199: IDSAA | D199: 233180 | E199: 1 | F199: CMI-400 | G199: 220/1 | H199: - | I199: - | J199: 1525 | K199: 1 | O199: 3.703703704 | P199: 5CMI4006153000 | Q199: Existe | R199: 9446.7026 | S199: 34987.78741
A200: 197 | B200: 2021-02-19T11:09:00 | C200: IDSAA | D200: 233180 | E200: 1 | F200: CRVLT-12 | G200: 220/1 | H200: - | I200: - | J200: 1325 | K200: 1/4 | O200: 3.703703704 | P200: 5CRVLT12201350 | Q200: Existe | R200: 5953.637 | S200: 22050.50741
... 71 more rows

Sheet MARZO 2021
A1: SIAC | P1: ING. INDUSTRIAL
F2: CARACTERISTICAS DEL EQUIPO
A3: ITEM | B3: FECHA SOLICITADA | C3: Nombre Cliente | D3: PEDIDO | E3: CANTIDAD | F3: EQUIPO | G3: Conexión | H3: TAG | I3: Caudal | J3: R.P.M | K3: MOTOR | L3: GIRO | M3: DESCARGA | N3: OBSERVACIONES | O3: FACTOR VENTA | P3: Codigo | Q3: Descripción | R3: COSTO | S3: PRECIO LISTA | T3: FECHA ENTREGA
A4: 1 | B4: 2021-03-02T08:50:00 | C4: COMER CANTO | D4: 233390 | E4: 1 | F4: CMI-630 | G4: 230/3 | H4: - | I4: - | J4: 1075 | K4: 5 | O4: =2/0.54 -> 3.703703704 | P4: 5CMI630F010750 | Q4: Existe
A5: 2 | B5: 2021-03-02T08:50:00 | C5: COMER CANTO | D5: 233390 | E5: 1 | F5: CMI-710 | G5: 230/3 | H5: - | I5: - | J5: 975 | K5: 5 | O5: =2/0.54 -> 3.703703704 | P5: 5CMI710F097100 | Q5: Existe
A6: 3 | B6: 2021-03-02T08:56:00 | C6: T Y P | D6: 233260 | E6: 3 | F6: DAL-72-H-10 | G6: 230/3 | H6: VE-01 | I6: 28061 CFM | J6: 343 | K6: 10 | N6: VOLTAJE DE LA BOMBA 230/TRIFASICO | O6: 3.703703704 | P6: 5DLHF72H034300 | Q6: EXT.DALH-72 10T 343RPM BOMBA 230 V
A7: 4 | B7: 2021-03-02T09:12:00 | C7: JUDITH CASTELLANOS MARCELO | D7: 233440 | E7: 1 | F7: DAL-25-H-5 | G7: 230/3 | H7: - | I7: - | J7: 500 | K7: 5 | O7: 3.703703704 | P7: 5UDLHF25F04910 | Q7: Existe
A8: 5 | B8: 2021-03-02T09:14:00 | C8: EXPERTOS EN VENTILACION | D8: 233404 | E8: 7 | F8: DAL-96-H-20 | G8: 220/3 | H8: - | I8: - | J8: 355 | K8: 20 | O8: 3.703703704 | P8: 5DLHF96N035500 | Q8: Existe
A9: 6 | B9: 2021-03-02T10:12:00 | C9: AIRE PROYECTOS | D9: 233455 | E9: 1 | F9: CRVLT-18 | G9: 220/1 | H9: - | I9: - | J9: 1200 | K9: 2 | O9: 3.703703704 | P9: 5CRVLT18101200 | Q9: Existe
A10: 7 | B10: 2021-03-02T11:45:00 | C10: COMERCIALIZADORA VV | D10: 233467 | E10: 2 | F10: CLT-12 | G10: 127/1 | H10: - | I10: 1094 CFM | J10: 1525 | K10: 1/2 | O10: 3.703703704 | P10: 5CLTG124015250 | Q10: EXT.CLTG-12 1/2M 1525RPM
A11: 8 | B11: 2021-03-02T12:52:00 | C11: AIRESISTEMAS | D11: 233474 | E11: 3 | F11: CRHLT-18 | G11: 127/1 | H11: - | I11: - | J11: 1250 | K11: 3/4 | O11: 3.703703704 | P11: 5CRHLT18512500 | Q11: Existe
A12: 9 | B12: 2021-03-02T12:52:00 | C12: AIRESISTEMAS | D12: 233474 | E12: 1 | F12: CRHLT-20 | G12: 127/1 | H12: - | I12: - | J12: 950 | K12: 3/4 | O12: 3.703703704 | P12: 5CRHLT20509500 | Q12: EXT.CRHLT-20 3/4M 950RPM
A13: 10 | B13: 2021-03-02T12:52:00 | C13: AIRESISTEMAS | D13: 233474 | E13: 2 | F13: CRHLT-16 | G13: 127/1 | H13: - | I13: - | J13: 1175 | K13: 1/2 | O13: 3.703703704 | P13: 5CRHLT16401175 | Q13: EXT.CRHLT-16 1/2M 1175RPM
A14: 11 | B14: 2021-03-02T12:52:00 | C14: AIRESISTEMAS | D14: 233474 | E14: 3 | F14: CLT-24 | G14: 230/3 | H14: - | I14: - | J14: 1000 | K14: 3 | N14: CUBIERTA MOTOR | O14: 3.703703704 | P14: 5CLTG24E1000CM | Q14: Existe
A15: 12 | B15: 2021-03-02T12:52:00 | C15: AIRESISTEMAS | D15: 233474 | E15: 4 | F15: CLT-18 | G15: 127/1 | H15: - | I15: - | J15: 1100 | K15: 3/4 | N15: CUBIERTA MOTOR | O15: 3.703703704 | P15: 5CLTG1851100CM | Q15: EXT.CLTG-18 3/4M 1100RPM CUBRE
A16: 13 | B16: 2021-03-02T12:52:00 | C16: AIRESISTEMAS | D16: 233474 | E16: 1 | F16: CLT-18 | G16: 127/1 | H16: - | I16: - | J16: 950 | K16: 1/2 | N16: CUBIERTA MOTOR | O16: 3.703703704 | P16: 5CLTG1849500CM | Q16: Existe
A17: 14 | B17: 2021-03-02T13:00:00 | C17: LA MUÑO | D17: 233475 | E17: 1 | F17: CRVHT-16 | G17: 220/1 | H17: - | I17: - | J17: 1650 | K17: 2 | O17: 3.703703704 | P17: 5CRVHT16101650 | Q17: EXT.CRVHT-16 2M 1650RPM
A18: 15 | B18: 2021-03-02T13:00:00 | C18: LA MUÑO | D18: 233475 | E18: 1 | F18: CRVHT-18 | G18: 220/1 | H18: - | I18: - | J18: 1540 | K18: 1 1/2 | O18: 3.703703704 | P18: 5CRVHT18701550 | Q18: Existe
A19: 16 | B19: 2021-03-02T13:00:00 | C19: LA MUÑO | D19: 233475 | E19: 1 | F19: CCK-15/15 | G19: 220/1 | H19: - | I19: - | J19: 670 | K19: 1 1/2 | O19: 3.703703704 | P19: 5CCK1515706700 | Q19: EXT.CCK-15/15 1.5M 670RPM
A20: 17 | B20: 2021-03-02T17:52:00 | C20: CYVSA | D20: 233356 | E20: 1 | F20: CLT-14 | G20: 230/3 | H20: VE-09 | I20: 2000 CFM | J20: 1750 | K20: 3/4 | N20: CUBRE MOTOR | O20: 3.703703704 | P20: 5CLTG14A1750CM | Q20: EXT.CLTG-14 3/4T 1750RPM CUBRE
A21: 18 | B21: 2021-03-02T17:52:00 | C21: CYVSA | D21: 233356 | E21: 1 | F21: CLT-12 | G21: 127/1 | H21: VE-SO1-03 | I21: 1250 CFM | J21: 1475 | K21: 1/2 | N21: CUBRE MOTOR | O21: 3.703703704 | P21: 5CLTG1241476CM | Q21: Existe
A22: 19 | B22: 2021-03-02T17:52:00 | C22: CYVSA | D22: 233356 | E22: 24 | F22: CDAHF1-9/9 | G22: 127/1 | H22: VI-02 | I22: 1050 CFM | J22: 1225 | K22: 1/2 | O22: 3.703703704 | P22: 5CDAHF19941225 | Q22: EXT.CDAHF1-9/9 1/2M 1225RPM
A23: 20 | B23: 2021-03-02T17:52:00 | C23: CYVSA | D23: 233356 | E23: 1 | F23: CLT-16 | G23: 230/3 | H23: VI-05 | I23: 1800 CFM | J23: 1100 | K23: 3/4 | N23: CUBRE MOTOR, CAJA PORTAFILTROS UNA ETAPA FILTROS MERV 8 | O23: 3.703703704 | P23: 5CLTG16A1100FI | Q23: EXT.CLTG-16 3/4T 1100RPM PTA.
A24: 21 | B24: 2021-03-02T17:52:00 | C24: CYVSA | D24: 233356 | E24: 1 | F24: CLT-33 | G24: 230/3 | H24: VE-PB-01 | I24: 14000 CFM | J24: 775 | K24: 5 | N24: MOTOR USO VARIADOR 2-MO-6518, CUBIERTA MOTOR | O24: 3.703703704 | P24: 5CLTG33F0776CM | Q24: EXT.CLTG-33 5T 775RPM CUBRE
A25: 22 | B25: 2021-03-03T09:06:00 | C25: - | D25: - | E25: 1 | F25: DAB-12/12 | G25: 127/1 | H25: - | I25: - | J25: 950 | K25: 1 | O25: 3.703703704 | P25: 5DAB1212609500 | Q25: EXT.DA/B-12/12 1M 950RPM
A26: 23 | B26: 2021-03-03T10:19:00 | C26: ABEASA | D26: 233504 | E26: 1 | F26: CDAV-18/18 | G26: 230/3 | H26: - | I26: - | J26: 900 | K26: 7 1/2 | O26: 3.703703704 | P26: 5CDAV1818G0900 | Q26: EXT.CDAV-18/18 7.5T 900RPM
A27: 24 | B27: 2021-03-03T12:33:00 | C27: SERVICIOS ESPECIALIZADOS | D27: 233425 | E27: 1 | F27: DAL-9-H-3/4 | G27: 230/3 | H27: - | I27: 2067 | J27: 675 | K27: 3/4 | O27: 3.703703704 | P27: 5UDLHF9A068000 | Q27: Existe
A28: 25 | B28: 2021-03-03T12:33:00 | C28: SERVICIOS ESPECIALIZADOS | D28: 233425 | E28: 1 | F28: DAL-16-H-1 | G28: 230/3 | H28: - | I28: 3500 | J28: 523 | K28: 1 | O28: 3.703703704 | P28: 5UDLHF16B05230 | Q28: LAV.DALH-16 1T 523RPM
A29: 26 | B29: 2021-03-03T12:33:00 | C29: SERVICIOS ESPECIALIZADOS | D29: 233425 | E29: 1 | F29: DAL-9-H-1/2 | G29: 230/3 | H29: - | I29: 2015 | J29: 575 | K29: 1/2 | O29: 3.703703704 | P29: 5UDLHF99057500 | Q29: LAV.DALH-9 1/2T 575RPM
A30: 27 | B30: 2021-03-03T12:33:00 | C30: SERVICIOS ESPECIALIZADOS | D30: 233425 | E30: 1 | F30: DAL-9-H-1/2 | G30: 230/3 | H30: - | I30: 1928 | J30: 650 | K30: 1/2 | O30: 3.703703704 | P30: 5UDLHF99065000 | Q30: LAV.DALH-9 1/2T 650RPM
A31: 28 | B31: 2021-03-03T12:33:00 | C31: SERVICIOS ESPECIALIZADOS | D31: 233425 | E31: 2 | F31: DAL-9-H-1/2 | G31: 230/3 | H31: - | I31: 1700 | J31: 600 | K31: 1/2 | O31: 3.703703704 | P31: 5UDLHF99060000 | Q31: LAV.DALH-9 1/2T 600RPM
A32: 29 | B32: 2021-03-03T13:25:00 | C32: EXPERTOS EN VENTILACION | D32: 233517 | E32: 1 | F32: DAL-36-H-10 | G32: 440/3 | H32: - | I32: 20900 CFM | J32: 518 | K32: 10 | O32: 3.703703704 | P32: 5UDLHF36H05180 | Q32: LAV.DALH-36 10T 518RPM
A33: 30 | B33: 2021-03-03T15:57:00 | C33: TAKASAGO | D33: 233531 | E33: 1 | F33: CLT-12 | G33: 230/3 | H33: VE-01 | I33: 1800 M3/HR | J33: 1475 | K33: 1/2 | N33: CUBIERTA MOTOR | O33: 3.703703704 | P33: 5CLTG1291475CM | Q33: EXT.CLTG-12 1/2T 1475RPM CUBRE
A34: 31 | B34: 2021-03-03T15:57:00 | C34: TAKASAGO | D34: 233531 | E34: 1 | F34: CLT-12 | G34: 230/3 | H34: VE-02 | I34: 1200 M3/HR | J34: 1300 | K34: 1/3 | N34: CUBIERTA MOTOR | O34: 3.703703704 | P34: 5CLTG12T1300CM | Q34: EXT.CLTG-12 1/3T 1300RPM CUBRE
A35: 32 | B35: 2021-03-03T15:57:00 | C35: TAKASAGO | D35: 233531 | E35: 1 | F35: CLT-16 | G35: 230/3 | H35: VE-03 | I35: 3000 M3/HR | J35: 1175 | K35: 1 | N35: CUBIERTA MOTOR | O35: 3.703703704 | P35: 5CLTG16B1175CM | Q35: Existe
A36: 33 | B36: 2021-03-03T15:57:00 | C36: TAKASAGO | D36: 233531 | E36: 1 | F36: CLT-16 | G36: 230/3 | H36: VE-04 | I36: 4800 M3/HR | J36: 1400 | K36: 2 | N36: CUBIERTA MOTOR | O36: 3.703703704 | P36: 5CLTG16D1400CM | Q36: EXT.CLTG-16 2T 1400RPM CUBRE
A37: 34 | B37: 2021-03-03T15:57:00 | C37: TAKASAGO | D37: 233531 | E37: 1 | F37: CLT-20 | G37: 230/3 | H37: VE-05 | I37: 5400 M3/HR | J37: 1175 | K37: 2 | N37: CUBIERTA MOTOR | O37: 3.703703704 | P37: 5CLTG20D1175CM | Q37: EXT.CLTG-20 2T 1175RPM CUBRE
A38: 35 | B38: 2021-03-03T16:24:00 | C38: REACLIMA | D38: 233536 | E38: 1 | F38: CDAV-18/18 | G38: 460/3 | H38: VI-02 | I38: 3090 CFM | J38: 625 | K38: 1 1/2 | O38: 3.703703704 | P38: 5CDAV1818B0625 | Q38: EXT.CDAV-18/18 1.5T 625RPM
A39: 36 | B39: 2021-03-03T16:24:00 | C39: REACLIMA | D39: 233536 | E39: 1 | F39: CDAV-20/20 | G39: 460/3 | H39: VI-03 | I39: 5208 CFM | J39: 600 | K39: 3 | O39: 3.703703704 | P39: 5CDAV2020E0600 | Q39: EXT.CDAV-20/20 3T 600RPM
A40: 37 | B40: 2021-03-03T17:02:00 | C40: TODO EN VENTILACION | D40: 233537 | E40: 1 | F40: CMI-315 | G40: 230/3 | H40: - | I40: 4280 M3/HR | J40: 2725 | K40: 3 | O40: 3.703703704 | P40: 5CMI315E027250 | Q40: EXT.CMI-315 3T 2725RPM
A41: 38 | B41: 2021-03-04T17:27:00 | C41: TRANE | D41: 233571 | E41: 1 | F41: CLT-16 | G41: 230/3 | H41: - | I41: - | J41: 1400 | K41: 2 | O41: 3.703703704 | P41: 5CLTG16D014000 | Q41: Existe
A42: 39 | B42: 2021-03-04T17:27:00 | C42: TRANE | D42: 233571 | E42: 1 | F42: CRVLT-24 | G42: 230/3 | H42: - | I42: 3905 CFM | J42: 900 | K42: 1 1/2 | O42: 3.703703704 | P42: 5CRVLT24C09000 | Q42: Existe
A43: 40 | B43: 2021-03-04T18:00:00 | C43: ANDRES FLORES MORENO | D43: 233576 | E43: 1 | F43: HXA-6-1000/H | G43: 460/3 | H43: - | I43: 21747 CFM | J43: 1165 | K43: 2 | N43: 460 V | O43: 3.703703704 | P43: 5HXA61000H460V | Q43: Existe
A44: 41 | B44: 2021-03-04T18:28:00 | C44: IDSAA | D44: 233240 | E44: 4 | F44: PERSIANA 630 | G44: - | H44: - | I44: - | J44: - | K44: - | O44: 3.703703704 | P44: 5PER/X-630 | Q44: Existe
A45: 42 | B45: 2021-03-05T08:42:00 | C45: REFRIGERACION LAS BRISAS | D45: 233584 | E45: 1 | F45: CLT-10 | G45: 127/1 | H45: VE-01 | I45: 776 CFM | J45: 1650 | K45: 1/3 | N45: CUBIERTA MOTOR | O45: 3.703703704 | P45: 5CLTG1031650CM | Q45: EXT.CLTG-10 1/3M 1650RPM CUBRE
A46: 43 | B46: 2021-03-05T08:42:00 | C46: REFRIGERACION LAS BRISAS | D46: 233584 | E46: 1 | F46: CLT-7 | G46: 127/1 | H46: VE-02 | I46: 166 CFM | J46: 1275 | K46: 1/4 | N46: CUBIERTA MOTOR | O46: 3.703703704 | P46: 5CLTG7201275CM | Q46: Existe
A47: 44 | B47: 2021-03-05T08:42:00 | C47: REFRIGERACION LAS BRISAS | D47: 233584 | E47: 2 | F47: CLT-7 | G47: 127/1 | H47: VE-03 Y 04 | I47: 166 CFM | J47: 1150 | K47: 1/4 | N47: CUBIERTA MOTOR | O47: 3.703703704 | P47: 5CLTG7201151CM | Q47: EXT.CLTG-7 1/4M 1150RPM CUBRE
A48: 45 | B48: 2021-03-05T18:38:00 | C48: ABEASA | D48: 233619 | E48: 1 | F48: CCR-12/12 | G48: 230/3 | H48: - | I48: - | J48: 900 | K48: 2 | N48: MOTOR APEX 2-MO-165US PEDIDO CANCELADO | O48: 3.703703704
A49: 46 | B49: 2021-03-08T09:03:00 | C49: GARCOSA | D49: 233625 | E49: 1 | F49: CRHLT-24 | G49: 230/3 | H49: - | I49: 6000 CFM | J49: 700 | K49: 1 | N49: SWITCH IP 65 | O49: 3.703703704 | P49: 5CRHLT24B0700S | Q49: EXT.CRHLT-24 1T 700RPM SW
A50: 47 | B50: 2021-03-08T09:03:00 | C50: GARCOSA | D50: 233625 | E50: 1 | F50: CMI-630 | G50: 230/3 | H50: - | I50: 4500 CFM | J50: 725 | K50: 1 1/2 | N50: SWITCH IP 65 | O50: 3.703703704 | P50: 5CMI630C07250S | Q50: EXT.CMI-630 1.5T 725RPM SW
A51: 48 | B51: 2021-03-08T09:28:00 | C51: UMAS | D51: 233628 | E51: 2 | F51: DA-7/7 | G51: 460/3 | H51: - | I51: - | J51: 2325 | K51: 1 | O51: 3.703703704 | P51: 5DA77B02325000 | Q51: EXT.DA-7/7 1T 2325RPM
A52: 49 | B52: 2021-03-08T09:28:00 | C52: UMAS | D52: 233628 | E52: 2 | F52: DA-10/10 | G52: 460/3 | H52: - | I52: - | J52: 1675 | K52: 1 1/2 | O52: 3.703703704 | P52: 5DA1010C016750 | Q52: EXT.DA-10/10 1.5T 1675RPM
A53: 50 | B53: 2021-03-08T12:04:00 | C53: EXPERTOS EN VENTILACION | D53: 233175 | E53: 1 | F53: DAB-36/36 | G53: 220/3 | H53: - | I53: - | J53: 325 | K53: 7 1/2 | L53: CW | M53: BH | N53: DESCARGA 270° | O53: 3.703703704 | P53: FORMATO
A54: 51 | B54: 2021-03-08T12:04:00 | C54: EXPERTOS EN VENTILACION | D54: 233175 | E54: 1 | F54: DAB-36/36 | G54: 220/3 | H54: - | I54: - | J54: 350 | K54: 20 | L54: CW | M54: DB | N54: DESCARGA 180° / CONFIGURAR 5DAB363600DB (INDICAR CCW) | O54: 3.703703704 | P54: 5DAB3636N35DBI | Q54: EXT.DA/B-36/36 20T 350RPM DB
A55: 52 | B55: 2021-03-08T12:04:00 | C55: EXPERTOS EN VENTILACION | D55: 233175 | E55: 1 | F55: DAB-36/36 | G55: 220/3 | H55: - | I55: - | J55: 325 | K55: 10 | L55: CCW | M55: DB | N55: GIRO CCW, DESCARGA 180° / CONFIGURAR 5DAB363600DB | O55: 3.703703704 | P55: 5DAB3636H325DB | Q55: EXT.DA/B-36/36 10T 325RPM DB
A56: 53 | B56: 2021-03-08T12:04:00 | C56: EXPERTOS EN VENTILACION | D56: 233175 | E56: 1 | F56: DAB-36/36 | G56: 220/3 | H56: - | I56: - | J56: 325 | K56: 7 1/2 | L56: CCW | M56: TH | N56: GIRO CCW, DESCARGA 90° | O56: 3.703703704 | P56: FORMATO
A57: 54 | B57: 2021-03-08T12:04:00 | C57: EXPERTOS EN VENTILACION | D57: 233175 | E57: 1 | F57: DAB-36/36 | G57: 220/3 | H57: - | I57: - | J57: 350 | K57: 20 | L57: CW | M57: BH | N57: DESCARGA 270° | O57: 3.703703704 | P57: FORMATO
A58: 55 | B58: 2021-03-08T16:40:00 | C58: TRANE | D58: 233649 | E58: 1 | F58: CLT-26 | G58: 230/3 | H58: - | I58: - | J58: 850 | K58: 3 | O58: 3.703703704 | P58: 5CLTG26E085000 | Q58: EXT.CLTG-26 3T 850RPM
A59: 56 | B59: 2021-03-08T17:10:00 | C59: ABEASA | D59: 233642 | E59: 3 | F59: DAL-45-V-10 | G59: 230/3 | H59: - | I59: - | J59: 497 | K59: 10 | N59: DESCARGA VERTICAL INFERIOR | O59: 3.703703704 | P59: 5UDLVF45H04970 | Q59: LAV.DALV-45 10T 497RPM
A60: 57 | B60: 2021-03-08T17:54:00 | C60: LILIANA AGUILAR CAMPOS | D60: 232721 | E60: 1 | F60: CMI-1000 | G60: 230/3 | H60: - | I60: 20810 M3/HR | J60: 850 | K60: 15 | N60: DESCARGA UB | O60: 3.703703704 | P60: 5CMI1000M850UB | Q60: EXT.CMI-1000 15T 850RPM 0
A61: 58 | B61: 2021-03-10T09:18:00 | C61: GRUPO OREA | D61: 233682 | E61: 1 | F61: CDAHF2-30/28 | G61: 230/3 | H61: - | I61: - | J61: 870 | K61: 15 | N61: PEDIDO CANCELADO | O61: 3.703703704
A62: 59 | B62: 2021-03-10T10:07:00 | C62: ELECTROSUMINISTROS | D62: 233674 | E62: 2 | F62: DAL-16-H-2 | G62: 230/3 | H62: - | I62: - | J62: 433 | K62: 2 | O62: 3.703703704 | P62: 5UDLHF16D04330 | Q62: Existe
A63: 60 | B63: 2021-03-10T10:07:00 | C63: ELECTROSUMINISTROS | D63: 233674 | E63: 1 | F63: DAL-9-H-1 1/2 | G63: 230/3 | H63: - | I63: - | J63: 630 | K63: 1 1/2 | O63: 3.703703704 | P63: 5UDLHF9C062000 | Q63: Existe
A64: 61 | B64: 2021-03-10T10:23:00 | C64: BARNHART | D64: MI-7532 | E64: 1 | F64: DA-12/12 | G64: 127/1 | H64: - | I64: - | J64: 950 | K64: 1 | O64: 3.703703704 | P64: 5DA12126095000 | Q64: EXT. DA-12/12 1M 950RPM
A65: 62 | B65: 2021-03-10T11:03:00 | C65: CUMEX | D65: 233652 | E65: 1 | F65: CMI-560 | G65: 230/3 | H65: - | I65: 5892 CFM | J65: 1050 | K65: 2 | O65: 3.703703704 | P65: 5CMI560D010680 | Q65: Existe
A66: 63 | B66: 2021-03-10T11:03:00 | C66: CUMEX | D66: 233652 | E66: 1 | F66: CLT-22 | G66: 230/3 | H66: - | I66: 5229 CFM | J66: 600 | K66: 1 | N66: CUBRE MOTOR | O66: 3.703703704 | P66: 5CLTG22B0600CM | Q66: EXT.CLTG-22 1T 600RPM CUBRE
A67: 64 | B67: 2021-03-10T11:23:00 | C67: MIGA | D67: 233698 | E67: 1 | F67: CMI-250 | G67: 127/1 | H67: VE-01 | I67: 490 | J67: 1850 | K67: 1/4 | O67: 3.703703704 | P67: 5CMI2502185000 | Q67: Existe
A68: 65 | B68: 2021-03-10T11:23:00 | C68: MIGA | D68: 233698 | E68: 1 | F68: CMI-315 | G68: 230/3 | H68: VI-02 | I68: 1857 | J68: 1875 | K68: 3/4 | O68: 3.703703704 | P68: 5CMI315A187600 | Q68: Existe
A69: 66 | B69: 2021-03-10T11:23:00 | C69: MIGA | D69: 233698 | E69: 1 | F69: CMI-315 | G69: 230/3 | H69: VI-01 | I69: 1744 | J69: 1825 | K69: 1/2 | O69: =2/0.54 -> 3.703703704 | P69: 5CMI3159018500 | Q69: Existe
A70: 67 | B70: 2021-03-10T12:19:00 | C70: EXPERTOS EN VENTILACION | D70: 233705 | E70: 3 | F70: CLT-10 | G70: 230/3 | H70: - | I70: - | J70: 1300 | K70: 1/2 | O70: 3.703703704 | P70: 5CLTG109013000 | Q70: EXT.CLTG-10 1/2T 1300RPM
A71: 68 | B71: 2021-03-10T12:19:00 | C71: EXPERTOS EN VENTILACION | D71: 233705 | E71: 5 | F71: CLT-10 | G71: 230/3 | H71: - | I71: - | J71: 900 | K71: 1/4 | O71: 3.703703704 | P71: 5CLTG108090000 | Q71: EXT.CLTG-10 1/4T 900RPM
A72: 69 | B72: 2021-03-10T12:45:00 | C72: PERSSA | D72: 233713 | E72: 2 | F72: CLT-20 | G72: 230/3 | H72: - | I72: 4300 CFM | J72: 1325 | K72: 3 | N72: CUBRE MOTOR | O72: 3.703703704 | P72: 5CLTG20E1325CM | Q72: EXT.CLTG-20 3T 1325RPM CUBRE
A73: 70 | B73: 2021-03-10T13:50:00 | C73: PERSSA | D73: 233714 | E73: 1 | F73: CMI-500 INOX | G73: 230/3 | H73: - | I73: - | J73: 1950 | K73: 7 1/2 | N73: PEDIDO CANCELADO | O73: 3.703703704
A74: 71 | B74: 2021-03-10T14:19:00 | C74: LETICIA VIDAL | D74: 230780 | E74: 1 | F74: CDAHF1-12/12 | G74: 230/3 | H74: - | I74: 1500 CFM | J74: 900 | K74: 1/2 | O74: 3.703703704 | P74: 5CDAHF1129900 | Q74: Existe
A75: 72 | B75: 2021-03-10T14:19:00 | C75: LETICIA VIDAL | D75: 230780 | E75: 1 | F75: CDAHF1-12/12 | G75: 230/3 | H75: - | I75: 1900 CFM | J75: 950 | K75: 3/4 | O75: 3.703703704 | P75: 5CDAHF112A0950 | Q75: Existe
A76: 73 | B76: 2021-03-10T14:19:00 | C76: LETICIA VIDAL | D76: 230780 | E76: 1 | F76: CDAHF1-12/12 | G76: 230/3 | H76: - | I76: 2600 CFM | J76: 950 | K76: 1 | O76: 3.703703704 | P76: 5CDAHF112B0950 | Q76: Existe
A77: 74 | B77: 2021-03-10T14:19:00 | C77: LETICIA VIDAL | D77: 230780 | E77: 1 | F77: CDAHF1-12/12 | G77: 230/3 | H77: - | I77: 2000 CFM | J77: 1100 | K77: 3/4 | O77: 3.703703704 | P77: 5CDAHF112A1100 | Q77: EXT.CDAHF1-12/12 3/4T 1100RPM
A78: 75 | B78: 2021-03-10T14:19:00 | C78: LETICIA VIDAL | D78: 230780 | E78: 1 | F78: CDAHF1-12/12 | G78: 230/3 | H78: - | I78: 2000 CFM | J78: 1025 | K78: 3/4 | O78: 3.703703704 | P78: 5CDAHF112A1025 | Q78: Existe
A79: 76 | B79: 2021-03-10T14:19:00 | C79: LETICIA VIDAL | D79: 230780 | E79: 1 | F79: CDAHF1-12/12 | G79: 230/3 | H79: - | I79: 2600 CFM | J79: 1175 | K79: 1 1/2 | O79: 3.703703704 | P79: 5CDAHF112C1175 | Q79: EXT.CDAHF1-12/12 1.5T 1175RPM
A80: 77 | B80: 2021-03-10T14:19:00 | C80: LETICIA VIDAL | D80: 230780 | E80: 1 | F80: CDAHF1-9/9 | G80: 230/3 | H80: - | I80: 870 CFM | J80: 1200 | K80: 1/2 | O80: 3.703703704 | P80: 5CDAHF19991200 | Q80: Existe
A81: 78 | B81: 2021-03-10T14:19:00 | C81: LETICIA VIDAL | D81: 230780 | E81: 1 | F81: CMI-280 | G81: 230/3 | H81: - | I81: 1350 CFM | J81: 2050 | K81: 1/2 | O81: 3.703703704 | P81: 5CMI2809020500 | Q81: Existe
A82: 79 | B82: 2021-03-10T14:19:00 | C82: LETICIA VIDAL | D82: 230780 | E82: 1 | F82: CMI-355 | G82: 230/3 | H82: - | I82: 1700 CFM | J82: 1400 | K82: 1/2 | O82: 3.703703704 | P82: 5CMI3559014010 | Q82: Existe
A83: 80 | B83: 2021-03-10T14:19:00 | C83: LETICIA VIDAL | D83: 230780 | E83: 1 | F83: CMI-400 | G83: 230/3 | H83: - | I83: 2400 CFM | J83: 1300 | K83: 3/4 | O83: 3.703703704 | P83: 5CMI400A013250 | Q83: Existe
A84: 81 | B84: 2021-03-10T14:19:00 | C84: LETICIA VIDAL | D84: 230780 | E84: 1 | F84: CMI-355 | G84: 230/3 | H84: - | I84: 2000 CFM | J84: 1650 | K84: 3/4 | O84: 3.703703704 | P84: 5CMI355A016380 | Q84: Existe
A85: 82 | B85: 2021-03-10T14:19:00 | C85: LETICIA VIDAL | D85: 230780 | E85: 1 | F85: CMI-315 | G85: 230/3 | H85: - | I85: 1600 CFM | J85: 1775 | K85: 1/2 | O85: 3.703703704 | P85: 5CMI3159017750 | Q85: Existe
A86: 83 | B86: 2021-03-10T14:19:00 | C86: LETICIA VIDAL | D86: 230780 | E86: 1 | F86: CMI-400 | G86: 230/3 | H86: - | I86: 2400 CFM | J86: 1550 | K86: 1 | O86: 3.703703704 | P86: 5CMI400B015260 | Q86: REPTIDO
A87: 84 | B87: 2021-03-10T14:19:00 | C87: LETICIA VIDAL | D87: 230780 | E87: 1 | F87: CMI-250 | G87: 230/3 | H87: - | I87: 850 CFM | J87: 1925 | K87: 1/4 | O87: 3.703703704 | P87: 5CMI2508019250 | Q87: Existe
A88: 85 | B88: 2021-03-10T14:19:00 | C88: LETICIA VIDAL | D88: 230780 | E88: 1 | F88: CMI-450 | G88: 230/3 | H88: - | I88: 2880 CFM | J88: 1700 | K88: 2 | O88: 3.703703704 | P88: 5CMI450D017000 | Q88: Existe
A89: 86 | B89: 2021-03-10T14:19:00 | C89: LETICIA VIDAL | D89: 230780 | E89: 1 | F89: CMI-400 | G89: 230/3 | H89: - | I89: 2200 CFM | J89: 1525 | K89: 1 | O89: 3.703703704 | P89: 5CMI400B015260 | Q89: Existe
A90: 87 | B90: 2021-03-10T14:19:00 | C90: LETICIA VIDAL | D90: 230780 | E90: 1 | F90: CMI-400 | G90: 230/3 | H90: - | I90: 2250 CFM | J90: 1500 | K90: 1 | O90: 3.703703704 | P90: 5CMI400B015260 | Q90: REPTIDO
A91: 88 | B91: 2021-03-10T14:19:00 | C91: LETICIA VIDAL | D91: 230780 | E91: 1 | F91: CMI-450 | G91: 230/3 | H91: - | I91: 2370 CFM | J91: 1750 | K91: 3 | O91: 3.703703704 | P91: 5CMI450E011700 | Q91: Existe
A92: 89 | B92: 2021-03-10T14:19:00 | C92: LETICIA VIDAL | D92: 230780 | E92: 1 | F92: CDAHF2-12/12 | G92: 230/3 | H92: - | I92: 1650 CFM | J92: 1300 | K92: 1 | N92: PORTAFILTRO CON FILTROS METÁLICOS, MERV-14 2-FI-012 | O92: 3.703703704 | P92: 5CDAHF212B1300 | Q92: EXT.CDAHF2-12/12 1T 1300RPM
A93: 90 | B93: 2021-03-10T14:19:00 | C93: LETICIA VIDAL | D93: 230780 | E93: 1 | F93: CMI-400 | G93: 230/3 | H93: - | I93: 2140 CFM | J93: 1775 | K93: 1 1/2 | O93: 3.703703704 | P93: 5CMI400C017780 | Q93: Existe
A94: 91 | B94: 2021-03-10T14:19:00 | C94: LETICIA VIDAL | D94: 230780 | E94: 1 | F94: CDAHF2-12/12 | G94: 230/3 | H94: - | I94: 2720 CFM | J94: 1300 | K94: 1 1/2 | N94: PORTAFILTRO CON FILTROS METÁLICOS, MERV-14 2-FI-012 | O94: 3.703703704 | P94: 5CDAHF212C1301 | Q94: EXT.CDAHF2-12/12 1.5T 1300RPM
A95: 92 | B95: 2021-03-10T14:19:00 | C95: LETICIA VIDAL | D95: 230780 | E95: 1 | F95: CMI-315 | G95: 230/3 | H95: - | I95: 1399 CFM | J95: 1650 | K95: 1/2 | O95: 3.703703704 | P95: 5CMI3159166900 | Q95: Existe
A96: 93 | B96: 2021-03-11T11:20:00 | C96: JORGE CAMPOS | D96: 233752 | E96: 3 | F96: DAL-9-H-1/2 | G96: 230/3 | H96: - | I96: - | J96: 670 | K96: 1/2 | N96: MOTOR 2-MO-124RG | O96: 3.703703704 | P96: 5UDLHF99067000 | Q96: LAV.DALH-9 1/2T 670RPM
A97: 94 | B97: 2021-03-11T12:26:00 | C97: PRO-AIRE | D97: 233758 | E97: 1 | F97: CCK-12/12 | G97: 127/1 | H97: - | I97: - | J97: 1000 | K97: 3/4 | O97: 3.703703704 | P97: 5CCK1212501000 | Q97: EXT.CCK-12/12 3/4M 1000RPM
A98: 95 | B98: 2021-03-12T07:56:00 | C98: PROVEEDORA FGA | D98: 233781 | E98: 1 | F98: CLT-18 | G98: 460/3 | H98: - | I98: - | J98: 1725 | K98: 5 | N98: RECUBRIMIENTO EPOXICO, PORTAFILTROS Y FILTROS METALICOS | O98: 3.703703704 | P98: 5CLTH18F173EPX | Q98: EXT.CLT-18 5T 1725RPM PTA FILT
A99: 96 | B99: 2021-03-12T07:56:00 | C99: PROVEEDORA FGA | D99: 233781 | E99: 1 | F99: CLT-18 | G99: 460/3 | H99: - | I99: - | J99: 1725 | K99: 5 | N99: RECUBRIMIENTO EPOXICO | O99: 3.703703704 | P99: 5CLTH18F172EPX | Q99: EXT.CLT-18 5T 1725RPM EPOX
A100: 97 | B100: 2021-03-12T10:17:00 | C100: AIRE PROYECTOS | D100: 233784 | E100: 1 | F100: CMI-560 | G100: 230/3 | H100: - | I100: 6990 CFM | J100: 1260 | K100: 3 | O100: 3.703703704 | P100: 5CMI560E127500 | Q100: Existe
A101: 98 | B101: 2021-03-12T10:17:00 | C101: AIRE PROYECTOS | D101: 233784 | E101: 1 | F101: CMI-500 | G101: 230/3 | H101: - | I101: 5800 CFM | J101: 1475 | K101: 3 | O101: 3.703703704 | P101: 5CMI500E146000 | Q101: Existe
A102: 99 | B102: 2021-03-12T10:37:00 | C102: TODO EN VENTILACION | D102: 233788 | E102: 2 | F102: CRVLT-18 | G102: 460/3 | H102: - | I102: 8600 M3/HR | J102: 1500 | K102: 1 1/2 | O102: 3.703703704 | P102: 5CRVLT18C01500 | Q102: Existe
A103: 100 | B103: 2021-03-12T10:37:00 | C103: TODO EN VENTILACION | D103: 233788 | E103: 2 | F103: CDAV-7/7 | G103: 127/1 | H103: - | I103: 1947 M3/HR | J103: 1600 | K103: 1 | O103: 3.703703704 | P103: 5CDAV776016000 | Q103: EXT.CDAV-7/7 1M 1600RPM
A104: 101 | B104: 2021-03-12T11:36:00 | C104: LOUBET | D104: 233678 | E104: 4 | F104: CLT-18 | G104: 230/3 | H104: VE-01 A 04 | I104: 2400 CFM | J104: 925 | K104: 3/4 | N104: CUBRE MOTOR, MALLA EN ASPIRACION | O104: 3.703703704 | P104: 5CLTG18A0925MA | Q104: EXT.CLTG-18 3/4T 925RPM CUBRE
A105: 102 | B105: 2021-03-12T11:59:00 | C105: AIRENLINEA | D105: 233793 | E105: 1 | F105: CRHLT-28 | G105: 230/3 | H105: - | I105: 8300 CFM | J105: 725 | K105: 3 | O105: 3.703703704 | P105: 5CRHLT28E07250 | Q105: Existe
A106: 103 | B106: 2021-03-12T12:39:00 | C106: REACLIMA | D106: 233799 | E106: 1 | F106: CRVHT-33 | G106: 460/3 | H106: VE-01 | I106: - | J106: 725 | K106: 5 | O106: 3.703703704 | P106: 5CRVHT33F07250 | Q106: Existe
A107: 104 | B107: 2021-03-12T12:39:00 | C107: REACLIMA | D107: 233799 | E107: 1 | F107: CRHLT-12 | G107: 127/1 | H107: VE-21 | I107: - | J107: 1550 | K107: 1/3 | O107: 3.703703704 | P107: 5CRHLT12315500 | Q107: Existe
A108: 105 | B108: 2021-03-12T12:39:00 | C108: REACLIMA | D108: 233799 | E108: 1 | F108: CMI-250 | G108: 127/1 | H108: VE-54 | I108: - | J108: 2400 | K108: 1/2 | O108: 3.703703704 | P108: 5CMI2504024000 | Q108: Existe
A109: 106 | B109: 2021-03-12T12:39:00 | C109: REACLIMA | D109: 233799 | E109: 1 | F109: CRHLT-16 | G109: 127/1 | H109: VE-60 | I109: - | J109: 875 | K109: 1/4 | O109: 3.703703704 | P109: 5CRHLT16208750 | Q109: Existe
A110: 107 | B110: 2021-03-12T12:39:00 | C110: REACLIMA | D110: 233799 | E110: 1 | F110: CMI-250 | G110: 460/3 | H110: VE-66 | I110: - | J110: 2850 | K110: 3/4 | O110: 3.703703704 | P110: 5CMI250A028500 | Q110: EXT.CMI-250 3/4T 2850RPM
A111: 108 | B111: 2021-03-12T13:05:00 | C111: REACLIMA | D111: 233679 | E111: 1 | F111: CDAV-20/20 | G111: 460/3 | H111: VI-01 | I111: 6380 CFM | J111: 600 | K111: 3 | O111: 3.703703704 | P111: 5CDAV2020E0600 | Q111: Existe
A112: 109 | B112: 2021-03-16T12:39:00 | C112: LETICIA VIDAL | D112: 233729 | E112: 1 | F112: CMI-400 | G112: 230/3 | H112: - | I112: 2500 CFM | J112: 1800 | K112: 1 1/2 | N112: BRIDA EN SUCCION Y DESCARGA | O112: 3.703703704 | P112: 5CMI400C1801BD | Q112: EXT.CMI-400 1.5T 1800RPM BDA.
A113: 110 | B113: 2021-03-16T12:39:00 | C113: LETICIA VIDAL | D113: 233729 | E113: 1 | F113: PORTAFILTRO APF 4000-2" | G113: - | H113: - | I113: - | J113: - | K113: - | N113: FILTROS METÁLICOS, MERV-8 | O113: 3.703703704 | P113: 5APF-400022FI | Q113: Existe
A114: 111 | B114: 2021-03-16T12:39:00 | C114: LETICIA VIDAL | D114: 233729 | E114: 1 | F114: CMI-500 | G114: 230/3 | H114: - | I114: 6160 CFM | J114: 1850 | K114: 5 | N114: BRIDA EN SUCCION Y DESCARGA | O114: 3.703703704 | P114: 5CMI500F1850BD | Q114: EXT.CMI-500 5T 1850RPM BDA.
A115: 112 | B115: 2021-03-16T12:39:00 | C115: LETICIA VIDAL | D115: 233729 | E115: 1 | F115: PORTAFILTRO APF 8000-2" | G115: - | H115: - | I115: - | J115: - | K115: - | N115: FILTROS METÁLICOS, MERV-8 | O115: 3.703703704 | P115: 5APF-800023FI | Q115: BANCO P.FILTRO 48"x48" FILTROS
A116: 113 | B116: 2021-03-16T12:39:00 | C116: LETICIA VIDAL | D116: 233729 | E116: 1 | F116: CMI-400 | G116: 230/3 | H116: - | I116: 1880 CFM | J116: 1625 | K116: 1 | N116: BRIDA EN SUCCION Y DESCARGA | O116: 3.703703704 | P116: 5CMI400B1625BD | Q116: EXT.CMI-400 1T 1625RPM BRIDAS
A117: 114 | B117: 2021-03-16T12:39:00 | C117: LETICIA VIDAL | D117: 233729 | E117: 1 | F117: POTAFILTRO APF 2000-2" | G117: - | H117: - | I117: - | J117: - | K117: - | N117: FILTROS METÁLICOS, MERV-8 | O117: 3.703703704 | P117: 5APF20003FI | Q117: Existe
A118: 115 | B118: 2021-03-16T12:39:00 | C118: LETICIA VIDAL | D118: 233729 | E118: 1 | F118: CMI-450 | G118: 230/3 | H118: - | I118: 3860 CFM | J118: 1875 | K118: 3 | O118: 3.703703704 | P118: 5CMI450E018750 | Q118: EXT.CMI-450 3T 1875RPM
A119: 116 | B119: 2021-03-16T12:39:00 | C119: LETICIA VIDAL | D119: 233729 | E119: 1 | F119: CMI-450 | G119: 230/3 | H119: - | I119: 2920 CFM | J119: 1700 | K119: 2 | O119: 3.703703704 | P119: 5CMI450D017000 | Q119: Existe
A120: 117 | B120: 2021-03-16T12:39:00 | C120: LETICIA VIDAL | D120: 233729 | E120: 1 | F120: CMI-450 | G120: 230/3 | H120: - | I120: 3640 CFM | J120: 1925 | K120: 3 | O120: 3.703703704 | P120: 5CMI450E019250 | Q120: EXT.CMI-450 3T 1925RPM
A121: 118 | B121: 2021-03-16T12:39:00 | C121: LETICIA VIDAL | D121: 233729 | E121: 1 | F121: CMI-400 | G121: 230/3 | H121: - | I121: 1840 CFM | J121: 1850 | K121: 1 1/2 | O121: 3.703703704 | P121: 5CMI400C018500 | Q121: EXT.CMI-400 1.5T 1850RPM
A122: 119 | B122: 2021-03-16T12:39:00 | C122: LETICIA VIDAL | D122: 233729 | E122: 1 | F122: CMI-315 | G122: 230/3 | H122: - | I122: 1040 CFM | J122: 1975 | K122: 3/4 | N122: BRIDA EN SUCCION Y DESCARGA | O122: 3.703703704 | P122: 5CMI315A1975BD | Q122: EXT.CMI-315 3/4T 1975RPM BDAS.
A123: 120 | B123: 2021-03-16T12:39:00 | C123: LETICIA VIDAL | D123: 233729 | E123: 1 | F123: POTAFILTRO APF 2000-2" | G123: - | H123: - | I123: - | J123: - | K123: - | N123: FILTROS METÁLICOS, MERV-14 2-FI-012 | O123: 3.703703704 | P123: 5APF-20004FI | Q123: BANCO P.FILTRO 24"x24" FILTROS
A124: 121 | B124: 2021-03-16T12:39:00 | C124: LETICIA VIDAL | D124: 233729 | E124: 1 | F124: CMI-355 | G124: 230/3 | H124: - | I124: 1900 CFM | J124: 1975 | K124: 1 1/2 | N124: BRIDA EN SUCCION Y DESCARGA | O124: 3.703703704 | P124: 5CMI355C1975BD | Q124: EXT.CMI-355 1.5T 1975RPM BDAS.
A125: 122 | B125: 2021-03-16T12:39:00 | C125: LETICIA VIDAL | D125: 233729 | E125: 1 | F125: POTAFILTRO APF 2000-2" | G125: - | H125: - | I125: - | J125: - | K125: - | N125: FILTROS METÁLICOS, MERV-14 | O125: 3.703703704 | P125: 5APF-20004FI | Q125: BANCO P.FILTRO 24"x24" FILTROS
A126: 123 | B126: 2021-03-16T12:39:00 | C126: LETICIA VIDAL | D126: 233729 | E126: 1 | F126: CMI-400 | G126: 230/3 | H126: - | I126: 2050 CFM | J126: 1725 | K126: 1 1/2 | N126: BRIDA EN SUCCION Y DESCARGA | O126: 3.703703704 | P126: 5CMI400C1725BD | Q126: EXT.CMI-400 1.5T 1725RPM BDAS.
A127: 124 | B127: 2021-03-16T12:39:00 | C127: LETICIA VIDAL | D127: 233729 | E127: 1 | F127: PORTAFILTRO APF 4000-2" | G127: - | H127: - | I127: - | J127: - | K127: - | N127: FILTROS METÁLICOS, MERV-14 2-FI-012 | O127: 3.703703704 | P127: 5APF-400023FI | Q127: BANCO P.FILTRO 24"x48" FILTROS
A128: 125 | B128: 2021-03-16T12:39:00 | C128: LETICIA VIDAL | D128: 233729 | E128: 1 | F128: CMI-450 | G128: 230/3 | H128: - | I128: 3470 CFM | J128: 1675 | K128: 2 | N128: BRIDA EN SUCCION Y DESCARGA | O128: 3.703703704 | P128: 5CMI450D1675BD | Q128: EXT.CMI-450 2T 1675RPM BDAS.
A129: 126 | B129: 2021-03-16T12:39:00 | C129: LETICIA VIDAL | D129: 233729 | E129: 1 | F129: PORTAFILTRO APF 4000-2" | G129: - | H129: - | I129: - | J129: - | K129: - | N129: FILTROS METÁLICOS, MERV-14 | O129: 3.703703704 | P129: 5APF-400023FI | Q129: BANCO P.FILTRO 24"x48" FILTROS
A130: 127 | B130: 2021-03-16T12:39:00 | C130: LETICIA VIDAL | D130: 233729 | E130: 1 | F130: CMI-315 | G130: 230/3 | H130: - | I130: 1000 CFM | J130: 1850 | K130: 1/2 | N130: BRIDA EN SUCCION Y DESCARGA | O130: 3.703703704 | P130: 5CMI31591850BD | Q130: EXT.CMI-315 1/2T 1850RPM BDAS.
A131: 128 | B131: 2021-03-16T12:39:00 | C131: LETICIA VIDAL | D131: 233729 | E131: 1 | F131: POTAFILTRO APF 2000-2" | G131: - | H131: - | I131: - | J131: - | K131: - | N131: FILTROS METÁLICOS, MERV-14 | O131: 3.703703704 | P131: 5APF-20004FI | Q131: BANCO P.FILTRO 24"x24" FILTROS
A132: 129 | B132: 2021-03-16T13:10:00 | C132: AIRE PROYECTOS | D132: 233866 | E132: 1 | F132: PL-204 | G132: 230/3 | H132: - | I132: 200 CFM | J132: 1700 | K132: 1/2 | N132: ROTACION CCW | O132: 3.703703704 | P132: 5PL-204 | Q132: Existe
A133: 130 | B133: 2021-03-17T10:13:00 | C133: TODO EN VENTILACION | D133: 233888 | E133: 2 | F133: CMI-710 | G133: 230/3 | H133: - | I133: 6145 M3/HR | J133: 600 | K133: 1 | O133: =2/0.54 -> 3.703703704 | P133: 5CMI710B060000 | Q133: Existe
A134: 131 | B134: 2021-03-17T13:19:00 | C134: AS SUMINISTROS | D134: 233898 | E134: 1 | F134: UMF 1700 | G134: 127/1 | H134: - | I134: - | J134: 1700 | K134: 190 W | N134: COLOR BLANCO | O134: 3.703703704 | P134: 5UMF-1700B | Q134: UNIDAD MOVIL FILTRACION 1700
A135: 132 | B135: 2021-03-17T14:10:00 | C135: SIERRA MADRE | D135: 233905 | E135: 2 | F135: WXD 630-3/4-6P/H | G135: 230/3 | H135: - | I135: - | J135: 1135 | K135: 3/4 | N135: BRIDAS EN SUCCION Y DESCARGA | O135: 3.703703704 | P135: 5WXD630A1135BD | Q135: EXT.WXD-630/H 3/4T 6P BDAS.
A136: 133 | B136: 2021-03-17T15:00:00 | C136: T Y P | D136: 233909 | E136: 1 | F136: CRVLT-18 | G136: 220/1 | H136: - | I136: - | J136: 1475 | K136: 1 1/2 | O136: 3.703703704 | P136: 5CRVLT18701500 | Q136: Existe
A137: 134 | B137: 2021-03-17T15:00:00 | C137: T Y P | D137: 233909 | E137: 2 | F137: CCL 12/12 | G137: 127/1 | H137: - | I137: - | J137: 950 | K137: 3/4 | O137: 3.703703704 | P137: 5CCL1212509500 | Q137: Existe
A138: 135 | B138: 2021-03-17T15:27:00 | C138: COMER CANTO | D138: 233390 | E138: 1 | F138: CMI-630 | G138: 220/1 | H138: - | I138: - | J138: 800 | K138: 2 | O138: 3.703703704 | P138: 5CMI6301080000 | Q138: EXT.CMI-630 2M 800RPM
A139: 136 | B139: 2021-03-17T15:27:00 | C139: COMER CANTO | D139: 233390 | E139: 1 | F139: CMI-710 | G139: 220/1 | H139: - | I139: - | J139: 700 | K139: 2 | O139: 3.703703704 | P139: 5CMI7101070000 | Q139: EXT.CMI-710 2M 700RPM
A140: 137 | B140: 2021-03-17T16:31:00 | C140: CYVSA | D140: 233913 | E140: 1 | F140: CMI-315 | G140: 127/1 | H140: EF-AZ-01 | I140: 1402 CFM | J140: 1500 | K140: 1/3 | O140: 3.703703704 | P140: 5CMI315315000 | Q140: Existe
A141: 138 | B141: 2021-03-17T16:31:00 | C141: CYVSA | D141: 233913 | E141: 1 | F141: CDAHF2-22/22 | G141: 230/3 | H141: ASU-AZ-01 | I141: 6468 CFM | J141: 750 | K141: 5 | N141: PORTAFILTRO CON FILTROS MERV 8 Y MERV 13 | O141: 3.703703704 | P141: 5CDAHF222F0750 | Q141: Existe
A142: 139 | B142: 2021-03-17T16:40:00 | C142: LA MUÑO | D142: 233915 | E142: 1 | F142: CMI-710 | G142: 220/3 | H142: - | I142: - | J142: 900 | K142: 3 | O142: 3.703703704 | P142: 5CMI710E090000 | Q142: EXT.CMI-710 3T 900RPM
A143: 140 | B143: 2021-03-17T16:54:00 | C143: ALDAPE Y ASOCIADOS | D143: 233916 | E143: 2 | F143: CRVLT-18 | G143: 230/3 | H143: - | I143: - | J143: 1275 | K143: 3/4 | O143: 3.703703704 | P143: 5CRVLT18A01275 | Q143: EXT.CRVLT-18 3/4T 1275RPM
A144: 141 | B144: 2021-03-17T16:54:00 | C144: ALDAPE Y ASOCIADOS | D144: 233916 | E144: 2 | F144: CCR-18/18 | G144: 230/3 | H144: - | I144: - | J144: 700 | K144: 2 | O144: 3.703703704 | P144: 5CCR1818D07000 | Q144: Existe
A145: 142 | B145: 2021-03-18T08:50:00 | C145: EXPERTOS EN VENTILACION | D145: 233954 | E145: 1 | F145: CMII-800 | G145: 460/3 | H145: - | I145: - | J145: 1550 | K145: 30 | M145: UB | N145: DESCARGA 0° | O145: 3.703703704 | P145: 5CMII800Q156UB | Q145: EXT.CMII-800 30T 1550RPM 0
A146: 143 | B146: 2021-03-18T08:59:00 | C146: I MONSERRAT | D146: 233955 | E146: 1 | F146: CMI-900 | G146: 230/3 | H146: VE-01 | I146: 2000 CFM | J146: 975 | K146: 15 | O146: 3.703703704 | P146: 5CMI900M97030 | Q146: Existe
A147: 144 | B147: 2021-03-18T09:35:00 | C147: REFRIGERACION Y CLIMAS ALTIPLANO | D147: 233957 | E147: 1 | F147: CMI-630 | G147: 230/3 | H147: - | I147: 12000 M3/HR | J147: 1300 | K147: 7 1/2 | O147: 3.703703704 | P147: 5CMI630G130000 | Q147: Existe
A148: 145 | B148: 2021-03-18T10:26:00 | C148: K3 SOLUCIONES | D148: 233964 | E148: 2 | F148: CME-500 | G148: 460/3 | H148: - | I148: 6000 CFM | J148: 1700 | K148: 5 | N148: ARREGLO ANTICHISPA AMCA "C" | O148: 3.703703704 | P148: 5CME500F17AMCA | Q148: Existe
A149: 146 | B149: 2021-03-19T12:00:00 | C149: EQUIPSA | D149: 233972 | E149: 3 | F149: RXT-C 1000-1 1/2 S | G149: 460/3 | H149: - | I149: - | J149: 700 | K149: 1 1/2 | O149: 3.703703704 | P149: FORMATO | Q149: FORMATO
A150: 147 | B150: 2021-03-19T12:15:00 | C150: PERSSA | D150: 233974 | E150: 1 | F150: CMI-560 | G150: 220/1 | H150: - | I150: 5387 CFM | J150: 1025 | K150: 2 | O150: 3.703703704 | P150: 5CMI5601010250 | Q150: Existe
A151: 148 | B151: 2021-03-19T18:09:00 | C151: LETICIA VIDAL | D151: 233902 | E151: 1 | F151: CMI-355 | G151: 230/3 | H151: - | I151: 1800 CFM | J151: 1950 | K151: 1 | N151: BRIDAS EN SUCCION Y DESCARGA | O151: 3.703703704 | P151: 5CMI355B1950BD | Q151: EXT.CMI-355 1T 1950RPM BDAS.
A152: 149 | B152: 2021-03-19T18:09:00 | C152: LETICIA VIDAL | D152: 233902 | E152: 1 | F152: PORTAFILTRO APF 2000-2" | G152: - | H152: - | I152: - | J152: - | K152: - | N152: FILTROS METALICOS Y PLISADO MERV-7 (SUCCIÓN) | O152: 3.703703704 | P152: 5APF-20005FI | Q152: BANCO P.FILTRO 24"x24" FILT.ME
A153: 150 | B153: 2021-03-19T18:09:00 | C153: LETICIA VIDAL | D153: 233902 | E153: 2 | F153: CMI-355 | G153: 230/3 | H153: - | I153: 1350 CFM | J153: 2000 | K153: 1 | N153: BRIDAS EN SUCCION Y DESCARGA | O153: 3.703703704 | P153: 5CMI355B2000BD | Q153: EXT.CMI-355 1T 2000RPM BDAS.
A154: 151 | B154: 2021-03-19T18:09:00 | C154: LETICIA VIDAL | D154: 233902 | E154: 2 | F154: PORTAFILTRO APF 2000-2" | G154: - | H154: - | I154: - | J154: - | K154: - | N154: FILTROS METALICOS Y PLISADO MERV-7 (SUCCIÓN) | O154: 3.703703704 | P154: 5APF-20005FI | Q154: BANCO P.FILTRO 24"x24" FILT.ME
A155: 152 | B155: 2021-03-19T18:09:00 | C155: LETICIA VIDAL | D155: 233902 | E155: 2 | F155: CMI-400 | G155: 230/3 | H155: - | I155: 1530 CFM | J155: 1750 | K155: 1 1/2 | N155: BRIDAS EN SUCCION Y DESCARGA | O155: 3.703703704 | P155: 5CMI400C1775BD | Q155: EXT.CMI-400 1.5T 1775RPM BDAS.
A156: 153 | B156: 2021-03-19T18:09:00 | C156: LETICIA VIDAL | D156: 233902 | E156: 2 | F156: PORTAFILTRO APF 2000-2" | G156: - | H156: - | I156: - | J156: - | K156: - | N156: FILTROS METALICOS Y PLISADO MERV-7 (SUCCIÓN) | O156: 3.703703704 | P156: 5APF-20005FI | Q156: BANCO P.FILTRO 24"x24" FILT.ME
A157: 154 | B157: 2021-03-19T18:09:00 | C157: LETICIA VIDAL | D157: 233902 | E157: 1 | F157: CMI-355 | G157: 230/3 | H157: - | I157: 1600 CFM | J157: 1925 | K157: 1 | N157: BRIDAS EN SUCCION Y DESCARGA | O157: 3.703703704 | P157: 5CMI355B1950BD | Q157: EXT.CMI-355 1T 1950RPM BDAS.
A158: 155 | B158: 2021-03-19T18:09:00 | C158: LETICIA VIDAL | D158: 233902 | E158: 1 | F158: PORTAFILTRO APF 2000-2" | G158: - | H158: - | I158: - | J158: - | K158: - | N158: FILTROS METÁLICOS Y MERV-8 (SUCCIÓN) | O158: 3.703703704 | P158: 5APF20003FI | Q158: REPETIDO
A159: 156 | B159: 2021-03-19T18:09:00 | C159: LETICIA VIDAL | D159: 233902 | E159: 1 | F159: CMI-355 | G159: 230/3 | H159: - | I159: 1500 CFM | J159: 1925 | K159: 1 | N159: BRIDAS EN SUCCION Y DESCARGA | O159: 3.703703704 | P159: 5CMI355B1950BD | Q159: EXT.CMI-355 1T 1950RPM BDAS.
A160: 157 | B160: 2021-03-19T18:09:00 | C160: LETICIA VIDAL | D160: 233902 | E160: 1 | F160: PORTAFILTRO APF 2000-2" | G160: - | H160: - | I160: - | J160: - | K160: - | N160: FILTROS METÁLICOS Y MERV-8 (SUCCIÓN) | O160: 3.703703704 | P160: 5APF20003FI | Q160: REPETIDO
A161: 158 | B161: 2021-03-19T18:09:00 | C161: LETICIA VIDAL | D161: 233902 | E161: 1 | F161: CMI-250 | G161: 230/3 | H161: - | I161: 270 CFM | J161: 2450 | K161: 1/4 | N161: BRIDAS EN SUCCION Y DESCARGA | O161: 3.703703704 | P161: 5CMI25082450BD | Q161: EXT.CMI-250 1/4T 2450RPM BDAS.
A162: 159 | B162: 2021-03-19T18:09:00 | C162: LETICIA VIDAL | D162: 233902 | E162: 1 | F162: PORTAFILTRO APF 2000-2" | G162: - | H162: - | I162: - | J162: - | K162: - | N162: FILTROS METÁLICOS Y MERV-8 (SUCCIÓN) | O162: 3.703703704 | P162: 5APF20003FI | Q162: REPETIDO
A163: 160 | B163: 2021-03-19T18:09:00 | C163: LETICIA VIDAL | D163: 233902 | E163: 1 | F163: CMI-250 | G163: 230/3 | H163: - | I163: 360 CFM | J163: 2275 | K163: 1/4 | N163: BRIDAS EN SUCCION Y DESCARGA | O163: 3.703703704 | P163: 5CMI25082275BD | Q163: EXT.CMI-250 1/4T 2275RPM BDAS.
A164: 161 | B164: 2021-03-19T18:09:00 | C164: LETICIA VIDAL | D164: 233902 | E164: 1 | F164: PORTAFILTRO APF 2000-2" | G164: - | H164: - | I164: - | J164: - | K164: - | N164: FILTROS METÁLICOS Y MERV-8 (SUCCIÓN) | O164: 3.703703704 | P164: 5APF20003FI | Q164: REPETIDO
A165: 162 | B165: 2021-03-19T18:09:00 | C165: LETICIA VIDAL | D165: 233902 | E165: 1 | F165: CMI-355 | G165: 230/3 | H165: - | I165: 1130 CFM | J165: 2150 | K165: 1 | N165: BRIDAS EN SUCCION Y DESCARGA | O165: 3.703703704 | P165: 5CMI355B2150BD | Q165: EXT.CMI-355 1T 2150RPM BDAS.
A166: 163 | B166: 2021-03-19T18:09:00 | C166: LETICIA VIDAL | D166: 233902 | E166: 1 | F166: PORTAFILTRO APF 2000-2" | G166: - | H166: - | I166: - | J166: - | K166: - | N166: FILTROS METÁLICOS Y MERV-8 (SUCCIÓN) | O166: 3.703703704 | P166: 5APF20003FI | Q166: REPETIDO
A167: 164 | B167: 2021-03-19T18:09:00 | C167: LETICIA VIDAL | D167: 233902 | E167: 1 | F167: CMI-355 | G167: 230/3 | H167: - | I167: 1400 CFM | J167: 1775 | K167: 3/4 | N167: BRIDAS EN SUCCION Y DESCARGA | O167: 3.703703704 | P167: 5CMI355A1775BD | Q167: EXT.CMI-355 3/4T 1775RPM BDAS.
A168: 165 | B168: 2021-03-19T18:09:00 | C168: LETICIA VIDAL | D168: 233902 | E168: 1 | F168: PORTAFILTRO APF 2000-2" | G168: - | H168: - | I168: - | J168: - | K168: - | N168: FILTROS METALICOS Y PLISADO MERV-7 (SUCCIÓN) | O168: 3.703703704 | P168: 5APF-20005FI | Q168: BANCO P.FILTRO 24"x24" FILT.ME
A169: 166 | B169: 2021-03-19T18:09:00 | C169: LETICIA VIDAL | D169: 233902 | E169: 1 | F169: CMI-450 | G169: 230/3 | H169: - | I169: 1800 CFM | J169: 1875 | K169: 3 | N169: BRIDAS EN SUCCION Y DESCARGA | O169: 3.703703704 | P169: 5CMI450E1875BD | Q169: EXT.CMI-450 3T 1875RPM BDAS.
A170: 167 | B170: 2021-03-19T18:09:00 | C170: LETICIA VIDAL | D170: 233902 | E170: 1 | F170: CMI-450 | G170: 230/3 | H170: - | I170: 1800 CFM | J170: 1825 | K170: 2 | N170: BRIDAS EN SUCCION Y DESCARGA | O170: 3.703703704 | P170: 5CMI450D1825BD | Q170: EXT.CMI-450 2T 1825RPM BDAS.
A171: 168 | B171: 2021-03-19T18:09:00 | C171: LETICIA VIDAL | D171: 233902 | E171: 1 | F171: CMI-250 | G171: 230/3 | H171: - | I171: 250 CFM | J171: 2325 | K171: 1/4 | N171: BRIDAS EN SUCCION Y DESCARGA | O171: 3.703703704 | P171: 5CMI25082325BD | Q171: EXT.CMI-250 1/4T 2325RPM BDAS.
A172: 169 | B172: 2021-03-19T18:09:00 | C172: LETICIA VIDAL | D172: 233902 | E172: 1 | F172: PORTAFILTRO APF 2000-2" | G172: - | H172: - | I172: - | J172: - | K172: - | N172: FILTROS METÁLICOS Y MERV-8 (SUCCIÓN) | O172: 3.703703704 | P172: 5APF20003FI | Q172: REPETIDO
A173: 170 | B173: 2021-03-19T18:09:00 | C173: LETICIA VIDAL | D173: 233902 | E173: 1 | F173: CMI-400 | G173: 230/3 | H173: - | I173: 1600 CFM | J173: 1850 | K173: 1 1/2 | N173: BRIDAS EN SUCCION Y DESCARGA | O173: 3.703703704 | P173: 5CMI400C1850BD | Q173: EXT.CMI-400 1.5T 1850RPM BDAS.
A174: 171 | B174: 2021-03-19T18:09:00 | C174: LETICIA VIDAL | D174: 233902 | E174: 1 | F174: PORTAFILTRO APF 2000-2" | G174: - | H174: - | I174: - | J174: - | K174: - | N174: FILTROS METALICOS Y PLISADO MERV-7 (SUCCIÓN) | O174: 3.703703704 | P174: 5APF-20005FI | Q174: BANCO P.FILTRO 24"x24" FILT.ME
A175: 172 | B175: 2021-03-19T18:09:00 | C175: LETICIA VIDAL | D175: 233902 | E175: 1 | F175: CMI-400 | G175: 230/3 | H175: - | I175: 1600 CFM | J175: 1775 | K175: 1 1/2 | N175: BRIDAS EN SUCCION Y DESCARGA | O175: 3.703703704 | P175: 5CMI400C1775BD | Q175: EXT.CMI-400 1.5T 1775RPM BDAS.
A176: 173 | B176: 2021-03-19T18:09:00 | C176: LETICIA VIDAL | D176: 233902 | E176: 1 | F176: PORTAFILTRO APF 2000-2" | G176: - | H176: - | I176: - | J176: - | K176: - | N176: FILTROS METALICOS Y PLISADO MERV-7 (SUCCIÓN) | O176: 3.703703704 | P176: 5APF-20005FI | Q176: BANCO P.FILTRO 24"x24" FILT.ME
A177: 174 | B177: 2021-03-19T18:09:00 | C177: LETICIA VIDAL | D177: 233902 | E177: 2 | F177: CMI-355 | G177: 230/3 | H177: - | I177: 1440 CFM | J177: 2000 | K177: 1 | N177: BRIDAS EN SUCCION Y DESCARGA | O177: 3.703703704 | P177: 5CMI355B2000BD | Q177: EXT.CMI-355 1T 2000RPM BDAS.
A178: 175 | B178: 2021-03-19T18:09:00 | C178: LETICIA VIDAL | D178: 233902 | E178: 2 | F178: PORTAFILTRO APF 2000-2" | G178: - | H178: - | I178: - | J178: - | K178: - | N178: FILTROS METALICOS Y PLISADO MERV-7 (SUCCIÓN) | O178: 3.703703704 | P178: 5APF-20005FI | Q178: BANCO P.FILTRO 24"x24" FILT.ME
A179: 176 | B179: 2021-03-19T18:09:00 | C179: LETICIA VIDAL | D179: 233902 | E179: 1 | F179: CMI-355 | G179: 230/3 | H179: - | I179: 1350 CFM | J179: 1850 | K179: 1 | N179: BRIDAS EN SUCCION Y DESCARGA | O179: 3.703703704 | P179: 5CMI355B1850BD | Q179: EXT.CMI-355 1T 1850RPM BDAS.
A180: 177 | B180: 2021-03-19T18:09:00 | C180: LETICIA VIDAL | D180: 233902 | E180: 1 | F180: PORTAFILTRO APF 2000-2" | G180: - | H180: - | I180: - | J180: - | K180: - | N180: FILTROS METALICOS Y PLISADO MERV-7 (SUCCIÓN) | O180: 3.703703704 | P180: REPETIDO | Q180: REPETIDO
A181: 178 | B181: 2021-03-19T18:09:00 | C181: LETICIA VIDAL | D181: 233902 | E181: 1 | F181: CMI-400 | G181: 230/3 | H181: - | I181: 1300 CFM | J181: 1825 | K181: 1 | N181: BRIDAS EN SUCCION Y DESCARGA | O181: 3.703703704 | P181: 5CMI400B1825BD | Q181: EXT.CMI-400 1T 1825RPM BDAS.
A182: 179 | B182: 2021-03-19T18:09:00 | C182: LETICIA VIDAL | D182: 233902 | E182: 1 | F182: CMI-355 | G182: 230/3 | H182: - | I182: 1800 CFM | J182: 2025 | K182: 1 1/2 | N182: BRIDAS EN SUCCION Y DESCARGA | O182: 3.703703704 | P182: 5CMI355C2025BD | Q182: EXT.CMI-355 1.5T 2025RPM BDAS.
A183: 180 | B183: 2021-03-19T18:09:00 | C183: LETICIA VIDAL | D183: 233902 | E183: 1 | F183: PORTAFILTRO APF 2000-2" | G183: - | H183: - | I183: - | J183: - | K183: - | N183: FILTROS METALICOS Y PLISADO MERV-7 (SUCCIÓN) | O183: 3.703703704 | P183: 5APF-20005FI | Q183: BANCO P.FILTRO 24"x24" FILT.ME
A184: 181 | B184: 2021-03-22T10:25:00 | C184: CLIO CLIMATIZACION | D184: 234010 | E184: 1 | F184: CLT-12 | G184: 127/1 | H184: VI-06 | I184: - | J184: 1400 | K184: 1/3 | O184: 3.703703704 | P184: 5CLTG123014000 | Q184: EXT.CLTG-12 1/3M 1400RPM
A185: 182 | B185: 2021-03-22T10:25:00 | C185: CLIO CLIMATIZACION | D185: 234010 | E185: 1 | F185: CLT-12 | G185: 127/1 | H185: VI-08 | I185: - | J185: 1400 | K185: 1/3 | O185: 3.703703704 | P185: 5CLTG123014000 | Q185: EXT.CLTG-12 1/3M 1400RPM
A186: 183 | B186: 2021-03-22T10:25:00 | C186: CLIO CLIMATIZACION | D186: 234010 | E186: 1 | F186: CLT-12 | G186: 127/1 | H186: VI-09 | I186: - | J186: 1200 | K186: 1/4 | O186: 3.703703704 | P186: 5CLTG122012000 | Q186: EXT.CLTG-12 1/4M 1200RPM
A187: 184 | B187: 2021-03-22T10:25:00 | C187: CLIO CLIMATIZACION | D187: 234010 | E187: 1 | F187: CLT-12 | G187: 127/1 | H187: VI-10 | I187: - | J187: 1200 | K187: 1/4 | O187: 3.703703704 | P187: 5CLTG122012000 | Q187: EXT.CLTG-12 1/4M 1200RPM
A188: 185 | B188: 2021-03-22T10:25:00 | C188: CLIO CLIMATIZACION | D188: 234010 | E188: 1 | F188: CLT-16 | G188: 460/3 | H188: VE-14 | I188: - | J188: 1375 | K188: 1 | O188: 3.703703704 | P188: 5CLTG16B013750 | Q188: EXT.CLTG-16 1T 1375RPM
A189: 186 | B189: 2021-03-22T10:25:00 | C189: CLIO CLIMATIZACION | D189: 234010 | E189: 1 | F189: CLT-16 | G189: 460/3 | H189: VE-17 | I189: - | J189: 1300 | K189: 1 | O189: 3.703703704 | P189: 5CLTG16B013000 | Q189: EXT.CLTG-16 1T 1300RPM
A190: 187 | B190: 2021-03-22T10:25:00 | C190: CLIO CLIMATIZACION | D190: 234010 | E190: 1 | F190: CLT-14 | G190: 460/3 | H190: VE-18 | I190: - | J190: 1750 | K190: 3/4 | O190: 3.703703704 | P190: 5CLTG14A017500 | Q190: EXT.CLTG-14 3/4T 1750RPM
A191: 188 | B191: 2021-03-22T10:55:00 | C191: EDISON MAQUINARIA | D191: 234013 | E191: 14 | F191: HAIT-3-1250 | G191: 230/3 | H191: - | I191: - | J191: 700 | K191: 3 | N191: MALLA PROTECCION EN DESCARGA, SWITH IP 65 | O191: 3.703703704 | P191: 5HAIT1250263MA | Q191: Existe
A192: 189 | B192: 2021-03-22T11:20:00 | C192: SIERRA MADRE | D192: 234014 | E192: 1 | F192: CMI-630 | G192: 230/3 | H192: EX-01 | I192: 6500 CFM | J192: 1250 | K192: 5 | O192: 3.703703704 | P192: 5CMI630F125000 | Q192: Existe
A193: 190 | B193: 2021-03-22T11:20:00 | C193: SIERRA MADRE | D193: 234014 | E193: 1 | F193: CMI-560 | G193: 230/3 | H193: IN-01 | I193: 5200 CFM | J193: 1275 | K193: 5 | N193: MALLA PROTECCION EN SUCCION | O193: 3.703703704 | P193: 5CMI560F1275MA | Q193: EXT.CMI-560 5T 1275RPM MALLA
A194: 191 | B194: 2021-03-22T11:41:00 | C194: REFRIMART | D194: 234016 | E194: 1 | F194: CLT-10 | G194: 127/1 | H194: - | I194: - | J194: 2050 | K194: 1/2 | N194: PORTAFILTRO: 2-FI-008 FILTRO | O194: 3.703703704 | P194: 5CLTG1042050FI | Q194: EXT.CLTG-10 1/2M 2050RPM PTA.
A195: 192 | B195: 2021-03-22T12:37:00 | C195: EXPERTOS EN VENTILACION | D195: 234018 | E195: 2 | F195: CMI-900 | G195: 230/3 | H195: - | I195: - | J195: 500 | K195: 2 | L195: CW | M195: UB | N195: DESCARGA UB 0° | O195: 3.703703704 | P195: 5CMI900D0525UB | Q195: Existe
A196: 193 | B196: 2021-03-23T10:23:00 | C196: CLIMA IDEAL DE MORELOS | D196: 234052 | E196: 1 | F196: CRVLT-12 | G196: 230/3 | H196: - | I196: - | J196: 1725 | K196: 1/2 | O196: 3.703703704 | P196: 5CRVLT12901725 | Q196: EXT.CRVLT-12 1/2T 1725RPM
A197: 194 | B197: 2021-03-23T10:39:00 | C197: LETICIA VIDAL | D197: 234053 | E197: 1 | F197: CMI-355 | G197: 230/3 | H197: - | I197: 750 CFM | J197: 1875 | K197: 2 | N197: BRIDAS EN SUCCION Y DESCARGA | O197: =2/0.54 -> 3.703703704 | P197: 5CMI355D1875BD | Q197: EXT.CMI-355 2T 1875RPM BDAS.
A198: 195 | B198: 2021-03-23T10:39:00 | C198: LETICIA VIDAL | D198: 234053 | E198: 1 | F198: PORTAFILTRO APF 2000-2" | G198: - | H198: - | I198: - | J198: - | K198: - | N198: PORTAFILTRO FILTROS METÁLICOS, MERV-14 (SUCCIÓN) | O198: 3.703703704 | P198: 5APF-20004FI | Q198: REPETIDO
A199: 196 | B199: 2021-03-23T10:39:00 | C199: LETICIA VIDAL | D199: 234053 | E199: 1 | F199: CMI-250 | G199: 230/3 | H199: - | I199: 280 CFM | J199: 2550 | K199: 1/4 | N199: BRIDAS EN SUCCION Y DESCARGA | O199: 3.703703704 | P199: 5CMI25082550BD | Q199: EXT.CMI-250 1/4T 2550RPM BDAS.
A200: 197 | B200: 2021-03-23T10:39:00 | C200: LETICIA VIDAL | D200: 234053 | E200: 1 | F200: PORTAFILTRO APF 2000-2" | G200: - | H200: - | I200: - | J200: - | K200: - | N200: FILTROS METALICOS Y PLISADO MERV-7 (SUCCIÓN) | O200: 3.703703704 | P200: 5APF-20005FI | Q200: BANCO P.FILTRO 24"x24" FILT.ME
... 36 more rows

Sheet ABRIL 2021
A1: SIAC | P1: ING. INDUSTRIAL
F2: CARACTERISTICAS DEL EQUIPO
A3: ITEM | B3: FECHA SOLICITADA | C3: Nombre Cliente | D3: PEDIDO | E3: CANTIDAD | F3: EQUIPO | G3: Conexión | H3: TAG | I3: Caudal | J3: R.P.M | K3: MOTOR | L3: GIRO | M3: DESCARGA | N3: OBSERVACIONES | O3: FACTOR VENTA | P3: Codigo | Q3: Descripción | R3: COSTO | S3: PRECIO LISTA | T3: FECHA ENTREGA
A4: 1 | B4: 2021-04-05T11:00:00 | C4: AIRE PROYECTOS DEL GOLFO | D4: 234374 | E4: 1 | F4: CMI-250 | G4: 220/1 | H4: - | I4: 400 CFM | J4: 1800 | K4: 1/4 | O4: =2/0.54 -> 3.703703704 | P4: 5CMI2502018000 | Q4: Existe | S4: =R4*O4 -> 0
A5: 2 | B5: 2021-04-05T11:00:00 | C5: AIRE PROYECTOS DEL GOLFO | D5: 234374 | E5: 1 | F5: CMI-315 | G5: 220/1 | H5: - | I5: 720 CFM | J5: 1550 | K5: 1/3 | O5: =2/0.54 -> 3.703703704 | P5: 5CMI3153015750 | Q5: Existe | S5: 0
A6: 3 | B6: 2021-04-05T11:21:00 | C6: SOLUCIONES Y SERVICIOS EN AIRE | D6: 234380 | E6: 2 | F6: CDAH-30/28 | G6: 460/3 | H6: - | I6: - | J6: 525 | K6: 20 | O6: 3.703703704 | P6: 5CDAH328N05250 | Q6: EXT.CDAH-30/28 20T 525RPM | S6: 0
A7: 4 | B7: 2021-04-05T11:21:00 | C7: SOLUCIONES Y SERVICIOS EN AIRE | D7: 234380 | E7: 1 | F7: CDAH-30/28 | G7: 460/3 | H7: - | I7: - | J7: 450 | K7: 10 | O7: 3.703703704 | P7: 5CDAH3028H450 | Q7: Existe | S7: 0
A8: 5 | B8: 2021-04-05T11:29:00 | C8: EXPERTOS EN VENTILACION | D8: 234383 | E8: 1 | F8: CMI-315 | G8: 127/1 | H8: - | I8: - | J8: 2575 | K8: 2 | O8: 3.703703704 | P8: 5CMI3151025750 | Q8: EXT.CMI-315 2M 2575RPM | S8: 0
A9: 6 | B9: 2021-04-05T14:14:00 | C9: CONSTRUKTO | D9: 234402 | E9: 1 | F9: CCK-18/18 | G9: 230/3 | H9: VI-05 | I9: 4273 CFM | J9: 650 | K9: 2 | N9: SWITCH IP 65 | O9: 3.703703704 | P9: 5CCK1818D0650S | Q9: EXT.CCK-18/18 2T 650RPM SW | S9: 0
A10: 7 | B10: 2021-04-05T14:14:00 | C10: CONSTRUKTO | D10: 234402 | E10: 1 | F10: CDAHF1-12/12 | G10: 230/3 | H10: VI-06 | I10: 2018 CFM | J10: 1200 | K10: 1 | N10: SWITCH IP 65 | O10: 3.703703704 | P10: 5CDAHF112B120S | Q10: EXT.CDAHF1-12/12 1T 1200RPM SW | S10: 0
A11: 8 | B11: 2021-04-05T14:14:00 | C11: CONSTRUKTO | D11: 234402 | E11: 1 | F11: CDAHF1-9/9 | G11: 230/3 | H11: VI-07 | I11: 1169 CFM | J11: 1375 | K11: 3/4 | N11: SWITCH IP 65 | O11: 3.703703704 | P11: 5CDAHF199A137S | Q11: EXT.CDAHF1-9/9 3/4T 1375RPM SW | S11: 0
A12: 9 | B12: 2021-04-05T14:14:00 | C12: CONSTRUKTO | D12: 234402 | E12: 1 | F12: CCK-10/10 | G12: 230/3 | H12: VI-08 | I12: 1328 CFM | J12: 900 | K12: 3/4 | N12: SWITCH IP 65 | O12: 3.703703704 | P12: 5CCK1010A0900S | Q12: EXT.CCK-10/10 3/4T 900RPM SW | S12: 0
A13: 10 | B13: 2021-04-05T14:14:00 | C13: CONSTRUKTO | D13: 234402 | E13: 1 | F13: CCR-12/12 | G13: 230/3 | H13: VI-09 | I13: 479 CFM | J13: 900 | K13: 1/3 | N13: SWITCH IP 65 | O13: 3.703703704 | P13: 5CCR1212T0900S | Q13: EXT.CCR-12/12 1/3T 900RPM SW | S13: 0
A14: 11 | B14: 2021-04-05T14:14:00 | C14: CONSTRUKTO | D14: 234402 | E14: 1 | F14: CCR-12/12 | G14: 230/3 | H14: VI-10 | I14: 572 CFM | J14: 850 | K14: 1/3 | N14: SWITCH IP 65 | O14: 3.703703704 | P14: 5CCR1212T0850S | Q14: EXT.CCR-12/12 1/3T 850RPM SW | S14: 0
A15: 12 | B15: 2021-04-05T14:14:00 | C15: CONSTRUKTO | D15: 234402 | E15: 1 | F15: CDAHF1-18/18 | G15: 230/3 | H15: VI-11 | I15: 4418 CFM | J15: 625 | K15: 1 1/2 | N15: SWITCH IP 65 | O15: 3.703703704 | P15: 5CDAHF118C625S | Q15: Existe | S15: 0
A16: 13 | B16: 2021-04-05T14:14:00 | C16: CONSTRUKTO | D16: 234402 | E16: 1 | F16: CLT-16 | G16: 230/3 | H16: VE-01 | I16: 1830 CFM | J16: 1025 | K16: 1/2 | N16: SWITCH IP 65 | O16: 3.703703704 | P16: 5CLTG16901025S | Q16: EXT.CLTG-16 1/2T 1025RPM SW | S16: 0
A17: 14 | B17: 2021-04-05T14:14:00 | C17: CONSTRUKTO | D17: 234402 | E17: 1 | F17: CLT-10 | G17: 230/3 | H17: VE-02 | I17: 521 CFM | J17: 1475 | K17: 1/4 | N17: SWITCH IP 65 | O17: 3.703703704 | P17: 5CLTG10801475S | Q17: EXT.CLTG-10 1/4T 1475RPM SW | S17: 0
A18: 15 | B18: 2021-04-05T14:14:00 | C18: CONSTRUKTO | D18: 234402 | E18: 1 | F18: CLT-12 | G18: 230/3 | H18: VE-03 | I18: 985 CFM | J18: 1325 | K18: 1/3 | N18: SWITCH IP 65 | O18: 3.703703704 | P18: 5CLTG12T01325S | Q18: EXT.CLTG-12 1/3T 1325RPM SW | S18: 0
A19: 16 | B19: 2021-04-05T14:14:00 | C19: CONSTRUKTO | D19: 234402 | E19: 1 | F19: CLT-10 | G19: 230/3 | H19: VE-04 | I19: 602 CFM | J19: 1350 | K19: 1/4 | N19: SWITCH IP 65 | O19: 3.703703704 | P19: 5CLTG10801350S | Q19: EXT.CLTG-10 1/4T 1350RPM SW | S19: 0
A20: 17 | B20: 2021-04-05T14:14:00 | C20: CONSTRUKTO | D20: 234402 | E20: 1 | F20: CLT-10 | G20: 230/3 | H20: VE-05 | I20: 601 CFM | J20: 1200 | K20: 1/4 | N20: SWITCH IP 65 | O20: 3.703703704 | P20: 5CLTG10801200S | Q20: EXT.CLTG-10 1/4T 1200RPM SW | S20: 0
A21: 18 | B21: 2021-04-05T14:14:00 | C21: CONSTRUKTO | D21: 234402 | E21: 3 | F21: WXT 800-1-S | G21: 460/3 | H21: VE-06 | I21: 6083 CFM | J21: 800 | K21: 1 | N21: MALLA PROTECCION ASPIRACION, SWITCH IP 65, PERSIANA | O21: 3.703703704 | P21: 5WXT8001800PMS | Q21: EXT.WXT-800 1T 800RPM SW | S21: 0
A22: 19 | B22: 2021-04-05T14:14:00 | C22: CONSTRUKTO | D22: 234402 | E22: 1 | F22: CMI-630 | G22: 230/3 | H22: VE-09 | I22: 5315 CFM | J22: 925 | K22: 2 | N22: SWITCH IP 65 | O22: 3.703703704 | P22: 5CMI630D09250S | Q22: EXT.CMI-630 2T 925RPM SW | S22: 0
A23: 20 | B23: 2021-04-05T14:14:00 | C23: CONSTRUKTO | D23: 234402 | E23: 1 | F23: CMI-500 | G23: 230/3 | H23: VE-10 | I23: 4610 CFM | J23: 1450 | K23: 3 | N23: SWITCH IP 65 | O23: 3.703703704 | P23: 5CMI500E01450S | Q23: EXT.CMI-500 3T 1450RPM SW | S23: 0
A24: 21 | B24: 2021-04-05T14:14:00 | C24: CONSTRUKTO | D24: 234402 | E24: 1 | F24: CMI-355 | G24: 230/3 | H24: VE-11 | I24: 1226 CFM | J24: 1475 | K24: 1/2 | N24: SWITCH IP 65 | O24: 3.703703704 | P24: 5CMI355901475S | Q24: EXT.CMI-355 1/2T 1475RPM SW | S24: 0
A25: 22 | B25: 2021-04-05T14:14:00 | C25: CONSTRUKTO | D25: 234402 | E25: 1 | F25: CMI-400 | G25: 230/3 | H25: VE-12 | I25: 1708 CFM | J25: 1400 | K25: 3/4 | N25: SWITCH IP 65 | O25: 3.703703704 | P25: 5CMI400A01400S | Q25: EXT.CMI-400 3/4T 1400RPM SW | S25: 0
A26: 23 | B26: 2021-04-05T14:14:00 | C26: CONSTRUKTO | D26: 234402 | E26: 1 | F26: CMI-355 | G26: 230/3 | H26: VE-13 | I26: 515 CFM | J26: 1525 | K26: 1/4 | N26: SWITCH IP 65 | O26: 3.703703704 | P26: 5CMI355801525S | Q26: EXT.CMI-355 1/4T1525RPM SW | S26: 0
A27: 24 | B27: 2021-04-05T14:14:00 | C27: CONSTRUKTO | D27: 234402 | E27: 1 | F27: CMI-250 | G27: 230/3 | H27: VE-14 | I27: 691 CFM | J27: 1950 | K27: 1/4 | N27: SWITCH IP 65 | O27: 3.703703704 | P27: 5CMI250801950S | Q27: EXT.CMI-250 1/4T 1950RPM SW | S27: 0
A28: 25 | B28: 2021-04-05T14:14:00 | C28: CONSTRUKTO | D28: 234402 | E28: 1 | F28: CMI-800 | G28: 230/3 | H28: VE-15 | I28: 5603 CFM | J28: 575 | K28: 1 1/2 | N28: SWITCH IP 65 | O28: 3.703703704 | P28: 5CMI800C05750S | Q28: EXT.CMI-800 1.5T 575RPM SW | S28: 0
A29: 26 | B29: 2021-04-06T08:42:00 | C29: PERSSA | D29: 234417 | E29: 2 | F29: CCR-12/12 | G29: 220/1 | H29: VE-02 | I29: 2074 CFM | J29: 800 | K29: 3/4 | O29: 3.703703704 | P29: 5CCR1212508000 | Q29: Existe | S29: 0
A30: 27 | B30: 2021-04-06T08:42:00 | C30: PERSSA | D30: 234417 | E30: 2 | F30: CRHLT-14 | G30: 220/1 | H30: VE-01 | I30: 2100 CFM | J30: 1800 | K30: 3/4 | O30: 3.703703704 | P30: 5CRHLT14501800 | Q30: EXT.CRHLT-14 3/4M 1800RPM | S30: 0
A31: 28 | B31: 2021-04-07T08:21:00 | C31: ABEASA | D31: 234457 | E31: 1 | F31: CMI-315 | G31: 230/3 | H31: - | I31: 1482 CFM | J31: 1750 | K31: 1/2 | O31: 3.703703704 | P31: 5CMI3159017750 | Q31: Existe | S31: 0
A32: 29 | B32: 2021-04-07T08:35:00 | C32: T Y P | D32: 234459 | E32: 2 | F32: CDAHF2-30/28 | G32: 460/3 | H32: VE-01 | I32: - | J32: 500 | K32: 20 | N32: LOUVERS DE PROTECCION EN SUCCION | O32: 3.703703704 | P32: 5CDAHF2328N6LV | Q32: Existe | S32: 0
A33: 30 | B33: 2021-04-07T10:28:00 | C33: REFACCIONES Y SERVICIOS PARA CLIMA | D33: 234464 | E33: 4 | F33: CRHLT-12 | G33: 127/1 | H33: - | I33: 1460 CFM | J33: 1525 | K33: 1/2 | O33: 3.703703704 | P33: 5CRHLT12401525 | Q33: Existe | S33: 0
A34: 31 | B34: 2021-04-07T16:18:00 | C34: T Y P | D34: 234492 | E34: 3 | F34: CRVLT-24 | G34: 230/3 | H34: - | I34: 7300 CFM | J34: 850 | K34: 2 | O34: 3.703703704 | P34: 5CRVLT24D08650 | Q34: Existe | S34: 0
A35: 32 | B35: 2021-04-07T16:18:00 | C35: T Y P | D35: 234492 | E35: 2 | F35: CDAHF2-22/22 | G35: 230/3 | H35: - | I35: 13000 CFM | J35: 625 | K35: 7 1/2 | O35: 3.703703704 | P35: 5CDAHF222G0627 | Q35: Existe | S35: 0
A36: 33 | B36: 2021-04-07T16:18:00 | C36: T Y P | D36: 234492 | E36: 1 | F36: TAT-630/H | G36: 460/3 | H36: - | I36: 6350 CFM | J36: 1300 | K36: 2 | N36: 460 V | O36: 3.703703704 | P36: 5TAT-630/H460V | Q36: Existe | S36: 0
A37: 34 | B37: 2021-04-08T10:14:00 | C37: BARCEL | D37: 234506 | E37: 1 | F37: CRVHT-33 | G37: 230/3 | H37: - | I37: - | J37: 650 | K37: 5 | N37: SWITCH IP65 | O37: 3.703703704 | P37: 5CRVHT33F0651S | Q37: EXT.CRVHT-33 5T 650RPM SW | S37: 0
A38: 35 | B38: 2021-04-08T15:35:00 | C38: TRANE | D38: 234524 | E38: 1 | F38: CLT-16 | G38: 230/3 | H38: - | I38: 3305 CFM | J38: 1775 | K38: 3 | N38: CUBREMOTOR | O38: 3.703703704 | P38: 5CLTH16E1775CM | Q38: EXT.CLTH-16 3T 1775RPM CUBRE | S38: 0
A39: 36 | B39: 2021-04-08T15:35:00 | C39: TRANE | D39: 234524 | E39: 1 | F39: CLT-16 | G39: 230/3 | H39: - | I39: 3017 CFM | J39: 1875 | K39: 5 | N39: CUBREMOTOR | O39: 3.703703704 | P39: 5CLTH16F1875CM | Q39: EXT.CLTH-16 5T 1875RPM CUBRE | S39: 0
A40: 37 | B40: 2021-04-08T15:35:00 | C40: TRANE | D40: 234524 | E40: 3 | F40: CLT-16 | G40: 230/3 | H40: - | I40: 1200 CFM | J40: 1725 | K40: 2 | N40: CUBREMOTOR | O40: 3.703703704 | P40: 5CLTH16D1725CM | Q40: EXT.CLTH-16 2T 1725RPM CUBRE | S40: 0
A41: 38 | B41: 2021-04-08T15:35:00 | C41: TRANE | D41: 234524 | E41: 1 | F41: CLT-16 | G41: 230/3 | H41: - | I41: 1106 CFM | J41: 1725 | K41: 2 | N41: CUBREMOTOR | O41: 3.703703704 | P41: REPETIDO | Q41: REPETIDO | S41: 0
A42: 39 | B42: 2021-04-08T15:35:00 | C42: TRANE | D42: 234524 | E42: 1 | F42: CRHLT-12 | G42: 127/1 | I42: 450 CFM | J42: 950 | K42: 1/4 | O42: 3.703703704 | P42: 5CRHLT12209500 | Q42: Existe | S42: 0
A43: 40 | B43: 2021-04-08T15:35:00 | C43: TRANE | D43: 234524 | E43: 3 | F43: CRHLT-14 | G43: 127/1 | I43: 1080 CFM | J43: 1275 | K43: 1/4 | O43: 3.703703704 | P43: 5CRHLT14201275 | Q43: Existe | S43: 0
A44: 41 | B44: 2021-04-08T15:35:00 | C44: TRANE | D44: 234524 | E44: 1 | F44: CRHLT-14 | G44: 127/1 | I44: 1000 CFM | J44: 1100 | K44: 1/4 | O44: 3.703703704 | P44: 5CRHLT14201120 | Q44: Existe | S44: 0
A45: 42 | B45: 2021-04-08T15:35:00 | C45: TRANE | D45: 234524 | E45: 1 | F45: CRHLT-16 | G45: 127/1 | I45: 2244 CFM | J45: 1150 | K45: 1/4 | O45: 3.703703704 | P45: 5CRHLT16201150 | Q45: EXT.CRHLT-16 1/4M 1150RPM | S45: 0
A46: 43 | B46: 2021-04-08T15:35:00 | C46: TRANE | D46: 234524 | E46: 1 | F46: CRHLT-18 | G46: 127/1 | I46: 3026 CFM | J46: 1200 | K46: 3/4 | O46: 3.703703704 | P46: 5CRHLT18501200 | Q46: EXT.CRHLT-18 3/4M 1200RPM | S46: 0
A47: 44 | B47: 2021-04-08T16:12:00 | C47: SOCONUSCO | D47: 234532 | E47: 1 | F47: CCK-12/12 | G47: 230/3 | H47: - | I47: 1120 CFM | J47: 850 | K47: 3/4 | O47: 3.703703704 | P47: 5CCK1212A08500 | Q47: Existe | S47: 0
A48: 45 | B48: 2021-04-08T16:12:00 | C48: SOCONUSCO | D48: 234532 | E48: 1 | F48: CRHLT-12 | G48: 230/3 | H48: - | I48: 1328 CFM | J48: 1575 | K48: 1/2 | O48: 3.703703704 | P48: 5CRHLT12901575 | Q48: EXT.CRHLT-12 1/2T 1575RPM | S48: 0
A49: 46 | B49: 2021-04-08T16:16:00 | C49: J & C TECHNOLOGY | D49: 232461 | E49: 5 | F49: CDAH-7/7 | G49: 230/3 | H49: EXT BAÑOS HAB | I49: 1600 M3/HR | J49: 1500 | K49: 1 | O49: 3.703703704 | P49: 5CDAH77B015000 | Q49: EXT.CDAH-7/7 1T 1500RPM | S49: 0
A50: 47 | B50: 2021-04-08T17:16:00 | C50: IDSAA | D50: 234536 | E50: 1 | F50: CDAHF1-12/12 | G50: 230/3 | H50: - | I50: 1800 CFM | J50: 700 | K50: 1/3 | O50: 3.703703704 | P50: 5CDAHF112T0700 | Q50: EXT.CDAHF1-12/12 1/3T 700RPM | S50: 0
A51: 48 | B51: 2021-04-08T17:16:00 | C51: IDSAA | D51: 234536 | E51: 1 | F51: CRVLT-16 | G51: 230/3 | H51: - | I51: 2345 CFM | J51: 1400 | K51: 1 1/2 | O51: 3.703703704 | P51: 5CRVLT16C01400 | Q51: EXT.CRVLT-16 1.5T 1400RPM | S51: 0
A52: 49 | B52: 2021-04-08T17:32:00 | C52: REACSA | D52: 234537 | E52: 1 | F52: CRVHT-18 | G52: 230/3 | H52: - | I52: - | J52: 1600 | K52: 2 | O52: 3.703703704 | P52: 5CRVHT18D01600 | Q52: Existe | S52: 0
A53: 50 | B53: 2021-04-09T17:53:00 | C53: T Y P | D53: 234585 | E53: 4 | F53: CDAVF2-30/28 | G53: 460/3 | H53: - | I53: - | J53: 500 | K53: 15 | O53: 3.703703704 | P53: 5CDAVF2328M500 | Q53: EXT.CDAVF2-30/28 15T 500RPM | S53: 0
A54: 51 | B54: 2021-04-09T17:53:00 | C54: T Y P | D54: 234585 | E54: 4 | F54: CMI-1000 | G54: 460/3 | H54: - | I54: - | J54: 675 | K54: 10 | O54: 3.703703704 | P54: 5CMI1000H06700 | Q54: Existe | S54: 0
A55: 52 | B55: 2021-04-09T17:53:00 | C55: T Y P | D55: 234585 | E55: 3 | F55: CDAVF2-25/25 | G55: 460/3 | H55: - | I55: - | J55: 600 | K55: 7 1/2 | O55: 3.703703704 | P55: 5CDAVF225G0600 | Q55: EXT.CDAVF2-25/25 7.5T 600RPM | S55: 0
A56: 53 | B56: 2021-04-09T17:53:00 | C56: T Y P | D56: 234585 | E56: 4 | F56: CDAVF2-25/25 | G56: 460/3 | H56: - | I56: - | J56: 625 | K56: 10 | O56: 3.703703704 | P56: 5CDAVF225H0625 | Q56: EXT.CDAVF2-25/25 10T 625RPM | S56: 0
A57: 54 | B57: 2021-04-09T17:53:00 | C57: T Y P | D57: 234585 | E57: 4 | F57: CMI-900 | G57: 460/3 | H57: - | I57: - | J57: 625 | K57: 5 | O57: 3.703703704 | P57: 5CMI900F062500 | Q57: Existe | S57: 0
A58: 55 | B58: 2021-04-09T17:53:00 | C58: T Y P | D58: 234585 | E58: 1 | F58: CDAVF2-22/22 | G58: 460/3 | H58: - | I58: - | J58: 675 | K58: 5 | O58: 3.703703704 | P58: 5CDAVF222F0675 | Q58: EXT.CDAVF2-22/22 5T 675RPM | S58: 0
A59: 56 | B59: 2021-04-09T17:53:00 | C59: T Y P | D59: 234585 | E59: 1 | F59: CDAVF2-25/25 | G59: 460/3 | H59: - | I59: - | J59: 575 | K59: 5 | O59: 3.703703704 | P59: 5CDAVF225F0575 | Q59: EXT.CDAVF2-25/25 5T 575RPM | S59: 0
A60: 57 | B60: 2021-04-12T09:09:00 | C60: ECONOAIRE | D60: 234607 | E60: 1 | F60: CRHLT-16 | G60: 127/1 | H60: ER11 | I60: 3496 CFM | J60: 1100 | K60: 3/4 | O60: 3.703703704 | P60: 5CRHLT16501125 | Q60: Existe | S60: 0
A61: 58 | B61: 2021-04-12T09:37:00 | C61: REFACCIONES Y SERVICIOS PARA CLIMA | D61: 234608 | E61: 1 | F61: CRVLT-20 | G61: 230/3 | H61: - | I61: - | J61: 1350 | K61: 2 | O61: 3.703703704 | P61: 5CRVLT20D01350 | Q61: Existe | S61: 0
A62: 59 | B62: 2021-04-12T11:51:00 | C62: EXPERTOS EN VENTILACION | D62: 234614 | E62: 3 | F62: RXT 1500-10T-36/S | G62: 230/3 | H62: - | I62: - | J62: 550 | K62: 10 | O62: 3.703703704 | P62: 5NRXT15001036S | Q62: Existe | S62: 0
A63: 60 | B63: 2021-04-12T11:52:00 | C63: ECOLOGIA ATMOSFERICA | D63: 234618 | E63: 3 | F63: CMI-630 | G63: 230/3 | H63: - | I63: 6500 CFM | J63: 1050 | K63: 3 | N63: CCW, DESCARGA UB | O63: 3.703703704 | P63: 5CMI630E105IUB | Q63: EXT.CMI-630 3T 1050RPM GI 0° | S63: 0
A64: 61 | B64: 2021-04-12T17:06:00 | C64: CLIMAS ALFA | D64: 234642 | E64: 1 | F64: CDAHF2-12/12 | G64: 230/3 | H64: - | I64: 2378 CFM | J64: 975 | K64: 1 | N64: FILTRO METALICO Y FILTRO PLISADO MERV-13 | O64: 3.703703704 | P64: 5CDAHF212B0975 | Q64: EXT.CDAHF2-12/12 1T 975RPM | S64: 0
A65: 62 | B65: 2021-04-12T17:06:00 | C65: CLIMAS ALFA | D65: 234642 | E65: 1 | F65: CDAHF2-12/12 | G65: 230/3 | H65: - | I65: 4381 CFM | J65: 1200 | K65: 3 | N65: FILTRO METALICO Y FILTRO PLISADO MERV-13 | O65: 3.703703704 | P65: 5CDAHF212E1202 | Q65: EXT.CDAHF2-12/12 3T 1200RPM | S65: 0
A66: 63 | B66: 2021-04-12T17:34:00 | C66: CLIMA REAL | D66: 234646 | E66: 1 | F66: CLTH-12 | G66: 230/3 | H66: - | I66: - | J66: 2300 | K66: 1 1/2 | O66: 3.703703704 | P66: 5CLTH12C023000 | Q66: EXT.CLTH-12 1.5T 2300RPM | S66: 0
A67: 64 | B67: 2021-04-12T17:34:00 | C67: CLIMA REAL | D67: 234646 | E67: 1 | F67: CLT-12 | G67: 230/3 | H67: - | I67: - | J67: 1750 | K67: 3/4 | O67: 3.703703704 | P67: 5CLTG12A017510 | Q67: EXT.CLTG-12 3/4T 1750RPM | S67: 0
A68: 65 | B68: 2021-04-12T17:34:00 | C68: CLIMA REAL | D68: 234646 | E68: 1 | F68: CMI-1000 | G68: 230/3 | H68: - | I68: - | J68: 575 | K68: 5 | O68: 3.703703704 | P68: 5CMI1000F05760 | Q68: EXT.CMI-1000 5T 575RPM | S68: =R68*O68 -> 0
A69: 66 | B69: 2021-04-12T17:34:00 | C69: CLIMA REAL | D69: 234646 | E69: 1 | F69: CMI-1000 | G69: 230/3 | H69: - | I69: - | J69: 750 | K69: 10 | O69: =2/0.54 -> 3.703703704 | P69: 5CMI1000H07500 | Q69: EXT.CMI-1000 10T 750RPM | S69: 0
A70: 67 | B70: 2021-04-13T08:36:00 | C70: EQUIPOS Y MAQUINARIA DEL CENTRO | D70: 234657 | E70: 1 | F70: WXD 630-3/4-6P/H/S | G70: 230/3 | H70: - | I70: - | J70: 1135 | K70: 3/4 | O70: 3.703703704 | P70: 5WXD630A1135 | Q70: EXT.WXD-630/H 3/4T 6P | S70: 0
A71: 68 | B71: 2021-04-13T08:48:00 | C71: TODO EN VENTILACION | D71: 234659 | E71: 3 | F71: CMI-500 INOX | G71: 230/3 | H71: - | I71: 3220 M3/H | J71: 1675 | K71: 3 | O71: 3.703703704 | P71: 5CMI500E16INOX | Q71: EXT.CMI-500 3T 1675RPM INOX | S71: 0
A72: 69 | B72: 2021-04-13T09:23:00 | C72: JULIO CESAR GARCIA | D72: 234664 | E72: 4 | F72: DAL-16-V-3 | G72: 230/3 | H72: - | I72: - | J72: 496 | K72: 3 | N72: SWITCH IP 65, LOUVER EN SUCCION | O72: 3.703703704 | P72: 5UDLVF16E496LV | Q72: LAV.DALV-16 3T 496RPM LV SW | S72: 0
A73: 70 | B73: 2021-04-13T09:57:00 | C73: LETICIA VIDAL | D73: 234665 | E73: 1 | F73: CMI-355 | G73: 230/3 | H73: - | I73: 1215 CFM | J73: 1950 | K73: 3/4 | N73: BRIDA EN SUCCION Y DESCARGA | O73: 3.703703704 | P73: 5CMI355A1950BD | Q73: EXT.CMI-355 3/4T 1950RPM BDAS. | S73: 0
A74: 71 | B74: 2021-04-13T09:57:00 | C74: LETICIA VIDAL | D74: 234665 | E74: 1 | F74: APF 2000-2" | G74: - | H74: - | I74: - | J74: - | K74: - | N74: FILTROS METALICOS, MERV-15 2-FI-2415 | O74: 3.703703704 | P74: 5APF-20006FI | Q74: BANCO P.FILTRO 24"x24" FILTROS | S74: 0
A75: 72 | B75: 2021-04-13T09:57:00 | C75: LETICIA VIDAL | D75: 234665 | E75: 1 | F75: CMI-400 | G75: 230/3 | H75: - | I75: 1400 CFM | J75: 1850 | K75: 1 1/2 | N75: BRIDA EN SUCCION Y DESCARGA | O75: 3.703703704 | P75: 5CMI400C1850BD | Q75: Existe | S75: 0
A76: 73 | B76: 2021-04-13T09:57:00 | C76: LETICIA VIDAL | D76: 234665 | E76: 1 | F76: APF 2000-2" | G76: - | H76: - | I76: - | J76: - | K76: - | N76: FILTROS METALICOS, MERV-15 2-FI-2415 | O76: 3.703703704 | P76: 5APF-20006FI | Q76: BANCO P.FILTRO 24"x24" FILTROS | S76: 0
A77: 74 | B77: 2021-04-13T12:34:00 | C77: LA MUÑO | D77: 234675 | E77: 1 | F77: ATFS-630 | G77: - | H77: - | I77: - | J77: - | K77: - | O77: 3.703703704 | P77: FORMATO | Q77: FORMATO | S77: 0
A78: 75 | B78: 2021-04-13T13:36:00 | C78: SOCONUSCO | D78: 234682 | E78: 1 | F78: CMI-250 | G78: 220/1 | H78: - | I78: - | J78: 1350 | K78: 1/4 | O78: 3.703703704 | P78: 5CMI2502013500 | Q78: Existe | S78: 0
A79: 76 | B79: 2021-04-14T10:36:00 | C79: VALVERDE FLORES IRMA | D79: 234703 | E79: 1 | F79: CMI-560 | G79: 230/3 | H79: - | I79: 5386 CFM | J79: 1500 | K79: 5 | O79: 3.703703704 | P79: 5CMI560F014920 | Q79: Existe | S79: 0
A80: 77 | B80: 2021-04-14T12:22:00 | C80: RADIO REFRIGERACION DE JUAREZ | D80: 234711 | E80: 1 | F80: CMI-400 | G80: 230/3 | H80: Ext-01 | I80: 1716 CFM | J80: 1750 | K80: 1 1/2 | N80: CANCELADO YA NO TRABAJAR CODIGO | O80: 3.703703704 | S80: 0
A81: 78 | B81: 2021-04-14T12:22:00 | C81: RADIO REFRIGERACION DE JUAREZ | D81: 234711 | E81: 1 | F81: CMI-400 | G81: 230/3 | H81: Ext-02 | I81: 1112 CFM | J81: 1475 | K81: 3/4 | N81: CANCELADO YA NO TRABAJAR CODIGO | O81: 3.703703704 | S81: 0
A82: 79 | B82: 2021-04-14T12:22:00 | C82: RADIO REFRIGERACION DE JUAREZ | D82: 234711 | E82: 1 | F82: CMI-355 | G82: 230/3 | H82: Ext-03 | I82: 1082 CFM | J82: 1700 | K82: 3/4 | O82: 3.703703704 | P82: 5CMI355A017000 | Q82: EXT.CMI-355 3/4T 1700RPM | S82: 0
A83: 80 | B83: 2021-04-14T12:22:00 | C83: RADIO REFRIGERACION DE JUAREZ | D83: 234711 | E83: 1 | F83: CMI-250 | G83: 230/3 | H83: Ext-04 | I83: 451 CFM | J83: 2500 | K83: 1/3 | N83: CANCELADO YA NO TRABAJAR CODIGO | O83: 3.703703704 | S83: 0
A84: 81 | B84: 2021-04-14T16:00:00 | C84: PROVEEDORA ELECTRICA FGA | D84: 234723 | E84: 4 | F84: CCL 18/18 | G84: 460/3 | H84: - | I84: - | J84: 750 | K84: 5 | N84: RECUBRIMIENTO EPOXICO | O84: 3.703703704 | P84: 5CCL1818F75EPX | Q84: EXT.CCL-18/18 5T 750RPM EPOX. | S84: 0
A85: 82 | B85: 2021-04-14T16:00:00 | C85: PROVEEDORA ELECTRICA FGA | D85: 234723 | E85: 2 | F85: CRHHT-30 | G85: 460/3 | H85: - | I85: - | J85: 750 | K85: 5 | O85: 3.703703704 | P85: 5CRHHT30F07500 | Q85: EXT.CRHHT-30 5T 750RPM | S85: 0
A86: 83 | B86: 2021-04-14T16:30:00 | C86: I.MONSERRAT | D86: 234724 | E86: 1 | F86: DAL-9-H-3/4 | G86: 460/3 | H86: ULA-01 | I86: - | J86: 625 | K86: 3/4 | O86: 3.703703704 | P86: 5UDLHF9A062500 | Q86: Existe | S86: 0
A87: 84 | B87: 2021-04-14T16:30:00 | C87: I.MONSERRAT | D87: 234724 | E87: 1 | F87: CRVLT-20 | G87: 220/1 | H87: VD-01 | I87: 3000 CFM | J87: 975 | K87: 3/4 | O87: 3.703703704 | P87: 5CRVLT20509750 | Q87: EXT.CRVLT-20 3/4M 975RPM | S87: 0
A88: 85 | B88: 2021-04-15T10:38:00 | C88: SENSA CLIMATIZACION | D88: 234746 | E88: 4 | F88: CLT-10 | G88: 127/1 | H88: - | I88: 900 CFM | J88: 1575 | K88: 1/3 | N88: SIN CUBIERTA MOTOR | O88: 3.703703704 | P88: 5CLTG103016000 | Q88: Existe | S88: 0
A89: 86 | B89: 2021-04-15T10:38:00 | C89: SENSA CLIMATIZACION | D89: 234746 | E89: 4 | F89: CLT-7 | G89: 127/1 | H89: - | I89: 300 CFM | J89: 1450 | K89: 1/4 | N89: SIN CUBIERTA MOTOR | O89: 3.703703704 | P89: 5CLTG7214500 | Q89: Existe | S89: 0
A90: 87 | B90: 2021-04-16T08:41:00 | C90: VERSACON | D90: 234782 | E90: 1 | F90: CLT-16 | G90: 230/3 | H90: VEX-N0-001-VEN | I90: 2073 CFM | J90: 925 | K90: 1/2 | N90: CUBIERTA MOTOR | O90: 3.703703704 | P90: 5CLTG1690925CM | Q90: EXT.CLTG-16 1/2T 925RPM CUBRE | S90: 0
A91: 88 | B91: 2021-04-16T08:41:00 | C91: VERSACON | D91: 234782 | E91: 1 | F91: CLT-16 | G91: 230/3 | H91: VEX-N0-002-VEN | I91: 1742 CFM | J91: 950 | K91: 1/2 | N91: CUBIERTA MOTOR | O91: 3.703703704 | P91: 5CLTG1690950CM | Q91: Existe | S91: 0
A92: 89 | B92: 2021-04-16T08:41:00 | C92: VERSACON | D92: 234782 | E92: 1 | F92: CLT-14 | G92: 230/3 | H92: VEX-N0-003-VEN | I92: 546 CFM | J92: 675 | K92: 1/4 | N92: CUBIERTA MOTOR | O92: 3.703703704 | P92: 5CLTG14A0675CM | Q92: EXT.CLTG-14 1/4T 675RPM CUBRE | S92: 0
A93: 90 | B93: 2021-04-16T08:41:00 | C93: VERSACON | D93: 234782 | E93: 1 | F93: CLT-14 | G93: 230/3 | H93: VEX-N0-004-VEN | I93: 1848 CFM | J93: 1525 | K93: 3/4 | N93: CUBIERTA MOTOR | O93: 3.703703704 | P93: 5CLTG14A1525CM | Q93: EXT.CLTG-14 3/4T 1525RPM CUBRE | S93: 0
A94: 91 | B94: 2021-04-16T08:41:00 | C94: VERSACON | D94: 234782 | E94: 1 | F94: CLT-22 | G94: 230/3 | H94: VEX-N0-005-VEN | I94: 4015 CFM | J94: 775 | K94: 1 | N94: CUBIERTA MOTOR | O94: 3.703703704 | P94: 5CLTG22B0775CM | Q94: EXT.CLTG-22 1T 775RPM CUBRE | S94: 0
A95: 92 | B95: 2021-04-16T08:41:00 | C95: VERSACON | D95: 234782 | E95: 1 | F95: CLT-16 | G95: 230/3 | H95: VEX-N0-006-VEN | I95: 1787 CFM | J95: 975 | K95: 3/4 | N95: CUBIERTA MOTOR | O95: 3.703703704 | P95: 5CLTG16A0975CM | Q95: EXT.CLTG-16 3/4T 975RPM CUBRE | S95: 0
A96: 93 | B96: 2021-04-16T08:41:00 | C96: VERSACON | D96: 234782 | E96: 1 | F96: CLT-7 | G96: 127/1 | H96: VEX-N0-012-VEN | I96: 325 CFM | J96: 1425 | K96: 1/4 | N96: CUBIERTA MOTOR | O96: 3.703703704 | P96: 5CLTG7214500 | Q96: Existe | S96: 0
A97: 94 | B97: 2021-04-16T08:41:00 | C97: VERSACON | D97: 234782 | E97: 1 | F97: CLT-16 | G97: 230/3 | H97: VI-N0-001-VEN | I97: 3606 CFM | J97: 1475 | K97: 2 | N97: CUBIERTA MOTOR | O97: 3.703703704 | P97: 5CLTG16D1475CM | Q97: Existe | S97: 0
A98: 95 | B98: 2021-04-16T08:41:00 | C98: VERSACON | D98: 234782 | E98: 1 | F98: CLT-7 | G98: 127/1 | H98: VEX-N1-001-VEN | I98: 484 CFM | J98: 1850 | K98: 1/4 | N98: CUBIERTA MOTOR | O98: 3.703703704 | P98: 5CLTG7201875CM | Q98: Existe | S98: 0
A99: 96 | B99: 2021-04-16T08:41:00 | C99: VERSACON | D99: 234782 | E99: 1 | F99: CLT-7 | G99: 127/1 | H99: VEX-N1-002-VEN | I99: 202 CFM | J99: 1200 | K99: 1/4 | N99: CUBIERTA MOTOR | O99: 3.703703704 | P99: 5CLTG7201200CM | Q99: EXT.CLTG-7 1/4M 1200RPM CUBRE | S99: 0
A100: 97 | B100: 2021-04-16T08:41:00 | C100: VERSACON | D100: 234782 | E100: 1 | F100: CLT-14 | G100: 230/3 | H100: VEX-N1-003-VEN | I100: 1437 CFM | J100: 1250 | K100: 1/3 | N100: CUBIERTA MOTOR | O100: 3.703703704 | P100: 5CLTG14T1250CM | Q100: EXT.CLTG-14 1/3T 1250RPM CUBRE | S100: 0
A101: 98 | B101: 2021-04-16T08:41:00 | C101: VERSACON | D101: 234782 | E101: 1 | F101: CLT-14 | G101: 230/3 | H101: VEX-N1-004-VEN | I101: 1626 CFM | J101: 1375 | K101: 1/2 | N101: CUBIERTA MOTOR | O101: 3.703703704 | P101: 5CLTG1491375CM | Q101: EXT.CLTG-14 1/2T 1375RPM CUBRE | S101: 0
A102: 99 | B102: 2021-04-16T08:41:00 | C102: VERSACON | D102: 234782 | E102: 1 | F102: CLT-14 | G102: 230/3 | H102: VEX-N1-005-VEN | I102: 992 CFM | J102: 1325 | K102: 1/2 | N102: CUBIERTA MOTOR | O102: 3.703703704 | P102: 5CLTG1491325CM | Q102: EXT.CLTG-14 1/2T 1325RPM CUBRE | S102: 0
A103: 100 | B103: 2021-04-16T08:41:00 | C103: VERSACON | D103: 234782 | E103: 1 | F103: CMI-250 | G103: 127/1 | H103: VEX-N1-006-VEN | I103: 787 CFM | J103: 1900 | K103: 1/4 | O103: 3.703703704 | P103: 5CMI2502019000 | Q103: Existe | S103: 0
A104: 101 | B104: 2021-04-16T08:41:00 | C104: VERSACON | D104: 234782 | E104: 1 | F104: CMI-250 | G104: 127/1 | H104: VEX-N1-007-VEN | I104: 771 CFM | J104: 1900 | K104: 1/4 | O104: 3.703703704 | P104: 5CMI2502019000 | Q104: REPETIDO | S104: 0
A105: 102 | B105: 2021-04-16T08:41:00 | C105: VERSACON | D105: 234782 | E105: 1 | F105: CLT-12 | G105: 127/1 | H105: VEX-N2-001-VEN | I105: 969 CFM | J105: 1075 | K105: 1/4 | N105: CUBIERTA MOTOR | O105: 3.703703704 | P105: 5CLTG1221076CM | Q105: Existe | S105: 0
A106: 103 | B106: 2021-04-16T08:41:00 | C106: VERSACON | D106: 234782 | E106: 1 | F106: CLT-12 | G106: 127/1 | H106: VEX-N2-002-VEN | I106: 1010 CFM | J106: 1175 | K106: 1/4 | N106: CUBIERTA MOTOR | O106: 3.703703704 | P106: 5CLTG1221175CM | Q106: Existe | S106: 0
A107: 104 | B107: 2021-04-16T08:41:00 | C107: VERSACON | D107: 234782 | E107: 1 | F107: CLT-10 | G107: 127/1 | H107: VEX-N2-003-VEN | I107: 967 CFM | J107: 1625 | K107: 1/3 | N107: CUBIERTA MOTOR | O107: 3.703703704 | P107: 5CLTG1031650CM | Q107: Existe | S107: 0
A108: 105 | B108: 2021-04-16T08:41:00 | C108: VERSACON | D108: 234782 | E108: 1 | F108: CLT-7 | G108: 127/1 | H108: VEX-N2-004-VEN | I108: 325 CFM | J108: 1450 | K108: 1/4 | N108: CUBIERTA MOTOR | O108: 3.703703704 | P108: 5CLTG7201450CM | Q108: EXT.CLTG-7 1/4M 1450RPM CUBRE | S108: 0
A109: 106 | B109: 2021-04-16T08:41:00 | C109: VERSACON | D109: 234782 | E109: 1 | F109: CLT-10 | G109: 127/1 | H109: VEX-N2-005-VEN | I109: 712 CFM | J109: 1275 | K109: 1/4 | N109: CUBIERTA MOTOR | O109: 3.703703704 | P109: 5CLTG102130CM | Q109: Existe | S109: 0
A110: 107 | B110: 2021-04-16T10:21:00 | C110: AIRE PROYECTOS DEL GOLFO | D110: 234785 | E110: 1 | F110: CMI-315 | G110: 220/1 | H110: - | I110: 730 CFM | J110: 1525 | K110: 1/3 | O110: 3.703703704 | P110: 5CMI3153153900 | Q110: Existe | S110: 0
A111: 108 | B111: 2021-04-16T11:39:00 | C111: EXPERTOS EN VENTILACION | D111: 234792 | E111: 2 | F111: CRVHT-10 | G111: 230/3 | H111: - | I111: - | J111: 2050 | K111: 1/2 | O111: 3.703703704 | P111: 5CRVHT10902050 | Q111: Existe | S111: 0
A112: 109 | B112: 2021-04-16T12:58:00 | C112: TRANE | D112: 234794 | E112: 1 | F112: CMI-400 | G112: 230/3 | H112: - | I112: 2900 CFM | J112: 1350 | K112: 3/4 | O112: 3.703703704 | P112: 5CMI400A013500 | Q112: Existe | S112: 0
A113: 110 | B113: 2021-04-16T16:29:00 | C113: ABEASA | D113: 234809 | E113: 1 | F113: CDAHF1-12/12 | G113: 230/3 | H113: - | I113: - | J113: 1000 | K113: 1 1/2 | O113: 3.703703704 | P113: 5CDAHF112C1020 | Q113: Existe | S113: 0
A114: 111 | B114: 2021-04-16T16:43:00 | C114: MYCAIR | D114: 234810 | E114: 1 | F114: CMI-315 | G114: - | H114: - | I114: - | J114: 2225 | K114: - | N114: CCW, CONSIDERAR EQUIPO + TRANMSION, EL MOTOR LO PROPOCIONA CLIENTE: 1 HP 4P 230V-3F-60 HZ ARM 56 | O114: 3.703703704 | P114: 5CMI315B222CLI | Q114: EXT.CMI-315(1T-CLI)2225RPM GI | S114: 0
A115: 112 | B115: 2021-04-19T08:19:00 | C115: T Y P | D115: 234823 | E115: 1 | F115: CRHLT-16 | G115: 220/1 | H115: - | I115: - | J115: 1175 | K115: 3/4 | O115: 3.703703704 | P115: 5CRHLT16501175 | Q115: Existe | S115: 0
A116: 113 | B116: 2021-04-19T08:30:00 | C116: EXPERTOS EN VENTILACION | D116: 234824 | E116: 1 | F116: CMI-630 | G116: 230/3 | H116: - | I116: - | J116: 1000 | K116: 3 | O116: 3.703703704 | P116: 5CMI630E010000 | Q116: Existe | S116: 0
A117: 114 | B117: 2021-04-19T08:30:00 | C117: EXPERTOS EN VENTILACION | D117: 234824 | E117: 1 | F117: CDAHF1-18/18 | G117: 230/3 | H117: - | I117: - | J117: 700 | K117: 3 | O117: 3.703703704 | P117: 5CDAHF118E700 | Q117: Existe | S117: 0
A118: 115 | B118: 2021-04-19T08:51:00 | C118: EQUIPOS Y MATERIALES CLEM | D118: 234826 | E118: 1 | F118: CMI-630 | G118: 230/3 | H118: VE-01 | I118: - | J118: 1320 | K118: 7 1/2 | O118: 3.703703704 | P118: 5CMI630G013250 | Q118: EXT.CMI-630 7.5T 1325RPM | S118: 0
A119: 116 | B119: 2021-04-19T08:59:00 | C119: TRANE | D119: 234827 | E119: 1 | F119: CDAH-7/7 | G119: 127/1 | H119: - | I119: 790 CFM | J119: 950 | K119: 1/4 | O119: 3.703703704 | P119: 5CDAH772095000 | Q119: EXT.CDAH-7/7 1/4M 950RPM | S119: 0
A120: 117 | B120: 2021-04-19T12:17:00 | C120: GRUPO OREA | D120: 234835 | E120: 2 | F120: CDAHF2-22/22 | G120: 230/3 | H120: - | I120: - | J120: 675 | K120: 5 | N120: FILTROS METALICOS LAVABLE Y FILTROS PANEL PLISADO MERV 13 | O120: 3.703703704 | P120: 5CDAHF222F0675 | Q120: EXT.CDAHF2-22/22 5T 675RPM | S120: 0
A121: 118 | B121: 2021-04-19T12:17:00 | C121: GRUPO OREA | D121: 234835 | E121: 3 | F121: CDAHF2-22/22 | G121: 230/3 | H121: - | I121: - | J121: 750 | K121: 10 | N121: FILTROS METALICOS LAVABLE Y FILTROS PANEL PLISADO MERV 13 | O121: 3.703703704 | P121: 5CDAHF222H0751 | Q121: EXT.CDAHF2-22/22 10T 750RPM | S121: 0
A122: 119 | B122: 2021-04-19T12:17:00 | C122: GRUPO OREA | D122: 234835 | E122: 3 | F122: CRHLT-20 | G122: 230/3 | H122: - | I122: - | J122: 650 | K122: 1/4 | O122: 3.703703704 | P122: 5CRHLT20806500 | Q122: EXT.CRHLT-20 1/4T 650RPM | S122: 0
A123: 120 | B123: 2021-04-19T12:17:00 | C123: GRUPO OREA | D123: 234835 | E123: 2 | F123: CRHLT-24 | G123: 230/3 | H123: - | I123: - | J123: 775 | K123: 1 1/2 | O123: 3.703703704 | P123: 5CRHLT24C07750 | Q123: Existe | S123: 0
A124: 121 | B124: 2021-04-19T12:17:00 | C124: GRUPO OREA | D124: 234835 | E124: 1 | F124: CRHLT-24 | G124: 230/3 | H124: - | I124: - | J124: 800 | K124: 1 1/2 | O124: 3.703703704 | P124: 5CRHLT24C08000 | Q124: Existe | S124: 0
A125: 122 | B125: 2021-04-19T12:17:00 | C125: GRUPO OREA | D125: 234835 | E125: 2 | F125: CRHLT-30 | G125: 230/3 | H125: - | I125: - | J125: 475 | K125: 2 | O125: 3.703703704 | P125: 5CRHLT30D04750 | Q125: EXT.CRHLT-30 2T 475RPM | S125: 0
A126: 123 | B126: 2021-04-19T12:17:00 | C126: GRUPO OREA | D126: 234835 | E126: 2 | F126: CRHLT-33 | G126: 230/3 | H126: - | I126: - | J126: 525 | K126: 3 | O126: 3.703703704 | P126: 5CRHLT33E05250 | Q126: EXT.CRHT-33 3T 525RPM | S126: 0
A127: 124 | B127: 2021-04-19T15:51:00 | C127: PARRA CONFORT INGENIERIA | D127: 234855 | E127: 1 | F127: BDB-500 | G127: 230/3 | H127: - | I127: 8000 | J127: 1875 | K127: 10 | O127: 3.703703704 | P127: 5BDBI500H01875 | Q127: Existe | S127: 0
A128: 125 | B128: 2021-04-20T13:00:00 | C128: EDISON MAQUINARIA | D128: 234892 | E128: 2 | F128: CRHLT-10 | G128: 127/1 | H128: - | I128: - | J128: 1550 | K128: 1/4 | O128: 3.703703704 | P128: 5CRHLT10215550 | Q128: Existe | S128: 0
A129: 126 | B129: 2021-04-20T13:00:00 | C129: EDISON MAQUINARIA | D129: 234892 | E129: 2 | F129: CRHLT-18 | G129: 460/3 | H129: - | I129: - | J129: 975 | K129: 1/3 | O129: 3.703703704 | P129: 5CRHLT18T09750 | Q129: EXT.CRHLT-18 1/3T 975RPM | S129: 0
A130: 127 | B130: 2021-04-21T17:48:00 | C130: FRIOECSA | D130: 234959 | E130: 1 | F130: CRVLT-20 | G130: 230/3 | H130: - | I130: - | J130: 1325 | K130: 2 | O130: 3.703703704 | P130: 5CRVLT20D01325 | Q130: Existe | S130: 0
A131: 128 | B131: 2021-04-21T17:48:00 | C131: FRIOECSA | D131: 234959 | E131: 1 | F131: CRVLT-18 | G131: 230/3 | H131: - | I131: - | J131: 1450 | K131: 1 1/2 | O131: 3.703703704 | P131: 5CRVLT18C01451 | Q131: EXT.CRVLT-18 1.5T 1450RPM | S131: 0
A132: 129 | B132: 2021-04-21T17:57:00 | C132: PROENSA | D132: 234957 | E132: 4 | F132: DAL-16-V-3 | G132: 460/3 | H132: - | I132: - | J132: 548 | K132: 3 | N132: LOUVER EN SUCCION / BOMBA MONOFASICA 2-BO-104M, CUELLO DE LONA EN DESCARGA (NO SE ENSAMBLA IRA POR SEPARADO) | O132: 3.703703704 | P132: 5UDLVF16E550LV | Q132: LAV.DALV-16 3T 550RPM LV BOMBA | S132: =R132*O132 -> 0
A133: 130 | B133: 2021-04-21T17:57:00 | C133: PROENSA | D133: 234957 | E133: 3 | F133: DAL-9-H-1 1/2 | G133: 460/3 | H133: - | I133: - | J133: 680 | K133: 1 1/2 | N133: BOMBA MONOFASICA 2-BO-104M, CUELLO DE LONA EN DESCARGA (NO SE ENSAMBLA IRA POR SEPARADO) | O133: =2/0.54 -> 3.703703704 | P133: 5UDLHF9C06800 | Q133: Existe | S133: 0
A134: 131 | B134: 2021-04-22T09:19:00 | C134: LA MUÑO | D134: 234964 | E134: 1 | F134: CCK-15/15 | G134: 127/1 | H134: - | I134: - | J134: 670 | K134: 1 1/2 | O134: 3.703703704 | P134: 5CCK1515706700 | Q134: Existe | S134: 0
A135: 132 | B135: 2021-04-22T09:19:00 | C135: LA MUÑO | D135: 234964 | E135: 1 | F135: CRVHT-18 | G135: 220/1 | H135: - | I135: - | J135: 1540 | K135: 2 | O135: 3.703703704 | P135: 5CRVHT18101550 | Q135: EXT.CRVHT-18 2M 1550RPM | S135: 0
A136: 133 | B136: 2021-04-22T16:17:00 | C136: LETICIA VIDAL FERNANDEZ | D136: 234985 | E136: 1 | F136: CDAHF1-12/12 | G136: 230/3 | H136: - | I136: - | J136: 1250 | K136: 3 | O136: 3.703703704 | P136: 5CDAHF112E1251 | Q136: Existe | S136: 0
A137: 134 | B137: 2021-04-22T17:32:00 | C137: METALFORMOSIS | D137: 234990 | E137: 3 | F137: CMI-1000 | G137: 230/3 | H137: - | I137: 17755 CFM | J137: 737 | K137: 10 | O137: 3.703703704 | P137: 5CMI1000H07500 | Q137: Existe | S137: 0
A138: 135 | B138: 2021-04-22T17:32:00 | C138: METALFORMOSIS | D138: 234990 | E138: 1 | F138: CMI-1000 | G138: 230/3 | H138: - | I138: 14206 CFM | J138: 677 | K138: 7 1/2 | O138: 3.703703704 | P138: 5CMI1000G6900 | Q138: Existe | S138: 0
A139: 136 | B139: 2021-04-23T09:37:00 | C139: SIGRIST | D139: 235016 | E139: 1 | F139: CMI-800 | G139: 230/3 | H139: - | I139: - | J139: 800 | K139: 5 | O139: 3.703703704 | P139: 5CMI800F080030 | Q139: Existe | S139: 0
A140: 137 | B140: 2021-04-23T09:37:00 | C140: SIGRIST | D140: 235017 | E140: 1 | F140: CMI-900 | G140: 230/3 | H140: - | I140: - | J140: 675 | K140: 5 | O140: 3.703703704 | P140: 5CMI900F067500 | Q140: Existe | S140: 0
A141: 138 | B141: 2021-04-23T09:37:00 | C141: SIGRIST | D141: 235020 | E141: 2 | F141: CRVLT-20 | G141: 230/3 | H141: - | I141: - | J141: 1350 | K141: 2 | O141: 3.703703704 | P141: 5CRVLT20D01350 | Q141: Existe | S141: 0
A142: 139 | B142: 2021-04-23T09:37:00 | C142: SIGRIST | D142: 235020 | E142: 3 | F142: CRVLT-18 | G142: 230/3 | H142: - | I142: - | J142: 1275 | K142: 1 | O142: 3.703703704 | P142: 5CRVLT18B01275 | Q142: EXT.CRVLT-18 1T 1275RPM | S142: 0
A143: 140 | B143: 2021-04-23T09:37:00 | C143: SIGRIST | D143: 235021 | E143: 2 | F143: CRVHT-22 | G143: 230/3 | H143: - | I143: - | J143: 1100 | K143: 3 | O143: 3.703703704 | P143: 5CRVHT22E01100 | Q143: Existe | S143: 0
A144: 141 | B144: 2021-04-23T09:37:00 | C144: SIGRIST | D144: 235021 | E144: 2 | F144: CMI-450 | G144: 230/3 | H144: - | I144: - | J144: 1675 | K144: 2 | O144: 3.703703704 | P144: 5CMI450D017000 | Q144: Existe | S144: 0
A145: 142 | B145: 2021-04-23T09:37:00 | C145: SIGRIST | D145: 235022 | E145: 1 | F145: CRVHT-22 | G145: 230/3 | H145: - | I145: - | J145: 1100 | K145: 3 | O145: 3.703703704 | P145: 5CRVHT22E01100 | Q145: REPETIDO | S145: 0
A146: 143 | B146: 2021-04-23T09:37:00 | C146: SIGRIST | D146: 235022 | E146: 1 | F146: CMI-710 | G146: 230/3 | H146: - | I146: - | J146: 800 | K146: 3 | O146: 3.703703704 | P146: 5CMI710E080000 | Q146: Existe | S146: 0
A147: 144 | B147: 2021-04-23T09:37:00 | C147: SIGRIST | D147: 235022 | E147: 2 | F147: CMI-400 | G147: 230/3 | H147: - | I147: - | J147: 1675 | K147: 1 1/2 | O147: 3.703703704 | P147: 5CMI400C016760 | Q147: Existe | S147: 0
A148: 145 | B148: 2021-04-23T10:14:00 | C148: ECONOAIRE | D148: 235028 | E148: 1 | F148: CRHLT-16 | G148: 127/1 | H148: - | I148: 2700 CFM | J148: 1100 | K148: 3/4 | O148: 3.703703704 | P148: 5CRHLT16501125 | Q148: Existe | S148: 0
A149: 146 | B149: 2021-04-23T11:42:00 | C149: RADIO REFRIGERACION DE JUAREZ | D149: 235033 | E149: 2 | F149: CMI-1250 | G149: 460/3 | H149: Ext-01 | I149: 41000 CFM | J149: 725 | K149: 30 | L149: CCW | M149: TH | N149: CCW | O149: 3.703703704 | P149: 5CMI1250Q0725I | Q149: EXT.CMI-1250 30T 725RPM GI | S149: 0
A150: 147 | B150: 2021-04-23T11:42:00 | C150: RADIO REFRIGERACION DE JUAREZ | D150: 235033 | E150: 2 | F150: CMI-1250 | G150: 460/3 | H150: Ext-02 | I150: - | J150: 716 | K150: 30 | L150: CW | M150: TH | N150: CW | O150: 3.703703704 | P150: 5CMI1250Q07260 | Q150: EXT.CMI-1250 30T 725RPM | S150: 0
A151: 148 | B151: 2021-04-26T08:43:00 | C151: T Y P | D151: 235063 | E151: 2 | F151: CCR-18/18 | G151: 230/3 | H151: - | I151: - | J151: 550 | K151: 2 | O151: 3.703703704 | P151: 5CCR1818D0545 | Q151: Existe | S151: 0
A152: 149 | B152: 2021-04-26T08:54:00 | C152: EXPERTOS EN VENTILACION | D152: 235067 | E152: 1 | F152: CMI-400 | G152: 230/3 | H152: - | I152: - | J152: 2125 | K152: 3 | O152: 3.703703704 | P152: 5CMI400E021250 | Q152: Existe | S152: 0
A153: 150 | B153: 2021-04-26T09:12:00 | C153: INDUSTRIAS THERME | D153: 235069 | E153: 1 | F153: CMI-630 | G153: 230/3 | H153: VR-01 | I153: 6000 CFM | J153: 1325 | K153: 5 | L153: CW | M153: UB | N153: DESCARGA UB | O153: 3.703703704 | P153: 5CMI630F1325UB | Q153: EXT.CMI-630 5T 1325RPM 0 | S153: 0
A154: 151 | B154: 2021-04-26T12:38:00 | C154: - | D154: - | E154: 1 | F154: CDAHF1-9/9 | G154: 127/1 | H154: - | I154: - | J154: 1260 | K154: 2 | O154: 3.703703704 | P154: 5CDAHF19911250 | Q154: EXT.CDAHF1-9/9 2M 1250RPM | S154: 0
A155: 152 | B155: 2021-04-26T13:20:00 | C155: COMER CANTO | D155: 235093 | E155: 1 | F155: CRVLT-18 | G155: 220/1 | H155: - | I155: - | J155: 1020 | K155: 3/4 | O155: 3.703703704 | P155: 5CRVLT18501025 | Q155: EXT.CRVLT-18 3/4M 1025RPM | S155: 0
A156: 153 | B156: 2021-04-27T09:44:00 | C156: FAARVENT | D156: 235123 | E156: 2 | F156: DAB-18/18 | G156: 230/3 | H156: - | I156: - | J156: 900 | K156: 5 | O156: 3.703703704 | P156: 5DAB1818F09000 | Q156: EXT.DA/B-18/18 5T 900RPM | S156: 0
A157: 154 | B157: 2021-04-27T12:54:00 | C157: - | D157: - | E157: 1 | F157: CDAHF1-9/9 | G157: 127/1 | H157: - | I157: - | J157: 1260 | K157: 1/2 | O157: 3.703703704 | P157: 5CDAHF19941250 | Q157: EXT.CDAHF1-9/9 1/2M 1250RPM | S157: 0
A158: 155 | B158: 2021-04-27T15:53:00 | C158: CLIMAS ALFA | D158: 235150 | E158: 2 | F158: CMI-1000 | G158: 230/3 | H158: VE 02 | I158: 12333 CFM | J158: 600 | K158: 5 | O158: 3.703703704 | P158: 5CMI1000F06000 | Q158: Existe | S158: 0
A159: 156 | B159: 2021-04-27T15:53:00 | C159: CLIMAS ALFA | D159: 235150 | E159: 1 | F159: CMI-500 | G159: 230/3 | H159: VE 03 | I159: 2854 CFM | J159: 900 | K159: 3/4 | O159: 3.703703704 | P159: 5CMI500A090000 | Q159: Existe | S159: 0
A160: 157 | B160: 2021-04-27T15:53:00 | C160: CLIMAS ALFA | D160: 235150 | E160: 1 | F160: CMI-315 | G160: 230/3 | H160: VE 04 | I160: 1837 CFM | J160: 2200 | K160: 1 | O160: 3.703703704 | P160: 5CMI315B220000 | Q160: Existe | S160: 0
A161: 158 | B161: 2021-04-27T15:53:00 | C161: CLIMAS ALFA | D161: 235150 | E161: 1 | F161: CMI-250 | G161: 230/3 | H161: VE 06 | I161: 750 CFM | J161: 1800 | K161: 1/4 | O161: 3.703703704 | P161: 5CMI2508018000 | Q161: Existe | S161: 0
A162: 159 | B162: 2021-04-28T10:53:00 | C162: CLIMAS KONFORT | D162: 235169 | E162: 1 | F162: CRVLT-12 | G162: 230/1 | H162: - | I162: - | J162: 1475 | K162: 1/3 | O162: 3.703703704 | P162: 5CRVLT12301475 | Q162: EXT.CRVLT-12 1/3M 1475RPM | S162: 0
A163: 160 | B163: 2021-04-28T11:27:00 | C163: METALFORMOSIS | D163: 234990 | E163: 3 | F163: CMI-1000 | G163: 460/3 | H163: - | I163: 17755 CFM | J163: 737 | K163: 10 | N163: DESCARGA UB | O163: 3.703703704 | P163: 5CMI1000H750UB | Q163: EXT.CMI-1000 10T 750RPM 0 | S163: 0
A164: 161 | B164: 2021-04-28T11:27:00 | C164: METALFORMOSIS | D164: 234990 | E164: 1 | F164: CMI-1000 | G164: 460/3 | H164: - | I164: 14206 CFM | J164: 677 | K164: 7 1/2 | N164: DESCARGA UB | O164: 3.703703704 | P164: 5CMI1000G676UB | Q164: EXT.CMI-1000 7.5T 675RPM 0 | S164: 0
A165: 162 | B165: 2021-04-28T12:53:00 | C165: PARRA CONFORT | D165: 235187 | E165: 1 | F165: CRVLT-16 | G165: 220/1 | H165: - | I165: - | J165: 1275 | K165: 1 1/2 | O165: 3.703703704 | P165: 5CRVLT16701275 | Q165: EXT.CRVLT-16 1.5M 1275RPM | S165: 0
A166: 163 | B166: 2021-04-28T14:06:00 | C166: BOREAL | D166: 235194 | E166: 1 | F166: CMI-900 | G166: 230/3 | H166: - | I166: - | J166: 950 | K166: 15 | L166: CCW | M166: TH | N166: GIRO CCW | O166: 3.703703704 | P166: 5CMI900M0950I | Q166: Existe | S166: 0
A167: 164 | B167: 2021-04-28T14:12:00 | C167: BOREAL | D167: 235198 | E167: 1 | F167: CRVHT-33 | G167: 230/3 | H167: - | I167: 14000 CFM | J167: 675 | K167: 5 | O167: 3.703703704 | P167: 5CRVHT33F06750 | Q167: Existe | S167: 0
A168: 165 | B168: 2021-04-28T16:10:00 | C168: CLIMA REAL | D168: 235201 | E168: 1 | F168: DAL-16-H-2 | G168: 230/3 | H168: - | I168: - | J168: 575 | K168: 2 | O168: 3.703703704 | P168: 5UDLHF16D05600 | Q168: Existe | S168: 0
A169: 166 | B169: 2021-04-28T16:10:00 | C169: CLIMA REAL | D169: 235201 | E169: 1 | F169: DAL-16-H-1 1/2 | G169: 230/3 | H169: - | I169: - | J169: 575 | K169: 1 1/2 | O169: 3.703703704 | P169: 5UDLHF16C05750 | Q169: LAV.DALH-16 1.5T 575RPM | S169: 0
A170: 167 | B170: 2021-04-28T16:22:00 | C170: INSOLSA | D170: 235203 | E170: 2 | F170: DXT-800/H 1T | G170: 230/3 | H170: - | I170: - | J170: 800 | K170: 1 | O170: 3.703703704 | P170: 5DX8001S | Q170: Existe | S170: 0
A171: 168 | B171: 2021-04-29T10:28:00 | C171: SENSA TECNOMECANICA | D171: 235227 | E171: 1 | F171: CLT-12 | G171: 460/3 | H171: 1598 CFM | I171: IN-01 | J171: 1650 | K171: 3/4 | N171: CUBIERTA MOTOR | O171: 3.703703704 | P171: 5CLTG12A1651CM | Q171: EXT.CLTG-12 3/4T 1650RPM CUBRE | S171: 0
A172: 169 | B172: 2021-04-29T10:28:00 | C172: SENSA TECNOMECANICA | D172: 235227 | E172: 1 | F172: CLT-14 | G172: 460/3 | H172: 2558 CFM | I172: IN-02 | J172: 1875 | K172: 1 1/2 | N172: CUBIERTA MOTOR | O172: 3.703703704 | P172: 5CLTH14C1875CM | Q172: EXT.CLTH-14 1.5T 1875RPM CUBRE | S172: 0
A173: 170 | B173: 2021-04-29T13:23:00 | C173: TRANE | D173: 235239 | E173: 1 | F173: CDAH-7/7 | G173: 127/1 | H173: - | I173: 790 CFM | J173: 950 | K173: 1/4 | O173: 3.703703704 | P173: 5CDAH772095000 | Q173: Existe | S173: 0
A174: 171 | B174: 2021-04-29T13:23:00 | C174: TRANE | D174: 235239 | E174: 1 | F174: CDAHF1-12/12 | G174: 230/3 | H174: - | I174: 2749 CFM | J174: 650 | K174: 3/4 | O174: 3.703703704 | P174: 5CDAHF112A0650 | Q174: EXT.CDAHF1-12/12 3/4T 650RPM | S174: 0
A175: 172 | B175: 2021-04-29T13:23:00 | C175: TRANE | D175: 235239 | E175: 1 | F175: CLT-10 | G175: 127/1 | H175: - | I175: 500 CFM | J175: 1175 | K175: 1/4 | O175: 3.703703704 | P175: 5CLTG102011750 | Q175: Existe | S175: 0
A176: 173 | B176: 2021-04-29T13:23:00 | C176: TRANE | D176: 235239 | E176: 1 | F176: CRVLT-20 | G176: 230/3 | H176: - | I176: 3404 CFM | J176: 1050 | K176: 1 | O176: 3.703703704 | P176: 5CRVLT20B01075 | Q176: Existe | S176: 0
A177: 174 | B177: 2021-04-29T17:30:00 | C177: TEMP CONTROL | D177: 235301 | E177: 1 | F177: CLT-24 | G177: 230/3 | H177: - | I177: 4000 CFM | J177: 825 | K177: 1 1/2 | N177: CUBIERTA MOTOR | O177: 3.703703704 | P177: 5CLTG24B0825CM | Q177: EXT.CLTG-24 1.5T 825RPM CUBRE | S177: 0
A178: 175 | B178: 2021-04-29T17:49:00 | C178: MAF AGROBOTICA S.A DE C.V. | D178: 235303 | E178: 1 | F178: DAT-15/15 | G178: 230/3 | H178: - | I178: 11000 CFM | J178: 630 | K178: 3 | N178: RECUBRIMIENTO POLIESTER, CUBRE-BANDAS, DESCARGA HACIA ABAJO | O178: 3.703703704 | P178: FORMATO | Q178: FORMATO | S178: 0
A179: 176 | B179: 2021-04-30T08:46:00 | C179: AL MOTOR | D179: 235315 | E179: 2 | F179: CDAHF2-12/12 | G179: 230/3 | H179: - | I179: - | J179: 800 | K179: 1 | O179: 3.703703704 | P179: 5CDAHF212B0800 | Q179: Existe | S179: 0
A180: 177 | B180: 2021-04-30T08:46:00 | C180: AL MOTOR | D180: 235315 | E180: 1 | F180: CDAHF2-9/9 | G180: 230/3 | H180: - | I180: - | J180: 950 | K180: 1/2 | O180: 3.703703704 | P180: 5CDAHF29990950 | Q180: EXT.CDAHF2-9/9 1/2T 950RPM | S180: 0
A181: 178 | B181: 2021-04-30T09:46:00 | C181: EXPERTOS EN VENTILACION | D181: 235321 | E181: 1 | F181: CDAHF1-18/18 | G181: 230/3 | H181: - | I181: - | J181: 700 | K181: 3 | O181: 3.703703704 | P181: 5CDAHF118E700 | Q181: Existe | S181: 0
A182: 179 | B182: 2021-04-30T14:08:00 | C182: CLIMA REAL | D182: 235341 | E182: 4 | F182: I-WXD 1000-1 1/2-6P/L/A | G182: 460/3 | H182: - | I182: 17295 M3/HR | J182: 1140 | K182: 1 1/2 | N182: INYECTOR, BRIDAS, MALLA EN DESCARGA, PORTAFILTROS CON FILTROS METALICOS | O182: 3.703703704 | P182: FORMATO | Q182: FORMATO | S182: 0
A183: 180 | B183: 2021-04-30T16:08:00 | C183: PERSSA | D183: 235361 | E183: 1 | F183: CMI-355 | G183: 220/1 | H183: VE-01 | I183: 2050 CFM | J183: 1450 | K183: 1/2 | O183: 3.703703704 | P183: 5CMI3554146230 | Q183: Existe | S183: 0
A184: 181 | B184: 2021-04-30T16:08:00 | C184: PERSSA | D184: 235361 | E184: 1 | F184: CMI-400 | G184: 220/1 | H184: VE-02 | I184: 2600 CFM | J184: 1300 | K184: 3/4 | O184: 3.703703704 | P184: 5CMI4005131500 | Q184: Existe | S184: 0
A185: 182 | B185: 2021-04-30T16:13:00 | C185: PERSSA | D185: 235363 | E185: 1 | F185: CDAHF1-9/9 | G185: 230/3 | H185: VE-02 | I185: - | J185: 1400 | K185: 1 1/2 | O185: 3.703703704 | P185: 5CDAHF199C1400 | Q185: Existe | S185: 0
A186: 183 | B186: 2021-04-30T16:13:00 | C186: PERSSA | D186: 235363 | E186: 1 | F186: CRVLT-16 | G186: 230/3 | H186: VE-01 | I186: - | J186: 1275 | K186: 1 1/2 | O186: 3.703703704 | P186: 5CRVLT16C01275 | Q186: EXT.CRVLT-16 1.5T 1275RPM | S186: 0
A187: 184 | B187: 2021-04-30T17:03:00 | C187: ANGELICA LOPEZ LOME | D187: 235364 | E187: 1 | F187: CLT-33 | G187: 230/3 | H187: - | I187: - | J187: 575 | K187: 2 | O187: 3.703703704 | P187: 5CLTG33D057500 | Q187: EXT.CLTG-33 2T 575RPM | S187: 0
A188: 185 | B188: 2021-04-30T18:43:00 | C188: MECA ENGINEERING SOLUTIONS | D188: 235386 | E188: 1 | F188: CMI-500 | G188: 230/3 | H188: - | I188: 7580 CFM | J188: 1875 | K188: 7 1/2 | O188: 3.703703704 | P188: 5CMI500G018750 | Q188: EXT.CMI-500 7.5T 1875RPM | S188: 0
A189: 186 | B189: 2021-04-30T20:02:00 | C189: INSOLSA | D189: 235388 | E189: 1 | F189: CMI-355 | G189: 230/1 | H189: - | I189: - | J189: 1350 | K189: 1/2 | O189: 3.703703704 | P189: 5CMI3554013510 | Q189: Existe | S189: 0
A190: 187 | B190: 2021-04-30T20:02:00 | C190: INSOLSA | D190: 235388 | E190: 1 | F190: CDAHF2-12/12 | G190: 230/1 | H190: - | I190: - | J190: 1000 | K190: 3/4 | O190: 3.703703704 | P190: 5CDAHF21251000 | Q190: EXT.CDAHF2-12/12 3/4M 1000RPM | S190: 0

Sheet MAYO 2021
A1: SIAC | P1: ING. INDUSTRIAL
F2: CARACTERISTICAS DEL EQUIPO
A3: ITEM | B3: FECHA SOLICITADA | C3: Nombre Cliente | D3: PEDIDO | E3: CANTIDAD | F3: EQUIPO | G3: Conexión | H3: TAG | I3: Caudal | J3: R.P.M | K3: MOTOR | L3: GIRO | M3: DESCARGA | N3: OBSERVACIONES | O3: FACTOR VENTA | P3: Codigo | Q3: Descripción | R3: COSTO | S3: PRECIO LISTA | T3: FECHA ENTREGA
A4: 1 | B4: 2021-05-04T08:14:00 | C4: TRANE | D4: 235425 | E4: 1 | F4: CRHLT-10 | G4: 127/1 | H4: - | I4: - | J4: 1025 | K4: 1/4 | O4: =2/0.54 -> 3.703703704 | P4: 5CRHLT10201025 | Q4: Existe
A5: 2 | B5: 2021-05-04T08:14:00 | C5: TRANE | D5: 235425 | E5: 1 | F5: CRHLT-10 | G5: 127/1 | H5: - | I5: - | J5: 875 | K5: 1/4 | O5: =2/0.54 -> 3.703703704 | P5: 5CRHLT10209010 | Q5: Existe
A6: 3 | B6: 2021-05-04T08:14:00 | C6: TRANE | D6: 235425 | E6: 1 | F6: CRHLT-12 | G6: 127/1 | H6: - | I6: - | J6: 1300 | K6: 1/4 | O6: 3.703703704 | P6: 5CRHLT12201300 | Q6: Existe
A7: 4 | B7: 2021-05-04T11:24:00 | C7: K3 SOLUCIONES | D7: 235440 | E7: 1 | F7: CMI-400 | G7: 230/3 | H7: - | I7: 4167 CFM | J7: 2025 | K7: 3 | N7: DISCO DE ENFRIAMIENTO | O7: 3.703703704 | P7: 5CMI400E2025DI | Q7: EXT.CMI-400 3T 2025RPM DISCO
A8: 5 | B8: 2021-05-04T12:04:00 | C8: K3 SOLUCIONES | D8: 235441 | E8: 1 | F8: CME-400 | G8: 460/3 | H8: - | I8: 3520 CFM | J8: 1925 | K8: 2 | N8: ARREGLO ANTICHISPA AMCA "C", BRIDAS EN SUCCION Y DESCARGA | O8: 3.703703704 | P8: 5CME400D1925BD | Q8: EXT.CME-400 2T 1925RPM AMCA C
A9: 6 | B9: 2021-05-04T12:04:00 | C9: K3 SOLUCIONES | D9: 235441 | E9: 1 | F9: APF 4000-2 | G9: - | H9: - | I9: - | J9: - | K9: - | N9: PORTAFILTROS CON FILTROS METALICOS 2-FI-003 + FILTROS PLISADOS MERV 8 2-FI-335 | O9: 3.703703704 | P9: 5APF-400022FI | Q9: Existe
A10: 7 | B10: 2021-05-04T13:19:00 | C10: TPTH | D10: 235446 | E10: 4 | F10: CRVHT-33 | G10: 230/3 | H10: - | I10: - | J10: 600 | K10: 5 | O10: 3.703703704 | P10: 5CRVHT33F06000 | Q10: EXT.CRVHT-33 5T 600RPM
A11: 8 | B11: 2021-05-04T17:25:00 | C11: VERSACON | D11: 234782 | E11: 1 | F11: CLT-16 | G11: 127/1 | H11: VEX-N0-001-VEN | I11: 2045 CFM | J11: 925 | K11: 1/2 | N11: CUBIERTA MOTOR | O11: 3.703703704 | P11: 5CLTG1640950CM | Q11: Existe
A12: 9 | B12: 2021-05-04T17:25:00 | C12: VERSACON | D12: 234782 | E12: 1 | F12: CLT-16 | G12: 127/1 | H12: VEX-N0-002-VEN | I12: 1726 CFM | J12: 950 | K12: 1/2 | N12: CUBIERTA MOTOR | O12: 3.703703704 | P12: 5CLTG1640950CM | Q12: Existe
A13: 10 | B13: 2021-05-04T17:25:00 | C13: VERSACON | D13: 234782 | E13: 1 | F13: CLT-14 | G13: 127/1 | H13: VEX-N0-004-VEN | I13: 1851 CFM | J13: 1525 | K13: 3/4 | N13: CUBIERTA MOTOR | O13: 3.703703704 | P13: 5CLTG1451525CM | Q13: EXT.CLTG-14 3/4M 1525RPM CUBRE
A14: 11 | B14: 2021-05-04T17:25:00 | C14: VERSACON | D14: 234782 | E14: 1 | F14: CLT-16 | G14: 127/1 | H14: VEX-N0-006-VEN | I14: 1763 CFM | J14: 975 | K14: 3/4 | N14: CUBIERTA MOTOR | O14: 3.703703704 | P14: 5CLTG1650975CM | Q14: Existe
A15: 12 | B15: 2021-05-04T17:25:00 | C15: VERSACON | D15: 234782 | E15: 1 | F15: CLT-16 | G15: 127/1 | H15: VI-N0-001-VEN | I15: 3616 CFM | J15: 1500 | K15: 2 | N15: CUBIERTA MOTOR | O15: 3.703703704 | P15: 5CLTG1611500CM | Q15: EXT.CLTG-16 2M 1500RPM CUBRE
A16: 13 | B16: 2021-05-04T17:25:00 | C16: VERSACON | D16: 234782 | E16: 1 | F16: CLT-14 | G16: 127/1 | H16: VEX-N1-003-VEN | I16: 1413 CFM | J16: 1250 | K16: 1/3 | N16: CUBIERTA MOTOR | O16: 3.703703704 | P16: 5CLTG1431275CM | Q16: Existe
A17: 14 | B17: 2021-05-04T17:25:00 | C17: VERSACON | D17: 234782 | E17: 1 | F17: CLT-14 | G17: 127/1 | H17: VEX-N1-004-VEN | I17: 1625 CFM | J17: 1375 | K17: 1/2 | N17: CUBIERTA MOTOR | O17: 3.703703704 | P17: 5CLTG1441400CM | Q17: Existe
A18: 15 | B18: 2021-05-04T17:25:00 | C18: VERSACON | D18: 234782 | E18: 1 | F18: CLT-12 | G18: 127/1 | H18: VEX-N2-001-VEN | I18: 985 CFM | J18: 1100 | K18: 1/4 | N18: CUBIERTA MOTOR | O18: 3.703703704 | P18: 5CLTG122111CM | Q18: Existe
A19: 16 | B19: 2021-05-04T17:25:00 | C19: VERSACON | D19: 234782 | E19: 1 | F19: CLT-12 | G19: 127/1 | H19: VEX-N2-002-VEN | I19: 1013 CFM | J19: 1175 | K19: 1/4 | N19: CUBIERTA MOTOR | O19: 3.703703704 | P19: 5CLTG1221175CM | Q19: Existe
A20: 17 | B20: 2021-05-04T17:25:00 | C20: VERSACON | D20: 234782 | E20: 1 | F20: CLT-12 | G20: 127/1 | H20: VEX-N2-003-VEN | I20: 975 CFM | J20: 1100 | K20: 1/4 | N20: CUBIERTA MOTOR | O20: 3.703703704 | P20: 5CLTG122111CM | Q20: REPETIDO
A21: 18 | B21: 2021-05-04T18:09:00 | C21: EXPERTOS EN VENTILACION | D21: 235234 | E21: 7 | F21: HXA-4-1000/L | G21: 230/3 | H21: - | I21: - | J21: 1755 | K21: 5 | N21: MOTOR APEX 5 HP 2-MO-065XUS | O21: 3.703703704 | P21: 5HXA41000LAPX | Q21: EXT.HXA-4-1000/L 5HP TF MOTOR
A22: 19 | B22: 2021-05-05T08:43:00 | C22: ECOLOGIA ATMOSFERICA | D22: 235479 | E22: 1 | F22: CLT-10 | G22: 127/1 | H22: - | I22: 530 CFM | J22: 1000 | K22: 1/4 | O22: 3.703703704 | P22: 5CLTG102010000 | Q22: Existe
A23: 20 | B23: 2021-05-05T08:43:00 | C23: ECOLOGIA ATMOSFERICA | D23: 235479 | E23: 3 | F23: CLT-7 | G23: 127/1 | H23: - | I23: 200 CFM | J23: 1100 | K23: 1/4 | O23: 3.703703704 | P23: 5CLTG720110000 | Q23: EXT.CLTG-7 1/4M 1100RPM
A24: 21 | B24: 2021-05-05T08:43:00 | C24: ECOLOGIA ATMOSFERICA | D24: 235479 | E24: 2 | F24: CLT-14 | G24: 127/1 | H24: - | I24: 1200 CFM | J24: 1125 | K24: 1/4 | O24: 3.703703704 | P24: 5CLTG142011250 | Q24: EXT.CLTG-14 1/4M 1125RPM
A25: 22 | B25: 2021-05-05T08:43:00 | C25: ECOLOGIA ATMOSFERICA | D25: 235479 | E25: 1 | F25: CLT-7 | G25: 127/1 | H25: - | I25: 360 CFM | J25: 1675 | K25: 1/4 | O25: 3.703703704 | P25: 5CLTG720167500 | Q25: Existe
A26: 23 | B26: 2021-05-05T08:43:00 | C26: ECOLOGIA ATMOSFERICA | D26: 235479 | E26: 1 | F26: CLT-16 | G26: 127/1 | H26: - | I26: 1330 CFM | J26: 775 | K26: 1/2 | O26: 3.703703704 | P26: 5CLTG164077500 | Q26: EXT.CLTG-16 1/2M 775RPM
A27: 24 | B27: 2021-05-05T08:43:00 | C27: ECOLOGIA ATMOSFERICA | D27: 235479 | E27: 3 | F27: CLT-16 | G27: 127/1 | H27: - | I27: 1950 CFM | J27: 900 | K27: 1/2 | O27: 3.703703704 | P27: 5CLTG164090000 | Q27: Existe
A28: 25 | B28: 2021-05-05T08:43:00 | C28: ECOLOGIA ATMOSFERICA | D28: 235479 | E28: 1 | F28: CLT-7 | G28: 127/1 | H28: - | I28: 210 CFM | J28: 1175 | K28: 1/4 | O28: 3.703703704 | P28: 5CLTG7211700 | Q28: Existe
A29: 26 | B29: 2021-05-05T08:43:00 | C29: ECOLOGIA ATMOSFERICA | D29: 235479 | E29: 1 | F29: CMI-1120 | G29: 230/3 | H29: - | I29: 23200 CFM | J29: 500 | K29: 7 1/2 | L29: CW | M29: UB | N29: DESCARGA UB | O29: 3.703703704 | P29: 5CMI1120G500UB | Q29: EXT.CMI-1120 7.5T 500RPM 0
A30: 27 | B30: 2021-05-05T08:43:00 | C30: ECOLOGIA ATMOSFERICA | D30: 235479 | E30: 1 | F30: CMI-1250 | G30: 230/3 | H30: - | I30: 29000 CFM | J30: 500 | K30: 10 | L30: CW | M30: UB | N30: DESCARGA UB | O30: 3.703703704 | P30: 5CMI1250H500UB | Q30: EXT.CMI-1250 10T 500RPM 0
A31: 28 | B31: 2021-05-05T11:29:00 | C31: REACLIMA | D31: 235490 | E31: 2 | F31: CRHLT-10 | G31: 127/1 | H31: VE-72, VE-73 | I31: 600 CFM | J31: 1475 | K31: 1/4 | O31: 3.703703704 | P31: 5CRHLT10214800 | Q31: Existe
A32: 29 | B32: 2021-05-05T11:46:00 | C32: ARECHE INGENIEROS | D32: 235495 | E32: 1 | F32: CRVLT-18 | G32: 127/1 | H32: - | I32: - | J32: 1275 | K32: 1 | O32: 3.703703704 | P32: 5CRVLT18601275 | Q32: Existe
A33: 30 | B33: 2021-05-05T17:44:00 | C33: PERSSA | D33: MI-7610 | E33: 6 | F33: I-HGB-1250-1 | G33: 127/1 | H33: - | I33: - | J33: 450 | K33: 1 | N33: INYECTOR | O33: 3.703703704 | P33: FORMATO | Q33: FORMATO
A34: 31 | B34: 2021-05-06T09:06:00 | C34: IMPORTACIONES CORTES | D34: 235523 | E34: 2 | F34: CME-II-1000 | G34: 230/3 | H34: - | I34: - | J34: 1075 | K34: 30 | N34: ARREGLO ANTICHISPA AMCA C | O34: 3.703703704 | P34: 5CMEII1000Q1075 | Q34: EXT.CME II-1000 30T 1075RPM
A35: 32 | B35: 2021-05-06T09:06:00 | C35: IMPORTACIONES CORTES | D35: 235523 | E35: 4 | F35: DAL-96-H-30 | G35: 460/3 | H35: - | I35: - | J35: 379 | K35: 30 | O35: 3.703703704 | P35: 5DLHF96Q038000 | Q35: LAV.DALH-96 30T 379RPM
A36: 33 | B36: 2021-05-06T10:23:00 | C36: EXPERTOS EN VENTILACION | D36: 235527 | E36: 1 | F36: CMI-250 | G36: 230/3 | H36: - | I36: - | J36: 2275 | K36: 1/2 | O36: 3.703703704 | P36: 5CMI2509022750 | Q36: Existe
A37: 34 | B37: 2021-05-06T12:21:00 | C37: HIGH TECH SERVICES | D37: 235541 | E37: 1 | F37: CLT-16 | G37: 460/3 | H37: VI-PB-RA | I37: 515 CFM | J37: 1350 | K37: 3/4 | N37: CUBIERTA MOTOR, PORTAFILTROS CON FILTROS MERV-8 | O37: 3.703703704 | P37: 5CLTG16A1350FI | Q37: EXT.CLTG-16 3/4T 1350RPM CUBRE
A38: 35 | B38: 2021-05-06T13:01:00 | C38: REFRIGERACION LOZANO | D38: 235543 | E38: 3 | F38: CCR-10/10 | G38: 230/3 | H38: - | I38: - | J38: 700 | K38: 1/3 | O38: 3.703703704 | P38: 5CCR1010T07000 | Q38: EXT.CCR-10/10 1/3T 700RPM
A39: 36 | B39: 2021-05-06T13:01:00 | C39: REFRIGERACION LOZANO | D39: 235543 | E39: 5 | F39: CRVLT-18 | G39: 230/3 | H39: - | I39: - | J39: 950 | K39: 1/2 | O39: 3.703703704 | P39: 5CRVLT18909500 | Q39: EXT.CRVLT-18 1/2T 950RPM
A40: 37 | B40: 2021-05-06T16:14:00 | C40: REMA INGENIERIA Y PROYECTOS | D40: 235555 | E40: 1 | F40: CRVLT-20 | G40: 230/3 | H40: - | I40: 5400 CFM | J40: 1350 | K40: 2 | O40: 3.703703704 | P40: 5CRVLT20D01350 | Q40: Existe
A41: 38 | B41: 2021-05-07T09:53:00 | C41: NOUCLIMA | D41: 235573 | E41: 1 | F41: CRVLT-16 | G41: 230/3 | H41: VE-S-01 | I41: 1950 CFM | J41: 1175 | K41: 1 | O41: 3.703703704 | P41: 5CRVLT16B01200 | Q41: Existe
A42: 39 | B42: 2021-05-07T09:53:00 | C42: NOUCLIMA | D42: 235573 | E42: 1 | F42: CRVLT-16 | G42: 230/3 | H42: VE-S-02 | I42: 1550 CFM | J42: 1050 | K42: 3/4 | O42: 3.703703704 | P42: 5CRVLT16A01050 | Q42: EXT.CRVLT-16 3/4T 1050RPM
A43: 40 | B43: 2021-05-07T09:53:00 | C43: NOUCLIMA | D43: 235573 | E43: 1 | F43: CRVLT-18 | G43: 230/3 | H43: VE-S-03 | I43: 3790 CFM | J43: 1375 | K43: 1 | O43: 3.703703704 | P43: 5CRVLT18B01375 | Q43: EXT.CRVLT-18 1T 1375RPM
A44: 41 | B44: 2021-05-07T13:58:00 | C44: EXPERTOS EN VENTILACION | D44: 235581 | E44: 1 | F44: CRVHT-28 | G44: 230/3 | H44: - | I44: - | J44: 900 | K44: 5 | O44: 3.703703704 | P44: 5CRVHT28F09000 | Q44: Existe
A45: 42 | B45: 2021-05-07T16:58:00 | C45: FRIOECSA | D45: 235594 | E45: 1 | F45: CME-630 | G45: 230/3 | H45: - | I45: 15500 M3/HR | J45: 1400 | K45: 7 1/2 | L45: CW | M45: TH | N45: ARREGLO ANTICHISPA AMCA "C" | O45: 3.703703704 | P45: 5CME630G014000 | Q45: EXT.CME-630 7.5T 1400RPM AMCA
A46: 43 | B46: 2021-05-07T17:31:00 | C46: TRANE | D46: 235239 | E46: 1 | F46: CDAHF1-12/12 | G46: 230/3 | H46: - | I46: - | J46: 650 | K46: 1 | O46: 3.703703704 | P46: 5CDAHF112B0650 | Q46: EXT.CDAHF1-12/12 1T 650RPM
A47: 44 | B47: 2021-05-10T11:01:00 | C47: CLIO CLIMATIZACION | D47: 235626 | E47: 2 | F47: TGT/4-1250-6/20 | G47: 230/3 | H47: - | I47: 32,721 CFM | J47: 1725 | K47: 20 | N47: ANGULO DE LA PALA C (10°) | O47: 3.703703704 | P47: 5TGT412506020C | Q47: EXT.TGT/4-1250-6 20T 4P ANG.C
A48: 45 | B48: 2021-05-10T11:01:00 | C48: CLIO CLIMATIZACION | D48: 235626 | E48: 2 | F48: TGT/4-1250-6/25 | G48: 230/3 | H48: - | I48: 33,528 CFM | J48: 1725 | K48: 25 | N48: ANGULO DE LA PALA F (14°) | O48: 3.703703704 | P48: 5TGT412506026F | Q48: EXT.TGT/4-1250-6 25T 4P ANG.F
A49: 46 | B49: 2021-05-10T11:01:00 | C49: CLIO CLIMATIZACION | D49: 235626 | E49: 4 | F49: TGT/4-1000-9/15 | G49: 230/3 | H49: - | I49: 35,306 CFM | J49: 1725 | K49: 15 | N49: ANGULO DE LA PALA I (20°) | O49: 3.703703704 | P49: 5TGT410009150I | Q49: EXT.TGT/4-1000-9 15T 4P ANG.i
A50: 47 | B50: 2021-05-10T11:01:00 | C50: CLIO CLIMATIZACION | D50: 235626 | E50: 1 | F50: CLT-30 | G50: 230/3 | H50: - | I50: 5666 CFM | J50: 400 | K50: 3/4 | O50: 3.703703704 | P50: 5CLTG30A040000 | Q50: EXT.CLTG-30 3/4T 400RPM
A51: 48 | B51: 2021-05-11T11:34:00 | C51: LETICIA VIDAL | D51: 235660 | E51: 1 | F51: CMI-280 | G51: 230/3 | H51: - | I51: 700 CFM | J51: 1925 | K51: 1/3 | N51: BRIDAS EN SUCCION Y DESCARGA | O51: 3.703703704 | P51: 5CMI280T1925BD | Q51: EXT.CMI-280 1/3T 1925RPM BDA.
A52: 49 | B52: 2021-05-11T11:34:00 | C52: LETICIA VIDAL | D52: 235660 | E52: 1 | F52: APF 2000-2" | G52: - | H52: - | I52: - | J52: - | K52: - | N52: FILTROS METALICOS, MERV-15 2-FI-2415 | O52: 3.703703704 | P52: 5APF-20006FI | Q52: Existe
A53: 50 | B53: 2021-05-11T11:34:00 | C53: LETICIA VIDAL | D53: 235660 | E53: 1 | F53: CMI-250 | G53: 230/3 | H53: - | I53: 300 CFM | J53: 1950 | K53: 1/4 | N53: BRIDAS EN SUCCION Y DESCARGA | O53: 3.703703704 | P53: 5CMI25081950BD | Q53: EXT.CMI-250 1/4T 1950RPM BDA.
A54: 51 | B54: 2021-05-11T11:34:00 | C54: LETICIA VIDAL | D54: 235660 | E54: 1 | F54: APF 2000-2" | G54: - | H54: - | I54: - | J54: - | K54: - | N54: FILTROS METALICOS, MERV-15 2-FI-2415 | O54: 3.703703704 | P54: 5APF-20006FI | Q54: REPETIDO
A55: 52 | B55: 2021-05-12T08:57:00 | C55: TRANE | D55: 235699 | E55: 1 | F55: CDAHF1-12/12 | G55: 230/3 | H55: - | I55: 3420 CFM | J55: 1225 | K55: 2 | O55: 3.703703704 | P55: 5CDAHF112D1225 | Q55: Existe
A56: 53 | B56: 2021-05-12T08:57:00 | C56: TRANE | D56: 235699 | E56: 1 | F56: CRVHT-24 | G56: 230/3 | H56: - | I56: 4274 CFM | J56: 1075 | K56: 3 | O56: 3.703703704 | P56: 5CRVHT24E01075 | Q56: Existe
A57: 54 | B57: 2021-05-12T09:03:00 | C57: TRANE | D57: 235700 | E57: 1 | F57: CMI-1120 | G57: 230/3 | H57: - | I57: 12696 CFM | J57: 775 | K57: 20 | O57: 3.703703704 | P57: 5CMI1120N07750 | Q57: Existe
A58: 55 | B58: 2021-05-12T09:27:00 | C58: TRANE | D58: 235702 | E58: 1 | F58: CDAHF1-12/12 | G58: 230/3 | H58: - | I58: 2624 CFM | J58: 1300 | K58: 1 1/2 | O58: 3.703703704 | P58: 5CDAHF112C1300 | Q58: EXT.CDAHF1-12/12 1.5T 1300RPM
A59: 56 | B59: 2021-05-12T09:27:00 | C59: TRANE | D59: 235702 | E59: 1 | F59: CMI-450 | G59: 230/3 | H59: - | I59: 3280 CFM | J59: 1725 | K59: 3 | O59: 3.703703704 | P59: 5CMI450E017250 | Q59: Existe
A60: 57 | B60: 2021-05-12T10:55:00 | C60: EXPERTOS EN VENTILACION | D60: 235714 | E60: 1 | F60: CLT-22 | G60: 230/3 | H60: - | I60: - | J60: 925 | K60: 2 | N60: CUBIERTA MOTOR | O60: 3.703703704 | P60: 5CLTG22D0950CM | Q60: Existe
A61: 58 | B61: 2021-05-12T10:55:00 | C61: EXPERTOS EN VENTILACION | D61: 235714 | E61: 1 | F61: CLT-22 | G61: 230/3 | H61: - | I61: - | J61: 1025 | K61: 2 | N61: CUBIERTA MOTOR | O61: 3.703703704 | P61: 5CLTG22D1050CM | Q61: Existe
A62: 59 | B62: 2021-05-12T11:23:00 | C62: SICASA ST | D62: 235717 | E62: 60 | F62: CRHLD-10 1/4 | G62: 220/1 | H62: - | I62: - | J62: 1075 | K62: 1/4 | N62: MOTOR CERRADO 1/4M 2-MO-014MR *PEDIDO CANCELADO* | O62: 3.703703704
A63: 60 | B63: 2021-05-12T12:49:00 | C63: FAAR AMBIENTES CONTROLADOS | D63: 235724 | E63: 4 | F63: I-WXD 1000-1 1/2-6P/L/A | G63: 230/3 | H63: - | I63: - | J63: 700 | K63: 1 1/2 | N63: INYECTOR, MALLA PROTECCION, BANCO PORTAFILTROS | O63: 3.703703704 | P63: FORMATO | Q63: FORMATO
A64: 61 | B64: 2021-05-12T16:34:00 | C64: PERSSA | D64: 235737 | E64: 1 | F64: CMI-355 | G64: 230/3 | H64: VE-03 | I64: - | J64: 1600 | K64: 3/4 | O64: 3.703703704 | P64: 5CMI355A159000 | Q64: Existe
A65: 62 | B65: 2021-05-12T16:34:00 | C65: PERSSA | D65: 235737 | E65: 2 | F65: CRHHT-16 | G65: 230/3 | H65: VE-01, VE-02 | I65: - | J65: 1550 | K65: 1 1/2 | O65: 3.703703704 | P65: 5CRHHT16C01550 | Q65: EXT.CRHHT-16 1.5T 1550RPM
A66: 63 | B66: 2021-05-12T16:41:00 | C66: ANGELICA LOPEZ LOME | D66: 235740 | E66: 1 | F66: CRVLT-24 | G66: 230/3 | H66: - | I66: - | J66: 910 | K66: 2 | O66: 3.703703704 | P66: 5CRVLT24D09000 | Q66: Existe
A67: 64 | B67: 2021-05-13T10:20:00 | C67: MIGA INGENIERIA | D67: 235761 | E67: 1 | F67: CME-315 | G67: 230/3 | H67: - | I67: 2000 CFM | J67: 2150 | K67: 1 | N67: ARREGLO ANTICHISPA AMCA "C", MOTOR APEX 2-MO-062XUS | O67: 3.703703704 | P67: 5CME315B215APX | Q67: EXT.CME-315 1T 2150RPM APEX
A68: 65 | B68: 2021-05-13T12:43:00 | C68: CONFORT VENTILACION | D68: 229239 | E68: 2 | F68: CLT-22 | G68: 230/3 | H68: - | I68: - | J68: 1275 | K68: 5 | O68: 3.703703704 | P68: 5CLTG22F12600 | Q68: Existe
A69: 66 | B69: 2021-05-13T12:43:00 | C69: CONFORT VENTILACION | D69: 229239 | E69: 3 | F69: CLT-16 | G69: 230/3 | H69: - | I69: - | J69: 1450 | K69: 2 | O69: =2/0.54 -> 3.703703704 | P69: 5CLTG16D014500 | Q69: EXT.CLTG-16 2T 1450RPM
A70: 67 | B70: 2021-05-13T13:33:00 | C70: SOLUCIONES Y SERVICIOS EN AIRE | D70: 235776 | E70: 1 | F70: CDAH-7/7 | G70: 230/3 | H70: - | I70: - | J70: 1175 | K70: 1/3 | O70: 3.703703704 | P70: 5CDAH77T011750 | Q70: EXT.CDAH-7/7 1/3T 1175RPM
A71: 68 | B71: 2021-05-14T08:53:00 | C71: MULTIEQUIPOS | D71: 235805 | E71: 10 | F71: RXT-C 1500-3-18/S | G71: 230/3 | H71: - | I71: - | J71: 550 | K71: 3 | O71: 3.703703704 | P71: 5NRXTC1500318S | Q71: EXT.RXT-C 1500-3-18/S
A72: 69 | B72: 2021-05-14T10:54:00 | C72: GARCOSA | D72: 235814 | E72: 10 | F72: WXT 800-3/4-S | G72: 460/3 | H72: PA-01 | I72: - | J72: 700 | K72: 3/4 | N72: MALLA EN SUCCION, PERSIANA DE EXTRACCION, BRIDAS | O72: 3.703703704 | P72: 5WXT80034700 | Q72: Existe
A73: 70 | B73: 2021-05-14T10:54:00 | C73: GARCOSA | D73: 235814 | E73: 26 | F73: CCR-10/10 | G73: 220/1 | H73: PA-05 | I73: - | J73: 825 | K73: 1/2 | O73: 3.703703704 | P73: 5CCR1010408250 | Q73: Existe
A74: 71 | B74: 2021-05-14T10:54:00 | C74: GARCOSA | D74: 235814 | E74: 1 | F74: CCR-10/10 | G74: 220/1 | H74: PA-06 | I74: - | J74: 875 | K74: 1/2 | O74: 3.703703704 | P74: 5CCR1010408750 | Q74: EXT.CCR-10/10 1/2M 875RPM
A75: 72 | B75: 2021-05-14T12:57:00 | C75: L.CARVAJAL | D75: - | E75: 1 | F75: DAB-36/36 | G75: - | H75: - | I75: - | J75: - | K75: - | L75: CCW | M75: TH | N75: GIRO CCW, DESCARGA TH, CON MARCOS, PINTURA GRIS SOLER EN CARACOL, MARCOS, CONO DE SUCCION, SIN BASTIDOR, S/M, S/LARGUERO COD REFERENCIA 5DA3636ESP | O75: 3.703703704 | P75: 5DAB3636000SM | Q75: EXT.DA/B-36/36 S/M S/BASTIDOR
A76: 73 | B76: 2021-05-14T16:05:00 | C76: TODO EN VENTILACION | D76: 235833 | E76: 1 | F76: CMII-630 | G76: 230/3 | H76: MXVOR-0601 | I76: 20261 M3/HR | J76: 1680 | K76: 15 | O76: 3.703703704 | P76: 5CMII630M17000 | Q76: Existe
A77: 74 | B77: 2021-05-14T17:01:00 | C77: RC CLIMAS | D77: 235837 | E77: 1 | F77: CMI-280 | G77: 127/1 | H77: - | I77: - | J77: 1725 | K77: 1/3 | O77: 3.703703704 | P77: 5CMI2803017250 | Q77: Existe
A78: 75 | B78: 2021-05-14T17:01:00 | C78: RC CLIMAS | D78: 235837 | E78: 1 | F78: CMI-250 | G78: 127/1 | H78: - | I78: - | J78: 1825 | K78: 1/4 | O78: 3.703703704 | P78: 5CMI2502018250 | Q78: Existe
A79: 76 | B79: 2021-05-14T17:01:00 | C79: RC CLIMAS | D79: 235837 | E79: 1 | F79: CMI-560 | G79: 230/3 | H79: - | I79: - | J79: 950 | K79: 1 1/2 | O79: 3.703703704 | P79: 5CMI560C095000 | Q79: Existe
A80: 77 | B80: 2021-05-14T17:01:00 | C80: RC CLIMAS | D80: 235837 | E80: 1 | F80: CCK-18/18 | G80: 230/3 | H80: - | I80: - | J80: 650 | K80: 3 | O80: 3.703703704 | P80: 5CCK18E0650000 | Q80: Existe
A81: 78 | B81: 2021-05-17T08:33:00 | C81: TRANE | D81: 235848 | E81: 1 | F81: CDAHF1-22/22 | G81: 230/3 | H81: - | I81: 7000 CFM | J81: 500 | K81: 3 | O81: 3.703703704 | P81: 5CDAHF122E5000 | Q81: Existe
A82: 79 | B82: 2021-05-17T08:33:00 | C82: TRANE | D82: 235848 | E82: 1 | F82: CLT-12 | G82: 127/1 | H82: - | I82: 1037 CFM | J82: 1550 | K82: 3/4 | O82: 3.703703704 | P82: 5CLTG125015500 | Q82: EXT.CLTG-12 3/4M 1550RPM
A83: 80 | B83: 2021-05-17T08:33:00 | C83: TRANE | D83: 235848 | E83: 1 | F83: CMI-630 | G83: 230/3 | H83: - | I83: 7089 CFM | J83: 1200 | K83: 5 | O83: 3.703703704 | P83: 5CMI630F120000 | Q83: Existe
A84: 81 | B84: 2021-05-17T08:40:00 | C84: TRANE | D84: 235849 | E84: 1 | F84: CDAHF2-18/18 | G84: 230/3 | H84: - | I84: 3500 CFM | J84: 775 | K84: 2 | O84: 3.703703704 | P84: 5CDAHF218D0775 | Q84: EXT.CDAHF2-18/18 2T 775RPM
A85: 82 | B85: 2021-05-17T08:40:00 | C85: TRANE | D85: 235849 | E85: 1 | F85: CLT-10 | G85: 127/1 | H85: - | I85: 500 CFM | J85: 1100 | K85: 1/4 | O85: 3.703703704 | P85: 5CLTG10211000 | Q85: Existe
A86: 83 | B86: 2021-05-17T08:40:00 | C86: TRANE | D86: 235849 | E86: 1 | F86: TBN-TII 500 | G86: 230/3 | H86: - | I86: 4560 CFM | J86: 2425 | K86: 15 | O86: 3.703703704 | P86: FORMATO | Q86: FORMATO
A87: 84 | B87: 2021-05-17T09:16:00 | C87: SERVICIOS ESPECIALIZADOS DEL NORTE | D87: 235852 235853 | E87: 4 | F87: CLT-16 | G87: 220/1 | H87: VI-01, VI-02 | I87: 1400 CFM | J87: 975 | K87: 1/2 | O87: 3.703703704 | P87: 5CLTG164097500 | Q87: Existe
A88: 85 | B88: 2021-05-17T09:25:00 | C88: CLIMA ARTIFICIAL DEL GOLFO | D88: 235854 | E88: 3 | F88: CRVLT-18 | G88: 230/3 | H88: - | I88: - | J88: 1200 | K88: 3/4 | O88: 3.703703704 | P88: 5CRVLT18A01200 | Q88: Existe
A89: 86 | B89: 2021-05-17T09:25:00 | C89: CLIMA ARTIFICIAL DEL GOLFO | D89: 235854 | E89: 1 | F89: CDAVF1-18/18 | G89: 230/3 | H89: - | I89: - | J89: 650 | K89: 3 | O89: 3.703703704 | P89: 5CDAVF118E0650 | Q89: EXT.CDAVF1-18/18 3T 650RPM
A90: 87 | B90: 2021-05-17T11:20:00 | C90: MAIRSA | D90: 235859 | E90: 1 | F90: CDAHF2-9/9 | G90: 220/1 | H90: - | I90: 1615 CFM | J90: 1150 | K90: 3/4 | O90: 3.703703704 | P90: 5CDAHF29951150 | Q90: EXT.CDAHF2-9/9 3/4M 1150RPM
A91: 88 | B91: 2021-05-17T13:11:00 | C91: EYSER DE MEXICO | D91: 235863 | E91: 1 | F91: TGT/4-1250-3/15 | G91: 230/3 | H91: - | I91: - | J91: 1725 | K91: 15 | N91: ANGULO DE LA PALA C (10°) | O91: 3.703703704 | P91: 5TGT41250315C | Q91: EXT.TGT/4-1250-3 15TF 4P ANG.c
A92: 89 | B92: 2021-05-18T08:53:00 | C92: EXPERTOS EN VENTILACION | D92: 235886 | E92: 1 | F92: CMI-400 | G92: 230/3 | H92: - | I92: - | J92: 1500 | K92: 1 | O92: 3.703703704 | P92: 5CMI400B015000 | Q92: Existe
A93: 90 | B93: 2021-05-18T08:53:00 | C93: EXPERTOS EN VENTILACION | D93: 235886 | E93: 1 | F93: CRHLT-14 | G93: 230/3 | H93: - | I93: - | J93: 1575 | K93: 1/2 | O93: 3.703703704 | P93: 5CRHLT14901575 | Q93: EXT.CRHLT-14 1/2T 1575RPM
A94: 91 | B94: 2021-05-18T08:53:00 | C94: EXPERTOS EN VENTILACION | D94: 235886 | E94: 1 | F94: CRHLT-16 | G94: 230/3 | H94: - | I94: - | J94: 1350 | K94: 1 1/2 | O94: 3.703703704 | P94: 5CRHLT16C01350 | Q94: EXT.CRHLT-16 1.5T 1350RPM
A95: 92 | B95: 2021-05-18T08:53:00 | C95: EXPERTOS EN VENTILACION | D95: 235886 | E95: 1 | F95: CRHLT-24 | G95: 230/3 | H95: - | I95: - | J95: 800 | K95: 1 1/2 | O95: 3.703703704 | P95: 5CRHLT24C08000 | Q95: Existe
A96: 93 | B96: 2021-05-18T10:03:00 | C96: MULTIEQUIPOS | D96: 235887 | E96: 3 | F96: CRVLT-12 | G96: 220/1 | H96: - | I96: - | J96: 1725 | K96: 1/2 | O96: 3.703703704 | P96: 5CRVLT12401725 | Q96: Existe
A97: 94 | B97: 2021-05-18T10:03:00 | C97: MULTIEQUIPOS | D97: 235887 | E97: 3 | F97: CRVLT-14 | G97: 220/1 | H97: - | I97: - | J97: 1525 | K97: 3/4 | O97: 3.703703704 | P97: 5CRVLT14501525 | Q97: Existe
A98: 95 | B98: 2021-05-18T10:03:00 | C98: MULTIEQUIPOS | D98: 235887 | E98: 4 | F98: CRVLT-16 | G98: 220/1 | H98: - | I98: - | J98: 1375 | K98: 1 | O98: 3.703703704 | P98: 5CRVLT16601380 | Q98: Existe
A99: 96 | B99: 2021-05-18T10:03:00 | C99: MULTIEQUIPOS | D99: 235887 | E99: 2 | F99: CRVLT-16 | G99: 220/1 | H99: - | I99: - | J99: 1500 | K99: 1 1/2 | O99: 3.703703704 | P99: 5CRVLT16701500 | Q99: Existe
A100: 97 | B100: 2021-05-18T10:03:00 | C100: MULTIEQUIPOS | D100: 235887 | E100: 2 | F100: CRVLT-20 | G100: 220/1 | H100: - | I100: - | J100: 1000 | K100: 2 | O100: 3.703703704 | P100: 5CRVLT20101000 | Q100: Existe
A101: 98 | B101: 2021-05-18T10:03:00 | C101: MULTIEQUIPOS | D101: 235887 | E101: 2 | F101: CRVLT-18 | G101: 220/1 | H101: - | I101: - | J101: 1300 | K101: 1 1/2 | O101: 3.703703704 | P101: 5CRVLT18701300 | Q101: Existe
A102: 99 | B102: 2021-05-18T10:03:00 | C102: MULTIEQUIPOS | D102: 235887 | E102: 2 | F102: CRVLT-18 | G102: 220/1 | H102: - | I102: - | J102: 1325 | K102: 2 | O102: 3.703703704 | P102: 5CRVLT18101325 | Q102: Existe
A103: 100 | B103: 2021-05-18T10:03:00 | C103: MULTIEQUIPOS | D103: 235887 | E103: 2 | F103: CRVLT-22 | G103: 220/1 | H103: - | I103: - | J103: 950 | K103: 2 | O103: 3.703703704 | P103: 5CRVLT22109500 | Q103: Existe
A104: 101 | B104: 2021-05-19T08:43:00 | C104: BOREAL AIRE Y CONFORT | D104: 235926 | E104: 1 | F104: CMI-630 | G104: 230/3 | H104: - | I104: 10368 M3/HR | J104: 1275 | K104: 5 | N104: MOTOR APEX 2-MO-065XUS *PEDIDO CANCELADO* | O104: 3.703703704
A105: 102 | B105: 2021-05-19T17:09:00 | C105: EDISON MAQUINARIA | D105: - | E105: 4 | F105: CONJ.PTA.FILTRO | G105: - | H105: - | I105: - | J105: - | K105: - | N105: BANCO PORTAFILTRO PARA 5DLVF96Q0380UB, INCLUYE: MERV-8 (1RA ETAPA) Y FILTRO CARBON ACTIVADO (2DA ETAPA) *PEDIDO CANCELADO* | O105: 3.703703704
A106: 103 | B106: 2021-05-20T10:53:00 | C106: PROYECTOS DE AIRE INGENIERIA DEL FRIO | D106: 235983 | E106: 1 | F106: CMI-355 | G106: 127/1 | H106: VE-29 | I106: 1910 CFM | J106: 1425 | K106: 1/2 | O106: 3.703703704 | P106: 5CMI3554142500 | Q106: Existe
A107: 104 | B107: 2021-05-20T10:53:00 | C107: PROYECTOS DE AIRE INGENIERIA DEL FRIO | D107: 235983 | E107: 1 | F107: CMI-400 | G107: 460/3 | H107: VE-32 | I107: 2680 CFM | J107: 1350 | K107: 3/4 | O107: 3.703703704 | P107: 5CMI400A013500 | Q107: Existe
A108: 105 | B108: 2021-05-20T10:53:00 | C108: PROYECTOS DE AIRE INGENIERIA DEL FRIO | D108: 235983 | E108: 1 | F108: CMI-500 | G108: 460/3 | H108: VE-33 | I108: 3450 CFM | J108: 925 | K108: 3/4 | O108: 3.703703704 | P108: 5CMI500A092500 | Q108: Existe
A109: 106 | B109: 2021-05-20T10:53:00 | C109: PROYECTOS DE AIRE INGENIERIA DEL FRIO | D109: 235983 | E109: 1 | F109: CMI-315 | G109: 127/1 | H109: VE-34 | I109: 1420 CFM | J109: 1475 | K109: 1/3 | O109: 3.703703704 | P109: 5CMI315315000 | Q109: Existe
A110: 107 | B110: 2021-05-20T10:53:00 | C110: PROYECTOS DE AIRE INGENIERIA DEL FRIO | D110: 235983 | E110: 1 | F110: CMI-400 | G110: 460/3 | H110: VE-35 | I110: 2600 CFM | J110: 1325 | K110: 3/4 | O110: 3.703703704 | P110: 5CMI400A013250 | Q110: Existe
A111: 108 | B111: 2021-05-20T10:53:00 | C111: PROYECTOS DE AIRE INGENIERIA DEL FRIO | D111: 235983 | E111: 1 | F111: CMI-560 | G111: 460/3 | H111: VE-36 | I111: 5035 CFM | J111: 925 | K111: 1 1/2 | O111: 3.703703704 | P111: 5CMI560C091500 | Q111: Existe
A112: 109 | B112: 2021-05-20T10:53:00 | C112: PROYECTOS DE AIRE INGENIERIA DEL FRIO | D112: 235983 | E112: 1 | F112: CMI-500 | G112: 460/3 | H112: VE-37 | I112: 3410 CFM | J112: 950 | K112: 3/4 | O112: 3.703703704 | P112: 5CMI500A095000 | Q112: EXT.CMI-500 3/4T 950RPM
A113: 110 | B113: 2021-05-20T10:53:00 | C113: PROYECTOS DE AIRE INGENIERIA DEL FRIO | D113: 235983 | E113: 1 | F113: CMI-250 | G113: 127/1 | H113: VE-46 | I113: 890 CFM | J113: 1800 | K113: 1/4 | O113: 3.703703704 | P113: 5CMI2502018000 | Q113: Existe
A114: 111 | B114: 2021-05-20T10:53:00 | C114: PROYECTOS DE AIRE INGENIERIA DEL FRIO | D114: 235983 | E114: 1 | F114: CMI-355 | G114: 127/1 | H114: VE-47 | I114: 1930 CFM | J114: 1400 | K114: 1/2 | O114: 3.703703704 | P114: 5CMI3554014000 | Q114: Existe
A115: 112 | B115: 2021-05-20T10:53:00 | C115: PROYECTOS DE AIRE INGENIERIA DEL FRIO | D115: 235983 | E115: 1 | F115: CMI-500 | G115: 460/3 | H115: VE-48 | I115: 5060 CFM | J115: 1250 | K115: 1 1/2 | O115: 3.703703704 | P115: 5CMI500C012500 | Q115: Existe
A116: 113 | B116: 2021-05-20T16:11:00 | C116: LA MUÑO | D116: 236008 | E116: 1 | F116: CRHLT-16 | G116: 230/3 | H116: - | I116: - | J116: 1110 | K116: 1/2 | O116: 3.703703704 | P116: 5CRHLT16901125 | Q116: Existe
A117: 114 | B117: 2021-05-21T10:31:00 | C117: PROYECTOS DE AIRE INGENIERIA DEL FRIO | D117: 236022 | E117: 1 | F117: DAL-16-H-2 | G117: 220/1 | H117: - | I117: 6731 CFM | J117: 533 | K117: 2 | N117: MOTOR MONOFASICO CERRADO 2-MO-002MM | O117: 3.703703704 | P117: 5UDLHF16105250 | Q117: LAV.DALH-16 2M 525RPM MOTOR MF
A118: 115 | B118: 2021-05-21T11:38:00 | C118: CONSTANTINO BOYER CARLOS ALBERTO | D118: 236032 | E118: 1 | F118: CRVLT-24 | G118: 220/1 | H118: VE-01 | I118: 5009 CFM | J118: 900 | K118: 2 | O118: 3.703703704 | P118: 5CRVLT24109000 | Q118: Existe
A119: 116 | B119: 2021-05-24T11:01:00 | C119: JER | D119: 236053 | E119: 1 | F119: CLTH-18 | G119: 460/3 | H119: - | I119: - | J119: 1700 | K119: 3 | O119: 3.703703704 | P119: 5CLTH18E017000 | Q119: EXT.CLTH-18 3T 1700RPM
A120: 117 | B120: 2021-05-24T11:01:00 | C120: JER | D120: 236053 | E120: 1 | F120: CDAVF1-18/18 | G120: 460/3 | H120: - | I120: - | J120: 824 | K120: 3 | O120: 3.703703704 | P120: 5CDAVF118E0825 | Q120: EXT.CDAVF1-18/18 3T 825RPM
A121: 118 | B121: 2021-05-24T11:01:00 | C121: JER | D121: 236053 | E121: 6 | F121: CDAHF1-30/28 | G121: 460/3 | H121: - | I121: - | J121: 382 | K121: 10 | O121: 3.703703704 | P121: 5CDAHF1328H375 | Q121: EXT.CDAHF1-30/28 10T 375RPM
A122: 119 | B122: 2021-05-24T11:01:00 | C122: JER | D122: 236053 | E122: 1 | F122: CDAHF1-12/12 | G122: 460/3 | H122: - | I122: - | J122: 1060 | K122: 3 | O122: 3.703703704 | P122: 5CDAHF112E1075 | Q122: EXT.CDAHF1-12/12 3T 1075RPM
A123: 120 | B123: 2021-05-24T11:49:00 | C123: PERSSA | D123: 236079 | E123: 1 | F123: CDAHF1-18/18 | G123: 460/3 | H123: - | I123: 9072 CFM | J123: 775 | K123: 5 | O123: 3.703703704 | P123: 5CDAHF118E0775 | Q123: EXT.CDAHF1-18/18 5T 775RPM
A124: 121 | B124: 2021-05-24T17:58:00 | C124: PRODEMEX | D124: 236037 | E124: 1 | F124: APF 4000-4" | G124: - | H124: TAE-01 | I124: - | J124: - | K124: - | N124: PORTA FILTROS DOS ETAPAS CON FILTROS METALICOS Y MERV 8 | O124: 3.703703704 | P124: 5APF-4000248FI | Q124: BANCO P.FILTRO 24"x48" FILT.ME
A125: 122 | B125: 2021-05-24T17:58:00 | C125: PRODEMEX | D125: 236037 | E125: 1 | F125: APF 4000-4" | G125: - | H125: TAE-02 | I125: - | J125: - | K125: - | N125: PORTA FILTROS DOS ETAPAS CON FILTROS METALICOS Y MERV 8 | O125: 3.703703704 | P125: 5APF-4000248FI | Q125: BANCO P.FILTRO 24"x48" FILT.ME
A126: 123 | B126: 2021-05-24T17:58:00 | C126: PRODEMEX | D126: 236037 | E126: 2 | F126: APF 4000-4" | G126: - | H126: TAE-03 TAE-04 | I126: - | J126: - | K126: - | N126: PORTA FILTROS DOS ETAPAS CON FILTROS METALICOS Y MERV 8 | O126: 3.703703704 | P126: 5APF-4000248FI | Q126: BANCO P.FILTRO 24"x48" FILT.ME
A127: 124 | B127: 2021-05-24T17:58:00 | C127: PRODEMEX | D127: 236037 | E127: 1 | F127: PF-14CL | G127: - | H127: TAE-05 | I127: - | J127: - | K127: - | N127: PORTA FILTROS DOS ETAPAS CON FILTROS METALICOS Y MERV 8 | O127: 3.703703704 | P127: 5PF-14CLF | Q127: PORTAFILTRO CL-14 NVO. 2ET.
A128: 125 | B128: 2021-05-24T17:58:00 | C128: PRODEMEX | D128: 236037 | E128: 1 | F128: PF-16CL | G128: - | H128: TAE-06 | I128: - | J128: - | K128: - | N128: PORTA FILTROS DOS ETAPAS CON FILTROS METALICOS Y MERV 8 | O128: 3.703703704 | P128: 5PF-16CLF | Q128: PORTAFILTRO CL-16 NVO. 2ET.
A129: 126 | B129: 2021-05-24T17:58:00 | C129: PRODEMEX | D129: 236037 | E129: 1 | F129: PF-14CL | G129: - | H129: TAE-07 | I129: - | J129: - | K129: - | N129: PORTA FILTROS DOS ETAPAS CON FILTROS METALICOS Y MERV 8 | O129: 3.703703704 | P129: 5PF-14CLF | Q129: PORTAFILTRO CL-14 NVO. 2ET.
A130: 127 | B130: 2021-05-24T17:58:00 | C130: PRODEMEX | D130: 236037 | E130: 1 | F130: PF-14CL | G130: - | H130: TAE-08 | I130: - | J130: - | K130: - | N130: PORTA FILTROS DOS ETAPAS CON FILTROS METALICOS Y MERV 8 | O130: 3.703703704 | P130: 5PF-14CLF | Q130: PORTAFILTRO CL-14 NVO. 2ET.
A131: 128 | B131: 2021-05-24T17:58:00 | C131: PRODEMEX | D131: 236037 | E131: 2 | F131: APF 4000-4" | G131: - | H131: VP-01 VP-02 | I131: - | J131: - | K131: - | N131: PORTA FILTROS DOS ETAPAS CON FILTROS METALICOS Y MERV 8 | O131: 3.703703704 | P131: 5APF-4000248FI | Q131: BANCO P.FILTRO 24"x48" FILT.ME
A132: 129 | B132: 2021-05-24T17:58:00 | C132: PRODEMEX | D132: 236037 | E132: 3 | F132: CLT-7 | G132: 127/1 | H132: TAE-09 TAE-10 TAE-11 | I132: 300 CFM 180 CFM 240 CFM | J132: 2575 | K132: 1/2 | N132: CUBIERTA MOTOR, CAJA PORTAFILTROS CON FILTROS METALICOS Y FILTROS MERV 8 | O132: 3.703703704 | P132: 5CLTG7402575PF | Q132: EXT.CLTG-7 1/2M 2575RPM CUBRE
A133: 130 | B133: 2021-05-24T17:58:00 | C133: PRODEMEX | D133: 236037 | E133: 1 | F133: CLT-24 | G133: 230/3 | H133: TAE-12 | I133: 4942 CFM | J133: 1200 | K133: 5 | N133: CUBIERTA MOTOR, CAJA PORTAFILTROS CON FILTROS METALICOS Y FILTROS MERV 8 | O133: =2/0.54 -> 3.703703704 | P133: 5CLTG24F1201PF | Q133: EXT.CLTG-24 5T 1200RPM CUBREMO
A134: 131 | B134: 2021-05-24T17:58:00 | C134: PRODEMEX | D134: 236037 | E134: 1 | F134: CLTH-20 | G134: 230/3 | H134: TAE-13 | I134: 2005 CFM | J134: 1400 | K134: 2 | N134: CUBIERTA MOTOR, CAJA PORTAFILTROS CON FILTROS METALICOS Y FILTROS MERV 8 | O134: 3.703703704 | P134: 5CLTH20D1400PF | Q134: EXT.CLTH-20 2T 1400RPM CUBREMO
A135: 132 | B135: 2021-05-24T17:58:00 | C135: PRODEMEX | D135: 236037 | E135: 1 | F135: CLT-16 | G135: 127/1 | H135: VE-51 VE-55 | I135: 800 CFM 815 CFM | J135: 1050 | K135: 1/2 | N135: CUBIERTA MOTOR | O135: 3.703703704 | P135: 5CLTG1641050CM | Q135: EXT.CLTG-16 1/2M 1050RPM CUBRE
A136: 133 | B136: 2021-05-24T17:58:00 | C136: PRODEMEX | D136: 236037 | E136: 1 | F136: CLT-20 | G136: 230/3 | H136: VE-52 | I136: 960 CFM | J136: 1000 | K136: 3/4 | N136: CUBIERTA MOTOR | O136: 3.703703704 | P136: 5CLTG20A1000CM | Q136: EXT.CLTG-20 3/4T 1000RPM CUBRE
A137: 134 | B137: 2021-05-24T17:58:00 | C137: PRODEMEX | D137: 236037 | E137: 2 | F137: CLT-22 | G137: 230/3 | H137: VE-53 VE-54 | I137: 2713 CFM | J137: 950 | K137: 1 1/2 | N137: CUBIERTA MOTOR | O137: 3.703703704 | P137: 5CLTG22C0950CM | Q137: EXT.CLTG-22 1.5T 950RPM CUBRE
A138: 135 | B138: 2021-05-24T17:58:00 | C138: PRODEMEX | D138: 236037 | E138: 1 | F138: CLT-28 | G138: 230/3 | H138: VE-56 | I138: 5768 CFM | J138: 925 | K138: 5 | N138: CUBIERTA MOTOR | O138: 3.703703704 | P138: 5CLTG28F0925CM | Q138: Existe
A139: 136 | B139: 2021-05-24T17:58:00 | C139: PRODEMEX | D139: 236037 | E139: 2 | F139: CLT-20 | G139: 230/3 | H139: VE-57 VE-58 | I139: 1200 CFM | J139: 1000 | K139: 3/4 | N139: CUBIERTA MOTOR | O139: 3.703703704 | P139: 5CLTG20A1000CM | Q139: EXT.CLTG-20 3/4T 1000RPM CUBRE
A140: 137 | B140: 2021-05-24T17:58:00 | C140: PRODEMEX | D140: 236037 | E140: 1 | F140: CLT-10 | G140: 127/1 | H140: VE-59 | I140: 400 CFM | J140: 1000 | K140: 1/4 | N140: CUBIERTA MOTOR | O140: 3.703703704 | P140: 5CLTG1021000CM | Q140: Existe
A141: 138 | B141: 2021-05-24T17:58:00 | C141: PRODEMEX | D141: 236037 | E141: 1 | F141: CLT-10 | G141: 127/1 | H141: VE-60 | I141: 800 CFM | J141: 1425 | K141: 1/4 | N141: CUBIERTA MOTOR | O141: 3.703703704 | P141: 5CLTG1021425CM | Q141: EXT.CLTG-10 1/4M 1425RPM CUBRE
A142: 139 | B142: 2021-05-24T17:58:00 | C142: PRODEMEX | D142: 236037 | E142: 1 | F142: CLT-7 | G142: 127/1 | H142: VE-61 | I142: 186 CFM | J142: 1100 | K142: 1/4 | N142: CUBIERTA MOTOR | O142: 3.703703704 | P142: 5CLTG7201100CM | Q142: Existe
A143: 140 | B143: 2021-05-24T17:58:00 | C143: PRODEMEX | D143: 236037 | E143: 1 | F143: CLT-16 | G143: 127/1 | H143: VE-62 | I143: 1340 CFM | J143: 650 | K143: 1/4 | N143: CUBIERTA MOTOR | O143: 3.703703704 | P143: 5CLTG1620650CM | Q143: EXT.CLTG-16 1/4M 650RPM CUBRE
A144: 141 | B144: 2021-05-24T17:58:00 | C144: PRODEMEX | D144: 236037 | E144: 2 | F144: CLT-22 | G144: 230/3 | H144: VI-01 VI-02 | I144: 3600 CFM 2400 CFM | J144: 1175 | K144: 3 | N144: CUBIERTA MOTOR, CAJA PORTAFILTROS CON FILTROS METALICOS Y FILTROS MERV 8 | O144: 3.703703704 | P144: 5CLTG22E1175PF | Q144: EXT.CLTG-22 3T 1175RPM CUBREMO
A145: 142 | B145: 2021-05-24T17:58:00 | C145: PRODEMEX | D145: 236037 | E145: 1 | F145: CMI-315 | G145: 127/1 | H145: VE-63 | I145: 1680 CFM | J145: 2025 | K145: 3/4 | O145: 3.703703704 | P145: 5CMI3155020250 | Q145: EXT.CMI-315 3/4M 2025RPM
A146: 143 | B146: 2021-05-24T17:58:00 | C146: PRODEMEX | D146: 236037 | E146: 2 | F146: CLT-10 | G146: 127/1 | H146: VE-49 VE-50 | I146: 535 CFM | J146: 1250 | K146: 1/4 | N146: CUBIERTA MOTOR | O146: 3.703703704 | P146: 5CLTG102125CM | Q146: Existe
A147: 144 | B147: 2021-05-24T17:58:00 | C147: PRODEMEX | D147: 236037 | E147: 1 | F147: CLT-10 | G147: 127/1 | H147: VE-66 | I147: 300 CFM | J147: 1075 | K147: 1/4 | N147: CUBIERTA MOTOR | O147: 3.703703704 | P147: 5CLTG1021075CM | Q147: EXT.CLTG-10 1/4M 1075RPM CUBRE
A148: 145 | B148: 2021-05-24T17:58:00 | C148: PRODEMEX | D148: 236037 | E148: 1 | F148: CDAHF2-12/12 | G148: 230/3 | H148: TAE-14 | I148: 1600 CFM | J148: 1300 | K148: 1 | O148: 3.703703704 | P148: 5CDAHF212B1301 | Q148: EXT.CDAHF2-12/12 1T 1300RPM
A149: 146 | B149: 2021-05-25T11:53:00 | C149: CYVSA | D149: 236136 | E149: 1 | F149: CDAHF1-9/9 | G149: 230/3 | H149: - | I149: 1580 CFM | J149: 1375 | K149: 1 | N149: PORTAFILTRO CON FILTRO MERV 8 | O149: 3.703703704 | P149: 5CDAHF199B1375 | Q149: EXT.CDAHF1-9/9 1T 1375RPM
A150: 147 | B150: 2021-05-25T11:53:00 | C150: CYVSA | D150: 236136 | E150: 1 | F150: CDAHF1-9/9 | G150: 230/3 | H150: - | I150: 1520 CFM | J150: 1225 | K150: 3/4 | N150: PORTAFILTRO CON FILTRO MERV 8 | O150: 3.703703704 | P150: 5CDAHF199A1225 | Q150: EXT.CDAHF1-9/9 3/4T 1225RPM
A151: 148 | B151: 2021-05-25T11:53:00 | C151: CYVSA | D151: 236136 | E151: 1 | F151: CMI-280 | G151: 230/3 | H151: - | I151: 1390 CFM | J151: 1950 | K151: 1/2 | O151: 3.703703704 | P151: 5CMI2809019550 | Q151: Existe
A152: 149 | B152: 2021-05-25T12:21:00 | C152: AMIGO DEL CHEF | D152: 236141 | E152: 1 | F152: CRVHT-18 | G152: 230/3 | H152: - | I152: - | J152: 1650 | K152: 2 | O152: 3.703703704 | P152: 5CRVHT18D01650 | Q152: Existe
A153: 150 | B153: 2021-05-25T12:27:00 | C153: REFRIGERACION LOZANO | D153: 236142 | E153: 1 | F153: CRVLT-18 | G153: 220/1 | H153: - | I153: 3838 CFM | J153: 1200 | K153: 3/4 | O153: 3.703703704 | P153: 5CRVLT18501200 | Q153: Existe
A154: 151 | B154: 2021-05-25T12:27:00 | C154: REFRIGERACION LOZANO | D154: 236142 | E154: 4 | F154: CRVHT-18 | G154: 115/1 | H154: - | I154: 5109 CFM | J154: 1600 | K154: 2 | O154: 3.703703704 | P154: 5CRVHT18101600 | Q154: Existe
A155: 152 | B155: 2021-05-25T12:27:00 | C155: REFRIGERACION LOZANO | D155: 236142 | E155: 2 | F155: CRVHT-18 | G155: 220/1 | H155: - | I155: 5105 CFM | J155: 1500 | K155: 1 1/2 | O155: 3.703703704 | P155: 5CRVHT18701510 | Q155: Existe
A156: 153 | B156: 2021-05-25T12:27:00 | C156: REFRIGERACION LOZANO | D156: 236142 | E156: 3 | F156: CRVLT-16 | G156: 115/1 | H156: - | I156: 2786 CFM | J156: 1200 | K156: 3/4 | O156: 3.703703704 | P156: 5CRVLT16512000 | Q156: Existe
A157: 154 | B157: 2021-05-25T12:27:00 | C157: REFRIGERACION LOZANO | D157: 236142 | E157: 1 | F157: CRVLT-16 | G157: 115/1 | H157: - | I157: 1973 CFM | J157: 750 | K157: 1/4 | O157: 3.703703704 | P157: 5CRVLT16207500 | Q157: EXT.CRVLT-16 1/4M 750RPM
A158: 155 | B158: 2021-05-25T12:38:00 | C158: COMERCIALIZADORA VV | D158: 236143 | E158: 1 | F158: CMI-280 | G158: 230/3 | H158: - | I158: 1900 CFM | J158: 2700 | K158: 1 | O158: 3.703703704 | P158: 5CMI280B027250 | Q158: Existe
A159: 156 | B159: 2021-05-25T12:38:00 | C159: COMERCIALIZADORA VV | D159: 236143 | E159: 1 | F159: CMI-710 | G159: 230/3 | H159: - | I159: 11900 CFM | J159: 1075 | K159: 5 | O159: 3.703703704 | P159: 5CMI710F010750 | Q159: EXT.CMI-710 5T 1075RPM
A160: 157 | B160: 2021-05-25T16:34:00 | C160: CONSTRUCCIONES SERVICIOS Y DISTRIBUCIONES | D160: 236156 | E160: 3 | F160: CRVLT-22 | G160: 230/3 | H160: VE-01 | I160: - | J160: 925 | K160: 2 | O160: 3.703703704 | P160: 5CRVLT22D09250 | Q160: Existe
A161: 158 | B161: 2021-05-26T08:20:00 | C161: REFRIGERACION COMERCIAL TEHUACAN | D161: 236175 | E161: 1 | F161: CMI-500 | G161: 230/3 | H161: - | I161: - | J161: 1800 | K161: 5 | O161: 3.703703704 | P161: 5CMI500F018000 | Q161: Existe
A162: 159 | B162: 2021-05-26T12:42:00 | C162: ECONOAIRE | D162: 236191 | E162: 1 | F162: CRHLT-16 | G162: 127/1 | H162: - | I162: 2700 CFM | J162: 1100 | K162: 3/4 | O162: 3.703703704 | P162: 5CRHLT16501100 | Q162: EXT.CRHLT-16 3/4M 1100RPM
A163: 160 | B163: 2021-05-27T08:43:00 | C163: REFRIGERACION LOZANO | D163: 236218 | E163: 8 | F163: CRVLT-16 | G163: 127/1 | H163: - | I163: - | J163: 1150 | K163: 1 | O163: 3.703703704 | P163: 5CRVLT16601150 | Q163: EXT.CRVLT-16 1M 1150RPM
A164: 161 | B164: 2021-05-27T08:43:00 | C164: REFRIGERACION LOZANO | D164: 236218 | E164: 19 | F164: CRVLT-10 | G164: 127/1 | H164: - | I164: - | J164: 1675 | K164: 1/3 | O164: 3.703703704 | P164: 5CRVLT10301675 | Q164: Existe
A165: 162 | B165: 2021-05-27T08:43:00 | C165: REFRIGERACION LOZANO | D165: 236218 | E165: 3 | F165: CRVLT-18 | G165: 127/1 | H165: - | I165: - | J165: 1200 | K165: 1 | O165: 3.703703704 | P165: 5CRVLT18601200 | Q165: Existe
A166: 163 | B166: 2021-05-27T10:23:00 | C166: EXPERTOS EN VENTILACION | D166: 236227 | E166: 4 | F166: INY.DX-1500/18 3T | G166: 230/3 | H166: - | I166: - | J166: 550 | K166: 3 | O166: 3.703703704 | P166: 5IDXT15003S | Q166: Existe
A167: 164 | B167: 2021-05-27T10:23:00 | C167: EXPERTOS EN VENTILACION | D167: 236227 | E167: 2 | F167: EDX-800 | G167: - | H167: - | I167: - | J167: - | K167: - | O167: 3.703703704 | P167: FORMATO | Q167: FORMATO
A168: 165 | B168: 2021-05-27T10:33:00 | C168: RESURTIDORA DE AIRE Y CALEFACCION | D168: 236228 | E168: 1 | F168: CLT-20 | G168: 220/1 | H168: - | I168: 1511 CFM | J168: 975 | K168: 3/4 | N168: CUBIERTA MOTOR | O168: 3.703703704 | P168: 5CLTG2050975CM | Q168: EXT.CLTG-20 3/4M 975RPM CUBRE
A169: 166 | B169: 2021-05-27T13:39:00 | C169: ABBACUS AIRE | D169: 236238 | E169: 1 | F169: CDAHF2-30/28 | G169: 460/3 | H169: VE01 | I169: 30,000 CFM | J169: 500 | K169: 20 | N169: LOUVERS PROTECCION EN SUCCION | O169: 3.703703704 | P169: 5CDAHF2328N6LV | Q169: Existe
A170: 167 | B170: 2021-05-27T15:41:00 | C170: EMALAG | D170: 236241 | E170: 2 | F170: I-WXT 1000-1 1/2-S | G170: 230/3 | H170: - | I170: 27,725 M3/HR | J170: 700 | K170: 1 1/2 | N170: INYECTOR, INCLUYE MALLA Y BANCO PORTA FILTRO, BRIDAS EN SUCCION Y DESCARGA | O170: 3.703703704 | P170: FORMATO | Q170: FORMATO
A171: 168 | B171: 2021-05-27T09:06:00 | C171: CYVSA | D171: 236273 | E171: 1 | F171: TGT/6-1000-6/3 | G171: 460/3 | H171: VEA-01 | I171: 16530 CFM | J171: 1170 | K171: 3 | N171: ANGULO DE LA PALA F (14°) | O171: 3.703703704 | P171: 5TGT61000630F | Q171: EXT.TGT-6-1000-6 3T 6P ANG.F
A172: 169 | B172: 2021-05-27T09:06:00 | C172: CYVSA | D172: 236273 | E172: 1 | F172: CLT-36 | G172: 460/3 | H172: VIP-01 | I172: 12000 CFM | J172: 625 | K172: 5 | N172: CUBIERTA MOTOR, TAPA Y BRIDA PARA DESCARGA IZQUIERDA | O172: 3.703703704 | P172: FORMATO | Q172: FORMATO
A173: 170 | B173: 2021-05-27T09:20:00 | C173: BOREAL AIRE Y CONFORT | D173: 236274 | E173: 1 | F173: CME-630 | G173: 230/3 | H173: - | I173: 6107 CFM | J173: 1275 | K173: 5 | N173: ARREGLO ANTICHISPA AMCA "C", MOTOR APEX 2-MO-065XUS | O173: 3.703703704 | P173: 5CME630F127APX | Q173: EXT.CME-630 5T 1275RPM AMCA C
A174: 171 | B174: 2021-05-31T08:41:00 | C174: AL MOTOR | D174: 236329 | E174: 8 | F174: CME-1000 | G174: 230/3 | H174: - | I174: 45501 M3/HR | J174: 825 | K174: 15 | N174: ARREGLO ANTICHISPA AMCA "C", SELLO EN FLECHA Y MOTOR ESTANDAR | O174: 3.703703704 | P174: 5CME1000M08250 | Q174: EXT.CME-1000 15T 825RPM AMCA C
A175: 172 | B175: 2021-05-31T09:00:00 | C175: LA MUÑO | D175: 236330 | E175: 2 | F175: CDAHF2-18/18 | G175: 460/3 | H175: - | I175: - | J175: 785 | K175: 7 1/2 | O175: 3.703703704 | P175: 5CDAHF218G800 | Q175: Existe
A176: 173 | B176: 2021-05-31T09:00:00 | C176: LA MUÑO | D176: 236330 | E176: 1 | F176: CDAHF2-20/20 | G176: 460/3 | H176: - | I176: - | J176: 675 | K176: 7 1/2 | O176: 3.703703704 | P176: 5CDAHF220G0675 | Q176: EXT.CDAHF2-20/20 7.5T 675RPM
A177: 174 | B177: 2021-05-31T09:00:00 | C177: LA MUÑO | D177: 236330 | E177: 2 | F177: CDAHF2-18/18 | G177: 460/3 | H177: - | I177: - | J177: 725 | K177: 5 | O177: 3.703703704 | P177: 5CDAHF218F0725 | Q177: Existe
A178: 175 | B178: 2021-05-31T09:00:00 | C178: LA MUÑO | D178: 236330 | E178: 1 | F178: CDAHF2-22/22 | G178: 460/3 | H178: - | I178: - | J178: 590 | K178: 7 1/2 | O178: 3.703703704 | P178: 5CDAHF222G0600 | Q178: Existe
A179: 176 | B179: 2021-05-31T09:00:00 | C179: LA MUÑO | D179: 236330 | E179: 1 | F179: CDAHF2-18/18 | G179: 460/3 | H179: - | I179: - | J179: 680 | K179: 5 | O179: 3.703703704 | P179: 5CDAHF218F0700 | Q179: Existe
A180: 177 | B180: 2021-05-31T09:27:00 | C180: LA MUÑO | D180: 236333 | E180: 2 | F180: CRWLT-18 | G180: 220/1 | H180: - | I180: - | J180: 1300 | K180: 1 | O180: 3.703703704 | P180: 5CRWLT18601300 | Q180: Existe
A181: 178 | B181: 2021-05-31T09:27:00 | C181: LA MUÑO | D181: 236333 | E181: 4 | F181: CRWLT-16 | G181: 220/1 | H181: - | I181: - | J181: 1300 | K181: 3/4 | O181: 3.703703704 | P181: 5CRWLT16501300 | Q181: Existe
A182: 179 | B182: 2021-05-31T09:50:00 | C182: MYCAIR | D182: 236336 | E182: 1 | F182: CLT-36 | G182: 230/3 | H182: - | I182: - | J182: 700 | K182: 7 1/2 | O182: 3.703703704 | P182: 5CLTG36G070000 | Q182: Existe
A183: 180 | B183: 2021-05-31T11:05:00 | C183: SOLUCIONES Y SERVICIOS EN AIRE | D183: 236338 | E183: 1 | F183: CME-500 | G183: 460/3 | H183: - | I183: - | J183: 1300 | K183: 3 | N183: ARREGLO ANTICHISPA AMCA "C", MOTOR ESTANDAR | O183: 3.703703704 | P183: 5CME500E013000 | Q183: EXT.CME-500 3T 1300RPM AMCA C
A184: 181 | B184: 2021-05-31T11:20:00 | C184: EDISON MAQUINARIA | D184: 236341 | E184: 2 | F184: CMI-560 | G184: 230/3/60 | H184: EXT-01 Y 02 | I184: 7400 M3/HR | J184: 1300 | K184: 5 | O184: 3.703703704 | P184: 5CMI560F013000 | Q184: Existe
A185: 182 | B185: 2021-05-31T11:20:00 | C185: EDISON MAQUINARIA | D185: 236341 | E185: 2 | F185: CDAH-18/18 | G185: 230/3/60 | H185: EXT-03 Y 04 | I185: 5900 M3/HR | J185: 550 | K185: 2 | O185: 3.703703704 | P185: 5CDAH1818D5500 | Q185: EXT.CDAH-18/18 2T 550RPM
A186: 183 | B186: 2021-05-31T11:20:00 | C186: EDISON MAQUINARIA | D186: 236341 | E186: 1 | F186: CDAH-12/12 | G186: 230/3/60 | H186: EXT-05 | I186: 3900 M3/HR | J186: 950 | K186: 2 | O186: 3.703703704 | P186: 5CDAH1212D0950 | Q186: Existe
A187: 184 | B187: 2021-05-31T11:20:00 | C187: EDISON MAQUINARIA | D187: 236341 | E187: 2 | F187: CMI-250 | G187: 230/3/60 | H187: EXT-07 Y 10 | I187: 1050 M3/HR | J187: 2100 | K187: 1/3 | O187: 3.703703704 | P187: 5CMI250T021000 | Q187: EXT.CMI-250 1/3T 2100RPM
A188: 185 | B188: 2021-05-31T11:20:00 | C188: EDISON MAQUINARIA | D188: 236341 | E188: 1 | F188: CMI-250 | G188: 127/1/60 | H188: EXT-09 | I188: 350 CFM | J188: 1800 | K188: 1/4 | O188: 3.703703704 | P188: 5CMI2502018000 | Q188: Existe
A189: 186 | B189: 2021-05-31T11:20:00 | C189: EDISON MAQUINARIA | D189: 236341 | E189: 2 | F189: CDAHF1-18/18 | G189: 230/3/60 | H189: INY-01 Y 02 | I189: 7500 CFM | J189: 650 | K189: 5 | O189: 3.703703704 | P189: 5CDAHF118F6500 | Q189: Existe
A190: 187 | B190: 2021-05-31T11:20:00 | C190: EDISON MAQUINARIA | D190: 236341 | E190: 2 | F190: CDAHF1-18/18 | G190: 230/3/60 | H190: INY-03 Y 04 | I190: 7150 CFM | J190: 600 | K190: 3 | O190: 3.703703704 | P190: 5CDAHF118E600 | Q190: Existe
A191: 188 | B191: 2021-05-31T11:20:00 | C191: EDISON MAQUINARIA | D191: 236341 | E191: 1 | F191: CDAHF1-18/18 | G191: 230/3/60 | H191: INY-05 | I191: 5500 CFM | J191: 550 | K191: 2 | O191: 3.703703704 | P191: 5CDAHF118D0550 | Q191: Existe
A192: 189 | B192: 2021-05-31T13:42:00 | C192: ANGELICA LOPEZ LOME | D192: 236368 | E192: 1 | F192: CDAHF1-18/18 | G192: 220/3 | H192: - | I192: - | J192: 725 | K192: 2 | O192: 3.703703704 | P192: 5CDAHF118D0725 | Q192: EXT.CDAHF1-18/18 2T 725RPM
A193: 190 | B193: 2021-05-31T13:42:00 | C193: ANGELICA LOPEZ LOME | D193: 236368 | E193: 1 | F193: CDAHF1-18/18 | G193: 220/3 | H193: - | I193: - | J193: 700 | K193: 2 | O193: 3.703703704 | P193: 5CDAHF118D0700 | Q193: EXT.CDAHF1-18/18 2T 700RPM
A194: 191 | B194: 2021-05-31T14:02:00 | C194: T Y P | D194: 236369 | E194: 1 | F194: CMI-250 | G194: 460/3 | H194: - | I194: - | J194: 3100 | K194: 1 | O194: 3.703703704 | P194: 5CMI250B031060 | Q194: Existe
A195: 192 | B195: 2021-05-31T16:00:00 | C195: EXPERTOS EN VENTILACION | D195: 236388 | E195: 1 | F195: CDAHF2-12/12 | G195: 220/3 | H195: - | I195: - | J195: 1300 | K195: 1 1/2 | N195: FILTROS METALICOS Y MERV-13 | O195: 3.703703704 | P195: 5CDAHF212C1302 | Q195: EXT.CDAHF2-12/12 1.5T 1300RPM
A196: 193 | B196: 2021-05-31T16:14:00 | C196: QUE CALOR | D196: 236390 | E196: 2 | F196: CDAVF1-18/18 | G196: 230/3 | H196: - | I196: - | J196: 575 | K196: 2 | O196: 3.703703704 | P196: 5CDAVF118D0575 | Q196: EXT.CDAVF1-18/18 2T 575RPM
A197: 194 | B197: 2021-05-31T16:29:00 | C197: RESURTIDORA DE AIRE Y CALEFACCION | D197: 236391 | E197: 1 | F197: CLTH-18 | G197: 230/3 | H197: - | I197: 2478 CFM | J197: 1800 | K197: 3 | O197: =2/0.54 -> 3.703703704 | P197: 5CLTH18E018000 | Q197: EXT.CLTH-18 3T 1800RPM
A198: 195 | B198: 2021-05-31T16:46:00 | C198: AL MOTOR | D198: 236393 | E198: 1 | F198: CRHLT-10 | G198: 127/1 | H198: VE 01 | I198: 560 CFM | J198: 1550 | K198: 1/4 | O198: 3.703703704 | P198: 5CRHLT10215550 | Q198: Existe
A199: 196 | B199: 2021-05-31T16:46:00 | C199: AL MOTOR | D199: 236393 | E199: 1 | F199: CRHLT-14 | G199: 127/1 | H199: VE 04 | I199: 1500 CFM | J199: 1825 | K199: 3/4 | O199: 3.703703704 | P199: 5CRHLT14501825 | Q199: EXT.CRHLT-14 3/4M 1825RPM
A200: 197 | B200: 2021-05-31T16:46:00 | C200: AL MOTOR | D200: 236393 | E200: 1 | F200: CRVLT-18 | G200: 230/3 | H200: VE 05 | I200: 2800 CFM | J200: 1450 | K200: 1 1/2 | O200: 3.703703704 | P200: 5CRVLT18C01451 | Q200: Existe
... 14 more rows

Sheet JUNIO 2021
A1: SIAC | P1: ING. INDUSTRIAL
F2: CARACTERISTICAS DEL EQUIPO
A3: ITEM | B3: FECHA SOLICITADA | C3: Nombre Cliente | D3: PEDIDO | E3: CANTIDAD | F3: EQUIPO | G3: Conexión | H3: TAG | I3: Caudal | J3: R.P.M | K3: MOTOR | L3: GIRO | M3: DESCARGA | N3: OBSERVACIONES | O3: FACTOR VENTA | P3: Codigo | Q3: Descripción | R3: COSTO | S3: PRECIO LISTA | T3: FECHA ENTREGA
A4: 1 | B4: 2021-06-03T10:18:00 | C4: REMA INGENIERIA Y PROYECTOS | D4: 236468 | E4: 1 | F4: CLDG-12 3/4 MF | G4: 220/1 | H4: - | I4: 1200 CFM | J4: 1725 | K4: 3/4 | N4: CAJA PORTAFILTROS CL: CON FILTROS METALICOS Y MERV 7 *PEDIDO CANCELADO* | O4: =2/0.54 -> 3.703703704
A5: 2 | B5: 2021-06-03T11:56:00 | C5: AS SUMINISTROS | D5: 236462 | E5: 4 | F5: BDB-315 | G5: 230/3 | H5: V-01 | I5: 1200 CFM | J5: 3000 | K5: 2 | N5: *MOTOR DE 2 POLOS* | O5: =2/0.54 -> 3.703703704 | P5: 5BDBI315D03000 | Q5: EXT.BDBI -315 2T 3000RPM
A6: 3 | B6: 2021-06-03T11:56:00 | C6: AS SUMINISTROS | D6: 236462 | E6: 2 | F6: BDB-315 | G6: 230/3 | H6: V-02 | I6: 1600 CFM | J6: 2975 | K6: 3 | N6: *MOTOR DE 2 POLOS* | O6: 3.703703704 | P6: 5BDBI315E02975 | Q6: EXT.BDBI -315 3T 2975RPM
A7: 4 | B7: 2021-06-03T09:40:00 | C7: ELECTROSUMINISTROS TERMICOS | D7: 236508 | E7: 1 | F7: DAL-16-H-2 | G7: 230/3 | H7: - | I7: - | J7: 500 | K7: 2 | O7: 3.703703704 | P7: 5UDLHF16D05000 | Q7: LAV.DALH-16 2T 500RPM
A8: 5 | B8: 2021-06-03T12:17:00 | C8: INSOLSA | D8: 236477 | E8: 1 | F8: CLT-10 | G8: 115/1 | H8: - | I8: - | J8: 1550 | K8: 1/4 | N8: CUBIERTA MOTOR | O8: 3.703703704 | P8: 5CLTG1021551CM | Q8: Existe
A9: 6 | B9: 2021-06-03T12:17:00 | C9: INSOLSA | D9: 236477 | E9: 1 | F9: CLT-14 | G9: 115/1 | H9: - | I9: - | J9: 1150 | K9: 1/3 | N9: CUBIERTA MOTOR | O9: 3.703703704 | P9: 5CLTG1431150CM | Q9: EXT.CLTG-14 1/3M 1150RPM CUBRE
A10: 7 | B10: 2021-06-03T12:17:00 | C10: INSOLSA | D10: 236477 | E10: 1 | F10: CLT-14 | G10: 460/3 | H10: - | I10: - | J10: 1775 | K10: 3/4 | N10: CUBIERTA MOTOR | O10: 3.703703704 | P10: 5CLTG14A1775CM | Q10: EXT.CLTG-14 3/4T 1775RPM CUBRE
A11: 8 | B11: 2021-06-03T12:17:00 | C11: INSOLSA | D11: 236477 | E11: 1 | F11: CLT-16 | G11: 460/3 | H11: - | I11: - | J11: 1000 | K11: 3/4 | N11: CUBIERTA MOTOR | O11: 3.703703704 | P11: 5CLTG16A1000CM | Q11: EXT.CLTG-16 3/4T 1000RPM CUBRE
A12: 9 | B12: 2021-06-03T12:17:00 | C12: INSOLSA | D12: 236477 | E12: 1 | F12: CLT-22 | G12: 460/3 | H12: - | I12: - | J12: 975 | K12: 2 | N12: CUBIERTA MOTOR | O12: 3.703703704 | P12: 5CLTG22D0975CM | Q12: EXT.CLTG-22 2T 975RPM CUBRE
A13: 10 | B13: 2021-06-03T12:17:00 | C13: INSOLSA | D13: 236477 | E13: 1 | F13: CLT-26 | G13: 460/3 | H13: - | I13: - | J13: 750 | K13: 2 | N13: CUBIERTA MOTOR | O13: 3.703703704 | P13: 5CLTG26D0750CM | Q13: EXT.CLTG-26 2T 750RPM CUBRE
A14: 11 | B14: 2021-06-03T12:17:00 | C14: INSOLSA | D14: 236477 | E14: 1 | F14: TBN-T 400 | G14: 460/3 | H14: - | I14: - | J14: 1675 | K14: 1 1/2 | O14: 3.703703704 | P14: 5TBNTI400C1675 | Q14: EXT.TBNI-T-400 1.5T 1675RPM
A15: 12 | B15: 2021-06-03T12:17:00 | C15: INSOLSA | D15: 236477 | E15: 1 | F15: CLDG-10 1/3 MF | G15: 115/1 | H15: - | I15: - | J15: 1725 | K15: 1/3 | N15: CAJA PORTAFILTRO SIN FILTROS | O15: 3.703703704 | P15: 5CLDG-1013PF | Q15: EXT.CLD-10 1/3M 4P PTA.FILTROS
A16: 13 | B16: 2021-06-03T12:17:00 | C16: INSOLSA | D16: 236477 | E16: 2 | F16: CLT-14 | G16: 115/1 | H16: - | I16: - | J16: 1800 | K16: 1 | N16: CUBIERTA MOTOR + CAJA PORTAFILTRO SIN FILTROS | O16: 3.703703704 | P16: 5CLTG1461800PF | Q16: EXT.CLTG-14 1M 1800RPM CUBRE
A17: 14 | B17: 2021-06-03T12:17:00 | C17: INSOLSA | D17: 236477 | E17: 1 | F17: CLTH-18 | G17: 460/3 | H17: - | I17: - | J17: 1725 | K17: 3 | N17: CUBIERTA MOTOR + CAJA PORTAFILTRO SIN FILTROS | O17: 3.703703704 | P17: 5CLTH18E1725PF | Q17: EXT.CLTH-18 3T 1725RPM CUBRE
A18: 15 | B18: 2021-06-03T12:17:00 | C18: INSOLSA | D18: 236477 | E18: 1 | F18: CLT-22 | G18: 460/3 | H18: - | I18: - | J18: 1150 | K18: 5 | N18: CUBIERTA MOTOR + CAJA PORTAFILTRO SIN FILTROS | O18: 3.703703704 | P18: 5CLTG22F1150PF | Q18: 5CLTG22F1150PF
A19: 16 | B19: 2021-06-03T12:17:00 | C19: INSOLSA | D19: 236477 | E19: 1 | F19: CLT-7 | G19: 115/1 | H19: - | I19: - | J19: 1700 | K19: 1/4 | N19: CUBIERTA MOTOR | O19: 3.703703704 | P19: 5CLTG7201700CM | Q19: EXT.CLTG-7 1/4M 1700RPM CUBRE
A20: 17 | B20: 2021-06-03T12:17:00 | C20: INSOLSA | D20: 236477 | E20: 1 | F20: CLT-7 | G20: 115/1 | H20: - | I20: - | J20: 1825 | K20: 1/4 | N20: CUBIERTA MOTOR | O20: 3.703703704 | P20: 5CLTG7201825CM | Q20: Existe
A21: 18 | B21: 2021-06-03T12:17:00 | C21: INSOLSA | D21: 236477 | E21: 1 | F21: CLT-16 | G21: 115/1 | H21: - | I21: - | J21: 925 | K21: 1/2 | N21: CUBIERTA MOTOR | O21: 3.703703704 | P21: 5CLTG1640925CM | Q21: EXT.CLTG-16 1/2M 925RPM CUBRE
A22: 19 | B22: 2021-06-03T12:17:00 | C22: INSOLSA | D22: 236477 | E22: 1 | F22: CLT-14 | G22: 115/1 | H22: - | I22: - | J22: 1125 | K22: 1/4 | N22: CUBIERTA MOTOR | O22: 3.703703704 | P22: 5CLTG1421125CM | Q22: EXT.CLTG-14 1/4M 1125RPM CUBRE
A23: 20 | B23: 2021-06-03T12:17:00 | C23: INSOLSA | D23: 236477 | E23: 1 | F23: CLT-14 | G23: 115/1 | H23: - | I23: - | J23: 1525 | K23: 3/4 | N23: CUBIERTA MOTOR | O23: 3.703703704 | P23: 5CLTG1451525CM | Q23: Existe
A24: 21 | B24: 2021-06-03T13:03:00 | C24: JER | D24: 236544 | E24: 3 | F24: I-DX-1500/36 10T | G24: 230/3 | H24: - | I24: - | J24: 550 | K24: 10 | N24: INYECTOR | O24: 3.703703704 | P24: 5IDX150010S | Q24: Existe
A25: 22 | B25: 2021-06-07T08:22:00 | C25: GRUPO OREA INGENIERIA APLICADA | D25: 236579 | E25: 1 | F25: CEB-4000 | G25: 220/1 | H25: - | I25: - | J25: 1735 | K25: 1 1/2 | O25: 3.703703704 | P25: 5CEB-4000 | Q25: Existe
A26: 23 | B26: 2021-06-07T08:30:00 | C26: EXPERTOS EN VENTILACION | D26: 236580 | E26: 3 | F26: CMI-710 | G26: 230/3 | H26: - | I26: - | J26: 775 | K26: 2 | N26: *YA NO TRABAJAR EN EL CODIGO* | O26: 3.703703704
A27: 24 | B27: 2021-06-07T08:55:00 | C27: RCR REFRIGERACION | D27: 236528 | E27: 76 | F27: TFT/4-630-6/5 | G27: 460/3 | H27: - | I27: 6,300 CFM | J27: 1750 | K27: 5 | N27: MALLA PROTECCION SUCCION | O27: 3.703703704 | P27: FORMATO
A28: 25 | B28: 2021-06-07T08:55:00 | C28: RCR REFRIGERACION | D28: 236528 | E28: 6 | F28: I-HXA-4-1000/H | G28: 460/3 | H28: - | I28: 23,000 CFM | J28: 1765 | K28: 7 1/2 | N28: INYECTOR, INCLUYE MALLA PROTECCION SUCCION | O28: 3.703703704 | P28: FORMATO
A29: 26 | B29: 2021-06-07T13:26:00 | C29: CLIMAS KONFORT | D29: 236599 | E29: 4 | F29: INY.DX-1800/32 10T | G29: 230/3 | H29: - | I29: 57,000 CFM | J29: 440 | K29: 10 | N29: INYECTOR | O29: 3.703703704 | P29: FORMATO | Q29: FORMATO
A30: 27 | B30: 2021-06-07T13:26:00 | C30: CLIMAS KONFORT | D30: 236599 | E30: 2 | F30: INY.DX-1500/18 3T | G30: 230/3 | H30: - | I30: 26,400 CFM | J30: 550 | K30: 3 | N30: INYECTOR | O30: 3.703703704 | P30: 5IDXT15003S | Q30: Existe
A31: 28 | B31: 2021-06-07T13:26:00 | C31: CLIMAS KONFORT | D31: 236599 | E31: 18 | F31: INY.DX-1800/36 15T | G31: 230/3 | H31: - | I31: 64,800 CFM | J31: 400 | K31: 15 | N31: INYECTOR | O31: 3.703703704 | P31: FORMATO | Q31: FORMATO
A32: 29 | B32: 2021-06-08T08:40:00 | C32: RC CLIMAS | D32: 236625 | E32: 1 | F32: I-HGT-1000-1 1/2 | G32: 230/3 | H32: - | I32: - | J32: 700 | K32: 1 1/2 | O32: 3.703703704 | P32: FORMATO | Q32: FORMATO
A33: 30 | B33: 2021-06-08T13:38:00 | C33: T Y P REFRIGERACION | D33: 236639 | E33: 1 | F33: CDAVF2-12/12 | G33: 230/3 | H33: - | I33: - | J33: 850 | K33: 1/2 | O33: 3.703703704 | P33: 5CDAVF21290850 | Q33: EXT.CDAVF2-12/12 1/2T 850RPM
A34: 31 | B34: 2021-06-08T13:49:00 | C34: SOLUCIONES Y SERVICIOS EN AIRE | D34: 236640 | E34: 2 | F34: CLT-22 | G34: 230/3 | H34: - | I34: - | J34: 925 | K34: 1 1/2 | O34: 3.703703704 | P34: 5CLTG22C092500 | Q34: Existe
A35: 32 | B35: 2021-06-08T16:54:00 | C35: JWA REFRIGERACION | D35: 236649 | E35: 1 | F35: CDAHF1-9/9 | G35: 127/1 | H35: - | I35: 985 CFM | J35: 1000 | K35: 1/3 | O35: 3.703703704 | P35: 5CDAHF19931025 | Q35: Existe
A36: 33 | B36: 2021-06-08T17:36:00 | C36: LUIS CARVAJAL | D36: - | E36: 1 | F36: WXT 800-3/4-S | G36: 230/3 | H36: - | I36: - | J36: 700 | K36: 1 | N36: MOTOR 1 HP 2-MO-062US | O36: 3.703703704 | Q36: NO SE GENERA-CORREO
A37: 34 | B37: 2021-06-10T08:31:00 | C37: EDISON MAQUINARIA | D37: 236690 | E37: 1 | F37: CDAHF1-30/28 | G37: 230/3 | H37: - | I37: 21000 CFM | J37: 450 | K37: 10 | O37: 3.703703704 | P37: 5CDAHF1328H468 | Q37: Existe
A38: 35 | B38: 2021-06-10T08:36:00 | C38: AIRSA | D38: 236655 | E38: 1 | F38: CLT-16 | G38: 127/1 | H38: - | I38: - | J38: 1075 | K38: 3/4 | O38: 3.703703704 | P38: 5CLTG165010750 | Q38: EXT.CLTG-16 3/4M 1075RPM
A39: 36 | B39: 2021-06-10T08:36:00 | C39: AIRSA | D39: 236655 | E39: 1 | F39: CLT-16 | G39: 127/1 | H39: - | I39: - | J39: 875 | K39: 1/2 | O39: 3.703703704 | P39: 5CLTG164087500 | Q39: EXT.CLTG-16 1/2M 875RPM
A40: 37 | B40: 2021-06-10T08:36:00 | C40: AIRSA | D40: 236655 | E40: 1 | F40: CLT-16 | G40: 127/1 | H40: - | I40: - | J40: 825 | K40: 1/3 | O40: 3.703703704 | P40: 5CLTG163082500 | Q40: EXT.CLTG-16 1/3M 825RPM
A41: 38 | B41: 2021-06-10T08:36:00 | C41: AIRSA | D41: 236655 | E41: 1 | F41: CLT-10 | G41: 127/1 | H41: - | I41: - | J41: 1025 | K41: 1/4 | O41: 3.703703704 | P41: 5CLTG102010250 | Q41: EXT.CLTG-10 1/4M 1025RPM
A42: 39 | B42: 2021-06-10T15:48:00 | C42: GRUPO TORNADO | D42: 236719 | E42: 2 | F42: CMI-800 | G42: 460/3 | H42: - | I42: - | J42: 625 | K42: 3 | O42: 3.703703704 | P42: 5CMI800E062500 | Q42: EXT.CMI-800 3T 625RPM
A43: 40 | B43: 2021-06-10T17:12:00 | C43: CYME | D43: 236726 | E43: 1 | F43: I-HGT-1250-1 1/2 | G43: 230/3 | H43: - | I43: 16350 CFM | J43: 500 | K43: 1 1/2 | N43: INYECTOR | O43: 3.703703704 | P43: FORMATO | Q43: FORMATO
A44: 41 | B44: 2021-06-10T17:12:00 | C44: CYME | D44: 236726 | E44: 1 | F44: CMI-400 | G44: 127/1 | H44: VE-01 | I44: 2400 CFM | J44: 1325 | K44: 3/4 | O44: 3.703703704 | P44: 5CMI4005131500 | Q44: Existe
A45: 42 | B45: 2021-06-10T17:12:00 | C45: CYME | D45: 236726 | E45: 1 | F45: CMI-355 | G45: 127/1 | H45: VE-02 | I45: 2200 CFM | J45: 1600 | K45: 3/4 | O45: 3.703703704 | P45: 5CMI3555016250 | Q45: Existe
A46: 43 | B46: 2021-06-10T17:12:00 | C46: CYME | D46: 236726 | E46: 1 | F46: CMI-280 | G46: 127/1 | H46: VE-03 | I46: 1150 CFM | J46: 1800 | K46: 1/3 | O46: 3.703703704 | P46: 5CMI2803018000 | Q46: Existe
A47: 44 | B47: 2021-06-10T17:12:00 | C47: CYME | D47: 236726 | E47: 1 | F47: CMI-450 | G47: 127/1 | H47: VE-04 | I47: 3400 CFM | J47: 1250 | K47: 1 | O47: 3.703703704 | P47: 5CMI4506012750 | Q47: REPETIDO 46
A48: 45 | B48: 2021-06-10T17:12:00 | C48: CYME | D48: 236726 | E48: 1 | F48: CMI-450 | G48: 127/1 | H48: VE-05 | I48: 3600 CFM | J48: 1300 | K48: 1 1/2 | O48: 3.703703704 | P48: 5CMI4507130000 | Q48: Existe
A49: 46 | B49: 2021-06-10T17:12:00 | C49: CYME | D49: 236726 | E49: 1 | F49: CMI-450 | G49: 127/1 | H49: VE-06 | I49: 3550 CFM | J49: 1275 | K49: 1 | O49: 3.703703704 | P49: 5CMI4506012750 | Q49: EXT.CMI-450 1M 1275RPM
A50: 47 | B50: 2021-06-10T17:12:00 | C50: CYME | D50: 236726 | E50: 1 | F50: CMI-315 | G50: 127/1 | H50: VE-07 | I50: 1800 CFM | J50: 1850 | K50: 3/4 | O50: 3.703703704 | P50: 5CMI3155018750 | Q50: REPETIDO 51
A51: 48 | B51: 2021-06-10T17:12:00 | C51: CYME | D51: 236726 | E51: 1 | F51: CMI-315 | G51: 127/1 | H51: VE-08 | I51: 1400 CFM | J51: 1575 | K51: 1/3 | O51: 3.703703704 | P51: 5CMI3153015750 | Q51: Existe
A52: 49 | B52: 2021-06-10T17:12:00 | C52: CYME | D52: 236726 | E52: 1 | F52: CMI-315 | G52: 127/1 | H52: VE-09 | I52: 1400 CFM | J52: 1575 | K52: 1/3 | O52: 3.703703704 | P52: 5CMI3153015750 | Q52: REPETIDO 48
A53: 50 | B53: 2021-06-10T17:12:00 | C53: CYME | D53: 236726 | E53: 1 | F53: CRHLT-10 | G53: 127/1 | H53: VE-10 | I53: 600 CFM | J53: 1525 | K53: 1/4 | O53: 3.703703704 | P53: 5CRHLT10201525 | Q53: Existe
A54: 51 | B54: 2021-06-10T17:12:00 | C54: CYME | D54: 236726 | E54: 1 | F54: CMI-315 | G54: 127/1 | H54: VE-11 | I54: 1800 CFM | J54: 1875 | K54: 3/4 | O54: 3.703703704 | P54: 5CMI3155018750 | Q54: EXT.CMI-315 3/4M 1875RPM
A55: 52 | B55: 2021-06-10T17:12:00 | C55: CYME | D55: 236726 | E55: 1 | F55: CMI-400 | G55: 127/1 | H55: VE-12 | I55: 2400 CFM | J55: 1350 | K55: 3/4 | O55: 3.703703704 | P55: 5CMI4005013750 | Q55: Existe
A56: 53 | B56: 2021-06-10T17:12:00 | C56: CYME | D56: 236726 | E56: 1 | F56: CMI-355 | G56: 127/1 | H56: VE-13 | I56: 2300 CFM | J56: 1675 | K56: 3/4 | O56: 3.703703704 | P56: 5CMI3555170000 | Q56: Existe
A57: 54 | B57: 2021-06-10T17:12:00 | C57: CYME | D57: 236726 | E57: 1 | F57: CMI-280 | G57: 127/1 | H57: VE-14 | I57: 1100 CFM | J57: 1800 | K57: 1/3 | O57: 3.703703704 | P57: 5CMI2803018000 | Q57: REPETIDO 43
A58: 55 | B58: 2021-06-11T09:38:00 | C58: COEL | D58: 236746 | E58: 3 | F58: HXM-350 | G58: 127/1 | H58: - | I58: - | J58: 1550 | K58: 12 W | N58: PINTURA BLANCA CODIGO REFERENCIA 5HXM-250P | O58: 3.703703704 | P58: 5HXM-350P | Q58: EXT.HXM-350 PINTURA BLANCO
A59: 56 | B59: 2021-06-11T10:42:00 | C59: CYVSA | D59: 236752 | E59: 1 | F59: CRVLT-20 | G59: 127/1 | H59: EF-01 | I59: 2484 CFM | J59: 775 | K59: 1/3 | O59: 3.703703704 | P59: 5CRVLT20307750 | Q59: EXT.CRVLT-20 1/3M 775RPM
A60: 57 | B60: 2021-06-11T17:32:00 | C60: CLIMAS KONFORT | D60: 236785 | E60: 1 | F60: CRHLT-12 | G60: 230/3 | H60: - | I60: 1243 CFM | J60: 1575 | K60: 1/3 | O60: 3.703703704 | P60: 5CRHLT12T01600 | Q60: Existe
A61: 58 | B61: 2021-06-14T08:39:00 | C61: LAMUÑO | D61: 236792 | E61: 1 | F61: RXT 1250-1 1/2-27/S | G61: 230/3 | H61: - | I61: - | J61: 500 | K61: 1 1/2 | O61: 3.703703704 | P61: 5NRXT125011227S | Q61: EXT.RXT 1250-1 1/2-27/S
A62: 59 | B62: 2021-06-14T09:02:00 | C62: LAGUNA COMPRESORES | D62: 236794 | E62: 1 | F62: CRWLT-16 | G62: 127/1 | H62: - | I62: 2385 CFM | J62: 1275 | K62: 1 1/2 | O62: 3.703703704 | P62: 5CRWLT16701275 | Q62: EXT.CRWLT-16 1.5M 1275PM
A63: 60 | B63: 2021-06-15T10:19:00 | C63: IDSAA | D63: 236846 | E63: 1 | F63: CDAHF2-22/22 | G63: 230/3 | H63: - | I63: - | J63: 750 | K63: 5 | O63: 3.703703704 | P63: 5CDAHF222F0751 | Q63: EXT.CDAHF2-22/22 5T 750RPM
A64: 61 | B64: 2021-06-15T10:19:00 | C64: IDSAA | D64: 236846 | E64: 1 | F64: CLT-30 | G64: 230/3 | H64: - | I64: - | J64: 550 | K64: 1 | O64: 3.703703704 | P64: 5CLTG30B055000 | Q64: EXT.CLTG-30 1T 550RPM
A65: 62 | B65: 2021-06-15T12:21:00 | C65: CLIMAS ALFA | D65: 236860 | E65: 1 | F65: CME-315 | G65: 230/3 | H65: - | I65: - | J65: 1300 | K65: 1/4 | N65: MOTOR APEX 2-MO-140PX ARREGLO ANTICHISPA AMCA "C", SELLO EN FLECHA | O65: 3.703703704 | P65: 5CME3158130APX | Q65: EXT.CME-315 1/4T 1300RPM APEX
A66: 63 | B66: 2021-06-15T12:21:00 | C66: CLIMAS ALFA | D66: 236860 | E66: 1 | F66: CMX 250/4P | G66: 230/3 | H66: - | I66: - | J66: 1750 | K66: 1/4 | N66: CMX 250, MOTOR APEX 2-MO-140PX, ARREGLO ANTICHISPA AMCA "C", SELLO EN FLECHA | O66: 3.703703704 | P66: 5CMX2504817APX | Q66: EXT.CMX-250 1/4T 4P 1750RPM MO
A67: 64 | B67: 2021-06-15T12:21:00 | C67: CLIMAS ALFA | D67: 236860 | E67: 1 | F67: CDAHF1-9/9 | G67: 230/3 | H67: - | I67: - | J67: 1150 | K67: 1/2 | O67: 3.703703704 | P67: 5CDAHF19991150 | Q67: EXT.CDAHF1-9/9 1/2T 1150RPM
A68: 65 | B68: 2021-06-16T09:02:00 | C68: MIGA | D68: 236891 | E68: 1 | F68: CME-400 | G68: 230/3 | H68: - | I68: 3527 CFM | J68: 1700 | K68: 1 1/2 | L68: CW | M68: UB | N68: DESCARGA UB, ARREGLO ANTICHISPA AMCA "C", MOTOR APEX 2-MO-154XUS | O68: 3.703703704 | P68: 5CME400C170APX | Q68: EXT.CME-400 1.5T 1700RPM 0
A69: 66 | B69: 2021-06-16T13:20:00 | C69: GOMEZ VELA ANA LILIA | D69: 236907 | E69: 10 | F69: BDB-355 | G69: - | H69: - | I69: - | J69: - | K69: - | L69: CW | M69: TH | N69: SIN BASTIDOR, SIN BASE MOTOR | O69: =2/0.54 -> 3.703703704 | P69: 5BDBI3550000SB | Q69: EXT.BDBI-355 S/M S/TRANS S/BAS
A70: 67 | B70: 2021-06-16T16:24:00 | C70: THERMOKOLD INTERNACIONAL | D70: 236923 | E70: 1 | F70: CRVHT-18 | G70: 230/3 | H70: VE-01 | I70: 4090 CFM | J70: 1625 | K70: 2 | N70: GENERAR A 1625 | O70: 3.703703704 | P70: 5CRVHT18D01625 | Q70: EXT.CRVHT-18 2T 1625RPM
A71: 68 | B71: 2021-06-16T16:24:00 | C71: THERMOKOLD INTERNACIONAL | D71: 236923 | E71: 1 | F71: CRVHT-18 | G71: 230/3 | H71: VE-02 | I71: 3732 CFM | J71: 1525 | K71: 1 1/2 | N71: GENERAR A 1525 | O71: 3.703703704 | P71: 5CRVHT18C01525 | Q71: EXT.CRVHT-18 1.5T 1525RPM
A72: 69 | B72: 2021-06-17T08:36:00 | C72: ECOLOGIA ATMOSFERICA | D72: 235479 | E72: 1 | F72: CLT-14 | G72: 127/1 | H72: - | I72: 1400 CFM | J72: 1250 | K72: 1/2 | O72: 3.703703704 | P72: 5CLTG144012500 | Q72: EXT.CLTG-14 1/2M 1250RPM
A73: 70 | B73: 2021-06-17T09:25:00 | C73: EQUINOXSA MONTERREY | D73: 236940 | E73: 1 | F73: CRVLT-18 | G73: 220/1 | H73: - | I73: 3507 CFM | J73: 1425 | K73: 2 | N73: GENERAR A 1425 | O73: 3.703703704 | P73: 5CRVLT18101425 | Q73: EXT.CRVLT-18 2M 1425RPM
A74: 71 | B74: 2021-06-17T09:25:00 | C74: EQUINOXSA MONTERREY | D74: 236940 | E74: 1 | F74: CRVLT-16 | G74: 220/1 | H74: - | I74: 2846 CFM | J74: 1475 | K74: 2 | O74: 3.703703704 | P74: 5CRVLT16101475 | Q74: EXT.CRVLT-16 2M 1475RPM
A75: 72 | B75: 2021-06-17T10:53:00 | C75: PRODEMEX | D75: 236945 | E75: 2 | F75: CLT-26 | G75: 230/3 | H75: VE-70 | I75: 4260 CFM | J75: 625 | K75: 1 | N75: CUBIERTA MOTOR | O75: 3.703703704 | P75: 5CLTG26B0625CM | Q75: Existe
A76: 73 | B76: 2021-06-17T10:53:00 | C76: PRODEMEX | D76: 236945 | E76: 2 | F76: CLT-22 | G76: 230/3 | H76: VE-72 | I76: 3297 CFM | J76: 900 | K76: 1 1/2 | N76: CUBIERTA MOTOR | O76: 3.703703704 | P76: 5CLTG22C0900CM | Q76: Existe
A77: 74 | B77: 2021-06-17T10:53:00 | C77: PRODEMEX | D77: 236945 | E77: 1 | F77: CLT-10 | G77: 127/1 | H77: VE-74 | I77: 450 CFM | J77: 1725 | K77: 1/4 | N77: CUBIERTA MOTOR | O77: 3.703703704 | P77: 5CLTG1021725CM | Q77: EXT.CLTG-10 1/4M 1725RPM CUBRE
A78: 75 | B78: 2021-06-17T10:53:00 | C78: PRODEMEX | D78: 236945 | E78: 2 | F78: CLT-12 | G78: 127/1 | H78: VE-75 | I78: 650 CFM | J78: 1575 | K78: 1/2 | N78: CUBIERTA MOTOR | O78: 3.703703704 | P78: 5CLTG1241600CM | Q78: Existe
A79: 76 | B79: 2021-06-17T10:53:00 | C79: PRODEMEX | D79: 236945 | E79: 1 | F79: CLT-12 | G79: 127/1 | H79: VE-77 | I79: 450 CFM | J79: 1100 | K79: 1/4 | N79: CUBIERTA MOTOR | O79: 3.703703704 | P79: 5CLTG122111CM | Q79: Existe
A80: 77 | B80: 2021-06-17T10:53:00 | C80: PRODEMEX | D80: 236945 | E80: 1 | F80: CLT-12 | G80: 230/3 | H80: VE-78 | I80: 1250 CFM | J80: 1675 | K80: 3/4 | N80: CUBIERTA MOTOR | O80: 3.703703704 | P80: 5CLTG12A1675CM | Q80: EXT.CLTG-12 3/4T 1675RPM CUBRE
A81: 78 | B81: 2021-06-17T10:53:00 | C81: PRODEMEX | D81: 236945 | E81: 1 | F81: PL-304 | G81: 460/3 | H81: VE-79 | I81: 1000 CFM | J81: 1765 | K81: 2 | N81: 460 V | O81: 3.703703704 | P81: 5PL-304460V | Q81: EXT.PL-30 2TF 4P 460V
A82: 79 | B82: 2021-06-17T10:53:00 | C82: PRODEMEX | D82: 236945 | E82: 1 | F82: CLT-12 | G82: 127/1 | H82: VE-80 | I82: 960 CFM | J82: 1450 | K82: 1/2 | N82: CUBIERTA MOTOR | O82: 3.703703704 | P82: 5CLTG1241450CM | Q82: Existe
A83: 80 | B83: 2021-06-17T10:53:00 | C83: PRODEMEX | D83: 236945 | E83: 1 | F83: CLT-12 | G83: 127/1 | H83: VE-81 | I83: 960 CFM | J83: 1450 | K83: 1/2 | N83: CUBIERTA MOTOR | O83: 3.703703704 | P83: 5CLTG1241450CM | Q83: REPETIDO
A84: 81 | B84: 2021-06-17T17:37:00 | C84: REACLIMA | D84: 236966 | E84: 2 | F84: TBN-T-500 | G84: 220/1 | H84: - | I84: 3200 CFM | J84: 1050 | K84: 1 | N84: EQUIPOS DISPONIBLES EN PT | O84: 3.703703704 | P84: 5TBNTI50061050 | Q84: EXT.TBNI-T-500 1M 1050RPM
A85: 82 | B85: 2021-06-21T10:36:00 | C85: AVANTE | D85: 237021 | E85: 2 | F85: CMX 450/4P | G85: 460/3 | H85: - | I85: 9287 M3/HR | J85: 1750 | K85: 3 | N85: MALLA EN SUCCION, BRIDA EN DESCARGA, INTERRUPTOR IP 65 | O85: 3.703703704 | P85: 5CMX450E0175MA | Q85: EXT.CMX-450 3T 1750RPM MALLA
A86: 83 | B86: 2021-06-21T11:29:00 | C86: IMPORTACIONES CORTES | D86: 237026 | E86: 2 | F86: HXP-4-1000/H | G86: 460/3 | H86: - | I86: 1725 | J86: 1725 | K86: 7 1/2 | N86: MOTOR APEX 2-MO-076XUS | O86: 3.703703704 | P86: 5HXP4-1000/HPX | Q86: EXT.HXP-4-1000/H 7.5HP TF
A87: 84 | B87: 2021-06-21T12:26:00 | C87: SOLUCIONES CULINARIAS NARVARTE | D87: 237027 | E87: 2 | F87: CMI-710 | G87: 230/3 | H87: VE 01 Y 02 | I87: 12000 CFM | J87: 1100 | K87: 7 1/2 | O87: 3.703703704 | P87: 5CMI710G010950 | Q87: Existe
A88: 85 | B88: 2021-06-21T12:26:00 | C88: SOLUCIONES CULINARIAS NARVARTE | D88: 237027 | E88: 3 | F88: CMI-800 | G88: 230/3 | H88: VE 03 - 05 | I88: 15000 CFM | J88: 1075 | K88: 10 | O88: 3.703703704 | P88: 5CMI800H110000 | Q88: Existe
A89: 86 | B89: 2021-06-21T12:26:00 | C89: SOLUCIONES CULINARIAS NARVARTE | D89: 237027 | E89: 1 | F89: CMI-400 | G89: 230/3 | H89: VE 10 | I89: 2200 CFM | J89: 1300 | K89: 3/4 | O89: 3.703703704 | P89: 5CMI400A013250 | Q89: Existe
A90: 87 | B90: 2021-06-21T12:26:00 | C90: SOLUCIONES CULINARIAS NARVARTE | D90: 237027 | E90: 1 | F90: CDAHF2-20/20 | G90: 230/3 | H90: VI-01 | I90: 8000 CFM | J90: 800 | K90: 5 | O90: 3.703703704 | P90: 5CDAHF220F0801 | Q90: Existe
A91: 88 | B91: 2021-06-21T12:26:00 | C91: SOLUCIONES CULINARIAS NARVARTE | D91: 237027 | E91: 2 | F91: CDAHF2-18/18 | G91: 230/3 | H91: VE-02 Y 03 | I91: 4500 CFM | J91: 825 | K91: 3 | O91: 3.703703704 | P91: 5CDAHF218E0819 | Q91: Existe
A92: 89 | B92: 2021-06-21T16:45:00 | C92: EXPERTOS EN VENTILACION | D92: 237063 | E92: 1 | F92: CDAHF2-9/9 | G92: 127/1 | H92: - | I92: - | J92: 825 | K92: 1/4 | O92: 3.703703704 | P92: 5CDAHF29208250 | Q92: EXT.CDAHF2-9/9 1/4M 825RPM
A93: 90 | B93: 2021-06-22T09:32:00 | C93: QUE CALOR | D93: 237088 | E93: 1 | F93: CDAHF2-20/20 | G93: 230/3 | H93: - | I93: - | J93: 675 | K93: 3 | O93: 3.703703704 | P93: 5CDAHF220E0675 | Q93: Existe
A94: 91 | B94: 2021-06-22T09:32:00 | C94: QUE CALOR | D94: 237088 | E94: 2 | F94: CMI-560 | G94: 230/3 | H94: - | I94: - | J94: 1000 | K94: 1 1/2 | O94: 3.703703704 | P94: 5CMI560C100030 | Q94: Existe
A95: 92 | B95: 2021-06-22T09:43:00 | C95: JOSE JUAN CURIEL ORDAZ | D95: 237089 | E95: 2 | F95: WXT 1250-1 1/2-S | G95: 230/3 | H95: - | I95: - | J95: 500 | K95: 1 1/2 | N95: MALLA PROT. SUCCION, BRIDAS SUCCION Y DESCARGA | O95: 3.703703704 | P95: 5WXT125015SMA | Q95: EXT.WXT-1250 1.5T 500RPM MALLA
A96: 93 | B96: 2021-06-22T23:12:00 | C96: EXPERTOS EN VENTILACION | D96: 237095 | E96: 10 | F96: CDAHF1-36/36 | G96: 440/3 | H96: - | I96: - | J96: 325 | K96: 15 | O96: 3.703703704 | P96: 5CDAHF136M0325 | Q96: EXT.CDAHF1-36/36 15T 6P 325RPM
A97: 94 | B97: 2021-06-22T16:48:00 | C97: TRANE | D97: 237115 | E97: 1 | F97: CRHLT-16 | G97: 127/1 | H97: - | I97: 2250 CFM | J97: 1075 | K97: 3/4 | O97: 3.703703704 | P97: 5CRHLT16501100 | Q97: Existe
A98: 95 | B98: 2021-06-22T16:48:00 | C98: TRANE | D98: 237115 | E98: 6 | F98: DX-1250/H 3T | G98: 460/3 | H98: - | I98: 16500 CFM | J98: 610 | K98: 3 | O98: 3.703703704 | P98: 5DX12503S | Q98: Existe
A99: 96 | B99: 2021-06-23T09:57:00 | C99: EXPERTOS EN VENTILACION | D99: 237145 | E99: 1 | F99: CRHLT-42 | G99: 230/3 | H99: - | I99: - | J99: 475 | K99: 5 | O99: 3.703703704 | P99: 5CRHT42F047400 | Q99: Existe
A100: 97 | B100: 2021-06-23T11:27:00 | C100: IDSAA TECHNOLOGIES | D100: 237152 | E100: 3 | F100: BIL-355 | G100: 220/3 | H100: - | I100: - | J100: 2000 | K100: 1 | N100: EQUIPOS DISPONIBLES EN PT | O100: 3.703703704 | P100: 5BIL355B020000 | Q100: EXT.BIL-355 1T 2000RPM
A101: 98 | B101: 2021-06-23T11:52:00 | C101: TECHNO COMFORT HVAC | D101: 237156 | E101: 8 | F101: I-HGT-1250-3 | G101: 230/3 | H101: VE-1751-003 | I101: 19852 CFM | J101: 610 | K101: 3 | N101: INYECTOR | O101: 3.703703704 | P101: FORMATO | Q101: FORMATO
A102: 99 | B102: 2021-06-23T11:52:00 | C102: TECHNO COMFORT HVAC | D102: 237156 | E102: 2 | F102: CMI-315 | G102: 220/1 | H102: VI-1751-009 | I102: 1503 CFM | J102: 1775 | K102: 3/4 | O102: 3.703703704 | P102: 5CMI3155018000 | Q102: Existe
A103: 100 | B103: 2021-06-23T11:52:00 | C103: TECHNO COMFORT HVAC | D103: 237156 | E103: 1 | F103: CMI-250 | G103: 220/1 | H103: VE-1751-013 | I103: 862 CFM | J103: 2125 | K103: 1/3 | O103: 3.703703704 | P103: 5CMI2503213500 | Q103: Existe
A104: 101 | B104: 2021-06-23T11:52:00 | C104: TECHNO COMFORT HVAC | D104: 237156 | E104: 2 | F104: CMI-280 | G104: 220/1 | H104: VE-1751-017 | I104: 1200 CFM | J104: 1800 | K104: 1/3 | O104: 3.703703704 | P104: 5CMI2803018000 | Q104: Existe
A105: 102 | B105: 2021-06-23T11:52:00 | C105: TECHNO COMFORT HVAC | D105: 237156 | E105: 1 | F105: CMI-355 | G105: 220/1 | H105: VE-1751-008 | I105: 2733 CFM | J105: 1975 | K105: 1 1/2 | O105: 3.703703704 | P105: 5CMI3557019750 | Q105: Existe
A106: 103 | B106: 2021-06-23T13:04:00 | C106: I.MONTSERRAT | D106: 237183 | E106: 1 | F106: CLT-18 | G106: 127/1 | H106: VE-S1-01 | I106: 3040 CFM | J106: 1050 | K106: 1/2 | N106: CUBIERTA MOTOR | O106: 3.703703704 | P106: 5CLTG1841050CM | Q106: EXT.CLTG-18 1/2M 1050RPM CUBRE
A107: 104 | B107: 2021-06-23T13:04:00 | C107: I.MONTSERRAT | D107: 237183 | E107: 1 | F107: CDAHF2-22/22 | G107: 460/3 | H107: UV-01 | I107: 14865 CFM | J107: 525 | K107: 10 | O107: 3.703703704 | P107: 5CDAHF222H0525 | Q107: EXT.CDAHF2-22/22 10T 525RPM
A108: 105 | B108: 2021-06-23T13:25:00 | C108: PRODEMEX | D108: 237064 | E108: 1 | F108: CLDG-12 3/4 MF | G108: 127/1 | H108: VE-84 | I108: 1050 CFM | J108: 1725 | K108: 3/4 | N108: SWITCH IP 65 | O108: 3.703703704 | P108: 5CLDG12501725S | Q108: EXT.CLDG-12 3/4M 4P SW
A109: 106 | B109: 2021-06-23T16:17:00 | C109: PRODEMEX | D109: 237194 | E109: 5 | F109: CMI-355 | G109: 460/3 | H109: QX-01 AL 05 | I109: 2000 CFM | J109: 1450 | K109: 1/2 | O109: 3.703703704 | P109: 5CMI3559014500 | Q109: Existe
A110: 107 | B110: 2021-06-23T16:17:00 | C110: PRODEMEX | D110: 237194 | E110: 1 | F110: CMI-280 | G110: 230/3 | H110: ENDOSCOPIA | I110: 1463 CFM | J110: 2075 | K110: 1/2 | O110: 3.703703704 | P110: 5CMI2809020750 | Q110: EXT.CMI-280 1/2T 2075RPM
A111: 108 | B111: 2021-06-23T16:17:00 | C111: PRODEMEX | D111: 237194 | E111: 2 | F111: CMI-250 | G111: 127/1 | H111: AISLADO ENDOSCOPIA | I111: 750 CFM | J111: 2075 | K111: 1/4 | O111: 3.703703704 | P111: 5CMI2502020750 | Q111: Existe
A112: 109 | B112: 2021-06-23T16:17:00 | C112: PRODEMEX | D112: 237194 | E112: 1 | F112: CDAHF2-12/12 | G112: 127/1 | H112: ENDOSCOPIA | I112: 1000 CFM | J112: 975 | K112: 1/2 | O112: 3.703703704 | P112: 5CDAHF21240975 | Q112: EXT.CDAHF2-12/12 1/2M 975RPM
A113: 110 | B113: 2021-06-23T16:17:00 | C113: PRODEMEX | D113: 237194 | E113: 1 | F113: CMI-280 | G113: 127/1 | H113: AMPLIACION CEYE | I113: 1357 CFM | J113: 1900 | K113: 1/3 | O113: 3.703703704 | P113: 5CMI2803191600 | Q113: Existe
A114: 111 | B114: 2021-06-23T17:12:00 | C114: GOMEZ VELA ANA LILIA | D114: 237078 | E114: 1 | F114: CMI-500 | G114: - | H114: - | I114: - | J114: - | K114: - | N114: S/M , CCW, DESCARGA UB 0° | O114: 3.703703704 | P114: 5CMI5000000IUB | Q114: Existe
A115: 112 | B115: 2021-06-24T10:42:00 | C115: REACLIMA | D115: 237217 | E115: 1 | F115: CCR-18/18 | G115: 220/1 | H115: - | I115: 6000 CFM | J115: 625 | K115: 2 | N115: DESCARGA VERTICAL HACIA ABAJO | O115: 3.703703704 | P115: 5CCR1818106250 | Q115: EXT.CCR-18/18 2M 625RPM
A116: 113 | B116: 2021-06-24T10:47:00 | C116: IDSAA | D116: 237219 | E116: 2 | F116: CLT-12 | G116: 220/3 | H116: - | I116: - | J116: 1500 | K116: 1/2 | O116: 3.703703704 | P116: 5CLTG129015000 | Q116: Existe
A117: 114 | B117: 2021-06-24T10:47:00 | C117: IDSAA | D117: 237219 | E117: 1 | F117: CLT-18 | G117: 220/3 | H117: - | I117: - | J117: 1125 | K117: 1 | O117: 3.703703704 | P117: 5CLTG18B112500 | Q117: Existe
A118: 115 | B118: 2021-06-24T11:17:00 | C118: SOLUCIONES Y SERVICIOS EN AIRE | D118: 237224 | E118: 1 | F118: CME-500 | G118: 460/3 | H118: - | I118: - | J118: 1300 | K118: 3 | N118: ARREGLO ANTICHISPA AMCA "C", MOTOR ESTANDAR | O118: 3.703703704 | P118: 5CME500E013000 | Q118: Existe
A119: 116 | B119: 2021-06-24T12:13:00 | C119: IDSAA | D119: 236846 | E119: 1 | F119: CLT-30 | G119: 230/3 | H119: - | I119: - | J119: 550 | K119: 1 | N119: CAJA PORTAFILTROS INCLUYE: FILTROS METALICOS (1RA) Y FILTROS MERV7 (2DA) | O119: 3.703703704 | P119: 5CLTG30B0550PF | Q119: EXT.CLTG-30 1T 550RPM PTA.FILT
A120: 117 | B120: 2021-06-25T12:04:00 | C120: IALSA | D120: 237254 | E120: 2 | F120: WXT 800-3/4-S | G120: 460/3 | H120: VE-12 Y 13 | I120: - | J120: 700 | K120: 3/4 | N120: MALLA EN ASPIRACION, PERSIANA DE EXTRACION (WX) | O120: 3.703703704 | P120: 5WXT80034700PM | Q120: EXT.WXT-800 3/4T 700RPM MALLA
A121: 118 | B121: 2021-06-25T12:04:00 | C121: IALSA | D121: 237254 | E121: 2 | F121: HEP-400 | G121: 460/3 | H121: VE-17 | I121: - | J121: 1725 | K121: 1/4 | N121: 460 V | O121: 3.703703704 | P121: 5HEP400460V | Q121: Existe
A122: 119 | B122: 2021-06-25T12:04:00 | C122: IALSA | D122: 237254 | E122: 2 | F122: HGT-1000-3/4 | G122: 460/3 | H122: VE-21 Y 22 | I122: - | J122: 550 | K122: 3/4 | N122: 460 V | O122: 3.703703704 | P122: 5HGT1000L460V | Q122: Existe
A123: 120 | B123: 2021-06-25T14:06:00 | C123: CLIMAS DE COATZACOALCOS | D123: 237060 | E123: 1 | F123: CET-2600 | G123: 127/1 | H123: - | I123: - | J123: 1755 | K123: 3/4 | L123: CCW | N123: CCW | O123: 3.703703704 | P123: FORMATO | Q123: FORMATO
A124: 121 | B124: 2021-06-25T15:53:00 | C124: ADOCASA | D124: 237272 | E124: 2 | F124: DA-18/18 | G124: 127/1 | H124: - | I124: - | J124: 350 | K124: 1 | O124: 3.703703704 | P124: 5DA18186035000 | Q124: EXT.DA-18/18 1M 6P 350RPM
A125: 122 | B125: 2021-06-25T16:26:00 | C125: EQUIPOS Y MAQUINARIA DEL CENTRO | D125: 237284 | E125: 1 | F125: DAL-9-H-1 1/2 | G125: 230/3 | H125: - | I125: 5102 CFM | J125: 630 | K125: 1 1/2 | O125: 3.703703704 | P125: 5UDLHF9C062000 | Q125: Existe
A126: 123 | B126: 2021-06-28T10:39:00 | C126: EDISON MAQUINARIA | D126: 237325 | E126: 2 | F126: DAL-72-H-20 | G126: 460/3 | H126: PE 0.88 | I126: 36534 PCM | J126: 451 | K126: 20 | O126: 3.703703704 | P126: 5DLHF72N004500 | Q126: Existe
A127: 124 | B127: 2021-06-28T12:18:00 | C127: BARCEL | D127: 237332 | E127: 2 | F127: CRVHT-33 | G127: 230/3 | H127: - | I127: - | J127: 750 | K127: 5 | N127: SWITCH IP 65 | O127: 3.703703704 | P127: 5CRVHT33F0751S | Q127: EXT.CRVHT-33 5T 750RPM SW
A128: 125 | B128: 2021-06-28T16:54:00 | C128: SOLUCIONES CULINARIAS NARVARTE | D128: 237346 | E128: 3 | F128: CRVLT-18 | G128: 220/1 | H128: VEK 01 Y 07 | I128: 2700 CFM | J128: 1425 | K128: 1 1/2 | N128: GENERAR A 1425, TRAMPA DE GRASA | O128: 3.703703704 | P128: 5CRVLT187142TG | Q128: EXT.CRVLT-18 1.5M 1425RPM TG
A129: 126 | B129: 2021-06-28T16:54:00 | C129: SOLUCIONES CULINARIAS NARVARTE | D129: 237346 | E129: 19 | F129: CRVLT-18 | G129: 220/1 | H129: VEK 03 AL 05, 08 AL 10 Y VEK 22 | I129: 2700 CFM | J129: 1400 | K129: 1 1/2 | N129: GENERAR A 1400, TRAMPA DE GRASA | O129: 3.703703704 | P129: 5CRVLT187140TG | Q129: EXT.CRVLT-18 1.5M 1400RPM TG
A130: 127 | B130: 2021-06-28T16:54:00 | C130: SOLUCIONES CULINARIAS NARVARTE | D130: 237346 | E130: 3 | F130: CCR-18/18 | G130: 220/1 | H130: VIPB 01 AL 01 | I130: 5400 CFM | J130: 625 | K130: 2 | N130: GENERAR A 625 | O130: 3.703703704 | P130: 5CCR1818106250 | Q130: Existe
A131: 128 | B131: 2021-06-29T08:36:00 | C131: CLIMA REAL | D131: 237369 | E131: 1 | F131: CDAHF1-12/12 | G131: 220/3 | H131: - | I131: - | J131: 1110 | K131: 3/4 | N131: FILTRO PLISADO MERV 7, EN LUGAR DEL METALICO | O131: 3.703703704 | P131: 5CDAHF112A1101 | Q131: EXT.CDAHF1-12/12 3/4T 1100RPM
A132: 129 | B132: 2021-06-29T08:36:00 | C132: CLIMA REAL | D132: 237369 | E132: 1 | F132: CRVLT-14 | G132: 220/3 | H132: - | I132: - | J132: 1725 | K132: 1/2 | O132: 3.703703704 | P132: 5CRVLT14901750 | Q132: Existe
A133: 130 | B133: 2021-06-29T08:55:00 | C133: JULIO CESAR GARCIA | D133: 237370 | E133: 5 | F133: DAL-25-V-5 | G133: 230/3 | H133: - | I133: - | J133: 490 | K133: 5 | N133: DESCARGA VERTICAL INFERIOR, LOUVER EN SUCCION Y SWITCH IP 65 | O133: =2/0.54 -> 3.703703704 | P133: 5UDLVF25F500LV | Q133: LAV.DALV-25 5T 490RPM LV SW
A134: 131 | B134: 2021-06-29T10:26:00 | C134: IALSA | D134: 237254 | E134: 1 | F134: HXA-4-800/L0 | G134: 460/3 | H134: VE-19 | I134: 6133 CFM | J134: 1725 | K134: 1 1/2 | N134: 460 V, MOTOR APEX 2-MO-154XUS | O134: 3.703703704 | P134: 5HXA4-800/L0PX | Q134: EXT.HXA-4-800/L0 1.5HP TF MOT.
A135: 132 | B135: 2021-06-29T10:28:00 | C135: EXPERTOS EN VENTILACION | D135: 237376 | E135: 1 | F135: CDAH-30/28 | G135: 220/3 | H135: - | I135: - | J135: 475 | K135: 15 | O135: 3.703703704 | P135: 5CDAH328M04750 | Q135: EXT.CDAH-30/28 15T 475RPM
A136: 133 | B136: 2021-06-29T10:53:00 | C136: TRANE | D136: 237378 | E136: 1 | F136: CDAH-7/7 | G136: 127/1 | H136: - | I136: 660 CFM | J136: 1025 | K136: 1/4 | O136: 3.703703704 | P136: 5CDAH772010250 | Q136: Existe
A137: 134 | B137: 2021-06-29T11:29:00 | C137: DCI3 | D137: 237384 | E137: 1 | F137: CLT-14 | G137: 460/3 | H137: VE-08 | I137: - | J137: 1800 | K137: 1 | N137: CUBIERTA MOTOR | O137: 3.703703704 | P137: 5CLTG14B1800CM | Q137: EXT.CLTG-14 1T 1800RPM CUBRE
A138: 135 | B138: 2021-06-29T11:29:00 | C138: DCI3 | D138: 237384 | E138: 1 | F138: CLT-16 | G138: 460/3 | H138: VE-09 | I138: - | J138: 1500 | K138: 1 1/2 | N138: CUBIERTA MOTOR | O138: 3.703703704 | P138: 5CLTG16C1500CM | Q138: EXT.CLTG-16 1.5T 1500RPM CUBRE
A139: 136 | B139: 2021-06-29T11:29:00 | C139: DCI3 | D139: 237384 | E139: 2 | F139: CLT-12 | G139: 460/3 | H139: VE-10 A | I139: - | J139: 1800 | K139: 3/4 | N139: CUBIERTA MOTOR | O139: 3.703703704 | P139: 5CLTG12A1801CM | Q139: EXT.CLTG-12 3/4T 1800RPM CUBRE
A140: 137 | B140: 2021-06-29T16:35:00 | C140: HVAC MECHANICAL CONTRACTOR | D140: 237454 | E140: 1 | F140: CRVLT-42 | G140: 230/3 | H140: EF-04 | I140: - | J140: 450 | K140: 5 | O140: 3.703703704 | P140: 5CRVT42F045000 | Q140: EXT.CRVT-42 5T 450RPM
A141: 138 | B141: 2021-06-29T16:46:00 | C141: HVAC MECHANICAL CONTRACTOR | D141: 237460 | E141: 1 | F141: CRHLT-10 | G141: 230/3 | H141: EF-05 | I141: - | J141: 1725 | K141: 1/3 | O141: 3.703703704 | P141: 5CRHLT10T01725 | Q141: EXT.CRHLT-10 1/3T 1725RPM
A142: 139 | B142: 2021-06-29T16:46:00 | C142: HVAC MECHANICAL CONTRACTOR | D142: 237460 | E142: 1 | F142: CRVLT-12 | G142: 230/3 | H142: EF-06 | I142: - | J142: 1675 | K142: 1/2 | O142: 3.703703704 | P142: 5CRVLT12901675 | Q142: EXT.CRVLT-12 1/2T 1675RPM
A143: 140 | B143: 2021-06-29T16:46:00 | C143: HVAC MECHANICAL CONTRACTOR | D143: 237460 | E143: 1 | F143: CRHLT-10 | G143: 230/3 | H143: EF-07 | I143: - | J143: 1725 | K143: 1/3 | O143: 3.703703704 | P143: 5CRHLT10T01725 | Q143: REPETIDO
A144: 141 | B144: 2021-06-29T16:46:00 | C144: HVAC MECHANICAL CONTRACTOR | D144: 237460 | E144: 1 | F144: CCR-12/12 | G144: 230/3 | H144: SF-01 | I144: - | J144: 950 | K144: 3/4 | O144: 3.703703704 | P144: 5CCR1212A09500 | Q144: EXT.CCR-12/12 3/4T 950RPM
A145: 142 | B145: 2021-06-29T17:36:00 | C145: AL MOTOR | D145: 237467 | E145: 3 | F145: CMI-250 | G145: 127/1 | H145: - | I145: - | J145: 2400 | K145: 1/2 | O145: 3.703703704 | P145: 5CMI2504024000 | Q145: Existe
A146: 143 | B146: 2021-06-29T17:36:00 | C146: AL MOTOR | D146: 237467 | E146: 2 | F146: CMI-280 | G146: 127/1 | H146: - | I146: - | J146: 2200 | K146: 3/4 | O146: 3.703703704 | P146: 5CMI2805220000 | Q146: Existe
A147: 144 | B147: 2021-06-29T17:36:00 | C147: AL MOTOR | D147: 237467 | E147: 3 | F147: CMI-315 | G147: 127/1 | H147: - | I147: - | J147: 2100 | K147: 1 | O147: 3.703703704 | P147: 5CMI3156021000 | Q147: Existe
A148: 145 | B148: 2021-06-29T17:36:00 | C148: AL MOTOR | D148: 237467 | E148: 2 | F148: CMI-355 | G148: 127/1 | H148: - | I148: - | J148: 2000 | K148: 1 1/2 | O148: 3.703703704 | P148: 5CMI3557201000 | Q148: Existe
A149: 146 | B149: 2021-06-29T17:36:00 | C149: AL MOTOR | D149: 237467 | E149: 3 | F149: CMI-400 | G149: 127/1 | H149: - | I149: - | J149: 1800 | K149: 2 | O149: 3.703703704 | P149: 5CMI4001018000 | Q149: Existe
A150: 147 | B150: 2021-06-29T18:47:00 | C150: AL MOTOR | D150: 237472 | E150: 1 | F150: DAL-16-H-3 | G150: 230/3 | H150: - | I150: - | J150: 500 | K150: 3 | O150: 3.703703704 | P150: 5UDLHF16E04920 | Q150: Existe
A151: 148 | B151: 2021-06-29T19:21:00 | C151: DISEÑO E INSTALACIONES ESPECIALES | D151: 237486 | E151: 2 | F151: RXT 1250-3-27/S | G151: 230/3 | H151: - | I151: - | J151: 610 | K151: 3 | O151: 3.703703704 | P151: 5NRXT1250327S | Q151: Existe
A152: 149 | B152: 2021-06-30T09:05:00 | C152: MULTIEQUIPOS | D152: 237495 | E152: 2 | F152: CRVLT-12 | G152: 220/1 | H152: - | I152: - | J152: 1350 | K152: 1/4 | O152: 3.703703704 | P152: 5CRVLT12201350 | Q152: Existe
A153: 150 | B153: 2021-06-30T09:05:00 | C153: MULTIEQUIPOS | D153: 237495 | E153: 2 | F153: CRVLT-14 | G153: 220/1 | H153: - | I153: - | J153: 1525 | K153: 3/4 | O153: 3.703703704 | P153: 5CRVLT14501525 | Q153: Existe
A154: 151 | B154: 2021-06-30T09:05:00 | C154: MULTIEQUIPOS | D154: 237495 | E154: 3 | F154: CRVLT-16 | G154: 220/1 | H154: - | I154: - | J154: 1375 | K154: 1 | O154: 3.703703704 | P154: 5CRVLT16601380 | Q154: Existe
A155: 152 | B155: 2021-06-30T09:05:00 | C155: MULTIEQUIPOS | D155: 237495 | E155: 3 | F155: CRVLT-18 | G155: 220/1 | H155: - | I155: - | J155: 1300 | K155: 1 1/2 | O155: 3.703703704 | P155: 5CRVLT18701300 | Q155: Existe
A156: 153 | B156: 2021-06-30T09:05:00 | C156: MULTIEQUIPOS | D156: 237495 | E156: 2 | F156: CRVLT-20 | G156: 220/1 | H156: - | I156: - | J156: 1000 | K156: 2 | O156: 3.703703704 | P156: 5CRVLT20101000 | Q156: Existe
A157: 154 | B157: 2021-06-30T09:05:00 | C157: MULTIEQUIPOS | D157: 237495 | E157: 2 | F157: CRHLT-16 | G157: 230/3 | H157: - | I157: - | J157: 1250 | K157: 3/4 | O157: 3.703703704 | P157: 5CRHLT16A01275 | Q157: Existe
A158: 155 | B158: 2021-06-30T09:49:00 | C158: AL MOTOR | D158: 237502 | E158: 4 | F158: I-WXD 1000-1 1/2-6P/L/A | G158: 460/3 | H158: - | I158: 11237 CFM | J158: 1140 | K158: 1 1/2 | N158: INYECTOR, MALLA EN DESCARGA, BANCO PORTAFILTROS CON FILTROS MERV-7 EN SUCCION, PERSIANA DE INYECCION CON MECANISMO EN SUCCION, BRIDAS | O158: 3.703703704 | P158: FORMATO | Q158: FORMATO
A159: 156 | B159: 2021-06-30T21:04:00 | C159: CLIO CLIMATIZACION DE OCCIDENTE | D159: 237666 | E159: 1 | F159: CLT-12 | G159: 127/1 | H159: VI-02 | I159: - | J159: 1125 | K159: 1/4 | N159: CUBIERTA MOTOR | O159: 3.703703704 | P159: 5CLTG12211CM | Q159: Existe
A160: 157 | B160: 2021-06-30T21:04:00 | C160: CLIO CLIMATIZACION DE OCCIDENTE | D160: 237666 | E160: 1 | F160: CLT-14 | G160: 127/1 | H160: VI-03 | I160: - | J160: 1450 | K160: 1/2 | N160: CUBIERTA MOTOR | O160: 3.703703704 | P160: 5CLTG1441450CM | Q160: EXT.CLTG-14 1/2M 1450RPM CUBRE
A161: 158 | B161: 2021-06-30T21:04:00 | C161: CLIO CLIMATIZACION DE OCCIDENTE | D161: 237666 | E161: 1 | F161: CLT-16 | G161: 460/3 | H161: VE-03 | I161: - | J161: 950 | K161: 1/2 | N161: CUBIERTA MOTOR | O161: 3.703703704 | P161: 5CLTG1690950CM | Q161: Existe
A162: 159 | B162: 2021-06-30T21:04:00 | C162: CLIO CLIMATIZACION DE OCCIDENTE | D162: 237666 | E162: 1 | F162: CMI-500 | G162: 460/3 | H162: VE-20 | I162: - | J162: 1000 | K162: 3/4 | O162: 3.703703704 | P162: 5CMI500A100000 | Q162: Existe
A163: 160 | B163: 2021-06-30T21:04:00 | C163: CLIO CLIMATIZACION DE OCCIDENTE | D163: 237666 | E163: 1 | F163: CMI-250 | G163: 220/3 | H163: VE-30 | I163: - | J163: 1750 | K163: 1/4 | O163: 3.703703704 | P163: 5CMI2508017500 | Q163: EXT.CMI-250 1/4T 1750RPM
A164: 161 | B164: 2021-06-30T21:04:00 | C164: CLIO CLIMATIZACION DE OCCIDENTE | D164: 237666 | E164: 1 | F164: CMI-250 | G164: 220/3 | H164: VE-31 | I164: - | J164: 1750 | K164: 1/4 | O164: 3.703703704 | P164: 5CMI2508017500 | Q164: REPETIDO
A165: 162 | B165: 2021-06-30T21:04:00 | C165: CLIO CLIMATIZACION DE OCCIDENTE | D165: 237666 | E165: 1 | F165: CMI-900 | G165: 460/3 | H165: VE-25 | I165: - | J165: 575 | K165: 3 | O165: 3.703703704 | P165: 5CMI900E057500 | Q165: Existe
A166: 163 | B166: 2021-06-30T21:04:00 | C166: CLIO CLIMATIZACION DE OCCIDENTE | D166: 237666 | E166: 1 | F166: CLT-16 | G166: 460/3 | H166: VI-14 | I166: - | J166: 1550 | K166: 2 | N166: CUBIERTA MOTOR | O166: 3.703703704 | P166: 5CLTG16D1550CM | Q166: EXT.CLTG-16 2T 1550RPM CUBRE
A167: 164 | B167: 2021-06-30T21:04:00 | C167: CLIO CLIMATIZACION DE OCCIDENTE | D167: 237666 | E167: 1 | F167: CLT-10 | G167: 460/3 | H167: VE-12 | I167: - | J167: 1225 | K167: 1/4 | N167: CUBIERTA MOTOR | O167: 3.703703704 | P167: 5CLTG1081225CM | Q167: EXT.CLTG-10 1/4T 1225RPM CUBRE
A168: 165 | B168: 2021-06-30T21:04:00 | C168: CLIO CLIMATIZACION DE OCCIDENTE | D168: 237666 | E168: 1 | F168: CLT-10 | G168: 127/1 | H168: VE-22 | I168: - | J168: 1500 | K168: 1/4 | N168: CUBIERTA MOTOR | O168: 3.703703704 | P168: 5CLTG1021500CM | Q168: EXT.CLTG-10 1/4M 1500RPM CUBRE
A169: 166 | B169: 2021-06-30T21:04:00 | C169: CLIO CLIMATIZACION DE OCCIDENTE | D169: 237666 | E169: 1 | F169: CMI-355 | G169: 220/3 | H169: VE-27 | I169: - | J169: 1900 | K169: 1 | O169: 3.703703704 | P169: 5CMI355B019000 | Q169: Existe
A170: 167 | B170: 2021-06-30T21:04:00 | C170: CLIO CLIMATIZACION DE OCCIDENTE | D170: 237666 | E170: 1 | F170: CMI-355 | G170: 220/3 | H170: VE-28 | I170: - | J170: 1850 | K170: 1 | O170: 3.703703704 | P170: 5CMI355B018500 | Q170: EXT.CMI-355 1T 1850RPM
A171: 168 | B171: 2021-06-30T21:45:00 | C171: GRUPO ALCIONE | D171: 237677 | E171: 1 | F171: DAL-16-H-3 | G171: 230/3 | H171: - | I171: 8500 CFM | J171: 548 | K171: 3 | N171: PORTAFILTRO CON FILTROS PLISADOS (MERV 8), LOUVERS DE PROTECCION EN SUCCION | O171: 3.703703704 | P171: 5UDLHF16E550PF | Q171: LAV.DALH-16 3T 550RPM PTA.FIL
A172: 169 | B172: 2021-06-30T21:56:00 | C172: WEG TRANSFORMADORES MEXICO | D172: 237678 | E172: 4 | F172: CMI-250 | G172: 230/3 | H172: - | I172: 3174 M3/HR | J172: 3850 | K172: 1 1/2 | N172: DISCO DE ENFIRMAIENTO, SELLO EN FLECHA Y RECUBRIMIENTO DE ALUMINIO PARA ALTA TEMPERATURA *MOTOR DE 2P* PEDIDO CANCELADO | O172: 3.703703704
A173: 170 | B173: 2021-06-30T22:31:00 | C173: CLIMAS OPCION | D173: 237680 | E173: 1 | F173: CMI-450 | G173: 230/3 | H173: - | I173: 3767 CFM | J173: 1725 | K173: 3 | O173: 3.703703704 | P173: 5CMI450E017250 | Q173: Existe
A174: 171 | B174: 2021-06-30T22:54:00 | C174: AIRESISTEMAS DE OCCIDENTE | D174: 237685 | E174: 1 | F174: CDAHF1-12/12 | G174: 220/1 | H174: - | I174: 1535 CFM | J174: 1025 | K174: 3/4 | O174: 3.703703704 | P174: 5CDAHF11251025 | Q174: EXT.CDAHF1-12/12 3/4M 1025RPM
A175: 172 | B175: 2021-06-30T22:54:00 | C175: AIRESISTEMAS DE OCCIDENTE | D175: 237685 | E175: 1 | F175: CMI-315 | G175: 220/1 | H175: - | I175: 800 CFM | J175: 1350 | K175: 1/2 | O175: 3.703703704 | P175: 5CMI3154013500 | Q175: EXT.CMI-315 1/2M 1350RPM
A176: 173 | B176: 2021-06-30T22:54:00 | C176: AIRESISTEMAS DE OCCIDENTE | D176: 237685 | E176: 1 | F176: CMI-400 | G176: 220/1 | H176: - | I176: 1535 CFM | J176: 1250 | K176: 3/4 | O176: 3.703703704 | P176: 5CMI4005012500 | Q176: EXT.CMI-400 3/4M 1250RPM
A177: 174 | B177: 2021-06-30T23:10:00 | C177: VALVERDE FLORES IRMA OLIVIA | D177: 237686 | E177: 1 | F177: HEP 500 | G177: 230/3 | H177: - | I177: - | J177: 1740 | K177: 1/2 | N177: INYECTOR | O177: 3.703703704 | Q177: NO SE GENERA
A178: 175 | B178: 2021-06-30T23:19:00 | C178: REFRIGERACION LOZANO | D178: 237687 | E178: 5 | F178: CRVLT-16 | G178: 220/1 | H178: - | I178: 2910 CFM | J178: 1150 | K178: 1 | O178: 3.703703704 | P178: 5CRVLT16601150 | Q178: Existe
A179: 176 | B179: 2021-06-30T23:19:00 | C179: REFRIGERACION LOZANO | D179: 237687 | E179: 1 | F179: CRVLT-18 | G179: 220/1 | H179: - | I179: 4057 CFM | J179: 1200 | K179: 1 | O179: 3.703703704 | P179: 5CRVLT18601200 | Q179: Existe
A180: 177 | B180: 2021-06-30T23:19:00 | C180: REFRIGERACION LOZANO | D180: 237687 | E180: 4 | F180: CRVLT-18 | G180: 220/1 | H180: - | I180: 3838 CFM | J180: 1200 | K180: 3/4 | O180: 3.703703704 | P180: 5CRVLT18501200 | Q180: Existe
A181: 178 | B181: 2021-06-30T23:19:00 | C181: REFRIGERACION LOZANO | D181: 237687 | E181: 1 | F181: CRVHT-18 | G181: 115/1 | H181: - | I181: 5409 CFM | J181: 1600 | K181: 2 | O181: 3.703703704 | P181: 5CRVHT18101600 | Q181: Existe
A182: 179 | B182: 2021-06-30T23:19:00 | C182: REFRIGERACION LOZANO | D182: 237687 | E182: 1 | F182: CRVLT-16 | G182: 115/1 | H182: - | I182: 1973 CFM | J182: 925 | K182: 1/4 | O182: 3.703703704 | P182: 5CRVLT16209250 | Q182: Existe
A183: 180 | B183: 2021-06-30T23:30:00 | C183: SIERRA MADRE NORTE | D183: 237453 | E183: 1 | F183: CDAHF1-9/9 | G183: 220/3 | H183: - | I183: - | J183: 800 | K183: 1/4 | O183: 3.703703704 | P183: 5CDAHF19980800 | Q183: EXT.CDAHF1-9/9 1/4T 800RPM

Sheet JULIO 2021
A1: SIAC | P1: ING. INDUSTRIAL
F2: CARACTERISTICAS DEL EQUIPO
A3: ITEM | B3: FECHA SOLICITADA | C3: Nombre Cliente | D3: PEDIDO | E3: CANTIDAD | F3: EQUIPO | G3: Conexión | H3: TAG | I3: Caudal | J3: R.P.M | K3: MOTOR | L3: GIRO | M3: DESCARGA | N3: OBSERVACIONES | O3: FACTOR VENTA | P3: Codigo | Q3: Descripción | R3: COSTO | S3: PRECIO LISTA | T3: FECHA ENTREGA
